Workbook

Sheet Customer Input
A1: Date | B1: First Name | C1: Last Name | D1: Phone | E1: Email | F1: Address | G1: City | H1: State | I1: Zip | J1: Item 1 | K1: Item 2 | L1: Item 3 | M1: Item 4 | N1: Item 5 | O1: Item 6 | P1: Item 7 | Q1: Item 8 | R1: Item 9 | S1: Item 10
A2: 2021-10-24 | B2: Matthew | C2: Caputo | D2: 6315790090 | E2: mattcap62480@gmail.com | F2: 7123 Montclair Peak Lane | G2: Richmond | H2: TX | I2: 77469 | J2: 7250412 | K2: 5216388 | L2: 9242514
A3: 2021-10-24 | B3: John | C3: Doe | D3: 8174368834 | E3: noone@yahoo.com | F3: 1000 Main Street | G3: Los Angeles | H3: CA | I3: 98845 | J3: 2056772 | K3: 3055845
A4: 2021-10-24 | B4: Suzie | C4: Kaploozie | D4: 7139892245 | E4: sk2002@hotmail.com | F4: 3 Pine Road | G4: Albany | H4: NY | I4: 12313 | J4: 3055845
A5: 2021-10-25 | B5: Mary | C5: Jane | D5: 9184329830 | E5: high@gmail.com | F5: 420 Weed Way | G5: Denver | H5: CO | I5: 88325 | J5: 8924251 | K5: 7250412 | L5: 5216388
A6: 2021-10-25 | B6: William | C6: Wont | D6: 5168832323 | E6: NotHere@yahoo.com | F6: 823 1st St | G6: Kansas City | H6: MO | I6: 65923 | J6: 9242514 | K6: 3055845 | L6: 7250412
A7: 2021-10-25 | B7: Peter | C7: Pumpkineater | D7: 6530353532 | E7: Orange@mail.com | F7: 32 Maple Road | G7: Bloomington | H7: VT | I7: 8876 | J7: 8924251 | K7: 7250412 | L7: 8924251
A8: 2021-10-25 | B8: Jack | C8: O'Lantern | D8: 8785546312 | E8: halloween@hotmail.com | F8: 666 Evil Road | G8: Hell | H8: MO | I8: 10232 | J8: 3055845
A9: 2021-10-26 | B9: Mary | C9: Jane | D9: 9184329830 | E9: high@gmail.com | F9: 420 Weed Way | G9: Denver | H9: CO | I9: 88325 | J9: 8924251 | K9: 2056772
A10: 2021-10-26 | B10: Suzie | C10: Kaploozie | D10: 7139892245 | E10: sk2002@hotmail.com | F10: 3 Pine Road | G10: Albany | H10: NY | I10: 12313 | J10: 2056772
A11: 2021-10-26 | B11: Peter | C11: Pumpkineater | D11: 6530353532 | E11: Orange@mail.com | F11: 32 Maple Road | G11: Bloomington | H11: VT | I11: 8876 | J11: 3055845 | K11: 2056772 | L11: 5216388
A12: 2021-10-27 | B12: Marie | C12: Calendar | D12: 4438641204 | E12: pies4life@gmail.com | F12: 3343 Rhubarb Road | G12: Jacksonville | H12: MI | I12: 30243 | J12: 5216388 | K12: 7250412 | L12: 9242514
A13: 2021-10-27 | B13: Suzie | C13: Kaploozie | D13: 7139892245 | E13: sk2002@hotmail.com | F13: 3 Pine Road | G13: Albany | H13: NY | I13: 12313 | J13: 3055845 | K13: 8924251
A14: 2021-10-27 | B14: William | C14: Wont | D14: 5168832323 | E14: NotHere@yahoo.com | F14: 823 1st St | G14: Kansas City | H14: MO | I14: 65923 | J14: 8924251 | K14: 4989600 | L14: 5086187 | M14: 5216388 | N14: 6671819 | O14: 6738313 | P14: 6808398 | Q14: 6832283 | R14: 7250412
A15: 2021-10-27 | B15: John | C15: Doe | D15: 8174368834 | E15: noone@yahoo.com | F15: 1000 Main Street | G15: Los Angeles | H15: CA | I15: 98845 | J15: 7250412
A16: 2021-10-27 | B16: Matthew | C16: Caputo | D16: 6315790090 | E16: mattcap62480@gmail.com | F16: 7123 Montclair Peak Lane | G16: Richmond | H16: TX | I16: 77469 | J16: 5216388
A17: 2021-10-28 | B17: DJ | C17: Rhythm | D17: 3056223185 | E17: Tunes@yahoo.com | F17: 5544 Charles Road | G17: Miami | H17: FL | I17: 33465 | J17: 4989600 | K17: 3055845
A18: 2021-10-28 | B18: Mary | C18: Jane | D18: 9184329830 | E18: high@gmail.com | F18: 420 Weed Way | G18: Denver | H18: CO | I18: 88325 | J18: 3055845
A19: 2021-10-28 | B19: Jack | C19: O'Lantern | D19: 8785546312 | E19: halloween@hotmail.com | F19: 666 Evil Road | G19: Hell | H19: MO | I19: 10232 | J19: 3055845
A20: 2021-10-28 | B20: Charles | C20: N'Charge | D20: 9224318825 | E20: boss@hotmail.com | F20: 18765 Village Street | G20: Seattle | H20: WA | I20: 98923 | J20: 8924251 | K20: 5216388
A21: 2021-10-29 | B21: Matthew | C21: Caputo | D21: 6315790090 | E21: mattcap62480@gmail.com | F21: 7123 Montclair Peak Lane | G21: Richmond | H21: TX | I21: 77469 | J21: 8924251 | K21: 5216388
A22: 2021-10-29 | B22: John | C22: Doe | D22: 8174368834 | E22: noone@yahoo.com | F22: 1000 Main Street | G22: Los Angeles | H22: CA | I22: 98845 | J22: 5216388
A23: 2021-10-29 | B23: Peter | C23: Pumpkineater | D23: 6530353532 | E23: Orange@mail.com | F23: 32 Maple Road | G23: Bloomington | H23: VT | I23: 8876 | J23: 8924251
A24: 2021-10-29 | B24: Matthew | C24: Caputo | D24: 6315790090 | E24: mattcap62480@gmail.com | F24: 7123 Montclair Peak Lane | G24: Richmond | H24: TX | I24: 77469 | J24: 7250412 | K24: 8924251
A25: 2021-10-30 | B25: Mister | C25: Liberace | D25: 9153230352 | E25: Piano12@yahoo.com | F25: 432 Flamingo Drive | G25: Las Vegas | H25: NV | I25: 73547 | J25: 1252953 | K25: 1465559 | L25: 1983220 | M25: 2056772 | N25: 2847693 | O25: 3055845 | P25: 3148653 | Q25: 3785616 | R25: 3818725 | S25: 3832255
A26: 2021-10-30 | B26: Suzie | C26: Kaploozie | D26: 7139892245 | E26: sk2002@hotmail.com | F26: 3 Pine Road | G26: Albany | H26: NY | I26: 12313 | J26: 9242514 | K26: 5216388
A27: 2021-10-30 | B27: Jack | C27: O'Lantern | D27: 8785546312 | E27: halloween@hotmail.com | F27: 666 Evil Road | G27: Hell | H27: MO | I27: 10232 | J27: 3055845
A28: 2021-10-30 | B28: William | C28: Wont | D28: 5168832323 | E28: NotHere@yahoo.com | F28: 823 1st St | G28: Kansas City | H28: MO | I28: 65923 | J28: 2056772 | K28: 3055845
A29: 2021-10-30 | B29: Mary | C29: Jane | D29: 9184329830 | E29: high@gmail.com | F29: 420 Weed Way | G29: Denver | H29: CO | I29: 88325 | J29: 2056772

Sheet Pivot Tables
A3: Row Labels | B3: Sum of Number of Items | C3: Sum of Grand Total
A4: Calendar Marie | B4: 3 | C4: 601.74
A5: Caputo Matthew | B5: 8 | C5: 852.9
A6: Doe John | B6: 4 | C6: 378.508
A7: Jane Mary | B7: 7 | C7: 593.86
A8: Kaploozie Suzie | B8: 6 | C8: 1036.36
A9: Liberace Mister | B9: 10 | C9: 2432.22
A10: N'Charge Charles | B10: 2 | C10: 168.79
A11: O'Lantern Jack | B11: 3 | C11: 610.78
A12: Pumpkineater Peter | B12: 7 | C12: 609.86
A13: Rhythm DJ | B13: 2 | C13: 221.58
A14: Wont William | B14: 14 | C14: 1253.57
A15: Grand Total | B15: 66 | C15: 8760.168
A17: Price | B17: (Multiple Items) | C17: Items Priced Under $10
A19: Row Labels | B19: Sum of Total Purchased | C19: Sum of Percent of Total Revenue | D19: Sum of Total Per Item | E19: Percentage of Total Revenue
A20: Better Socks | B20: 1 | C20: 0.2257751938 | D20: 6.99
A21: Fuzzy Socks | B21: 1 | C21: 0.290374677 | D21: 8.99
A22: Socks | B22: 1 | C22: 0.1611757106 | D22: 4.99
A23: Toe Socks | B23: 1 | C23: 0.3226744186 | D23: 9.99
A24: Grand Total | B24: 4 | C24: 1 | D24: 30.96 | E24: =GETPIVOTDATA("Sum of Total Per Item",$A$19)/'Product Information'!$E$32 -> 0.003486745637
A27: Price | B27: (Multiple Items) | C27: Items Priced $10 to $100
A29: Row Labels | B29: Sum of Total Purchased | C29: Sum of Percent of Total Revenue | D29: Sum of Total Per Item | E29: Percentage of Total Revenue
A30: Amazing Hat | B30: 0 | C30: 0 | D30: 0
A31: Better Hat | B31: 0 | C31: 0 | D31: 0
A32: Great Pants | B32: 7 | C32: 0.2220910652 | D32: 524.93
A33: Great Shirt | B33: 1 | C33: 0.02326555479 | D33: 54.99
A34: Hard Hat | B34: 2 | C34: 0.02537675898 | D34: 59.98
A35: Hat | B35: 1 | C35: 0.008457509371 | D35: 19.99
A36: IOU Sunglasses | B36: 0 | C36: 0 | D36: 0
A37: Logo Hat | B37: 10 | C37: 0.2115011973 | D37: 499.9
A38: Nicer Pants | B38: 1 | C38: 0.01480381455 | D38: 34.99
A39: Nicer Shirt | B39: 0 | C39: 0 | D39: 0
A40: Pants | B40: 1 | C40: 0.01057294443 | D40: 24.99
A41: Shirt | B41: 0 | C41: 0 | D41: 0
A42: Shoes | B42: 0 | C42: 0 | D42: 0
A43: Sunglasses | B43: 0 | C43: 0 | D43: 0
A44: Super Sunglasses | B44: 10 | C44: 0.4230447034 | D44: 999.9
A45: Thermal Socks | B45: 8 | C45: 0.04396720229 | D45: 103.92
A46: Top Hat | B46: 1 | C46: 0.01691924961 | D46: 39.99
A47: UV Sunglasses | B47: 0 | C47: 0 | D47: 0
A48: Grand Total | B48: 42 | C48: 1 | D48: 2363.58 | E48: =GETPIVOTDATA("Sum of Total Per Item",$A$29)/'Product Information'!E32 -> 0.2661887032
A51: Price | B51: (Multiple Items) | C51: Items Priced Over $100
A53: Row Labels | B53: Sum of Total Purchased | C53: Sum of Percent of Total Revenue | D53: Sum of Total Per Item | E53: Percentage of Total Revenue
A54: Dressy Jacket | B54: 1 | C54: 0.07710183814 | D54: 499.99
A55: Fashionista Sunglasses | B55: 4 | C55: 0.3084073526 | D55: 1999.96
A56: Great Shoes | B56: 0 | C56: 0 | D56: 0
A57: Jacket | B57: 1 | C57: 0.02081637059 | D57: 134.99
A58: Leather Jacket | B58: 1 | C58: 0.06939150012 | D58: 449.99
A59: Logo Jacket | B59: 1 | C59: 0.1542052184 | D59: 999.99
A60: Nicer Shoes | B60: 0 | C60: 0 | D60: 0
A61: Winter Jacket | B61: 12 | C61: 0.3700777202 | D61: 2399.88
A62: Grand Total | B62: 20 | C62: 1 | D62: 6484.8 | E62: =GETPIVOTDATA("Sum of Total Per Item",$A$53)/'Product Information'!E32 -> 0.7303245511

Sheet Input Calculation
A1: Order Number | B1: Phone Number | C1: Customer Name | D1: Date | E1: State | F1: Customer Since | G1: New Information | H1: Red Flag | I1: Item 1 | J1: Price 1 | K1: Item 2 | L1: Price 2 | M1: Item 3 | N1: Price 3 | O1: Item 4 | P1: Price 4 | Q1: Item 5 | R1: Price 5 | S1: Item 6 | T1: Price 6 | U1: Item 7 | V1: Price 7 | W1: Item 8 | X1: Price 8 | Y1: Item 9 | Z1: Price 9 | AA1: Item 10 | AB1: Price 10 | AC1: Number of Items | AD1: Item Total | AE1: Loyalty Discount | AF1: Big Spender Discount | AG1: Sub Total | AH1: Shipping | AI1: Sales Tax | AJ1: Grand Total | AN1: State | AO1: Sales Tax
A2: =IF(ISBLANK('Customer Input'!D2),"",ROW()+999) -> 1001 | B2: ='Customer Input'!D2 -> 6315790090 | C2: =CONCATENATE('Customer Input'!C2," ",'Customer Input'!B2) -> Caputo Matthew | D2: ='Customer Input'!A2 -> 2021-10-24 | E2: ='Customer Input'!H2 -> TX | F2: =VLOOKUP(B2,'Customer Information'!$A$2:$I$17,8) -> 2007 | G2: =IF('Customer Input'!F2=VLOOKUP('Input Calculation'!B2,'Customer Information'!$A$2:$I$17,4),"No","Yes") -> No | H2: =IF(VLOOKUP(B2,'Customer Information'!$A$2:$I$17,9)="Yes","","Attn: Manager") ->  | I2: =IF(ISBLANK('Customer Input'!J2),"",'Customer Input'!J2) -> 7250412 | J2: =IF(ISBLANK('Customer Input'!J2),"",VLOOKUP(I2,'Product Information'!$A$2:$C$31,3)) -> 12.99 | K2: =IF(ISBLANK('Customer Input'!K2),"",'Customer Input'!K2) -> 5216388 | L2: =IF(ISBLANK('Customer Input'!K2),"",VLOOKUP(K2,'Product Information'!$A$2:$C$31,3)) -> 49.99 | M2: =IF(ISBLANK('Customer Input'!L2),"",'Customer Input'!L2) -> 9242514 | N2: =IF(ISBLANK('Customer Input'!L2),"",VLOOKUP(M2,'Product Information'!$A$2:$C$31,3)) -> 499.99 | O2: =IF(ISBLANK('Customer Input'!M2),"",'Customer Input'!M2) ->  | P2: =IF(ISBLANK('Customer Input'!M2),"",VLOOKUP(O2,'Product Information'!$A$2:$C$31,3)) ->  | Q2: =IF(ISBLANK('Customer Input'!N2),"",'Customer Input'!N2) ->  | R2: =IF(ISBLANK('Customer Input'!N2),"",VLOOKUP(Q2,'Product Information'!$A$2:$C$31,3)) ->  | S2: =IF(ISBLANK('Customer Input'!O2),"",'Customer Input'!O2) ->  | T2: =IF(ISBLANK('Customer Input'!O2),"",VLOOKUP(S2,'Product Information'!$A$2:$C$31,3)) ->  | U2: =IF(ISBLANK('Customer Input'!P2),"",'Customer Input'!P2) ->  | V2: =IF(ISBLANK('Customer Input'!P2),"",VLOOKUP(U2,'Product Information'!$A$2:$C$31,3)) ->  | W2: =IF(ISBLANK('Customer Input'!Q2),"",'Customer Input'!Q2) ->  | X2: =IF(ISBLANK('Customer Input'!Q2),"",VLOOKUP(W2,'Product Information'!$A$2:$C$31,3)) ->  | Y2: =IF(ISBLANK('Customer Input'!R2),"",'Customer Input'!R2) ->  | Z2: =IF(ISBLANK('Customer Input'!R2),"",VLOOKUP(Y2,'Product Information'!$A$2:$C$31,3)) ->  | AA2: =IF(ISBLANK('Customer Input'!S2),"",'Customer Input'!S2) ->  | AB2: =IF(ISBLANK('Customer Input'!S2),"",VLOOKUP(AA2,'Product Information'!$A$2:$C$31,3)) ->  | AC2: =COUNT(I2:AB2)/2 -> 3 | AD2: =SUM(J2,L2,N2,P2,R2,T2,V2,X2,Z2,AB2) -> 562.97 | AE2: =IF(YEAR(D2)-F2>9,_xlfn.FLOOR.MATH(AD2*10)/100,0) -> 56.29 | AF2: =IF(MATCH(B2,'Order History'!V:V,0)=MAX('Order History'!A:A)-A2+2,0,IF(VLOOKUP(MATCH(B2,'Order History'!V:V,0)-1,'Order History'!$T$2:$AJ$11,17)>199,_xlfn.FLOOR.MATH(AD2*10)/100,0)) -> 0 | AG2: =AD2-AE2-AF2 -> 506.68 | AH2: =IF(OR(AE2>0,AF2>0),0,MIN(5,0.1*AG2)) -> 0 | AI2: =_xlfn.FLOOR.MATH(VLOOKUP(E2,$AN$2:$AO$52,2)*AG2*100)/100 -> 41.49 | AJ2: =SUM(AG2:AI2) -> 548.17 | AN2: AK | AO2: 0.0176
A3: =IF(ISBLANK('Customer Input'!D3),"",ROW()+999) -> 1002 | B3: ='Customer Input'!D3 -> 8174368834 | C3: =CONCATENATE('Customer Input'!C3," ",'Customer Input'!B3) -> Doe John | D3: ='Customer Input'!A3 -> 2021-10-24 | E3: ='Customer Input'!H3 -> CA | F3: =VLOOKUP(B3,'Customer Information'!$A$2:$I$17,8) -> 2017 | G3: =IF('Customer Input'!F3=VLOOKUP('Input Calculation'!B3,'Customer Information'!$A$2:$I$17,4),"No","Yes") -> No | H3: =IF(VLOOKUP(B3,'Customer Information'!$A$2:$I$17,9)="Yes","","Attn: Manager") ->  | I3: =IF(ISBLANK('Customer Input'!J3),"",'Customer Input'!J3) -> 2056772 | J3: =IF(ISBLANK('Customer Input'!J3),"",VLOOKUP(I3,'Product Information'!$A$2:$C$31,3)) -> 74.99 | K3: =IF(ISBLANK('Customer Input'!K3),"",'Customer Input'!K3) -> 3055845 | L3: =IF(ISBLANK('Customer Input'!K3),"",VLOOKUP(K3,'Product Information'!$A$2:$C$31,3)) -> 199.99 | M3: =IF(ISBLANK('Customer Input'!L3),"",'Customer Input'!L3) ->  | N3: =IF(ISBLANK('Customer Input'!L3),"",VLOOKUP(M3,'Product Information'!$A$2:$C$31,3)) ->  | O3: =IF(ISBLANK('Customer Input'!M3),"",'Customer Input'!M3) ->  | P3: =IF(ISBLANK('Customer Input'!M3),"",VLOOKUP(O3,'Product Information'!$A$2:$C$31,3)) ->  | Q3: =IF(ISBLANK('Customer Input'!N3),"",'Customer Input'!N3) ->  | R3: =IF(ISBLANK('Customer Input'!N3),"",VLOOKUP(Q3,'Product Information'!$A$2:$C$31,3)) ->  | S3: =IF(ISBLANK('Customer Input'!O3),"",'Customer Input'!O3) ->  | T3: =IF(ISBLANK('Customer Input'!O3),"",VLOOKUP(S3,'Product Information'!$A$2:$C$31,3)) ->  | U3: =IF(ISBLANK('Customer Input'!P3),"",'Customer Input'!P3) ->  | V3: =IF(ISBLANK('Customer Input'!P3),"",VLOOKUP(U3,'Product Information'!$A$2:$C$31,3)) ->  | W3: =IF(ISBLANK('Customer Input'!Q3),"",'Customer Input'!Q3) ->  | X3: =IF(ISBLANK('Customer Input'!Q3),"",VLOOKUP(W3,'Product Information'!$A$2:$C$31,3)) ->  | Y3: =IF(ISBLANK('Customer Input'!R3),"",'Customer Input'!R3) ->  | Z3: =IF(ISBLANK('Customer Input'!R3),"",VLOOKUP(Y3,'Product Information'!$A$2:$C$31,3)) ->  | AA3: =IF(ISBLANK('Customer Input'!S3),"",'Customer Input'!S3) ->  | AB3: =IF(ISBLANK('Customer Input'!S3),"",VLOOKUP(AA3,'Product Information'!$A$2:$C$31,3)) ->  | AC3: =COUNT(I3:AB3)/2 -> 2 | AD3: =SUM(J3,L3,N3,P3,R3,T3,V3,X3,Z3,AB3) -> 274.98 | AE3: =IF(YEAR(D3)-F3>9,_xlfn.FLOOR.MATH(AD3*10)/100,0) -> 0 | AF3: =IF(MATCH(B3,'Order History'!V:V,0)=MAX('Order History'!A:A)-A3+2,0,IF(VLOOKUP(MATCH(B3,'Order History'!V:V,0)-1,'Order History'!$T$2:$AJ$11,17)>199,_xlfn.FLOOR.MATH(AD3*10)/100,0)) -> 0 | AG3: =AD3-AE3-AF3 -> 274.98 | AH3: =IF(OR(AE3>0,AF3>0),0,MIN(5,0.1*AG3)) -> 5 | AI3: =_xlfn.FLOOR.MATH(VLOOKUP(E3,$AN$2:$AO$52,2)*AG3*100)/100 -> 23.81 | AJ3: =SUM(AG3:AI3) -> 303.79 | AN3: AL | AO3: 0.0922
A4: =IF(ISBLANK('Customer Input'!D4),"",ROW()+999) -> 1003 | B4: ='Customer Input'!D4 -> 7139892245 | C4: =CONCATENATE('Customer Input'!C4," ",'Customer Input'!B4) -> Kaploozie Suzie | D4: ='Customer Input'!A4 -> 2021-10-24 | E4: ='Customer Input'!H4 -> NY | F4: =VLOOKUP(B4,'Customer Information'!$A$2:$I$17,8) -> 2003 | G4: =IF('Customer Input'!F4=VLOOKUP('Input Calculation'!B4,'Customer Information'!$A$2:$I$17,4),"No","Yes") -> No | H4: =IF(VLOOKUP(B4,'Customer Information'!$A$2:$I$17,9)="Yes","","Attn: Manager") ->  | I4: =IF(ISBLANK('Customer Input'!J4),"",'Customer Input'!J4) -> 3055845 | J4: =IF(ISBLANK('Customer Input'!J4),"",VLOOKUP(I4,'Product Information'!$A$2:$C$31,3)) -> 199.99 | K4: =IF(ISBLANK('Customer Input'!K4),"",'Customer Input'!K4) ->  | L4: =IF(ISBLANK('Customer Input'!K4),"",VLOOKUP(K4,'Product Information'!$A$2:$C$31,3)) ->  | M4: =IF(ISBLANK('Customer Input'!L4),"",'Customer Input'!L4) ->  | N4: =IF(ISBLANK('Customer Input'!L4),"",VLOOKUP(M4,'Product Information'!$A$2:$C$31,3)) ->  | O4: =IF(ISBLANK('Customer Input'!M4),"",'Customer Input'!M4) ->  | P4: =IF(ISBLANK('Customer Input'!M4),"",VLOOKUP(O4,'Product Information'!$A$2:$C$31,3)) ->  | Q4: =IF(ISBLANK('Customer Input'!N4),"",'Customer Input'!N4) ->  | R4: =IF(ISBLANK('Customer Input'!N4),"",VLOOKUP(Q4,'Product Information'!$A$2:$C$31,3)) ->  | S4: =IF(ISBLANK('Customer Input'!O4),"",'Customer Input'!O4) ->  | T4: =IF(ISBLANK('Customer Input'!O4),"",VLOOKUP(S4,'Product Information'!$A$2:$C$31,3)) ->  | U4: =IF(ISBLANK('Customer Input'!P4),"",'Customer Input'!P4) ->  | V4: =IF(ISBLANK('Customer Input'!P4),"",VLOOKUP(U4,'Product Information'!$A$2:$C$31,3)) ->  | W4: =IF(ISBLANK('Customer Input'!Q4),"",'Customer Input'!Q4) ->  | X4: =IF(ISBLANK('Customer Input'!Q4),"",VLOOKUP(W4,'Product Information'!$A$2:$C$31,3)) ->  | Y4: =IF(ISBLANK('Customer Input'!R4),"",'Customer Input'!R4) ->  | Z4: =IF(ISBLANK('Customer Input'!R4),"",VLOOKUP(Y4,'Product Information'!$A$2:$C$31,3)) ->  | AA4: =IF(ISBLANK('Customer Input'!S4),"",'Customer Input'!S4) ->  | AB4: =IF(ISBLANK('Customer Input'!S4),"",VLOOKUP(AA4,'Product Information'!$A$2:$C$31,3)) ->  | AC4: 1 | AD4: 199.99 | AE4: 19.99 | AF4: =IF(MATCH(B4,'Order History'!V:V,0)=MAX('Order History'!A:A)-A4+2,0,IF(VLOOKUP(MATCH(B4,'Order History'!V:V,0)-1,'Order History'!$T$2:$AJ$11,17)>199,_xlfn.FLOOR.MATH(AD4*10)/100,0)) -> 19.99 | AG4: 160.01 | AH4: 0 | AI4: 13.63 | AJ4: 173.64 | AN4: AR | AO4: 0.0947
A5: =IF(ISBLANK('Customer Input'!D5),"",ROW()+999) -> 1004 | B5: ='Customer Input'!D5 -> 9184329830 | C5: =CONCATENATE('Customer Input'!C5," ",'Customer Input'!B5) -> Jane Mary | D5: ='Customer Input'!A5 -> 2021-10-25 | E5: ='Customer Input'!H5 -> CO | F5: =VLOOKUP(B5,'Customer Information'!$A$2:$I$17,8) -> 2001 | G5: =IF('Customer Input'!F5=VLOOKUP('Input Calculation'!B5,'Customer Information'!$A$2:$I$17,4),"No","Yes") -> No | H5: =IF(VLOOKUP(B5,'Customer Information'!$A$2:$I$17,9)="Yes","","Attn: Manager") -> Attn: Manager | I5: =IF(ISBLANK('Customer Input'!J5),"",'Customer Input'!J5) -> 8924251 | J5: =IF(ISBLANK('Customer Input'!J5),"",VLOOKUP(I5,'Product Information'!$A$2:$C$31,3)) -> 99.99 | K5: =IF(ISBLANK('Customer Input'!K5),"",'Customer Input'!K5) -> 7250412 | L5: =IF(ISBLANK('Customer Input'!K5),"",VLOOKUP(K5,'Product Information'!$A$2:$C$31,3)) -> 12.99 | M5: =IF(ISBLANK('Customer Input'!L5),"",'Customer Input'!L5) -> 5216388 | N5: =IF(ISBLANK('Customer Input'!L5),"",VLOOKUP(M5,'Product Information'!$A$2:$C$31,3)) -> 49.99 | O5: =IF(ISBLANK('Customer Input'!M5),"",'Customer Input'!M5) ->  | P5: =IF(ISBLANK('Customer Input'!M5),"",VLOOKUP(O5,'Product Information'!$A$2:$C$31,3)) ->  | Q5: =IF(ISBLANK('Customer Input'!N5),"",'Customer Input'!N5) ->  | R5: =IF(ISBLANK('Customer Input'!N5),"",VLOOKUP(Q5,'Product Information'!$A$2:$C$31,3)) ->  | S5: =IF(ISBLANK('Customer Input'!O5),"",'Customer Input'!O5) ->  | T5: =IF(ISBLANK('Customer Input'!O5),"",VLOOKUP(S5,'Product Information'!$A$2:$C$31,3)) ->  | U5: =IF(ISBLANK('Customer Input'!P5),"",'Customer Input'!P5) ->  | V5: =IF(ISBLANK('Customer Input'!P5),"",VLOOKUP(U5,'Product Information'!$A$2:$C$31,3)) ->  | W5: =IF(ISBLANK('Customer Input'!Q5),"",'Customer Input'!Q5) ->  | X5: =IF(ISBLANK('Customer Input'!Q5),"",VLOOKUP(W5,'Product Information'!$A$2:$C$31,3)) ->  | Y5: =IF(ISBLANK('Customer Input'!R5),"",'Customer Input'!R5) ->  | Z5: =IF(ISBLANK('Customer Input'!R5),"",VLOOKUP(Y5,'Product Information'!$A$2:$C$31,3)) ->  | AA5: =IF(ISBLANK('Customer Input'!S5),"",'Customer Input'!S5) ->  | AB5: =IF(ISBLANK('Customer Input'!S5),"",VLOOKUP(AA5,'Product Information'!$A$2:$C$31,3)) ->  | AC5: 3 | AD5: 162.97 | AE5: 16.29 | AF5: =IF(MATCH(B5,'Order History'!V:V,0)=MAX('Order History'!A:A)-A5+2,0,IF(VLOOKUP(MATCH(B5,'Order History'!V:V,0)-1,'Order History'!$T$2:$AJ$11,17)>199,_xlfn.FLOOR.MATH(AD5*10)/100,0)) -> 0 | AG5: 146.68 | AH5: 0 | AI5: 11.22 | AJ5: 157.9 | AN5: AZ | AO5: 0.084
A6: =IF(ISBLANK('Customer Input'!D6),"",ROW()+999) -> 1005 | B6: ='Customer Input'!D6 -> 5168832323 | C6: =CONCATENATE('Customer Input'!C6," ",'Customer Input'!B6) -> Wont William | D6: ='Customer Input'!A6 -> 2021-10-25 | E6: ='Customer Input'!H6 -> MO | F6: =VLOOKUP(B6,'Customer Information'!$A$2:$I$17,8) -> 2020 | G6: =IF('Customer Input'!F6=VLOOKUP('Input Calculation'!B6,'Customer Information'!$A$2:$I$17,4),"No","Yes") -> No | H6: =IF(VLOOKUP(B6,'Customer Information'!$A$2:$I$17,9)="Yes","","Attn: Manager") ->  | I6: =IF(ISBLANK('Customer Input'!J6),"",'Customer Input'!J6) -> 9242514 | J6: =IF(ISBLANK('Customer Input'!J6),"",VLOOKUP(I6,'Product Information'!$A$2:$C$31,3)) -> 499.99 | K6: =IF(ISBLANK('Customer Input'!K6),"",'Customer Input'!K6) -> 3055845 | L6: =IF(ISBLANK('Customer Input'!K6),"",VLOOKUP(K6,'Product Information'!$A$2:$C$31,3)) -> 199.99 | M6: =IF(ISBLANK('Customer Input'!L6),"",'Customer Input'!L6) -> 7250412 | N6: =IF(ISBLANK('Customer Input'!L6),"",VLOOKUP(M6,'Product Information'!$A$2:$C$31,3)) -> 12.99 | O6: =IF(ISBLANK('Customer Input'!M6),"",'Customer Input'!M6) ->  | P6: =IF(ISBLANK('Customer Input'!M6),"",VLOOKUP(O6,'Product Information'!$A$2:$C$31,3)) ->  | Q6: =IF(ISBLANK('Customer Input'!N6),"",'Customer Input'!N6) ->  | R6: =IF(ISBLANK('Customer Input'!N6),"",VLOOKUP(Q6,'Product Information'!$A$2:$C$31,3)) ->  | S6: =IF(ISBLANK('Customer Input'!O6),"",'Customer Input'!O6) ->  | T6: =IF(ISBLANK('Customer Input'!O6),"",VLOOKUP(S6,'Product Information'!$A$2:$C$31,3)) ->  | U6: =IF(ISBLANK('Customer Input'!P6),"",'Customer Input'!P6) ->  | V6: =IF(ISBLANK('Customer Input'!P6),"",VLOOKUP(U6,'Product Information'!$A$2:$C$31,3)) ->  | W6: =IF(ISBLANK('Customer Input'!Q6),"",'Customer Input'!Q6) ->  | X6: =IF(ISBLANK('Customer Input'!Q6),"",VLOOKUP(W6,'Product Information'!$A$2:$C$31,3)) ->  | Y6: =IF(ISBLANK('Customer Input'!R6),"",'Customer Input'!R6) ->  | Z6: =IF(ISBLANK('Customer Input'!R6),"",VLOOKUP(Y6,'Product Information'!$A$2:$C$31,3)) ->  | AA6: =IF(ISBLANK('Customer Input'!S6),"",'Customer Input'!S6) ->  | AB6: =IF(ISBLANK('Customer Input'!S6),"",VLOOKUP(AA6,'Product Information'!$A$2:$C$31,3)) ->  | AC6: 3 | AD6: 712.97 | AE6: 0 | AF6: =IF(MATCH(B6,'Order History'!V:V,0)=MAX('Order History'!A:A)-A6+2,0,IF(VLOOKUP(MATCH(B6,'Order History'!V:V,0)-1,'Order History'!$T$2:$AJ$11,17)>199,_xlfn.FLOOR.MATH(AD6*10)/100,0)) -> 71.29 | AG6: 641.68 | AH6: 0 | AI6: 52.48 | AJ6: 694.16 | AN6: CA | AO6: 0.0866
A7: =IF(ISBLANK('Customer Input'!D7),"",ROW()+999) -> 1006 | B7: ='Customer Input'!D7 -> 6530353532 | C7: =CONCATENATE('Customer Input'!C7," ",'Customer Input'!B7) -> Pumpkineater Peter | D7: ='Customer Input'!A7 -> 2021-10-25 | E7: ='Customer Input'!H7 -> VT | F7: =VLOOKUP(B7,'Customer Information'!$A$2:$I$17,8) -> 2008 | G7: =IF('Customer Input'!F7=VLOOKUP('Input Calculation'!B7,'Customer Information'!$A$2:$I$17,4),"No","Yes") -> No | H7: =IF(VLOOKUP(B7,'Customer Information'!$A$2:$I$17,9)="Yes","","Attn: Manager") ->  | I7: =IF(ISBLANK('Customer Input'!J7),"",'Customer Input'!J7) -> 8924251 | J7: =IF(ISBLANK('Customer Input'!J7),"",VLOOKUP(I7,'Product Information'!$A$2:$C$31,3)) -> 99.99 | K7: =IF(ISBLANK('Customer Input'!K7),"",'Customer Input'!K7) -> 7250412 | L7: =IF(ISBLANK('Customer Input'!K7),"",VLOOKUP(K7,'Product Information'!$A$2:$C$31,3)) -> 12.99 | M7: =IF(ISBLANK('Customer Input'!L7),"",'Customer Input'!L7) -> 8924251 | N7: =IF(ISBLANK('Customer Input'!L7),"",VLOOKUP(M7,'Product Information'!$A$2:$C$31,3)) -> 99.99 | O7: =IF(ISBLANK('Customer Input'!M7),"",'Customer Input'!M7) ->  | P7: =IF(ISBLANK('Customer Input'!M7),"",VLOOKUP(O7,'Product Information'!$A$2:$C$31,3)) ->  | Q7: =IF(ISBLANK('Customer Input'!N7),"",'Customer Input'!N7) ->  | R7: =IF(ISBLANK('Customer Input'!N7),"",VLOOKUP(Q7,'Product Information'!$A$2:$C$31,3)) ->  | S7: =IF(ISBLANK('Customer Input'!O7),"",'Customer Input'!O7) ->  | T7: =IF(ISBLANK('Customer Input'!O7),"",VLOOKUP(S7,'Product Information'!$A$2:$C$31,3)) ->  | U7: =IF(ISBLANK('Customer Input'!P7),"",'Customer Input'!P7) ->  | V7: =IF(ISBLANK('Customer Input'!P7),"",VLOOKUP(U7,'Product Information'!$A$2:$C$31,3)) ->  | W7: =IF(ISBLANK('Customer Input'!Q7),"",'Customer Input'!Q7) ->  | X7: =IF(ISBLANK('Customer Input'!Q7),"",VLOOKUP(W7,'Product Information'!$A$2:$C$31,3)) ->  | Y7: =IF(ISBLANK('Customer Input'!R7),"",'Customer Input'!R7) ->  | Z7: =IF(ISBLANK('Customer Input'!R7),"",VLOOKUP(Y7,'Product Information'!$A$2:$C$31,3)) ->  | AA7: =IF(ISBLANK('Customer Input'!S7),"",'Customer Input'!S7) ->  | AB7: =IF(ISBLANK('Customer Input'!S7),"",VLOOKUP(AA7,'Product Information'!$A$2:$C$31,3)) ->  | AC7: 3 | AD7: 212.97 | AE7: 21.29 | AF7: =IF(MATCH(B7,'Order History'!V:V,0)=MAX('Order History'!A:A)-A7+2,0,IF(VLOOKUP(MATCH(B7,'Order History'!V:V,0)-1,'Order History'!$T$2:$AJ$11,17)>199,_xlfn.FLOOR.MATH(AD7*10)/100,0)) -> 0 | AG7: 191.68 | AH7: 0 | AI7: 11.92 | AJ7: 203.6 | AN7: CO | AO7: 0.0765
A8: =IF(ISBLANK('Customer Input'!D8),"",ROW()+999) -> 1007 | B8: ='Customer Input'!D8 -> 8785546312 | C8: =CONCATENATE('Customer Input'!C8," ",'Customer Input'!B8) -> O'Lantern Jack | D8: ='Customer Input'!A8 -> 2021-10-25 | E8: ='Customer Input'!H8 -> MO | F8: =VLOOKUP(B8,'Customer Information'!$A$2:$I$17,8) -> 2017 | G8: =IF('Customer Input'!F8=VLOOKUP('Input Calculation'!B8,'Customer Information'!$A$2:$I$17,4),"No","Yes") -> No | H8: =IF(VLOOKUP(B8,'Customer Information'!$A$2:$I$17,9)="Yes","","Attn: Manager") -> Attn: Manager | I8: =IF(ISBLANK('Customer Input'!J8),"",'Customer Input'!J8) -> 3055845 | J8: =IF(ISBLANK('Customer Input'!J8),"",VLOOKUP(I8,'Product Information'!$A$2:$C$31,3)) -> 199.99 | K8: =IF(ISBLANK('Customer Input'!K8),"",'Customer Input'!K8) ->  | L8: =IF(ISBLANK('Customer Input'!K8),"",VLOOKUP(K8,'Product Information'!$A$2:$C$31,3)) ->  | M8: =IF(ISBLANK('Customer Input'!L8),"",'Customer Input'!L8) ->  | N8: =IF(ISBLANK('Customer Input'!L8),"",VLOOKUP(M8,'Product Information'!$A$2:$C$31,3)) ->  | O8: =IF(ISBLANK('Customer Input'!M8),"",'Customer Input'!M8) ->  | P8: =IF(ISBLANK('Customer Input'!M8),"",VLOOKUP(O8,'Product Information'!$A$2:$C$31,3)) ->  | Q8: =IF(ISBLANK('Customer Input'!N8),"",'Customer Input'!N8) ->  | R8: =IF(ISBLANK('Customer Input'!N8),"",VLOOKUP(Q8,'Product Information'!$A$2:$C$31,3)) ->  | S8: =IF(ISBLANK('Customer Input'!O8),"",'Customer Input'!O8) ->  | T8: =IF(ISBLANK('Customer Input'!O8),"",VLOOKUP(S8,'Product Information'!$A$2:$C$31,3)) ->  | U8: =IF(ISBLANK('Customer Input'!P8),"",'Customer Input'!P8) ->  | V8: =IF(ISBLANK('Customer Input'!P8),"",VLOOKUP(U8,'Product Information'!$A$2:$C$31,3)) ->  | W8: =IF(ISBLANK('Customer Input'!Q8),"",'Customer Input'!Q8) ->  | X8: =IF(ISBLANK('Customer Input'!Q8),"",VLOOKUP(W8,'Product Information'!$A$2:$C$31,3)) ->  | Y8: =IF(ISBLANK('Customer Input'!R8),"",'Customer Input'!R8) ->  | Z8: =IF(ISBLANK('Customer Input'!R8),"",VLOOKUP(Y8,'Product Information'!$A$2:$C$31,3)) ->  | AA8: =IF(ISBLANK('Customer Input'!S8),"",'Customer Input'!S8) ->  | AB8: =IF(ISBLANK('Customer Input'!S8),"",VLOOKUP(AA8,'Product Information'!$A$2:$C$31,3)) ->  | AC8: 1 | AD8: 199.99 | AE8: 0 | AF8: =IF(MATCH(B8,'Order History'!V:V,0)=MAX('Order History'!A:A)-A8+2,0,IF(VLOOKUP(MATCH(B8,'Order History'!V:V,0)-1,'Order History'!$T$2:$AJ$11,17)>199,_xlfn.FLOOR.MATH(AD8*10)/100,0)) -> 19.99 | AG8: 180 | AH8: 0 | AI8: 14.72 | AJ8: 194.72 | AN8: CT | AO8: 0.0635
A9: =IF(ISBLANK('Customer Input'!D9),"",ROW()+999) -> 1008 | B9: ='Customer Input'!D9 -> 9184329830 | C9: =CONCATENATE('Customer Input'!C9," ",'Customer Input'!B9) -> Jane Mary | D9: ='Customer Input'!A9 -> 2021-10-26 | E9: ='Customer Input'!H9 -> CO | F9: =VLOOKUP(B9,'Customer Information'!$A$2:$I$17,8) -> 2001 | G9: =IF('Customer Input'!F9=VLOOKUP('Input Calculation'!B9,'Customer Information'!$A$2:$I$17,4),"No","Yes") -> No | H9: =IF(VLOOKUP(B9,'Customer Information'!$A$2:$I$17,9)="Yes","","Attn: Manager") -> Attn: Manager | I9: =IF(ISBLANK('Customer Input'!J9),"",'Customer Input'!J9) -> 8924251 | J9: =IF(ISBLANK('Customer Input'!J9),"",VLOOKUP(I9,'Product Information'!$A$2:$C$31,3)) -> 99.99 | K9: =IF(ISBLANK('Customer Input'!K9),"",'Customer Input'!K9) -> 2056772 | L9: =IF(ISBLANK('Customer Input'!K9),"",VLOOKUP(K9,'Product Information'!$A$2:$C$31,3)) -> 74.99 | M9: =IF(ISBLANK('Customer Input'!L9),"",'Customer Input'!L9) ->  | N9: =IF(ISBLANK('Customer Input'!L9),"",VLOOKUP(M9,'Product Information'!$A$2:$C$31,3)) ->  | O9: =IF(ISBLANK('Customer Input'!M9),"",'Customer Input'!M9) ->  | P9: =IF(ISBLANK('Customer Input'!M9),"",VLOOKUP(O9,'Product Information'!$A$2:$C$31,3)) ->  | Q9: =IF(ISBLANK('Customer Input'!N9),"",'Customer Input'!N9) ->  | R9: =IF(ISBLANK('Customer Input'!N9),"",VLOOKUP(Q9,'Product Information'!$A$2:$C$31,3)) ->  | S9: =IF(ISBLANK('Customer Input'!O9),"",'Customer Input'!O9) ->  | T9: =IF(ISBLANK('Customer Input'!O9),"",VLOOKUP(S9,'Product Information'!$A$2:$C$31,3)) ->  | U9: =IF(ISBLANK('Customer Input'!P9),"",'Customer Input'!P9) ->  | V9: =IF(ISBLANK('Customer Input'!P9),"",VLOOKUP(U9,'Product Information'!$A$2:$C$31,3)) ->  | W9: =IF(ISBLANK('Customer Input'!Q9),"",'Customer Input'!Q9) ->  | X9: =IF(ISBLANK('Customer Input'!Q9),"",VLOOKUP(W9,'Product Information'!$A$2:$C$31,3)) ->  | Y9: =IF(ISBLANK('Customer Input'!R9),"",'Customer Input'!R9) ->  | Z9: =IF(ISBLANK('Customer Input'!R9),"",VLOOKUP(Y9,'Product Information'!$A$2:$C$31,3)) ->  | AA9: =IF(ISBLANK('Customer Input'!S9),"",'Customer Input'!S9) ->  | AB9: =IF(ISBLANK('Customer Input'!S9),"",VLOOKUP(AA9,'Product Information'!$A$2:$C$31,3)) ->  | AC9: 2 | AD9: 174.98 | AE9: 17.49 | AF9: =IF(MATCH(B9,'Order History'!V:V,0)=MAX('Order History'!A:A)-A9+2,0,IF(VLOOKUP(MATCH(B9,'Order History'!V:V,0)-1,'Order History'!$T$2:$AJ$11,17)>199,_xlfn.FLOOR.MATH(AD9*10)/100,0)) -> 0 | AG9: 157.49 | AH9: 0 | AI9: 12.04 | AJ9: 169.53 | AN9: DC | AO9: 0.06
A10: =IF(ISBLANK('Customer Input'!D10),"",ROW()+999) -> 1009 | B10: ='Customer Input'!D10 -> 7139892245 | C10: =CONCATENATE('Customer Input'!C10," ",'Customer Input'!B10) -> Kaploozie Suzie | D10: ='Customer Input'!A10 -> 2021-10-26 | E10: ='Customer Input'!H10 -> NY | F10: =VLOOKUP(B10,'Customer Information'!$A$2:$I$17,8) -> 2003 | G10: =IF('Customer Input'!F10=VLOOKUP('Input Calculation'!B10,'Customer Information'!$A$2:$I$17,4),"No","Yes") -> No | H10: =IF(VLOOKUP(B10,'Customer Information'!$A$2:$I$17,9)="Yes","","Attn: Manager") ->  | I10: =IF(ISBLANK('Customer Input'!J10),"",'Customer Input'!J10) -> 2056772 | J10: =IF(ISBLANK('Customer Input'!J10),"",VLOOKUP(I10,'Product Information'!$A$2:$C$31,3)) -> 74.99 | K10: =IF(ISBLANK('Customer Input'!K10),"",'Customer Input'!K10) ->  | L10: =IF(ISBLANK('Customer Input'!K10),"",VLOOKUP(K10,'Product Information'!$A$2:$C$31,3)) ->  | M10: =IF(ISBLANK('Customer Input'!L10),"",'Customer Input'!L10) ->  | N10: =IF(ISBLANK('Customer Input'!L10),"",VLOOKUP(M10,'Product Information'!$A$2:$C$31,3)) ->  | O10: =IF(ISBLANK('Customer Input'!M10),"",'Customer Input'!M10) ->  | P10: =IF(ISBLANK('Customer Input'!M10),"",VLOOKUP(O10,'Product Information'!$A$2:$C$31,3)) ->  | Q10: =IF(ISBLANK('Customer Input'!N10),"",'Customer Input'!N10) ->  | R10: =IF(ISBLANK('Customer Input'!N10),"",VLOOKUP(Q10,'Product Information'!$A$2:$C$31,3)) ->  | S10: =IF(ISBLANK('Customer Input'!O10),"",'Customer Input'!O10) ->  | T10: =IF(ISBLANK('Customer Input'!O10),"",VLOOKUP(S10,'Product Information'!$A$2:$C$31,3)) ->  | U10: =IF(ISBLANK('Customer Input'!P10),"",'Customer Input'!P10) ->  | V10: =IF(ISBLANK('Customer Input'!P10),"",VLOOKUP(U10,'Product Information'!$A$2:$C$31,3)) ->  | W10: =IF(ISBLANK('Customer Input'!Q10),"",'Customer Input'!Q10) ->  | X10: =IF(ISBLANK('Customer Input'!Q10),"",VLOOKUP(W10,'Product Information'!$A$2:$C$31,3)) ->  | Y10: =IF(ISBLANK('Customer Input'!R10),"",'Customer Input'!R10) ->  | Z10: =IF(ISBLANK('Customer Input'!R10),"",VLOOKUP(Y10,'Product Information'!$A$2:$C$31,3)) ->  | AA10: =IF(ISBLANK('Customer Input'!S10),"",'Customer Input'!S10) ->  | AB10: =IF(ISBLANK('Customer Input'!S10),"",VLOOKUP(AA10,'Product Information'!$A$2:$C$31,3)) ->  | AC10: 1 | AD10: 74.99 | AE10: 7.49 | AF10: =IF(MATCH(B10,'Order History'!V:V,0)=MAX('Order History'!A:A)-A10+2,0,IF(VLOOKUP(MATCH(B10,'Order History'!V:V,0)-1,'Order History'!$T$2:$AJ$11,17)>199,_xlfn.FLOOR.MATH(AD10*10)/100,0)) -> 7.49 | AG10: 60.01 | AH10: 0 | AI10: 5.11 | AJ10: 65.12 | AN10: DE | AO10: 0
A11: =IF(ISBLANK('Customer Input'!D11),"",ROW()+999) -> 1010 | B11: ='Customer Input'!D11 -> 6530353532 | C11: =CONCATENATE('Customer Input'!C11," ",'Customer Input'!B11) -> Pumpkineater Peter | D11: ='Customer Input'!A11 -> 2021-10-26 | E11: ='Customer Input'!H11 -> VT | F11: =VLOOKUP(B11,'Customer Information'!$A$2:$I$17,8) -> 2008 | G11: =IF('Customer Input'!F11=VLOOKUP('Input Calculation'!B11,'Customer Information'!$A$2:$I$17,4),"No","Yes") -> No | H11: =IF(VLOOKUP(B11,'Customer Information'!$A$2:$I$17,9)="Yes","","Attn: Manager") ->  | I11: =IF(ISBLANK('Customer Input'!J11),"",'Customer Input'!J11) -> 3055845 | J11: =IF(ISBLANK('Customer Input'!J11),"",VLOOKUP(I11,'Product Information'!$A$2:$C$31,3)) -> 199.99 | K11: =IF(ISBLANK('Customer Input'!K11),"",'Customer Input'!K11) -> 2056772 | L11: =IF(ISBLANK('Customer Input'!K11),"",VLOOKUP(K11,'Product Information'!$A$2:$C$31,3)) -> 74.99 | M11: =IF(ISBLANK('Customer Input'!L11),"",'Customer Input'!L11) -> 5216388 | N11: =IF(ISBLANK('Customer Input'!L11),"",VLOOKUP(M11,'Product Information'!$A$2:$C$31,3)) -> 49.99 | O11: =IF(ISBLANK('Customer Input'!M11),"",'Customer Input'!M11) ->  | P11: =IF(ISBLANK('Customer Input'!M11),"",VLOOKUP(O11,'Product Information'!$A$2:$C$31,3)) ->  | Q11: =IF(ISBLANK('Customer Input'!N11),"",'Customer Input'!N11) ->  | R11: =IF(ISBLANK('Customer Input'!N11),"",VLOOKUP(Q11,'Product Information'!$A$2:$C$31,3)) ->  | S11: =IF(ISBLANK('Customer Input'!O11),"",'Customer Input'!O11) ->  | T11: =IF(ISBLANK('Customer Input'!O11),"",VLOOKUP(S11,'Product Information'!$A$2:$C$31,3)) ->  | U11: =IF(ISBLANK('Customer Input'!P11),"",'Customer Input'!P11) ->  | V11: =IF(ISBLANK('Customer Input'!P11),"",VLOOKUP(U11,'Product Information'!$A$2:$C$31,3)) ->  | W11: =IF(ISBLANK('Customer Input'!Q11),"",'Customer Input'!Q11) ->  | X11: =IF(ISBLANK('Customer Input'!Q11),"",VLOOKUP(W11,'Product Information'!$A$2:$C$31,3)) ->  | Y11: =IF(ISBLANK('Customer Input'!R11),"",'Customer Input'!R11) ->  | Z11: =IF(ISBLANK('Customer Input'!R11),"",VLOOKUP(Y11,'Product Information'!$A$2:$C$31,3)) ->  | AA11: =IF(ISBLANK('Customer Input'!S11),"",'Customer Input'!S11) ->  | AB11: =IF(ISBLANK('Customer Input'!S11),"",VLOOKUP(AA11,'Product Information'!$A$2:$C$31,3)) ->  | AC11: 3 | AD11: 324.97 | AE11: 32.49 | AF11: =IF(MATCH(B11,'Order History'!V:V,0)=MAX('Order History'!A:A)-A11+2,0,IF(VLOOKUP(MATCH(B11,'Order History'!V:V,0)-1,'Order History'!$T$2:$AJ$11,17)>199,_xlfn.FLOOR.MATH(AD11*10)/100,0)) -> 0 | AG11: 292.48 | AH11: 0 | AI11: 18.19 | AJ11: 310.67 | AN11: FL | AO11: 0.0705
A12: =IF(ISBLANK('Customer Input'!D12),"",ROW()+999) -> 1011 | B12: ='Customer Input'!D12 -> 4438641204 | C12: =CONCATENATE('Customer Input'!C12," ",'Customer Input'!B12) -> Calendar Marie | D12: ='Customer Input'!A12 -> 2021-10-27 | E12: ='Customer Input'!H12 -> MI | F12: =VLOOKUP(B12,'Customer Information'!$A$2:$I$17,8) -> 2021 | G12: =IF('Customer Input'!F12=VLOOKUP('Input Calculation'!B12,'Customer Information'!$A$2:$I$17,4),"No","Yes") -> No | H12: =IF(VLOOKUP(B12,'Customer Information'!$A$2:$I$17,9)="Yes","","Attn: Manager") ->  | I12: =IF(ISBLANK('Customer Input'!J12),"",'Customer Input'!J12) -> 5216388 | J12: =IF(ISBLANK('Customer Input'!J12),"",VLOOKUP(I12,'Product Information'!$A$2:$C$31,3)) -> 49.99 | K12: =IF(ISBLANK('Customer Input'!K12),"",'Customer Input'!K12) -> 7250412 | L12: =IF(ISBLANK('Customer Input'!K12),"",VLOOKUP(K12,'Product Information'!$A$2:$C$31,3)) -> 12.99 | M12: =IF(ISBLANK('Customer Input'!L12),"",'Customer Input'!L12) -> 9242514 | N12: =IF(ISBLANK('Customer Input'!L12),"",VLOOKUP(M12,'Product Information'!$A$2:$C$31,3)) -> 499.99 | O12: =IF(ISBLANK('Customer Input'!M12),"",'Customer Input'!M12) ->  | P12: =IF(ISBLANK('Customer Input'!M12),"",VLOOKUP(O12,'Product Information'!$A$2:$C$31,3)) ->  | Q12: =IF(ISBLANK('Customer Input'!N12),"",'Customer Input'!N12) ->  | R12: =IF(ISBLANK('Customer Input'!N12),"",VLOOKUP(Q12,'Product Information'!$A$2:$C$31,3)) ->  | S12: =IF(ISBLANK('Customer Input'!O12),"",'Customer Input'!O12) ->  | T12: =IF(ISBLANK('Customer Input'!O12),"",VLOOKUP(S12,'Product Information'!$A$2:$C$31,3)) ->  | U12: =IF(ISBLANK('Customer Input'!P12),"",'Customer Input'!P12) ->  | V12: =IF(ISBLANK('Customer Input'!P12),"",VLOOKUP(U12,'Product Information'!$A$2:$C$31,3)) ->  | W12: =IF(ISBLANK('Customer Input'!Q12),"",'Customer Input'!Q12) ->  | X12: =IF(ISBLANK('Customer Input'!Q12),"",VLOOKUP(W12,'Product Information'!$A$2:$C$31,3)) ->  | Y12: =IF(ISBLANK('Customer Input'!R12),"",'Customer Input'!R12) ->  | Z12: =IF(ISBLANK('Customer Input'!R12),"",VLOOKUP(Y12,'Product Information'!$A$2:$C$31,3)) ->  | AA12: =IF(ISBLANK('Customer Input'!S12),"",'Customer Input'!S12) ->  | AB12: =IF(ISBLANK('Customer Input'!S12),"",VLOOKUP(AA12,'Product Information'!$A$2:$C$31,3)) ->  | AC12: 3 | AD12: 562.97 | AE12: 0 | AF12: =IF(MATCH(B12,'Order History'!V:V,0)=MAX('Order History'!A:A)-A12+2,0,IF(VLOOKUP(MATCH(B12,'Order History'!V:V,0)-1,'Order History'!$T$2:$AJ$11,17)>199,_xlfn.FLOOR.MATH(AD12*10)/100,0)) -> 0 | AG12: 562.97 | AH12: 5 | AI12: 33.77 | AJ12: 601.74 | AN12: GA | AO12: 0.0731
A13: =IF(ISBLANK('Customer Input'!D13),"",ROW()+999) -> 1012 | B13: ='Customer Input'!D13 -> 7139892245 | C13: =CONCATENATE('Customer Input'!C13," ",'Customer Input'!B13) -> Kaploozie Suzie | D13: ='Customer Input'!A13 -> 2021-10-27 | E13: ='Customer Input'!H13 -> NY | F13: =VLOOKUP(B13,'Customer Information'!$A$2:$I$17,8) -> 2003 | G13: =IF('Customer Input'!F13=VLOOKUP('Input Calculation'!B13,'Customer Information'!$A$2:$I$17,4),"No","Yes") -> No | H13: =IF(VLOOKUP(B13,'Customer Information'!$A$2:$I$17,9)="Yes","","Attn: Manager") ->  | I13: =IF(ISBLANK('Customer Input'!J13),"",'Customer Input'!J13) -> 3055845 | J13: =IF(ISBLANK('Customer Input'!J13),"",VLOOKUP(I13,'Product Information'!$A$2:$C$31,3)) -> 199.99 | K13: =IF(ISBLANK('Customer Input'!K13),"",'Customer Input'!K13) -> 8924251 | L13: =IF(ISBLANK('Customer Input'!K13),"",VLOOKUP(K13,'Product Information'!$A$2:$C$31,3)) -> 99.99 | M13: =IF(ISBLANK('Customer Input'!L13),"",'Customer Input'!L13) ->  | N13: =IF(ISBLANK('Customer Input'!L13),"",VLOOKUP(M13,'Product Information'!$A$2:$C$31,3)) ->  | O13: =IF(ISBLANK('Customer Input'!M13),"",'Customer Input'!M13) ->  | P13: =IF(ISBLANK('Customer Input'!M13),"",VLOOKUP(O13,'Product Information'!$A$2:$C$31,3)) ->  | Q13: =IF(ISBLANK('Customer Input'!N13),"",'Customer Input'!N13) ->  | R13: =IF(ISBLANK('Customer Input'!N13),"",VLOOKUP(Q13,'Product Information'!$A$2:$C$31,3)) ->  | S13: =IF(ISBLANK('Customer Input'!O13),"",'Customer Input'!O13) ->  | T13: =IF(ISBLANK('Customer Input'!O13),"",VLOOKUP(S13,'Product Information'!$A$2:$C$31,3)) ->  | U13: =IF(ISBLANK('Customer Input'!P13),"",'Customer Input'!P13) ->  | V13: =IF(ISBLANK('Customer Input'!P13),"",VLOOKUP(U13,'Product Information'!$A$2:$C$31,3)) ->  | W13: =IF(ISBLANK('Customer Input'!Q13),"",'Customer Input'!Q13) ->  | X13: =IF(ISBLANK('Customer Input'!Q13),"",VLOOKUP(W13,'Product Information'!$A$2:$C$31,3)) ->  | Y13: =IF(ISBLANK('Customer Input'!R13),"",'Customer Input'!R13) ->  | Z13: =IF(ISBLANK('Customer Input'!R13),"",VLOOKUP(Y13,'Product Information'!$A$2:$C$31,3)) ->  | AA13: =IF(ISBLANK('Customer Input'!S13),"",'Customer Input'!S13) ->  | AB13: =IF(ISBLANK('Customer Input'!S13),"",VLOOKUP(AA13,'Product Information'!$A$2:$C$31,3)) ->  | AC13: 2 | AD13: 299.98 | AE13: 29.99 | AF13: =IF(MATCH(B13,'Order History'!V:V,0)=MAX('Order History'!A:A)-A13+2,0,IF(VLOOKUP(MATCH(B13,'Order History'!V:V,0)-1,'Order History'!$T$2:$AJ$11,17)>199,_xlfn.FLOOR.MATH(AD13*10)/100,0)) -> 29.99 | AG13: 240 | AH13: 0 | AI13: 20.44 | AJ13: 260.44 | AN13: HI | AO13: 0.0444
A14: =IF(ISBLANK('Customer Input'!D14),"",ROW()+999) -> 1013 | B14: ='Customer Input'!D14 -> 5168832323 | C14: =CONCATENATE('Customer Input'!C14," ",'Customer Input'!B14) -> Wont William | D14: ='Customer Input'!A14 -> 2021-10-27 | E14: ='Customer Input'!H14 -> MO | F14: =VLOOKUP(B14,'Customer Information'!$A$2:$I$17,8) -> 2020 | G14: =IF('Customer Input'!F14=VLOOKUP('Input Calculation'!B14,'Customer Information'!$A$2:$I$17,4),"No","Yes") -> No | H14: =IF(VLOOKUP(B14,'Customer Information'!$A$2:$I$17,9)="Yes","","Attn: Manager") ->  | I14: =IF(ISBLANK('Customer Input'!J14),"",'Customer Input'!J14) -> 8924251 | J14: =IF(ISBLANK('Customer Input'!J14),"",VLOOKUP(I14,'Product Information'!$A$2:$C$31,3)) -> 99.99 | K14: =IF(ISBLANK('Customer Input'!K14),"",'Customer Input'!K14) -> 4989600 | L14: =IF(ISBLANK('Customer Input'!K14),"",VLOOKUP(K14,'Product Information'!$A$2:$C$31,3)) -> 29.99 | M14: =IF(ISBLANK('Customer Input'!L14),"",'Customer Input'!L14) -> 5086187 | N14: =IF(ISBLANK('Customer Input'!L14),"",VLOOKUP(M14,'Product Information'!$A$2:$C$31,3)) -> 39.99 | O14: =IF(ISBLANK('Customer Input'!M14),"",'Customer Input'!M14) -> 5216388 | P14: =IF(ISBLANK('Customer Input'!M14),"",VLOOKUP(O14,'Product Information'!$A$2:$C$31,3)) -> 49.99 | Q14: =IF(ISBLANK('Customer Input'!N14),"",'Customer Input'!N14) -> 6671819 | R14: =IF(ISBLANK('Customer Input'!N14),"",VLOOKUP(Q14,'Product Information'!$A$2:$C$31,3)) -> 4.99 | S14: =IF(ISBLANK('Customer Input'!O14),"",'Customer Input'!O14) -> 6738313 | T14: =IF(ISBLANK('Customer Input'!O14),"",VLOOKUP(S14,'Product Information'!$A$2:$C$31,3)) -> 6.99 | U14: =IF(ISBLANK('Customer Input'!P14),"",'Customer Input'!P14) -> 6808398 | V14: =IF(ISBLANK('Customer Input'!P14),"",VLOOKUP(U14,'Product Information'!$A$2:$C$31,3)) -> 8.99 | W14: =IF(ISBLANK('Customer Input'!Q14),"",'Customer Input'!Q14) -> 6832283 | X14: =IF(ISBLANK('Customer Input'!Q14),"",VLOOKUP(W14,'Product Information'!$A$2:$C$31,3)) -> 9.99 | Y14: =IF(ISBLANK('Customer Input'!R14),"",'Customer Input'!R14) -> 7250412 | Z14: =IF(ISBLANK('Customer Input'!R14),"",VLOOKUP(Y14,'Product Information'!$A$2:$C$31,3)) -> 12.99 | AA14: =IF(ISBLANK('Customer Input'!S14),"",'Customer Input'!S14) ->  | AB14: =IF(ISBLANK('Customer Input'!S14),"",VLOOKUP(AA14,'Product Information'!$A$2:$C$31,3)) ->  | AC14: 9 | AD14: 263.91 | AE14: 0 | AF14: =IF(MATCH(B14,'Order History'!V:V,0)=MAX('Order History'!A:A)-A14+2,0,IF(VLOOKUP(MATCH(B14,'Order History'!V:V,0)-1,'Order History'!$T$2:$AJ$11,17)>199,_xlfn.FLOOR.MATH(AD14*10)/100,0)) -> 26.39 | AG14: 237.52 | AH14: 0 | AI14: 19.42 | AJ14: 256.94 | AN14: IA | AO14: 0.0694
A15: =IF(ISBLANK('Customer Input'!D15),"",ROW()+999) -> 1014 | B15: ='Customer Input'!D15 -> 8174368834 | C15: =CONCATENATE('Customer Input'!C15," ",'Customer Input'!B15) -> Doe John | D15: ='Customer Input'!A15 -> 2021-10-27 | E15: ='Customer Input'!H15 -> CA | F15: =VLOOKUP(B15,'Customer Information'!$A$2:$I$17,8) -> 2017 | G15: =IF('Customer Input'!F15=VLOOKUP('Input Calculation'!B15,'Customer Information'!$A$2:$I$17,4),"No","Yes") -> No | H15: =IF(VLOOKUP(B15,'Customer Information'!$A$2:$I$17,9)="Yes","","Attn: Manager") ->  | I15: =IF(ISBLANK('Customer Input'!J15),"",'Customer Input'!J15) -> 7250412 | J15: =IF(ISBLANK('Customer Input'!J15),"",VLOOKUP(I15,'Product Information'!$A$2:$C$31,3)) -> 12.99 | K15: =IF(ISBLANK('Customer Input'!K15),"",'Customer Input'!K15) ->  | L15: =IF(ISBLANK('Customer Input'!K15),"",VLOOKUP(K15,'Product Information'!$A$2:$C$31,3)) ->  | M15: =IF(ISBLANK('Customer Input'!L15),"",'Customer Input'!L15) ->  | N15: =IF(ISBLANK('Customer Input'!L15),"",VLOOKUP(M15,'Product Information'!$A$2:$C$31,3)) ->  | O15: =IF(ISBLANK('Customer Input'!M15),"",'Customer Input'!M15) ->  | P15: =IF(ISBLANK('Customer Input'!M15),"",VLOOKUP(O15,'Product Information'!$A$2:$C$31,3)) ->  | Q15: =IF(ISBLANK('Customer Input'!N15),"",'Customer Input'!N15) ->  | R15: =IF(ISBLANK('Customer Input'!N15),"",VLOOKUP(Q15,'Product Information'!$A$2:$C$31,3)) ->  | S15: =IF(ISBLANK('Customer Input'!O15),"",'Customer Input'!O15) ->  | T15: =IF(ISBLANK('Customer Input'!O15),"",VLOOKUP(S15,'Product Information'!$A$2:$C$31,3)) ->  | U15: =IF(ISBLANK('Customer Input'!P15),"",'Customer Input'!P15) ->  | V15: =IF(ISBLANK('Customer Input'!P15),"",VLOOKUP(U15,'Product Information'!$A$2:$C$31,3)) ->  | W15: =IF(ISBLANK('Customer Input'!Q15),"",'Customer Input'!Q15) ->  | X15: =IF(ISBLANK('Customer Input'!Q15),"",VLOOKUP(W15,'Product Information'!$A$2:$C$31,3)) ->  | Y15: =IF(ISBLANK('Customer Input'!R15),"",'Customer Input'!R15) ->  | Z15: =IF(ISBLANK('Customer Input'!R15),"",VLOOKUP(Y15,'Product Information'!$A$2:$C$31,3)) ->  | AA15: =IF(ISBLANK('Customer Input'!S15),"",'Customer Input'!S15) ->  | AB15: =IF(ISBLANK('Customer Input'!S15),"",VLOOKUP(AA15,'Product Information'!$A$2:$C$31,3)) ->  | AC15: 1 | AD15: 12.99 | AE15: 0 | AF15: =IF(MATCH(B15,'Order History'!V:V,0)=MAX('Order History'!A:A)-A15+2,0,IF(VLOOKUP(MATCH(B15,'Order History'!V:V,0)-1,'Order History'!$T$2:$AJ$11,17)>199,_xlfn.FLOOR.MATH(AD15*10)/100,0)) -> 0 | AG15: 12.99 | AH15: 1.299 | AI15: 1.12 | AJ15: 15.409 | AN15: ID | AO15: 0.0603
A16: =IF(ISBLANK('Customer Input'!D16),"",ROW()+999) -> 1015 | B16: ='Customer Input'!D16 -> 6315790090 | C16: =CONCATENATE('Customer Input'!C16," ",'Customer Input'!B16) -> Caputo Matthew | D16: ='Customer Input'!A16 -> 2021-10-27 | E16: ='Customer Input'!H16 -> TX | F16: =VLOOKUP(B16,'Customer Information'!$A$2:$I$17,8) -> 2007 | G16: =IF('Customer Input'!F16=VLOOKUP('Input Calculation'!B16,'Customer Information'!$A$2:$I$17,4),"No","Yes") -> No | H16: =IF(VLOOKUP(B16,'Customer Information'!$A$2:$I$17,9)="Yes","","Attn: Manager") ->  | I16: =IF(ISBLANK('Customer Input'!J16),"",'Customer Input'!J16) -> 5216388 | J16: =IF(ISBLANK('Customer Input'!J16),"",VLOOKUP(I16,'Product Information'!$A$2:$C$31,3)) -> 49.99 | K16: =IF(ISBLANK('Customer Input'!K16),"",'Customer Input'!K16) ->  | L16: =IF(ISBLANK('Customer Input'!K16),"",VLOOKUP(K16,'Product Information'!$A$2:$C$31,3)) ->  | M16: =IF(ISBLANK('Customer Input'!L16),"",'Customer Input'!L16) ->  | N16: =IF(ISBLANK('Customer Input'!L16),"",VLOOKUP(M16,'Product Information'!$A$2:$C$31,3)) ->  | O16: =IF(ISBLANK('Customer Input'!M16),"",'Customer Input'!M16) ->  | P16: =IF(ISBLANK('Customer Input'!M16),"",VLOOKUP(O16,'Product Information'!$A$2:$C$31,3)) ->  | Q16: =IF(ISBLANK('Customer Input'!N16),"",'Customer Input'!N16) ->  | R16: =IF(ISBLANK('Customer Input'!N16),"",VLOOKUP(Q16,'Product Information'!$A$2:$C$31,3)) ->  | S16: =IF(ISBLANK('Customer Input'!O16),"",'Customer Input'!O16) ->  | T16: =IF(ISBLANK('Customer Input'!O16),"",VLOOKUP(S16,'Product Information'!$A$2:$C$31,3)) ->  | U16: =IF(ISBLANK('Customer Input'!P16),"",'Customer Input'!P16) ->  | V16: =IF(ISBLANK('Customer Input'!P16),"",VLOOKUP(U16,'Product Information'!$A$2:$C$31,3)) ->  | W16: =IF(ISBLANK('Customer Input'!Q16),"",'Customer Input'!Q16) ->  | X16: =IF(ISBLANK('Customer Input'!Q16),"",VLOOKUP(W16,'Product Information'!$A$2:$C$31,3)) ->  | Y16: =IF(ISBLANK('Customer Input'!R16),"",'Customer Input'!R16) ->  | Z16: =IF(ISBLANK('Customer Input'!R16),"",VLOOKUP(Y16,'Product Information'!$A$2:$C$31,3)) ->  | AA16: =IF(ISBLANK('Customer Input'!S16),"",'Customer Input'!S16) ->  | AB16: =IF(ISBLANK('Customer Input'!S16),"",VLOOKUP(AA16,'Product Information'!$A$2:$C$31,3)) ->  | AC16: 1 | AD16: 49.99 | AE16: 4.99 | AF16: =IF(MATCH(B16,'Order History'!V:V,0)=MAX('Order History'!A:A)-A16+2,0,IF(VLOOKUP(MATCH(B16,'Order History'!V:V,0)-1,'Order History'!$T$2:$AJ$11,17)>199,_xlfn.FLOOR.MATH(AD16*10)/100,0)) -> 0 | AG16: 45 | AH16: 0 | AI16: 3.68 | AJ16: 48.68 | AN16: IL | AO16: 0.0908
A17: =IF(ISBLANK('Customer Input'!D17),"",ROW()+999) -> 1016 | B17: ='Customer Input'!D17 -> 3056223185 | C17: =CONCATENATE('Customer Input'!C17," ",'Customer Input'!B17) -> Rhythm DJ | D17: ='Customer Input'!A17 -> 2021-10-28 | E17: ='Customer Input'!H17 -> FL | F17: =VLOOKUP(B17,'Customer Information'!$A$2:$I$17,8) -> 2007 | G17: =IF('Customer Input'!F17=VLOOKUP('Input Calculation'!B17,'Customer Information'!$A$2:$I$17,4),"No","Yes") -> Yes | H17: =IF(VLOOKUP(B17,'Customer Information'!$A$2:$I$17,9)="Yes","","Attn: Manager") -> Attn: Manager | I17: =IF(ISBLANK('Customer Input'!J17),"",'Customer Input'!J17) -> 4989600 | J17: =IF(ISBLANK('Customer Input'!J17),"",VLOOKUP(I17,'Product Information'!$A$2:$C$31,3)) -> 29.99 | K17: =IF(ISBLANK('Customer Input'!K17),"",'Customer Input'!K17) -> 3055845 | L17: =IF(ISBLANK('Customer Input'!K17),"",VLOOKUP(K17,'Product Information'!$A$2:$C$31,3)) -> 199.99 | M17: =IF(ISBLANK('Customer Input'!L17),"",'Customer Input'!L17) ->  | N17: =IF(ISBLANK('Customer Input'!L17),"",VLOOKUP(M17,'Product Information'!$A$2:$C$31,3)) ->  | O17: =IF(ISBLANK('Customer Input'!M17),"",'Customer Input'!M17) ->  | P17: =IF(ISBLANK('Customer Input'!M17),"",VLOOKUP(O17,'Product Information'!$A$2:$C$31,3)) ->  | Q17: =IF(ISBLANK('Customer Input'!N17),"",'Customer Input'!N17) ->  | R17: =IF(ISBLANK('Customer Input'!N17),"",VLOOKUP(Q17,'Product Information'!$A$2:$C$31,3)) ->  | S17: =IF(ISBLANK('Customer Input'!O17),"",'Customer Input'!O17) ->  | T17: =IF(ISBLANK('Customer Input'!O17),"",VLOOKUP(S17,'Product Information'!$A$2:$C$31,3)) ->  | U17: =IF(ISBLANK('Customer Input'!P17),"",'Customer Input'!P17) ->  | V17: =IF(ISBLANK('Customer Input'!P17),"",VLOOKUP(U17,'Product Information'!$A$2:$C$31,3)) ->  | W17: =IF(ISBLANK('Customer Input'!Q17),"",'Customer Input'!Q17) ->  | X17: =IF(ISBLANK('Customer Input'!Q17),"",VLOOKUP(W17,'Product Information'!$A$2:$C$31,3)) ->  | Y17: =IF(ISBLANK('Customer Input'!R17),"",'Customer Input'!R17) ->  | Z17: =IF(ISBLANK('Customer Input'!R17),"",VLOOKUP(Y17,'Product Information'!$A$2:$C$31,3)) ->  | AA17: =IF(ISBLANK('Customer Input'!S17),"",'Customer Input'!S17) ->  | AB17: =IF(ISBLANK('Customer Input'!S17),"",VLOOKUP(AA17,'Product Information'!$A$2:$C$31,3)) ->  | AC17: 2 | AD17: 229.98 | AE17: 22.99 | AF17: =IF(MATCH(B17,'Order History'!V:V,0)=MAX('Order History'!A:A)-A17+2,0,IF(VLOOKUP(MATCH(B17,'Order History'!V:V,0)-1,'Order History'!$T$2:$AJ$11,17)>199,_xlfn.FLOOR.MATH(AD17*10)/100,0)) -> 0 | AG17: 206.99 | AH17: 0 | AI17: 14.59 | AJ17: 221.58 | AN17: IN | AO17: 0.07
A18: =IF(ISBLANK('Customer Input'!D18),"",ROW()+999) -> 1017 | B18: ='Customer Input'!D18 -> 9184329830 | C18: =CONCATENATE('Customer Input'!C18," ",'Customer Input'!B18) -> Jane Mary | D18: ='Customer Input'!A18 -> 2021-10-28 | E18: ='Customer Input'!H18 -> CO | F18: =VLOOKUP(B18,'Customer Information'!$A$2:$I$17,8) -> 2001 | G18: =IF('Customer Input'!F18=VLOOKUP('Input Calculation'!B18,'Customer Information'!$A$2:$I$17,4),"No","Yes") -> No | H18: =IF(VLOOKUP(B18,'Customer Information'!$A$2:$I$17,9)="Yes","","Attn: Manager") -> Attn: Manager | I18: =IF(ISBLANK('Customer Input'!J18),"",'Customer Input'!J18) -> 3055845 | J18: =IF(ISBLANK('Customer Input'!J18),"",VLOOKUP(I18,'Product Information'!$A$2:$C$31,3)) -> 199.99 | K18: =IF(ISBLANK('Customer Input'!K18),"",'Customer Input'!K18) ->  | L18: =IF(ISBLANK('Customer Input'!K18),"",VLOOKUP(K18,'Product Information'!$A$2:$C$31,3)) ->  | M18: =IF(ISBLANK('Customer Input'!L18),"",'Customer Input'!L18) ->  | N18: =IF(ISBLANK('Customer Input'!L18),"",VLOOKUP(M18,'Product Information'!$A$2:$C$31,3)) ->  | O18: =IF(ISBLANK('Customer Input'!M18),"",'Customer Input'!M18) ->  | P18: =IF(ISBLANK('Customer Input'!M18),"",VLOOKUP(O18,'Product Information'!$A$2:$C$31,3)) ->  | Q18: =IF(ISBLANK('Customer Input'!N18),"",'Customer Input'!N18) ->  | R18: =IF(ISBLANK('Customer Input'!N18),"",VLOOKUP(Q18,'Product Information'!$A$2:$C$31,3)) ->  | S18: =IF(ISBLANK('Customer Input'!O18),"",'Customer Input'!O18) ->  | T18: =IF(ISBLANK('Customer Input'!O18),"",VLOOKUP(S18,'Product Information'!$A$2:$C$31,3)) ->  | U18: =IF(ISBLANK('Customer Input'!P18),"",'Customer Input'!P18) ->  | V18: =IF(ISBLANK('Customer Input'!P18),"",VLOOKUP(U18,'Product Information'!$A$2:$C$31,3)) ->  | W18: =IF(ISBLANK('Customer Input'!Q18),"",'Customer Input'!Q18) ->  | X18: =IF(ISBLANK('Customer Input'!Q18),"",VLOOKUP(W18,'Product Information'!$A$2:$C$31,3)) ->  | Y18: =IF(ISBLANK('Customer Input'!R18),"",'Customer Input'!R18) ->  | Z18: =IF(ISBLANK('Customer Input'!R18),"",VLOOKUP(Y18,'Product Information'!$A$2:$C$31,3)) ->  | AA18: =IF(ISBLANK('Customer Input'!S18),"",'Customer Input'!S18) ->  | AB18: =IF(ISBLANK('Customer Input'!S18),"",VLOOKUP(AA18,'Product Information'!$A$2:$C$31,3)) ->  | AC18: 1 | AD18: 199.99 | AE18: 19.99 | AF18: =IF(MATCH(B18,'Order History'!V:V,0)=MAX('Order History'!A:A)-A18+2,0,IF(VLOOKUP(MATCH(B18,'Order History'!V:V,0)-1,'Order History'!$T$2:$AJ$11,17)>199,_xlfn.FLOOR.MATH(AD18*10)/100,0)) -> 0 | AG18: 180 | AH18: 0 | AI18: 13.77 | AJ18: 193.77 | AN18: KS | AO18: 0.0868
A19: =IF(ISBLANK('Customer Input'!D19),"",ROW()+999) -> 1018 | B19: ='Customer Input'!D19 -> 8785546312 | C19: =CONCATENATE('Customer Input'!C19," ",'Customer Input'!B19) -> O'Lantern Jack | D19: ='Customer Input'!A19 -> 2021-10-28 | E19: ='Customer Input'!H19 -> MO | F19: =VLOOKUP(B19,'Customer Information'!$A$2:$I$17,8) -> 2017 | G19: =IF('Customer Input'!F19=VLOOKUP('Input Calculation'!B19,'Customer Information'!$A$2:$I$17,4),"No","Yes") -> No | H19: =IF(VLOOKUP(B19,'Customer Information'!$A$2:$I$17,9)="Yes","","Attn: Manager") -> Attn: Manager | I19: =IF(ISBLANK('Customer Input'!J19),"",'Customer Input'!J19) -> 3055845 | J19: =IF(ISBLANK('Customer Input'!J19),"",VLOOKUP(I19,'Product Information'!$A$2:$C$31,3)) -> 199.99 | K19: =IF(ISBLANK('Customer Input'!K19),"",'Customer Input'!K19) ->  | L19: =IF(ISBLANK('Customer Input'!K19),"",VLOOKUP(K19,'Product Information'!$A$2:$C$31,3)) ->  | M19: =IF(ISBLANK('Customer Input'!L19),"",'Customer Input'!L19) ->  | N19: =IF(ISBLANK('Customer Input'!L19),"",VLOOKUP(M19,'Product Information'!$A$2:$C$31,3)) ->  | O19: =IF(ISBLANK('Customer Input'!M19),"",'Customer Input'!M19) ->  | P19: =IF(ISBLANK('Customer Input'!M19),"",VLOOKUP(O19,'Product Information'!$A$2:$C$31,3)) ->  | Q19: =IF(ISBLANK('Customer Input'!N19),"",'Customer Input'!N19) ->  | R19: =IF(ISBLANK('Customer Input'!N19),"",VLOOKUP(Q19,'Product Information'!$A$2:$C$31,3)) ->  | S19: =IF(ISBLANK('Customer Input'!O19),"",'Customer Input'!O19) ->  | T19: =IF(ISBLANK('Customer Input'!O19),"",VLOOKUP(S19,'Product Information'!$A$2:$C$31,3)) ->  | U19: =IF(ISBLANK('Customer Input'!P19),"",'Customer Input'!P19) ->  | V19: =IF(ISBLANK('Customer Input'!P19),"",VLOOKUP(U19,'Product Information'!$A$2:$C$31,3)) ->  | W19: =IF(ISBLANK('Customer Input'!Q19),"",'Customer Input'!Q19) ->  | X19: =IF(ISBLANK('Customer Input'!Q19),"",VLOOKUP(W19,'Product Information'!$A$2:$C$31,3)) ->  | Y19: =IF(ISBLANK('Customer Input'!R19),"",'Customer Input'!R19) ->  | Z19: =IF(ISBLANK('Customer Input'!R19),"",VLOOKUP(Y19,'Product Information'!$A$2:$C$31,3)) ->  | AA19: =IF(ISBLANK('Customer Input'!S19),"",'Customer Input'!S19) ->  | AB19: =IF(ISBLANK('Customer Input'!S19),"",VLOOKUP(AA19,'Product Information'!$A$2:$C$31,3)) ->  | AC19: 1 | AD19: 199.99 | AE19: 0 | AF19: =IF(MATCH(B19,'Order History'!V:V,0)=MAX('Order History'!A:A)-A19+2,0,IF(VLOOKUP(MATCH(B19,'Order History'!V:V,0)-1,'Order History'!$T$2:$AJ$11,17)>199,_xlfn.FLOOR.MATH(AD19*10)/100,0)) -> 19.99 | AG19: 180 | AH19: 0 | AI19: 14.72 | AJ19: 194.72 | AN19: KY | AO19: 0.06
A20: =IF(ISBLANK('Customer Input'!D20),"",ROW()+999) -> 1019 | B20: ='Customer Input'!D20 -> 9224318825 | C20: =CONCATENATE('Customer Input'!C20," ",'Customer Input'!B20) -> N'Charge Charles | D20: ='Customer Input'!A20 -> 2021-10-28 | E20: ='Customer Input'!H20 -> WA | F20: =VLOOKUP(B20,'Customer Information'!$A$2:$I$17,8) -> 2015 | G20: =IF('Customer Input'!F20=VLOOKUP('Input Calculation'!B20,'Customer Information'!$A$2:$I$17,4),"No","Yes") -> Yes | H20: =IF(VLOOKUP(B20,'Customer Information'!$A$2:$I$17,9)="Yes","","Attn: Manager") ->  | I20: =IF(ISBLANK('Customer Input'!J20),"",'Customer Input'!J20) -> 8924251 | J20: =IF(ISBLANK('Customer Input'!J20),"",VLOOKUP(I20,'Product Information'!$A$2:$C$31,3)) -> 99.99 | K20: =IF(ISBLANK('Customer Input'!K20),"",'Customer Input'!K20) -> 5216388 | L20: =IF(ISBLANK('Customer Input'!K20),"",VLOOKUP(K20,'Product Information'!$A$2:$C$31,3)) -> 49.99 | M20: =IF(ISBLANK('Customer Input'!L20),"",'Customer Input'!L20) ->  | N20: =IF(ISBLANK('Customer Input'!L20),"",VLOOKUP(M20,'Product Information'!$A$2:$C$31,3)) ->  | O20: =IF(ISBLANK('Customer Input'!M20),"",'Customer Input'!M20) ->  | P20: =IF(ISBLANK('Customer Input'!M20),"",VLOOKUP(O20,'Product Information'!$A$2:$C$31,3)) ->  | Q20: =IF(ISBLANK('Customer Input'!N20),"",'Customer Input'!N20) ->  | R20: =IF(ISBLANK('Customer Input'!N20),"",VLOOKUP(Q20,'Product Information'!$A$2:$C$31,3)) ->  | S20: =IF(ISBLANK('Customer Input'!O20),"",'Customer Input'!O20) ->  | T20: =IF(ISBLANK('Customer Input'!O20),"",VLOOKUP(S20,'Product Information'!$A$2:$C$31,3)) ->  | U20: =IF(ISBLANK('Customer Input'!P20),"",'Customer Input'!P20) ->  | V20: =IF(ISBLANK('Customer Input'!P20),"",VLOOKUP(U20,'Product Information'!$A$2:$C$31,3)) ->  | W20: =IF(ISBLANK('Customer Input'!Q20),"",'Customer Input'!Q20) ->  | X20: =IF(ISBLANK('Customer Input'!Q20),"",VLOOKUP(W20,'Product Information'!$A$2:$C$31,3)) ->  | Y20: =IF(ISBLANK('Customer Input'!R20),"",'Customer Input'!R20) ->  | Z20: =IF(ISBLANK('Customer Input'!R20),"",VLOOKUP(Y20,'Product Information'!$A$2:$C$31,3)) ->  | AA20: =IF(ISBLANK('Customer Input'!S20),"",'Customer Input'!S20) ->  | AB20: =IF(ISBLANK('Customer Input'!S20),"",VLOOKUP(AA20,'Product Information'!$A$2:$C$31,3)) ->  | AC20: 2 | AD20: 149.98 | AE20: 0 | AF20: =IF(MATCH(B20,'Order History'!V:V,0)=MAX('Order History'!A:A)-A20+2,0,IF(VLOOKUP(MATCH(B20,'Order History'!V:V,0)-1,'Order History'!$T$2:$AJ$11,17)>199,_xlfn.FLOOR.MATH(AD20*10)/100,0)) -> 0 | AG20: 149.98 | AH20: 5 | AI20: 13.81 | AJ20: 168.79 | AN20: LA | AO20: 0.0952
A21: =IF(ISBLANK('Customer Input'!D21),"",ROW()+999) -> 1020 | B21: ='Customer Input'!D21 -> 6315790090 | C21: =CONCATENATE('Customer Input'!C21," ",'Customer Input'!B21) -> Caputo Matthew | D21: ='Customer Input'!A21 -> 2021-10-29 | E21: ='Customer Input'!H21 -> TX | F21: =VLOOKUP(B21,'Customer Information'!$A$2:$I$17,8) -> 2007 | G21: =IF('Customer Input'!F21=VLOOKUP('Input Calculation'!B21,'Customer Information'!$A$2:$I$17,4),"No","Yes") -> No | H21: =IF(VLOOKUP(B21,'Customer Information'!$A$2:$I$17,9)="Yes","","Attn: Manager") ->  | I21: =IF(ISBLANK('Customer Input'!J21),"",'Customer Input'!J21) -> 8924251 | J21: =IF(ISBLANK('Customer Input'!J21),"",VLOOKUP(I21,'Product Information'!$A$2:$C$31,3)) -> 99.99 | K21: =IF(ISBLANK('Customer Input'!K21),"",'Customer Input'!K21) -> 5216388 | L21: =IF(ISBLANK('Customer Input'!K21),"",VLOOKUP(K21,'Product Information'!$A$2:$C$31,3)) -> 49.99 | M21: =IF(ISBLANK('Customer Input'!L21),"",'Customer Input'!L21) ->  | N21: =IF(ISBLANK('Customer Input'!L21),"",VLOOKUP(M21,'Product Information'!$A$2:$C$31,3)) ->  | O21: =IF(ISBLANK('Customer Input'!M21),"",'Customer Input'!M21) ->  | P21: =IF(ISBLANK('Customer Input'!M21),"",VLOOKUP(O21,'Product Information'!$A$2:$C$31,3)) ->  | Q21: =IF(ISBLANK('Customer Input'!N21),"",'Customer Input'!N21) ->  | R21: =IF(ISBLANK('Customer Input'!N21),"",VLOOKUP(Q21,'Product Information'!$A$2:$C$31,3)) ->  | S21: =IF(ISBLANK('Customer Input'!O21),"",'Customer Input'!O21) ->  | T21: =IF(ISBLANK('Customer Input'!O21),"",VLOOKUP(S21,'Product Information'!$A$2:$C$31,3)) ->  | U21: =IF(ISBLANK('Customer Input'!P21),"",'Customer Input'!P21) ->  | V21: =IF(ISBLANK('Customer Input'!P21),"",VLOOKUP(U21,'Product Information'!$A$2:$C$31,3)) ->  | W21: =IF(ISBLANK('Customer Input'!Q21),"",'Customer Input'!Q21) ->  | X21: =IF(ISBLANK('Customer Input'!Q21),"",VLOOKUP(W21,'Product Information'!$A$2:$C$31,3)) ->  | Y21: =IF(ISBLANK('Customer Input'!R21),"",'Customer Input'!R21) ->  | Z21: =IF(ISBLANK('Customer Input'!R21),"",VLOOKUP(Y21,'Product Information'!$A$2:$C$31,3)) ->  | AA21: =IF(ISBLANK('Customer Input'!S21),"",'Customer Input'!S21) ->  | AB21: =IF(ISBLANK('Customer Input'!S21),"",VLOOKUP(AA21,'Product Information'!$A$2:$C$31,3)) ->  | AC21: 2 | AD21: 149.98 | AE21: 14.99 | AF21: =IF(MATCH(B21,'Order History'!V:V,0)=MAX('Order History'!A:A)-A21+2,0,IF(VLOOKUP(MATCH(B21,'Order History'!V:V,0)-1,'Order History'!$T$2:$AJ$11,17)>199,_xlfn.FLOOR.MATH(AD21*10)/100,0)) -> 0 | AG21: 134.99 | AH21: 0 | AI21: 11.05 | AJ21: 146.04 | AN21: MA | AO21: 0.0625
A22: =IF(ISBLANK('Customer Input'!D22),"",ROW()+999) -> 1021 | B22: ='Customer Input'!D22 -> 8174368834 | C22: =CONCATENATE('Customer Input'!C22," ",'Customer Input'!B22) -> Doe John | D22: ='Customer Input'!A22 -> 2021-10-29 | E22: ='Customer Input'!H22 -> CA | F22: =VLOOKUP(B22,'Customer Information'!$A$2:$I$17,8) -> 2017 | G22: =IF('Customer Input'!F22=VLOOKUP('Input Calculation'!B22,'Customer Information'!$A$2:$I$17,4),"No","Yes") -> No | H22: =IF(VLOOKUP(B22,'Customer Information'!$A$2:$I$17,9)="Yes","","Attn: Manager") ->  | I22: =IF(ISBLANK('Customer Input'!J22),"",'Customer Input'!J22) -> 5216388 | J22: =IF(ISBLANK('Customer Input'!J22),"",VLOOKUP(I22,'Product Information'!$A$2:$C$31,3)) -> 49.99 | K22: =IF(ISBLANK('Customer Input'!K22),"",'Customer Input'!K22) ->  | L22: =IF(ISBLANK('Customer Input'!K22),"",VLOOKUP(K22,'Product Information'!$A$2:$C$31,3)) ->  | M22: =IF(ISBLANK('Customer Input'!L22),"",'Customer Input'!L22) ->  | N22: =IF(ISBLANK('Customer Input'!L22),"",VLOOKUP(M22,'Product Information'!$A$2:$C$31,3)) ->  | O22: =IF(ISBLANK('Customer Input'!M22),"",'Customer Input'!M22) ->  | P22: =IF(ISBLANK('Customer Input'!M22),"",VLOOKUP(O22,'Product Information'!$A$2:$C$31,3)) ->  | Q22: =IF(ISBLANK('Customer Input'!N22),"",'Customer Input'!N22) ->  | R22: =IF(ISBLANK('Customer Input'!N22),"",VLOOKUP(Q22,'Product Information'!$A$2:$C$31,3)) ->  | S22: =IF(ISBLANK('Customer Input'!O22),"",'Customer Input'!O22) ->  | T22: =IF(ISBLANK('Customer Input'!O22),"",VLOOKUP(S22,'Product Information'!$A$2:$C$31,3)) ->  | U22: =IF(ISBLANK('Customer Input'!P22),"",'Customer Input'!P22) ->  | V22: =IF(ISBLANK('Customer Input'!P22),"",VLOOKUP(U22,'Product Information'!$A$2:$C$31,3)) ->  | W22: =IF(ISBLANK('Customer Input'!Q22),"",'Customer Input'!Q22) ->  | X22: =IF(ISBLANK('Customer Input'!Q22),"",VLOOKUP(W22,'Product Information'!$A$2:$C$31,3)) ->  | Y22: =IF(ISBLANK('Customer Input'!R22),"",'Customer Input'!R22) ->  | Z22: =IF(ISBLANK('Customer Input'!R22),"",VLOOKUP(Y22,'Product Information'!$A$2:$C$31,3)) ->  | AA22: =IF(ISBLANK('Customer Input'!S22),"",'Customer Input'!S22) ->  | AB22: =IF(ISBLANK('Customer Input'!S22),"",VLOOKUP(AA22,'Product Information'!$A$2:$C$31,3)) ->  | AC22: 1 | AD22: 49.99 | AE22: 0 | AF22: =IF(MATCH(B22,'Order History'!V:V,0)=MAX('Order History'!A:A)-A22+2,0,IF(VLOOKUP(MATCH(B22,'Order History'!V:V,0)-1,'Order History'!$T$2:$AJ$11,17)>199,_xlfn.FLOOR.MATH(AD22*10)/100,0)) -> 0 | AG22: 49.99 | AH22: 4.999 | AI22: 4.32 | AJ22: 59.309 | AN22: MD | AO22: 0.06
A23: =IF(ISBLANK('Customer Input'!D23),"",ROW()+999) -> 1022 | B23: ='Customer Input'!D23 -> 6530353532 | C23: =CONCATENATE('Customer Input'!C23," ",'Customer Input'!B23) -> Pumpkineater Peter | D23: ='Customer Input'!A23 -> 2021-10-29 | E23: ='Customer Input'!H23 -> VT | F23: =VLOOKUP(B23,'Customer Information'!$A$2:$I$17,8) -> 2008 | G23: =IF('Customer Input'!F23=VLOOKUP('Input Calculation'!B23,'Customer Information'!$A$2:$I$17,4),"No","Yes") -> No | H23: =IF(VLOOKUP(B23,'Customer Information'!$A$2:$I$17,9)="Yes","","Attn: Manager") ->  | I23: =IF(ISBLANK('Customer Input'!J23),"",'Customer Input'!J23) -> 8924251 | J23: =IF(ISBLANK('Customer Input'!J23),"",VLOOKUP(I23,'Product Information'!$A$2:$C$31,3)) -> 99.99 | K23: =IF(ISBLANK('Customer Input'!K23),"",'Customer Input'!K23) ->  | L23: =IF(ISBLANK('Customer Input'!K23),"",VLOOKUP(K23,'Product Information'!$A$2:$C$31,3)) ->  | M23: =IF(ISBLANK('Customer Input'!L23),"",'Customer Input'!L23) ->  | N23: =IF(ISBLANK('Customer Input'!L23),"",VLOOKUP(M23,'Product Information'!$A$2:$C$31,3)) ->  | O23: =IF(ISBLANK('Customer Input'!M23),"",'Customer Input'!M23) ->  | P23: =IF(ISBLANK('Customer Input'!M23),"",VLOOKUP(O23,'Product Information'!$A$2:$C$31,3)) ->  | Q23: =IF(ISBLANK('Customer Input'!N23),"",'Customer Input'!N23) ->  | R23: =IF(ISBLANK('Customer Input'!N23),"",VLOOKUP(Q23,'Product Information'!$A$2:$C$31,3)) ->  | S23: =IF(ISBLANK('Customer Input'!O23),"",'Customer Input'!O23) ->  | T23: =IF(ISBLANK('Customer Input'!O23),"",VLOOKUP(S23,'Product Information'!$A$2:$C$31,3)) ->  | U23: =IF(ISBLANK('Customer Input'!P23),"",'Customer Input'!P23) ->  | V23: =IF(ISBLANK('Customer Input'!P23),"",VLOOKUP(U23,'Product Information'!$A$2:$C$31,3)) ->  | W23: =IF(ISBLANK('Customer Input'!Q23),"",'Customer Input'!Q23) ->  | X23: =IF(ISBLANK('Customer Input'!Q23),"",VLOOKUP(W23,'Product Information'!$A$2:$C$31,3)) ->  | Y23: =IF(ISBLANK('Customer Input'!R23),"",'Customer Input'!R23) ->  | Z23: =IF(ISBLANK('Customer Input'!R23),"",VLOOKUP(Y23,'Product Information'!$A$2:$C$31,3)) ->  | AA23: =IF(ISBLANK('Customer Input'!S23),"",'Customer Input'!S23) ->  | AB23: =IF(ISBLANK('Customer Input'!S23),"",VLOOKUP(AA23,'Product Information'!$A$2:$C$31,3)) ->  | AC23: 1 | AD23: 99.99 | AE23: 9.99 | AF23: =IF(MATCH(B23,'Order History'!V:V,0)=MAX('Order History'!A:A)-A23+2,0,IF(VLOOKUP(MATCH(B23,'Order History'!V:V,0)-1,'Order History'!$T$2:$AJ$11,17)>199,_xlfn.FLOOR.MATH(AD23*10)/100,0)) -> 0 | AG23: 90 | AH23: 0 | AI23: 5.59 | AJ23: 95.59 | AN23: ME | AO23: 0.055
A24: =IF(ISBLANK('Customer Input'!D24),"",ROW()+999) -> 1023 | B24: ='Customer Input'!D24 -> 6315790090 | C24: =CONCATENATE('Customer Input'!C24," ",'Customer Input'!B24) -> Caputo Matthew | D24: ='Customer Input'!A24 -> 2021-10-29 | E24: ='Customer Input'!H24 -> TX | F24: =VLOOKUP(B24,'Customer Information'!$A$2:$I$17,8) -> 2007 | G24: =IF('Customer Input'!F24=VLOOKUP('Input Calculation'!B24,'Customer Information'!$A$2:$I$17,4),"No","Yes") -> No | H24: =IF(VLOOKUP(B24,'Customer Information'!$A$2:$I$17,9)="Yes","","Attn: Manager") ->  | I24: =IF(ISBLANK('Customer Input'!J24),"",'Customer Input'!J24) -> 7250412 | J24: =IF(ISBLANK('Customer Input'!J24),"",VLOOKUP(I24,'Product Information'!$A$2:$C$31,3)) -> 12.99 | K24: =IF(ISBLANK('Customer Input'!K24),"",'Customer Input'!K24) -> 8924251 | L24: =IF(ISBLANK('Customer Input'!K24),"",VLOOKUP(K24,'Product Information'!$A$2:$C$31,3)) -> 99.99 | M24: =IF(ISBLANK('Customer Input'!L24),"",'Customer Input'!L24) ->  | N24: =IF(ISBLANK('Customer Input'!L24),"",VLOOKUP(M24,'Product Information'!$A$2:$C$31,3)) ->  | O24: =IF(ISBLANK('Customer Input'!M24),"",'Customer Input'!M24) ->  | P24: =IF(ISBLANK('Customer Input'!M24),"",VLOOKUP(O24,'Product Information'!$A$2:$C$31,3)) ->  | Q24: =IF(ISBLANK('Customer Input'!N24),"",'Customer Input'!N24) ->  | R24: =IF(ISBLANK('Customer Input'!N24),"",VLOOKUP(Q24,'Product Information'!$A$2:$C$31,3)) ->  | S24: =IF(ISBLANK('Customer Input'!O24),"",'Customer Input'!O24) ->  | T24: =IF(ISBLANK('Customer Input'!O24),"",VLOOKUP(S24,'Product Information'!$A$2:$C$31,3)) ->  | U24: =IF(ISBLANK('Customer Input'!P24),"",'Customer Input'!P24) ->  | V24: =IF(ISBLANK('Customer Input'!P24),"",VLOOKUP(U24,'Product Information'!$A$2:$C$31,3)) ->  | W24: =IF(ISBLANK('Customer Input'!Q24),"",'Customer Input'!Q24) ->  | X24: =IF(ISBLANK('Customer Input'!Q24),"",VLOOKUP(W24,'Product Information'!$A$2:$C$31,3)) ->  | Y24: =IF(ISBLANK('Customer Input'!R24),"",'Customer Input'!R24) ->  | Z24: =IF(ISBLANK('Customer Input'!R24),"",VLOOKUP(Y24,'Product Information'!$A$2:$C$31,3)) ->  | AA24: =IF(ISBLANK('Customer Input'!S24),"",'Customer Input'!S24) ->  | AB24: =IF(ISBLANK('Customer Input'!S24),"",VLOOKUP(AA24,'Product Information'!$A$2:$C$31,3)) ->  | AC24: 2 | AD24: 112.98 | AE24: 11.29 | AF24: =IF(MATCH(B24,'Order History'!V:V,0)=MAX('Order History'!A:A)-A24+2,0,IF(VLOOKUP(MATCH(B24,'Order History'!V:V,0)-1,'Order History'!$T$2:$AJ$11,17)>199,_xlfn.FLOOR.MATH(AD24*10)/100,0)) -> 0 | AG24: 101.69 | AH24: 0 | AI24: 8.32 | AJ24: 110.01 | AN24: MI | AO24: 0.06
A25: =IF(ISBLANK('Customer Input'!D25),"",ROW()+999) -> 1024 | B25: ='Customer Input'!D25 -> 9153230352 | C25: =CONCATENATE('Customer Input'!C25," ",'Customer Input'!B25) -> Liberace Mister | D25: ='Customer Input'!A25 -> 2021-10-30 | E25: ='Customer Input'!H25 -> NV | F25: =VLOOKUP(B25,'Customer Information'!$A$2:$I$17,8) -> 1985 | G25: =IF('Customer Input'!F25=VLOOKUP('Input Calculation'!B25,'Customer Information'!$A$2:$I$17,4),"No","Yes") -> No | H25: =IF(VLOOKUP(B25,'Customer Information'!$A$2:$I$17,9)="Yes","","Attn: Manager") ->  | I25: =IF(ISBLANK('Customer Input'!J25),"",'Customer Input'!J25) -> 1252953 | J25: =IF(ISBLANK('Customer Input'!J25),"",VLOOKUP(I25,'Product Information'!$A$2:$C$31,3)) -> 54.99 | K25: =IF(ISBLANK('Customer Input'!K25),"",'Customer Input'!K25) -> 1465559 | L25: =IF(ISBLANK('Customer Input'!K25),"",VLOOKUP(K25,'Product Information'!$A$2:$C$31,3)) -> 24.99 | M25: =IF(ISBLANK('Customer Input'!L25),"",'Customer Input'!L25) -> 1983220 | N25: =IF(ISBLANK('Customer Input'!L25),"",VLOOKUP(M25,'Product Information'!$A$2:$C$31,3)) -> 34.99 | O25: =IF(ISBLANK('Customer Input'!M25),"",'Customer Input'!M25) -> 2056772 | P25: =IF(ISBLANK('Customer Input'!M25),"",VLOOKUP(O25,'Product Information'!$A$2:$C$31,3)) -> 74.99 | Q25: =IF(ISBLANK('Customer Input'!N25),"",'Customer Input'!N25) -> 2847693 | R25: =IF(ISBLANK('Customer Input'!N25),"",VLOOKUP(Q25,'Product Information'!$A$2:$C$31,3)) -> 134.99 | S25: =IF(ISBLANK('Customer Input'!O25),"",'Customer Input'!O25) -> 3055845 | T25: =IF(ISBLANK('Customer Input'!O25),"",VLOOKUP(S25,'Product Information'!$A$2:$C$31,3)) -> 199.99 | U25: =IF(ISBLANK('Customer Input'!P25),"",'Customer Input'!P25) -> 3148653 | V25: =IF(ISBLANK('Customer Input'!P25),"",VLOOKUP(U25,'Product Information'!$A$2:$C$31,3)) -> 449.99 | W25: =IF(ISBLANK('Customer Input'!Q25),"",'Customer Input'!Q25) -> 3785616 | X25: =IF(ISBLANK('Customer Input'!Q25),"",VLOOKUP(W25,'Product Information'!$A$2:$C$31,3)) -> 499.99 | Y25: =IF(ISBLANK('Customer Input'!R25),"",'Customer Input'!R25) -> 3818725 | Z25: =IF(ISBLANK('Customer Input'!R25),"",VLOOKUP(Y25,'Product Information'!$A$2:$C$31,3)) -> 999.99 | AA25: =IF(ISBLANK('Customer Input'!S25),"",'Customer Input'!S25) -> 3832255 | AB25: =IF(ISBLANK('Customer Input'!S25),"",VLOOKUP(AA25,'Product Information'!$A$2:$C$31,3)) -> 19.99 | AC25: 10 | AD25: 2494.9 | AE25: 249.49 | AF25: =IF(MATCH(B25,'Order History'!V:V,0)=MAX('Order History'!A:A)-A25+2,0,IF(VLOOKUP(MATCH(B25,'Order History'!V:V,0)-1,'Order History'!$T$2:$AJ$11,17)>199,_xlfn.FLOOR.MATH(AD25*10)/100,0)) -> 0 | AG25: 2245.41 | AH25: 0 | AI25: 186.81 | AJ25: 2432.22 | AN25: MN | AO25: 0.0746
A26: =IF(ISBLANK('Customer Input'!D26),"",ROW()+999) -> 1025 | B26: ='Customer Input'!D26 -> 7139892245 | C26: =CONCATENATE('Customer Input'!C26," ",'Customer Input'!B26) -> Kaploozie Suzie | D26: ='Customer Input'!A26 -> 2021-10-30 | E26: ='Customer Input'!H26 -> NY | F26: =VLOOKUP(B26,'Customer Information'!$A$2:$I$17,8) -> 2003 | G26: =IF('Customer Input'!F26=VLOOKUP('Input Calculation'!B26,'Customer Information'!$A$2:$I$17,4),"No","Yes") -> No | H26: =IF(VLOOKUP(B26,'Customer Information'!$A$2:$I$17,9)="Yes","","Attn: Manager") ->  | I26: =IF(ISBLANK('Customer Input'!J26),"",'Customer Input'!J26) -> 9242514 | J26: =IF(ISBLANK('Customer Input'!J26),"",VLOOKUP(I26,'Product Information'!$A$2:$C$31,3)) -> 499.99 | K26: =IF(ISBLANK('Customer Input'!K26),"",'Customer Input'!K26) -> 5216388 | L26: =IF(ISBLANK('Customer Input'!K26),"",VLOOKUP(K26,'Product Information'!$A$2:$C$31,3)) -> 49.99 | M26: =IF(ISBLANK('Customer Input'!L26),"",'Customer Input'!L26) ->  | N26: =IF(ISBLANK('Customer Input'!L26),"",VLOOKUP(M26,'Product Information'!$A$2:$C$31,3)) ->  | O26: =IF(ISBLANK('Customer Input'!M26),"",'Customer Input'!M26) ->  | P26: =IF(ISBLANK('Customer Input'!M26),"",VLOOKUP(O26,'Product Information'!$A$2:$C$31,3)) ->  | Q26: =IF(ISBLANK('Customer Input'!N26),"",'Customer Input'!N26) ->  | R26: =IF(ISBLANK('Customer Input'!N26),"",VLOOKUP(Q26,'Product Information'!$A$2:$C$31,3)) ->  | S26: =IF(ISBLANK('Customer Input'!O26),"",'Customer Input'!O26) ->  | T26: =IF(ISBLANK('Customer Input'!O26),"",VLOOKUP(S26,'Product Information'!$A$2:$C$31,3)) ->  | U26: =IF(ISBLANK('Customer Input'!P26),"",'Customer Input'!P26) ->  | V26: =IF(ISBLANK('Customer Input'!P26),"",VLOOKUP(U26,'Product Information'!$A$2:$C$31,3)) ->  | W26: =IF(ISBLANK('Customer Input'!Q26),"",'Customer Input'!Q26) ->  | X26: =IF(ISBLANK('Customer Input'!Q26),"",VLOOKUP(W26,'Product Information'!$A$2:$C$31,3)) ->  | Y26: =IF(ISBLANK('Customer Input'!R26),"",'Customer Input'!R26) ->  | Z26: =IF(ISBLANK('Customer Input'!R26),"",VLOOKUP(Y26,'Product Information'!$A$2:$C$31,3)) ->  | AA26: =IF(ISBLANK('Customer Input'!S26),"",'Customer Input'!S26) ->  | AB26: =IF(ISBLANK('Customer Input'!S26),"",VLOOKUP(AA26,'Product Information'!$A$2:$C$31,3)) ->  | AC26: 2 | AD26: 549.98 | AE26: 54.99 | AF26: =IF(MATCH(B26,'Order History'!V:V,0)=MAX('Order History'!A:A)-A26+2,0,IF(VLOOKUP(MATCH(B26,'Order History'!V:V,0)-1,'Order History'!$T$2:$AJ$11,17)>199,_xlfn.FLOOR.MATH(AD26*10)/100,0)) -> 0 | AG26: 494.99 | AH26: 0 | AI26: 42.17 | AJ26: 537.16 | AN26: MO | AO26: 0.0818
A27: =IF(ISBLANK('Customer Input'!D27),"",ROW()+999) -> 1026 | B27: ='Customer Input'!D27 -> 8785546312 | C27: =CONCATENATE('Customer Input'!C27," ",'Customer Input'!B27) -> O'Lantern Jack | D27: ='Customer Input'!A27 -> 2021-10-30 | E27: ='Customer Input'!H27 -> MO | F27: =VLOOKUP(B27,'Customer Information'!$A$2:$I$17,8) -> 2017 | G27: =IF('Customer Input'!F27=VLOOKUP('Input Calculation'!B27,'Customer Information'!$A$2:$I$17,4),"No","Yes") -> No | H27: =IF(VLOOKUP(B27,'Customer Information'!$A$2:$I$17,9)="Yes","","Attn: Manager") -> Attn: Manager | I27: =IF(ISBLANK('Customer Input'!J27),"",'Customer Input'!J27) -> 3055845 | J27: =IF(ISBLANK('Customer Input'!J27),"",VLOOKUP(I27,'Product Information'!$A$2:$C$31,3)) -> 199.99 | K27: =IF(ISBLANK('Customer Input'!K27),"",'Customer Input'!K27) ->  | L27: =IF(ISBLANK('Customer Input'!K27),"",VLOOKUP(K27,'Product Information'!$A$2:$C$31,3)) ->  | M27: =IF(ISBLANK('Customer Input'!L27),"",'Customer Input'!L27) ->  | N27: =IF(ISBLANK('Customer Input'!L27),"",VLOOKUP(M27,'Product Information'!$A$2:$C$31,3)) ->  | O27: =IF(ISBLANK('Customer Input'!M27),"",'Customer Input'!M27) ->  | P27: =IF(ISBLANK('Customer Input'!M27),"",VLOOKUP(O27,'Product Information'!$A$2:$C$31,3)) ->  | Q27: =IF(ISBLANK('Customer Input'!N27),"",'Customer Input'!N27) ->  | R27: =IF(ISBLANK('Customer Input'!N27),"",VLOOKUP(Q27,'Product Information'!$A$2:$C$31,3)) ->  | S27: =IF(ISBLANK('Customer Input'!O27),"",'Customer Input'!O27) ->  | T27: =IF(ISBLANK('Customer Input'!O27),"",VLOOKUP(S27,'Product Information'!$A$2:$C$31,3)) ->  | U27: =IF(ISBLANK('Customer Input'!P27),"",'Customer Input'!P27) ->  | V27: =IF(ISBLANK('Customer Input'!P27),"",VLOOKUP(U27,'Product Information'!$A$2:$C$31,3)) ->  | W27: =IF(ISBLANK('Customer Input'!Q27),"",'Customer Input'!Q27) ->  | X27: =IF(ISBLANK('Customer Input'!Q27),"",VLOOKUP(W27,'Product Information'!$A$2:$C$31,3)) ->  | Y27: =IF(ISBLANK('Customer Input'!R27),"",'Customer Input'!R27) ->  | Z27: =IF(ISBLANK('Customer Input'!R27),"",VLOOKUP(Y27,'Product Information'!$A$2:$C$31,3)) ->  | AA27: =IF(ISBLANK('Customer Input'!S27),"",'Customer Input'!S27) ->  | AB27: =IF(ISBLANK('Customer Input'!S27),"",VLOOKUP(AA27,'Product Information'!$A$2:$C$31,3)) ->  | AC27: 1 | AD27: 199.99 | AE27: 0 | AF27: =IF(MATCH(B27,'Order History'!V:V,0)=MAX('Order History'!A:A)-A27+2,0,IF(VLOOKUP(MATCH(B27,'Order History'!V:V,0)-1,'Order History'!$T$2:$AJ$11,17)>199,_xlfn.FLOOR.MATH(AD27*10)/100,0)) -> 0 | AG27: 199.99 | AH27: 5 | AI27: 16.35 | AJ27: 221.34 | AN27: MS | AO27: 0.0707
A28: =IF(ISBLANK('Customer Input'!D28),"",ROW()+999) -> 1027 | B28: ='Customer Input'!D28 -> 5168832323 | C28: =CONCATENATE('Customer Input'!C28," ",'Customer Input'!B28) -> Wont William | D28: ='Customer Input'!A28 -> 2021-10-30 | E28: ='Customer Input'!H28 -> MO | F28: =VLOOKUP(B28,'Customer Information'!$A$2:$I$17,8) -> 2020 | G28: =IF('Customer Input'!F28=VLOOKUP('Input Calculation'!B28,'Customer Information'!$A$2:$I$17,4),"No","Yes") -> No | H28: =IF(VLOOKUP(B28,'Customer Information'!$A$2:$I$17,9)="Yes","","Attn: Manager") ->  | I28: =IF(ISBLANK('Customer Input'!J28),"",'Customer Input'!J28) -> 2056772 | J28: =IF(ISBLANK('Customer Input'!J28),"",VLOOKUP(I28,'Product Information'!$A$2:$C$31,3)) -> 74.99 | K28: =IF(ISBLANK('Customer Input'!K28),"",'Customer Input'!K28) -> 3055845 | L28: =IF(ISBLANK('Customer Input'!K28),"",VLOOKUP(K28,'Product Information'!$A$2:$C$31,3)) -> 199.99 | M28: =IF(ISBLANK('Customer Input'!L28),"",'Customer Input'!L28) ->  | N28: =IF(ISBLANK('Customer Input'!L28),"",VLOOKUP(M28,'Product Information'!$A$2:$C$31,3)) ->  | O28: =IF(ISBLANK('Customer Input'!M28),"",'Customer Input'!M28) ->  | P28: =IF(ISBLANK('Customer Input'!M28),"",VLOOKUP(O28,'Product Information'!$A$2:$C$31,3)) ->  | Q28: =IF(ISBLANK('Customer Input'!N28),"",'Customer Input'!N28) ->  | R28: =IF(ISBLANK('Customer Input'!N28),"",VLOOKUP(Q28,'Product Information'!$A$2:$C$31,3)) ->  | S28: =IF(ISBLANK('Customer Input'!O28),"",'Customer Input'!O28) ->  | T28: =IF(ISBLANK('Customer Input'!O28),"",VLOOKUP(S28,'Product Information'!$A$2:$C$31,3)) ->  | U28: =IF(ISBLANK('Customer Input'!P28),"",'Customer Input'!P28) ->  | V28: =IF(ISBLANK('Customer Input'!P28),"",VLOOKUP(U28,'Product Information'!$A$2:$C$31,3)) ->  | W28: =IF(ISBLANK('Customer Input'!Q28),"",'Customer Input'!Q28) ->  | X28: =IF(ISBLANK('Customer Input'!Q28),"",VLOOKUP(W28,'Product Information'!$A$2:$C$31,3)) ->  | Y28: =IF(ISBLANK('Customer Input'!R28),"",'Customer Input'!R28) ->  | Z28: =IF(ISBLANK('Customer Input'!R28),"",VLOOKUP(Y28,'Product Information'!$A$2:$C$31,3)) ->  | AA28: =IF(ISBLANK('Customer Input'!S28),"",'Customer Input'!S28) ->  | AB28: =IF(ISBLANK('Customer Input'!S28),"",VLOOKUP(AA28,'Product Information'!$A$2:$C$31,3)) ->  | AC28: 2 | AD28: 274.98 | AE28: 0 | AF28: =IF(MATCH(B28,'Order History'!V:V,0)=MAX('Order History'!A:A)-A28+2,0,IF(VLOOKUP(MATCH(B28,'Order History'!V:V,0)-1,'Order History'!$T$2:$AJ$11,17)>199,_xlfn.FLOOR.MATH(AD28*10)/100,0)) -> 0 | AG28: 274.98 | AH28: 5 | AI28: 22.49 | AJ28: 302.47 | AN28: MT | AO28: 0
A29: =IF(ISBLANK('Customer Input'!D29),"",ROW()+999) -> 1028 | B29: ='Customer Input'!D29 -> 9184329830 | C29: =CONCATENATE('Customer Input'!C29," ",'Customer Input'!B29) -> Jane Mary | D29: ='Customer Input'!A29 -> 2021-10-30 | E29: ='Customer Input'!H29 -> CO | F29: =VLOOKUP(B29,'Customer Information'!$A$2:$I$17,8) -> 2001 | G29: =IF('Customer Input'!F29=VLOOKUP('Input Calculation'!B29,'Customer Information'!$A$2:$I$17,4),"No","Yes") -> No | H29: =IF(VLOOKUP(B29,'Customer Information'!$A$2:$I$17,9)="Yes","","Attn: Manager") -> Attn: Manager | I29: =IF(ISBLANK('Customer Input'!J29),"",'Customer Input'!J29) -> 2056772 | J29: =IF(ISBLANK('Customer Input'!J29),"",VLOOKUP(I29,'Product Information'!$A$2:$C$31,3)) -> 74.99 | K29: =IF(ISBLANK('Customer Input'!K29),"",'Customer Input'!K29) ->  | L29: =IF(ISBLANK('Customer Input'!K29),"",VLOOKUP(K29,'Product Information'!$A$2:$C$31,3)) ->  | M29: =IF(ISBLANK('Customer Input'!L29),"",'Customer Input'!L29) ->  | N29: =IF(ISBLANK('Customer Input'!L29),"",VLOOKUP(M29,'Product Information'!$A$2:$C$31,3)) ->  | O29: =IF(ISBLANK('Customer Input'!M29),"",'Customer Input'!M29) ->  | P29: =IF(ISBLANK('Customer Input'!M29),"",VLOOKUP(O29,'Product Information'!$A$2:$C$31,3)) ->  | Q29: =IF(ISBLANK('Customer Input'!N29),"",'Customer Input'!N29) ->  | R29: =IF(ISBLANK('Customer Input'!N29),"",VLOOKUP(Q29,'Product Information'!$A$2:$C$31,3)) ->  | S29: =IF(ISBLANK('Customer Input'!O29),"",'Customer Input'!O29) ->  | T29: =IF(ISBLANK('Customer Input'!O29),"",VLOOKUP(S29,'Product Information'!$A$2:$C$31,3)) ->  | U29: =IF(ISBLANK('Customer Input'!P29),"",'Customer Input'!P29) ->  | V29: =IF(ISBLANK('Customer Input'!P29),"",VLOOKUP(U29,'Product Information'!$A$2:$C$31,3)) ->  | W29: =IF(ISBLANK('Customer Input'!Q29),"",'Customer Input'!Q29) ->  | X29: =IF(ISBLANK('Customer Input'!Q29),"",VLOOKUP(W29,'Product Information'!$A$2:$C$31,3)) ->  | Y29: =IF(ISBLANK('Customer Input'!R29),"",'Customer Input'!R29) ->  | Z29: =IF(ISBLANK('Customer Input'!R29),"",VLOOKUP(Y29,'Product Information'!$A$2:$C$31,3)) ->  | AA29: =IF(ISBLANK('Customer Input'!S29),"",'Customer Input'!S29) ->  | AB29: =IF(ISBLANK('Customer Input'!S29),"",VLOOKUP(AA29,'Product Information'!$A$2:$C$31,3)) ->  | AC29: 1 | AD29: 74.99 | AE29: 7.49 | AF29: =IF(MATCH(B29,'Order History'!V:V,0)=MAX('Order History'!A:A)-A29+2,0,IF(VLOOKUP(MATCH(B29,'Order History'!V:V,0)-1,'Order History'!$T$2:$AJ$11,17)>199,_xlfn.FLOOR.MATH(AD29*10)/100,0)) -> 0 | AG29: 67.5 | AH29: 0 | AI29: 5.16 | AJ29: 72.66 | AN29: NC | AO29: 0.0697
AN30: ND | AO30: 0.0686
AN31: NE | AO31: 0.0693
AN32: NH | AO32: 0
AN33: NJ | AO33: 0.066
AN34: NM | AO34: 0.0882
AN35: NV | AO35: 0.0832
AN36: NY | AO36: 0.0852
AN37: OH | AO37: 0.0717
AN38: OK | AO38: 0.0894
AN39: OR | AO39: 0
AN40: PA | AO40: 0.0634
AN41: RI | AO41: 0.07
AN42: SC | AO42: 0.0746
AN43: SD | AO43: 0.064
AN44: TN | AO44: 0.0953
AN45: TX | AO45: 0.0819
AN46: UT | AO46: 0.0718
AN47: VA | AO47: 0.0565
AN48: VT | AO48: 0.0622
AN49: WA | AO49: 0.0921
AN50: WI | AO50: 0.0546
AN51: WV | AO51: 0.0641
AN52: WY | AO52: 0.0534

Sheet Customer Information
A1: Phone | B1: Name | C1: Email | D1: Address | E1: City | F1: State | G1: Zip | H1: Customer Since | I1: Good Standing
A2: 3056223185 | B2: Rhythm DJ | C2: Tunes@yahoo.com | D2: 123 Counting Street | E2: Numbers | F2: OK | G2: 97365 | H2: 2007 | I2: No
A3: 4438641204 | B3: Calendar Marie | C3: pies4life@gmail.com | D3: 3343 Rhubarb Road | E3: Jacksonville | F3: MI | G3: 30243 | H3: 2021 | I3: Yes
A4: 5168832323 | B4: Wont William | C4: NotHere@yahoo.com | D4: 823 1st St | E4: Kansas City | F4: MO | G4: 65923 | H4: 2020 | I4: Yes
A5: 6315790090 | B5: Caputo Matthew | C5: mattcap62480@gmail.com | D5: 7123 Montclair Peak Lane | E5: Richmond | F5: TX | G5: 77469 | H5: 2007 | I5: Yes
A6: 6530353532 | B6: Pumpkineater Peter | C6: Orange@mail.com | D6: 32 Maple Road | E6: Bloomington | F6: VT | G6: 8876 | H6: 2008 | I6: Yes
A7: 7139892245 | B7: Kaploozie Suzie | C7: sk2002@hotmail.com | D7: 3 Pine Road | E7: Albany | F7: NY | G7: 12313 | H7: 2003 | I7: Yes
A8: 8174368834 | B8: Doe John | C8: noone@yahoo.com | D8: 1000 Main Street | E8: Los Angeles | F8: CA | G8: 98845 | H8: 2017 | I8: Yes
A9: 8785546312 | B9: O'Lantern Jack | C9: halloween@hotmail.com | D9: 666 Evil Road | E9: Hell | F9: MO | G9: 10232 | H9: 2017 | I9: No
A10: 9153230352 | B10: Liberace Mister | C10: Piano12@yahoo.com | D10: 432 Flamingo Drive | E10: Las Vegas | F10: NV | G10: 73547 | H10: 1985 | I10: Yes
A11: 9184329830 | B11: Jane Mary | C11: high@gmail.com | D11: 420 Weed Way | E11: Denver | F11: CO | G11: 88325 | H11: 2001 | I11: No
A12: 9224318825 | B12: N'Charge Charles | C12: boss@hotmail.com | D12: 12 Wandering Road | E12: Laffyette | F12: LA | G12: 76523 | H12: 2015 | I12: Yes
A14: Press Cntr-Shft-E to view all detailed customer data
A15: Press Cntr-Shft-P to protect all detailed customer data

Sheet Product Information
A1: Item Number | B1: Description | C1: Price | D1: Total Purchased | E1: Total Per Item | F1: Percent of Total Revenue
A2: 1065630 | B2: Shirt | C2: 14.99 | D2: =COUNTIF('Customer Input'!$J$2:$S$29,A2) -> 0 | E2: =D2*C2 -> 0 | F2: =E2/$E$32 -> 0
A3: 1201215 | B3: Nicer Shirt | C3: 24.99 | D3: =COUNTIF('Customer Input'!$J$2:$S$29,A3) -> 0 | E3: =D3*C3 -> 0 | F3: =E3/$E$32 -> 0
A4: 1252953 | B4: Great Shirt | C4: 54.99 | D4: =COUNTIF('Customer Input'!$J$2:$S$29,A4) -> 1 | E4: 54.99 | F4: 0.00619302786
A5: 1465559 | B5: Pants | C5: 24.99 | D5: =COUNTIF('Customer Input'!$J$2:$S$29,A5) -> 1 | E5: 24.99 | F5: 0.002814398367
A6: 1983220 | B6: Nicer Pants | C6: 34.99 | D6: =COUNTIF('Customer Input'!$J$2:$S$29,A6) -> 1 | E6: 34.99 | F6: 0.003940608198
A7: 2056772 | B7: Great Pants | C7: 74.99 | D7: =COUNTIF('Customer Input'!$J$2:$S$29,A7) -> 7 | E7: 524.93 | F7: 0.05911813265
A8: 2847693 | B8: Jacket | C8: 134.99 | D8: =COUNTIF('Customer Input'!$J$2:$S$29,A8) -> 1 | E8: 134.99 | F8: 0.01520270651
A9: 3055845 | B9: Winter Jacket | C9: 199.99 | D9: =COUNTIF('Customer Input'!$J$2:$S$29,A9) -> 12 | E9: 2399.88 | F9: 0.2702768449
A10: 3148653 | B10: Leather Jacket | C10: 449.99 | D10: =COUNTIF('Customer Input'!$J$2:$S$29,A10) -> 1 | E10: 449.99 | F10: 0.05067831618
A11: 3785616 | B11: Dressy Jacket | C11: 499.99 | D11: =COUNTIF('Customer Input'!$J$2:$S$29,A11) -> 1 | E11: 499.99 | F11: 0.05630936534
A12: 3818725 | B12: Logo Jacket | C12: 999.99 | D12: =COUNTIF('Customer Input'!$J$2:$S$29,A12) -> 1 | E12: 999.99 | F12: 0.1126198569
A13: 3832255 | B13: Hat | C13: 19.99 | D13: =COUNTIF('Customer Input'!$J$2:$S$29,A13) -> 1 | E13: 19.99 | F13: 0.002251293452
A14: 4192639 | B14: Better Hat | C14: 24.99 | D14: =COUNTIF('Customer Input'!$J$2:$S$29,A14) -> 0 | E14: 0 | F14: 0
A15: 4375770 | B15: Amazing Hat | C15: 34.99 | D15: =COUNTIF('Customer Input'!$J$2:$S$29,A15) -> 0 | E15: 0 | F15: 0
A16: 4989600 | B16: Hard Hat | C16: 29.99 | D16: =COUNTIF('Customer Input'!$J$2:$S$29,A16) -> 2 | E16: 59.98 | F16: 0.006755006566
A17: 5086187 | B17: Top Hat | C17: 39.99 | D17: =COUNTIF('Customer Input'!$J$2:$S$29,A17) -> 1 | E17: 39.99 | F17: 0.004503713114
A18: 5216388 | B18: Logo Hat | C18: 49.99 | D18: =COUNTIF('Customer Input'!$J$2:$S$29,A18) -> 10 | E18: 499.9 | F18: 0.05629922945
A19: 6671819 | B19: Socks | C19: 4.99 | D19: =COUNTIF('Customer Input'!$J$2:$S$29,A19) -> 1 | E19: 4.99 | F19: 0.0005619787056
A20: 6738313 | B20: Better Socks | C20: 6.99 | D20: =COUNTIF('Customer Input'!$J$2:$S$29,A20) -> 1 | E20: 6.99 | F20: 0.0007872206718
A21: 6808398 | B21: Fuzzy Socks | C21: 8.99 | D21: =COUNTIF('Customer Input'!$J$2:$S$29,A21) -> 1 | E21: 8.99 | F21: 0.001012462638
A22: 6832283 | B22: Toe Socks | C22: 9.99 | D22: =COUNTIF('Customer Input'!$J$2:$S$29,A22) -> 1 | E22: 9.99 | F22: 0.001125083621
A23: 7250412 | B23: Thermal Socks | C23: 12.99 | D23: =COUNTIF('Customer Input'!$J$2:$S$29,A23) -> 8 | E23: 103.92 | F23: 0.01170357256
A24: 7256628 | B24: Shoes | C24: 54.99 | D24: =COUNTIF('Customer Input'!$J$2:$S$29,A24) -> 0 | E24: 0 | F24: 0
A25: 7278806 | B25: Nicer Shoes | C25: 154.99 | D25: =COUNTIF('Customer Input'!$J$2:$S$29,A25) -> 0 | E25: 0 | F25: 0
A26: 7662209 | B26: Great Shoes | C26: 354.99 | D26: =COUNTIF('Customer Input'!$J$2:$S$29,A26) -> 0 | E26: 0 | F26: 0
A27: 7718381 | B27: Sunglasses | C27: 19.99 | D27: =COUNTIF('Customer Input'!$J$2:$S$29,A27) -> 0 | E27: 0 | F27: 0
A28: 8299553 | B28: UV Sunglasses | C28: 29.99 | D28: =COUNTIF('Customer Input'!$J$2:$S$29,A28) -> 0 | E28: 0 | F28: 0
A29: 8312428 | B29: IOU Sunglasses | C29: 49.99 | D29: =COUNTIF('Customer Input'!$J$2:$S$29,A29) -> 0 | E29: 0 | F29: 0
A30: 8924251 | B30: Super Sunglasses | C30: 99.99 | D30: =COUNTIF('Customer Input'!$J$2:$S$29,A30) -> 10 | E30: 999.9 | F30: 0.112609721
A31: 9242514 | B31: Fashionista Sunglasses | C31: 499.99 | D31: =COUNTIF('Customer Input'!$J$2:$S$29,A31) -> 4 | E31: 1999.96 | F31: 0.2252374613
D32: Total Revenue | E32: =SUM(E2:E31) -> 8879.34

Sheet Order History
A1: Order Number | B1: Name | C1: Phone | D1: Date | E1: Item 1 | F1: Item 2 | G1: Item 3 | H1: Item 4 | I1: Item 5 | J1: Item 6 | K1: Item 7 | L1: Item 8 | M1: Item 9 | N1: Item 10 | O1: Loyalty Discount | P1: Big Spender Discount | Q1: Grand Total | R1: Most Recent | T1: Reverse Order Number | U1: Name | V1: Phone | W1: Date | X1: Item 1 | Y1: Item 2 | Z1: Item 3 | AA1: Item 4 | AB1: Item 5 | AC1: Item 6 | AD1: Item 7 | AE1: Item 8 | AF1: Item 9 | AG1: Item 10 | AH1: Loyalty Discount | AI1: Big Spender Discount | AJ1: Grand Total
A2: ='Input Calculation'!A2 -> 1001 | B2: ='Input Calculation'!C2 -> Caputo Matthew | C2: ='Input Calculation'!B2 -> 6315790090 | D2: ='Input Calculation'!D2 -> 2021-10-24 | E2: ='Input Calculation'!I2 -> 7250412 | F2: ='Input Calculation'!K2 -> 5216388 | G2: ='Input Calculation'!M2 -> 9242514 | H2: ='Input Calculation'!O2 ->  | I2: ='Input Calculation'!Q2 ->  | J2: ='Input Calculation'!S2 ->  | K2: ='Input Calculation'!U2 ->  | L2: ='Input Calculation'!W2 ->  | M2: ='Input Calculation'!Y2 ->  | N2: ='Input Calculation'!AA2 ->  | O2: ='Input Calculation'!AE2 -> 56.29 | P2: ='Input Calculation'!AF2 -> 0 | Q2: ='Input Calculation'!AJ2 -> 548.17 | R2: =MAX(A:A)-A2+1 -> 28 | T2: =A2-1000 -> 1 | U2: =VLOOKUP(MAX($A:$A)-($T2-1),$A$2:$Q$29,COLUMN()-19) -> Jane Mary | V2: =VLOOKUP(MAX($A:$A)-($T2-1),$A$2:$Q$29,COLUMN()-19) -> 9184329830 | W2: 44499 | X2: 2056772 | AH2: 7.49 | AI2: 0 | AJ2: 72.66
A3: ='Input Calculation'!A3 -> 1002 | B3: ='Input Calculation'!C3 -> Doe John | C3: ='Input Calculation'!B3 -> 8174368834 | D3: ='Input Calculation'!D3 -> 2021-10-24 | E3: ='Input Calculation'!I3 -> 2056772 | F3: ='Input Calculation'!K3 -> 3055845 | G3: ='Input Calculation'!M3 ->  | H3: ='Input Calculation'!O3 ->  | I3: ='Input Calculation'!Q3 ->  | J3: ='Input Calculation'!S3 ->  | K3: ='Input Calculation'!U3 ->  | L3: ='Input Calculation'!W3 ->  | M3: ='Input Calculation'!Y3 ->  | N3: ='Input Calculation'!AA3 ->  | O3: ='Input Calculation'!AE3 -> 0 | P3: ='Input Calculation'!AF3 -> 0 | Q3: ='Input Calculation'!AJ3 -> 303.79 | R3: =MAX(A:A)-A3+1 -> 27 | T3: =A3-1000 -> 2 | U3: Wont William | V3: 5168832323 | W3: 44499 | X3: 2056772 | Y3: 3055845 | AH3: 0 | AI3: 0 | AJ3: 302.47
A4: ='Input Calculation'!A4 -> 1003 | B4: ='Input Calculation'!C4 -> Kaploozie Suzie | C4: ='Input Calculation'!B4 -> 7139892245 | D4: ='Input Calculation'!D4 -> 2021-10-24 | E4: ='Input Calculation'!I4 -> 3055845 | F4: ='Input Calculation'!K4 ->  | G4: ='Input Calculation'!M4 ->  | H4: ='Input Calculation'!O4 ->  | I4: ='Input Calculation'!Q4 ->  | J4: ='Input Calculation'!S4 ->  | K4: ='Input Calculation'!U4 ->  | L4: ='Input Calculation'!W4 ->  | M4: ='Input Calculation'!Y4 ->  | N4: ='Input Calculation'!AA4 ->  | O4: ='Input Calculation'!AE4 -> 19.99 | P4: ='Input Calculation'!AF4 -> 19.99 | Q4: ='Input Calculation'!AJ4 -> 173.64 | R4: 26 | T4: 3 | U4: O'Lantern Jack | V4: 8785546312 | W4: 44499 | X4: 3055845 | AH4: 0 | AI4: 0 | AJ4: 221.34
A5: ='Input Calculation'!A5 -> 1004 | B5: ='Input Calculation'!C5 -> Jane Mary | C5: ='Input Calculation'!B5 -> 9184329830 | D5: ='Input Calculation'!D5 -> 2021-10-25 | E5: ='Input Calculation'!I5 -> 8924251 | F5: ='Input Calculation'!K5 -> 7250412 | G5: ='Input Calculation'!M5 -> 5216388 | H5: ='Input Calculation'!O5 ->  | I5: ='Input Calculation'!Q5 ->  | J5: ='Input Calculation'!S5 ->  | K5: ='Input Calculation'!U5 ->  | L5: ='Input Calculation'!W5 ->  | M5: ='Input Calculation'!Y5 ->  | N5: ='Input Calculation'!AA5 ->  | O5: ='Input Calculation'!AE5 -> 16.29 | P5: ='Input Calculation'!AF5 -> 0 | Q5: ='Input Calculation'!AJ5 -> 157.9 | R5: 25 | T5: 4 | U5: Kaploozie Suzie | V5: 7139892245 | W5: 44499 | X5: 9242514 | Y5: 5216388 | AH5: 54.99 | AI5: 0 | AJ5: 537.16
A6: ='Input Calculation'!A6 -> 1005 | B6: ='Input Calculation'!C6 -> Wont William | C6: ='Input Calculation'!B6 -> 5168832323 | D6: ='Input Calculation'!D6 -> 2021-10-25 | E6: ='Input Calculation'!I6 -> 9242514 | F6: ='Input Calculation'!K6 -> 3055845 | G6: ='Input Calculation'!M6 -> 7250412 | H6: ='Input Calculation'!O6 ->  | I6: ='Input Calculation'!Q6 ->  | J6: ='Input Calculation'!S6 ->  | K6: ='Input Calculation'!U6 ->  | L6: ='Input Calculation'!W6 ->  | M6: ='Input Calculation'!Y6 ->  | N6: ='Input Calculation'!AA6 ->  | O6: ='Input Calculation'!AE6 -> 0 | P6: ='Input Calculation'!AF6 -> 71.29 | Q6: ='Input Calculation'!AJ6 -> 694.16 | R6: 24 | T6: 5 | U6: Liberace Mister | V6: 9153230352 | W6: 44499 | X6: 1252953 | Y6: 1465559 | Z6: 1983220 | AA6: 2056772 | AB6: 2847693 | AC6: 3055845 | AD6: 3148653 | AE6: 3785616 | AF6: 3818725 | AG6: 3832255 | AH6: 249.49 | AI6: 0 | AJ6: 2432.22
A7: ='Input Calculation'!A7 -> 1006 | B7: ='Input Calculation'!C7 -> Pumpkineater Peter | C7: ='Input Calculation'!B7 -> 6530353532 | D7: ='Input Calculation'!D7 -> 2021-10-25 | E7: ='Input Calculation'!I7 -> 8924251 | F7: ='Input Calculation'!K7 -> 7250412 | G7: ='Input Calculation'!M7 -> 8924251 | H7: ='Input Calculation'!O7 ->  | I7: ='Input Calculation'!Q7 ->  | J7: ='Input Calculation'!S7 ->  | K7: ='Input Calculation'!U7 ->  | L7: ='Input Calculation'!W7 ->  | M7: ='Input Calculation'!Y7 ->  | N7: ='Input Calculation'!AA7 ->  | O7: ='Input Calculation'!AE7 -> 21.29 | P7: ='Input Calculation'!AF7 -> 0 | Q7: ='Input Calculation'!AJ7 -> 203.6 | R7: 23 | T7: 6 | U7: Caputo Matthew | V7: 6315790090 | W7: 44498 | X7: 7250412 | Y7: 8924251 | AH7: 11.29 | AI7: 0 | AJ7: 110.01
A8: ='Input Calculation'!A8 -> 1007 | B8: ='Input Calculation'!C8 -> O'Lantern Jack | C8: ='Input Calculation'!B8 -> 8785546312 | D8: ='Input Calculation'!D8 -> 2021-10-25 | E8: ='Input Calculation'!I8 -> 3055845 | F8: ='Input Calculation'!K8 ->  | G8: ='Input Calculation'!M8 ->  | H8: ='Input Calculation'!O8 ->  | I8: ='Input Calculation'!Q8 ->  | J8: ='Input Calculation'!S8 ->  | K8: ='Input Calculation'!U8 ->  | L8: ='Input Calculation'!W8 ->  | M8: ='Input Calculation'!Y8 ->  | N8: ='Input Calculation'!AA8 ->  | O8: ='Input Calculation'!AE8 -> 0 | P8: ='Input Calculation'!AF8 -> 19.99 | Q8: ='Input Calculation'!AJ8 -> 194.72 | R8: 22 | T8: 7 | U8: Pumpkineater Peter | V8: 6530353532 | W8: 44498 | X8: 8924251 | AH8: 9.99 | AI8: 0 | AJ8: 95.59
A9: ='Input Calculation'!A9 -> 1008 | B9: ='Input Calculation'!C9 -> Jane Mary | C9: ='Input Calculation'!B9 -> 9184329830 | D9: ='Input Calculation'!D9 -> 2021-10-26 | E9: ='Input Calculation'!I9 -> 8924251 | F9: ='Input Calculation'!K9 -> 2056772 | G9: ='Input Calculation'!M9 ->  | H9: ='Input Calculation'!O9 ->  | I9: ='Input Calculation'!Q9 ->  | J9: ='Input Calculation'!S9 ->  | K9: ='Input Calculation'!U9 ->  | L9: ='Input Calculation'!W9 ->  | M9: ='Input Calculation'!Y9 ->  | N9: ='Input Calculation'!AA9 ->  | O9: ='Input Calculation'!AE9 -> 17.49 | P9: ='Input Calculation'!AF9 -> 0 | Q9: ='Input Calculation'!AJ9 -> 169.53 | R9: 21 | T9: 8 | U9: Doe John | V9: 8174368834 | W9: 44498 | X9: 5216388 | AH9: 0 | AI9: 0 | AJ9: 59.309
A10: ='Input Calculation'!A10 -> 1009 | B10: ='Input Calculation'!C10 -> Kaploozie Suzie | C10: ='Input Calculation'!B10 -> 7139892245 | D10: ='Input Calculation'!D10 -> 2021-10-26 | E10: ='Input Calculation'!I10 -> 2056772 | F10: ='Input Calculation'!K10 ->  | G10: ='Input Calculation'!M10 ->  | H10: ='Input Calculation'!O10 ->  | I10: ='Input Calculation'!Q10 ->  | J10: ='Input Calculation'!S10 ->  | K10: ='Input Calculation'!U10 ->  | L10: ='Input Calculation'!W10 ->  | M10: ='Input Calculation'!Y10 ->  | N10: ='Input Calculation'!AA10 ->  | O10: ='Input Calculation'!AE10 -> 7.49 | P10: ='Input Calculation'!AF10 -> 7.49 | Q10: ='Input Calculation'!AJ10 -> 65.12 | R10: 20 | T10: 9 | U10: Caputo Matthew | V10: 6315790090 | W10: 44498 | X10: 8924251 | Y10: 5216388 | AH10: 14.99 | AI10: 0 | AJ10: 146.04
A11: ='Input Calculation'!A11 -> 1010 | B11: ='Input Calculation'!C11 -> Pumpkineater Peter | C11: ='Input Calculation'!B11 -> 6530353532 | D11: ='Input Calculation'!D11 -> 2021-10-26 | E11: ='Input Calculation'!I11 -> 3055845 | F11: ='Input Calculation'!K11 -> 2056772 | G11: ='Input Calculation'!M11 -> 5216388 | H11: ='Input Calculation'!O11 ->  | I11: ='Input Calculation'!Q11 ->  | J11: ='Input Calculation'!S11 ->  | K11: ='Input Calculation'!U11 ->  | L11: ='Input Calculation'!W11 ->  | M11: ='Input Calculation'!Y11 ->  | N11: ='Input Calculation'!AA11 ->  | O11: ='Input Calculation'!AE11 -> 32.49 | P11: ='Input Calculation'!AF11 -> 0 | Q11: ='Input Calculation'!AJ11 -> 310.67 | R11: 19 | T11: 10 | U11: N'Charge Charles | V11: 9224318825 | W11: 44497 | X11: 8924251 | Y11: 5216388 | AH11: 0 | AI11: 0 | AJ11: 168.79
A12: ='Input Calculation'!A12 -> 1011 | B12: ='Input Calculation'!C12 -> Calendar Marie | C12: ='Input Calculation'!B12 -> 4438641204 | D12: ='Input Calculation'!D12 -> 2021-10-27 | E12: ='Input Calculation'!I12 -> 5216388 | F12: ='Input Calculation'!K12 -> 7250412 | G12: ='Input Calculation'!M12 -> 9242514 | H12: ='Input Calculation'!O12 ->  | I12: ='Input Calculation'!Q12 ->  | J12: ='Input Calculation'!S12 ->  | K12: ='Input Calculation'!U12 ->  | L12: ='Input Calculation'!W12 ->  | M12: ='Input Calculation'!Y12 ->  | N12: ='Input Calculation'!AA12 ->  | O12: ='Input Calculation'!AE12 -> 0 | P12: ='Input Calculation'!AF12 -> 0 | Q12: ='Input Calculation'!AJ12 -> 601.74 | R12: 18 | T12: 11 | U12: O'Lantern Jack | V12: 8785546312 | W12: 44497 | X12: 3055845 | AH12: 0 | AI12: 19.99 | AJ12: 194.72
A13: ='Input Calculation'!A13 -> 1012 | B13: ='Input Calculation'!C13 -> Kaploozie Suzie | C13: ='Input Calculation'!B13 -> 7139892245 | D13: ='Input Calculation'!D13 -> 2021-10-27 | E13: ='Input Calculation'!I13 -> 3055845 | F13: ='Input Calculation'!K13 -> 8924251 | G13: ='Input Calculation'!M13 ->  | H13: ='Input Calculation'!O13 ->  | I13: ='Input Calculation'!Q13 ->  | J13: ='Input Calculation'!S13 ->  | K13: ='Input Calculation'!U13 ->  | L13: ='Input Calculation'!W13 ->  | M13: ='Input Calculation'!Y13 ->  | N13: ='Input Calculation'!AA13 ->  | O13: ='Input Calculation'!AE13 -> 29.99 | P13: ='Input Calculation'!AF13 -> 29.99 | Q13: ='Input Calculation'!AJ13 -> 260.44 | R13: 17 | T13: 12 | U13: Jane Mary | V13: 9184329830 | W13: 44497 | X13: 3055845 | AH13: 19.99 | AI13: 0 | AJ13: 193.77
A14: ='Input Calculation'!A14 -> 1013 | B14: ='Input Calculation'!C14 -> Wont William | C14: ='Input Calculation'!B14 -> 5168832323 | D14: ='Input Calculation'!D14 -> 2021-10-27 | E14: ='Input Calculation'!I14 -> 8924251 | F14: ='Input Calculation'!K14 -> 4989600 | G14: ='Input Calculation'!M14 -> 5086187 | H14: ='Input Calculation'!O14 -> 5216388 | I14: ='Input Calculation'!Q14 -> 6671819 | J14: ='Input Calculation'!S14 -> 6738313 | K14: ='Input Calculation'!U14 -> 6808398 | L14: ='Input Calculation'!W14 -> 6832283 | M14: ='Input Calculation'!Y14 -> 7250412 | N14: ='Input Calculation'!AA14 ->  | O14: ='Input Calculation'!AE14 -> 0 | P14: ='Input Calculation'!AF14 -> 26.39 | Q14: ='Input Calculation'!AJ14 -> 256.94 | R14: 16 | T14: 13 | U14: Rhythm DJ | V14: 3056223185 | W14: 44497 | X14: 4989600 | Y14: 3055845 | AH14: 22.99 | AI14: 0 | AJ14: 221.58
A15: ='Input Calculation'!A15 -> 1014 | B15: ='Input Calculation'!C15 -> Doe John | C15: ='Input Calculation'!B15 -> 8174368834 | D15: ='Input Calculation'!D15 -> 2021-10-27 | E15: ='Input Calculation'!I15 -> 7250412 | F15: ='Input Calculation'!K15 ->  | G15: ='Input Calculation'!M15 ->  | H15: ='Input Calculation'!O15 ->  | I15: ='Input Calculation'!Q15 ->  | J15: ='Input Calculation'!S15 ->  | K15: ='Input Calculation'!U15 ->  | L15: ='Input Calculation'!W15 ->  | M15: ='Input Calculation'!Y15 ->  | N15: ='Input Calculation'!AA15 ->  | O15: ='Input Calculation'!AE15 -> 0 | P15: ='Input Calculation'!AF15 -> 0 | Q15: ='Input Calculation'!AJ15 -> 15.409 | R15: 15 | T15: 14 | U15: Caputo Matthew | V15: 6315790090 | W15: 44496 | X15: 5216388 | AH15: 4.99 | AI15: 0 | AJ15: 48.68
A16: ='Input Calculation'!A16 -> 1015 | B16: ='Input Calculation'!C16 -> Caputo Matthew | C16: ='Input Calculation'!B16 -> 6315790090 | D16: ='Input Calculation'!D16 -> 2021-10-27 | E16: ='Input Calculation'!I16 -> 5216388 | F16: ='Input Calculation'!K16 ->  | G16: ='Input Calculation'!M16 ->  | H16: ='Input Calculation'!O16 ->  | I16: ='Input Calculation'!Q16 ->  | J16: ='Input Calculation'!S16 ->  | K16: ='Input Calculation'!U16 ->  | L16: ='Input Calculation'!W16 ->  | M16: ='Input Calculation'!Y16 ->  | N16: ='Input Calculation'!AA16 ->  | O16: ='Input Calculation'!AE16 -> 4.99 | P16: ='Input Calculation'!AF16 -> 0 | Q16: ='Input Calculation'!AJ16 -> 48.68 | R16: 14 | T16: 15 | U16: Doe John | V16: 8174368834 | W16: 44496 | X16: 7250412 | AH16: 0 | AI16: 0 | AJ16: 15.409
A17: ='Input Calculation'!A17 -> 1016 | B17: ='Input Calculation'!C17 -> Rhythm DJ | C17: ='Input Calculation'!B17 -> 3056223185 | D17: ='Input Calculation'!D17 -> 2021-10-28 | E17: ='Input Calculation'!I17 -> 4989600 | F17: ='Input Calculation'!K17 -> 3055845 | G17: ='Input Calculation'!M17 ->  | H17: ='Input Calculation'!O17 ->  | I17: ='Input Calculation'!Q17 ->  | J17: ='Input Calculation'!S17 ->  | K17: ='Input Calculation'!U17 ->  | L17: ='Input Calculation'!W17 ->  | M17: ='Input Calculation'!Y17 ->  | N17: ='Input Calculation'!AA17 ->  | O17: ='Input Calculation'!AE17 -> 22.99 | P17: ='Input Calculation'!AF17 -> 0 | Q17: ='Input Calculation'!AJ17 -> 221.58 | R17: 13 | T17: 16 | U17: Wont William | V17: 5168832323 | W17: 44496 | X17: 8924251 | Y17: 4989600 | Z17: 5086187 | AA17: 5216388 | AB17: 6671819 | AC17: 6738313 | AD17: 6808398 | AE17: 6832283 | AF17: 7250412 | AH17: 0 | AI17: 26.39 | AJ17: 256.94
A18: ='Input Calculation'!A18 -> 1017 | B18: ='Input Calculation'!C18 -> Jane Mary | C18: ='Input Calculation'!B18 -> 9184329830 | D18: ='Input Calculation'!D18 -> 2021-10-28 | E18: ='Input Calculation'!I18 -> 3055845 | F18: ='Input Calculation'!K18 ->  | G18: ='Input Calculation'!M18 ->  | H18: ='Input Calculation'!O18 ->  | I18: ='Input Calculation'!Q18 ->  | J18: ='Input Calculation'!S18 ->  | K18: ='Input Calculation'!U18 ->  | L18: ='Input Calculation'!W18 ->  | M18: ='Input Calculation'!Y18 ->  | N18: ='Input Calculation'!AA18 ->  | O18: ='Input Calculation'!AE18 -> 19.99 | P18: ='Input Calculation'!AF18 -> 0 | Q18: ='Input Calculation'!AJ18 -> 193.77 | R18: 12 | T18: 17 | U18: Kaploozie Suzie | V18: =VLOOKUP(MAX($A:$A)-($T18-1),$A$2:$Q$29,COLUMN()-19) -> 7139892245 | W18: 44496 | X18: 3055845 | Y18: 8924251 | AH18: 29.99 | AI18: 29.99 | AJ18: 260.44
A19: ='Input Calculation'!A19 -> 1018 | B19: ='Input Calculation'!C19 -> O'Lantern Jack | C19: ='Input Calculation'!B19 -> 8785546312 | D19: ='Input Calculation'!D19 -> 2021-10-28 | E19: ='Input Calculation'!I19 -> 3055845 | F19: ='Input Calculation'!K19 ->  | G19: ='Input Calculation'!M19 ->  | H19: ='Input Calculation'!O19 ->  | I19: ='Input Calculation'!Q19 ->  | J19: ='Input Calculation'!S19 ->  | K19: ='Input Calculation'!U19 ->  | L19: ='Input Calculation'!W19 ->  | M19: ='Input Calculation'!Y19 ->  | N19: ='Input Calculation'!AA19 ->  | O19: ='Input Calculation'!AE19 -> 0 | P19: ='Input Calculation'!AF19 -> 19.99 | Q19: ='Input Calculation'!AJ19 -> 194.72 | R19: 11 | T19: 18 | U19: Calendar Marie | V19: 4438641204 | W19: 44496 | X19: 5216388 | Y19: 7250412 | Z19: 9242514 | AH19: 0 | AI19: 0 | AJ19: 601.74
A20: ='Input Calculation'!A20 -> 1019 | B20: ='Input Calculation'!C20 -> N'Charge Charles | C20: ='Input Calculation'!B20 -> 9224318825 | D20: ='Input Calculation'!D20 -> 2021-10-28 | E20: ='Input Calculation'!I20 -> 8924251 | F20: ='Input Calculation'!K20 -> 5216388 | G20: ='Input Calculation'!M20 ->  | H20: ='Input Calculation'!O20 ->  | I20: ='Input Calculation'!Q20 ->  | J20: ='Input Calculation'!S20 ->  | K20: ='Input Calculation'!U20 ->  | L20: ='Input Calculation'!W20 ->  | M20: ='Input Calculation'!Y20 ->  | N20: ='Input Calculation'!AA20 ->  | O20: ='Input Calculation'!AE20 -> 0 | P20: ='Input Calculation'!AF20 -> 0 | Q20: ='Input Calculation'!AJ20 -> 168.79 | R20: 10 | T20: 19 | U20: Pumpkineater Peter | V20: 6530353532 | W20: 44495 | X20: 3055845 | Y20: 2056772 | Z20: 5216388 | AH20: 32.49 | AI20: 0 | AJ20: 310.67
A21: ='Input Calculation'!A21 -> 1020 | B21: ='Input Calculation'!C21 -> Caputo Matthew | C21: ='Input Calculation'!B21 -> 6315790090 | D21: ='Input Calculation'!D21 -> 2021-10-29 | E21: ='Input Calculation'!I21 -> 8924251 | F21: ='Input Calculation'!K21 -> 5216388 | G21: ='Input Calculation'!M21 ->  | H21: ='Input Calculation'!O21 ->  | I21: ='Input Calculation'!Q21 ->  | J21: ='Input Calculation'!S21 ->  | K21: ='Input Calculation'!U21 ->  | L21: ='Input Calculation'!W21 ->  | M21: ='Input Calculation'!Y21 ->  | N21: ='Input Calculation'!AA21 ->  | O21: ='Input Calculation'!AE21 -> 14.99 | P21: ='Input Calculation'!AF21 -> 0 | Q21: ='Input Calculation'!AJ21 -> 146.04 | R21: 9 | T21: 20 | U21: Kaploozie Suzie | V21: 7139892245 | W21: 44495 | X21: 2056772 | AH21: 7.49 | AI21: 7.49 | AJ21: 65.12
A22: ='Input Calculation'!A22 -> 1021 | B22: ='Input Calculation'!C22 -> Doe John | C22: ='Input Calculation'!B22 -> 8174368834 | D22: ='Input Calculation'!D22 -> 2021-10-29 | E22: ='Input Calculation'!I22 -> 5216388 | F22: ='Input Calculation'!K22 ->  | G22: ='Input Calculation'!M22 ->  | H22: ='Input Calculation'!O22 ->  | I22: ='Input Calculation'!Q22 ->  | J22: ='Input Calculation'!S22 ->  | K22: ='Input Calculation'!U22 ->  | L22: ='Input Calculation'!W22 ->  | M22: ='Input Calculation'!Y22 ->  | N22: ='Input Calculation'!AA22 ->  | O22: ='Input Calculation'!AE22 -> 0 | P22: ='Input Calculation'!AF22 -> 0 | Q22: ='Input Calculation'!AJ22 -> 59.309 | R22: 8 | T22: 21 | U22: Jane Mary | V22: 9184329830 | W22: 44495 | X22: 8924251 | Y22: 2056772 | AH22: 17.49 | AI22: 0 | AJ22: 169.53
A23: ='Input Calculation'!A23 -> 1022 | B23: ='Input Calculation'!C23 -> Pumpkineater Peter | C23: ='Input Calculation'!B23 -> 6530353532 | D23: ='Input Calculation'!D23 -> 2021-10-29 | E23: ='Input Calculation'!I23 -> 8924251 | F23: ='Input Calculation'!K23 ->  | G23: ='Input Calculation'!M23 ->  | H23: ='Input Calculation'!O23 ->  | I23: ='Input Calculation'!Q23 ->  | J23: ='Input Calculation'!S23 ->  | K23: ='Input Calculation'!U23 ->  | L23: ='Input Calculation'!W23 ->  | M23: ='Input Calculation'!Y23 ->  | N23: ='Input Calculation'!AA23 ->  | O23: ='Input Calculation'!AE23 -> 9.99 | P23: ='Input Calculation'!AF23 -> 0 | Q23: ='Input Calculation'!AJ23 -> 95.59 | R23: 7 | T23: 22 | U23: O'Lantern Jack | V23: 8785546312 | W23: 44494 | X23: 3055845 | AH23: 0 | AI23: 19.99 | AJ23: 194.72
A24: ='Input Calculation'!A24 -> 1023 | B24: ='Input Calculation'!C24 -> Caputo Matthew | C24: ='Input Calculation'!B24 -> 6315790090 | D24: ='Input Calculation'!D24 -> 2021-10-29 | E24: ='Input Calculation'!I24 -> 7250412 | F24: ='Input Calculation'!K24 -> 8924251 | G24: ='Input Calculation'!M24 ->  | H24: ='Input Calculation'!O24 ->  | I24: ='Input Calculation'!Q24 ->  | J24: ='Input Calculation'!S24 ->  | K24: ='Input Calculation'!U24 ->  | L24: ='Input Calculation'!W24 ->  | M24: ='Input Calculation'!Y24 ->  | N24: ='Input Calculation'!AA24 ->  | O24: ='Input Calculation'!AE24 -> 11.29 | P24: ='Input Calculation'!AF24 -> 0 | Q24: ='Input Calculation'!AJ24 -> 110.01 | R24: 6 | T24: 23 | U24: Pumpkineater Peter | V24: 6530353532 | W24: 44494 | X24: 8924251 | Y24: 7250412 | Z24: 8924251 | AH24: 21.29 | AI24: 0 | AJ24: 203.6
A25: ='Input Calculation'!A25 -> 1024 | B25: ='Input Calculation'!C25 -> Liberace Mister | C25: ='Input Calculation'!B25 -> 9153230352 | D25: ='Input Calculation'!D25 -> 2021-10-30 | E25: ='Input Calculation'!I25 -> 1252953 | F25: ='Input Calculation'!K25 -> 1465559 | G25: ='Input Calculation'!M25 -> 1983220 | H25: ='Input Calculation'!O25 -> 2056772 | I25: ='Input Calculation'!Q25 -> 2847693 | J25: ='Input Calculation'!S25 -> 3055845 | K25: ='Input Calculation'!U25 -> 3148653 | L25: ='Input Calculation'!W25 -> 3785616 | M25: ='Input Calculation'!Y25 -> 3818725 | N25: ='Input Calculation'!AA25 -> 3832255 | O25: ='Input Calculation'!AE25 -> 249.49 | P25: ='Input Calculation'!AF25 -> 0 | Q25: ='Input Calculation'!AJ25 -> 2432.22 | R25: 5 | T25: 24 | U25: Wont William | V25: 5168832323 | W25: 44494 | X25: 9242514 | Y25: 3055845 | Z25: 7250412 | AH25: 0 | AI25: 71.29 | AJ25: 694.16
A26: ='Input Calculation'!A26 -> 1025 | B26: ='Input Calculation'!C26 -> Kaploozie Suzie | C26: ='Input Calculation'!B26 -> 7139892245 | D26: ='Input Calculation'!D26 -> 2021-10-30 | E26: ='Input Calculation'!I26 -> 9242514 | F26: ='Input Calculation'!K26 -> 5216388 | G26: ='Input Calculation'!M26 ->  | H26: ='Input Calculation'!O26 ->  | I26: ='Input Calculation'!Q26 ->  | J26: ='Input Calculation'!S26 ->  | K26: ='Input Calculation'!U26 ->  | L26: ='Input Calculation'!W26 ->  | M26: ='Input Calculation'!Y26 ->  | N26: ='Input Calculation'!AA26 ->  | O26: ='Input Calculation'!AE26 -> 54.99 | P26: ='Input Calculation'!AF26 -> 0 | Q26: ='Input Calculation'!AJ26 -> 537.16 | R26: 4 | T26: 25 | U26: Jane Mary | V26: 9184329830 | W26: 44494 | X26: 8924251 | Y26: 7250412 | Z26: 5216388 | AH26: 16.29 | AI26: 0 | AJ26: 157.9
A27: ='Input Calculation'!A27 -> 1026 | B27: ='Input Calculation'!C27 -> O'Lantern Jack | C27: ='Input Calculation'!B27 -> 8785546312 | D27: ='Input Calculation'!D27 -> 2021-10-30 | E27: ='Input Calculation'!I27 -> 3055845 | F27: ='Input Calculation'!K27 ->  | G27: ='Input Calculation'!M27 ->  | H27: ='Input Calculation'!O27 ->  | I27: ='Input Calculation'!Q27 ->  | J27: ='Input Calculation'!S27 ->  | K27: ='Input Calculation'!U27 ->  | L27: ='Input Calculation'!W27 ->  | M27: ='Input Calculation'!Y27 ->  | N27: ='Input Calculation'!AA27 ->  | O27: ='Input Calculation'!AE27 -> 0 | P27: ='Input Calculation'!AF27 -> 0 | Q27: ='Input Calculation'!AJ27 -> 221.34 | R27: 3 | T27: 26 | U27: Kaploozie Suzie | V27: 7139892245 | W27: 44493 | X27: 3055845 | AH27: 19.99 | AI27: 19.99 | AJ27: 173.64
A28: ='Input Calculation'!A28 -> 1027 | B28: ='Input Calculation'!C28 -> Wont William | C28: ='Input Calculation'!B28 -> 5168832323 | D28: ='Input Calculation'!D28 -> 2021-10-30 | E28: ='Input Calculation'!I28 -> 2056772 | F28: ='Input Calculation'!K28 -> 3055845 | G28: ='Input Calculation'!M28 ->  | H28: ='Input Calculation'!O28 ->  | I28: ='Input Calculation'!Q28 ->  | J28: ='Input Calculation'!S28 ->  | K28: ='Input Calculation'!U28 ->  | L28: ='Input Calculation'!W28 ->  | M28: ='Input Calculation'!Y28 ->  | N28: ='Input Calculation'!AA28 ->  | O28: ='Input Calculation'!AE28 -> 0 | P28: ='Input Calculation'!AF28 -> 0 | Q28: ='Input Calculation'!AJ28 -> 302.47 | R28: 2 | T28: 27 | U28: Doe John | V28: 8174368834 | W28: 44493 | X28: 2056772 | Y28: 3055845 | AH28: 0 | AI28: 0 | AJ28: 303.79
A29: ='Input Calculation'!A29 -> 1028 | B29: ='Input Calculation'!C29 -> Jane Mary | C29: ='Input Calculation'!B29 -> 9184329830 | D29: ='Input Calculation'!D29 -> 2021-10-30 | E29: ='Input Calculation'!I29 -> 2056772 | F29: ='Input Calculation'!K29 ->  | G29: ='Input Calculation'!M29 ->  | H29: ='Input Calculation'!O29 ->  | I29: ='Input Calculation'!Q29 ->  | J29: ='Input Calculation'!S29 ->  | K29: ='Input Calculation'!U29 ->  | L29: ='Input Calculation'!W29 ->  | M29: ='Input Calculation'!Y29 ->  | N29: ='Input Calculation'!AA29 ->  | O29: ='Input Calculation'!AE29 -> 7.49 | P29: ='Input Calculation'!AF29 -> 0 | Q29: ='Input Calculation'!AJ29 -> 72.66 | R29: 1 | T29: 28 | U29: Caputo Matthew | V29: 6315790090 | W29: 44493 | X29: 7250412 | Y29: 5216388 | Z29: 9242514 | AH29: 56.29 | AI29: 0 | AJ29: 548.17

Sheet Create Customer Claim
A1: Script: | V1: Number | W1: Month | Z1: Claim Assignment | AC1: Weekday Assignment | AG1: number | AH1: letter
V2: 1 | W2: January | Z2: 0 | AA2: Mark | AC2: 1 | AD2: Sunday | AG2: 0 | AH2: A
A3: "Hello. To whom do I have the pleasure of speaking?" | V3: 2 | W3: February | Z3: 1 | AA3: Bob | AC3: 2 | AD3: Monday | AG3: 3 | AH3: B
A4: Response: | V4: 3 | W4: March | Z4: 2 | AA4: Sandy | AC4: 3 | AD4: Tuesday | AG4: 6 | AH4: C
A5: "Would you mind verifying the phone number associated with this account?" | V5: 4 | W5: April | Z5: 3 | AA5: Aiden | AC5: 4 | AD5: Wednesday | AG5: 10 | AH5: D
A6: Reponse: | E6: Press Cnt-Sht V to Find Customer | V6: 5 | W6: May | Z6: 4 | AA6: Mary | AC6: 5 | AD6: Thursday | AG6: 13 | AH6: E
E7: Press Cnt-Sht P to Find Protect | V7: 6 | W7: June | Z7: 5 | AA7: Marty | AC7: 6 | AD7: Friday | AG7: 16 | AH7: F
V8: 7 | W8: July | Z8: 6 | AA8: Sal | AC8: 7 | AD8: Saturday | AG8: 20 | AH8: G
V9: 8 | W9: August | Z9: 7 | AA9: Jim | AG9: 23 | AH9: H
A10: Name: | B10: =VLOOKUP(B6,'Customer Information'!$A$2:$I$12,2) ->  | V10: 9 | W10: September | Z10: 8 | AA10: Peter | AG10: 26 | AH10: I
V11: 10 | W11: October | Z11: 9 | AA11: Leslie | AG11: 30 | AH11: J
A12: Phone: | B12: =TEXT(B6,"###-###-####") -> -- | V12: 11 | W12: November | AG12: 33 | AH12: K
A13: Email: | B13: =VLOOKUP(B6,'Customer Information'!$A$2:$I$12,3) ->  | V13: 12 | W13: December | AG13: 36 | AH13: L
AG14: 40 | AH14: M
A15: Last Order: | B15: =MAX('Order History'!A2:A29,)-MATCH(B6,'Order History'!V1:V29,0)+2 ->  | C15: Product: | D15: =VLOOKUP(B15,'Order History'!$A$2:$N$29,5) ->  | AG15: 43 | AH15: N
A16: Date: | B16: =YEAR(VLOOKUP(B15,'Order History'!$A$2:$Q$29,4)) ->  | C16: =MONTH(VLOOKUP(B15,'Order History'!$A$2:$Q$29,4)) ->  | D16: =DAY(VLOOKUP(B15,'Order History'!$A$2:$Q$29,4)) ->  | E16: =WEEKDAY(DATE(B16,MONTH(VLOOKUP(B15,'Order History'!$A$2:$Q$29,4)),D16)) ->  | F16: =VLOOKUP(E16,AC2:AD8,2) ->  | N16: Order | O16: Date of Order | P16: Date of Claim | Q16: Product | R16: Phone | S16: Weekday Order | T16: Weekday Claim | U16: Assigned | AG16: 46 | AH16: O
C17: =VLOOKUP(C16,V2:W13,2) ->  | N17: 4 | O17: 8 | P17: 8 | Q17: 7 | R17: 10 | S17: 1 | T17: 1 | U17: 1 | V17: 4737342 | AG17: 50 | AH17: P
A18: Assigned to: | B18: 3 | C18: =VLOOKUP(_xlfn.NUMBERVALUE(B18),Z2:AA11,2) -> Aiden | O18: yyyymmdd | P18: yyyymmdd | AG18: 53 | AH18: Q
A19: Date: | B19: =TEXT(YEAR(TODAY()),"####") -> 2021 | C19: =TEXT(MONTH(TODAY()),"##") -> 10 | D19: =TEXT(DAY(TODAY()),"##") -> 31 | E19: =WEEKDAY(DATE(B19,C19,D19)) -> 1 | F19: =VLOOKUP(E19,AC2:AD8,2) -> Sunday | AG19: 56 | AH19: R
C20: =VLOOKUP(_xlfn.NUMBERVALUE(C19),V2:W13,2) -> October | AG20: 60 | AH20: S
A21: Claim Number: | B21: =M32 ->  | AG21: 65 | AH21: T
AG22: 70 | AH22: U
S23: 3 | AG23: 75 | AH23: V
AE24: 1 | AG24: 80 | AH24: W | AY24: 4 | BD24: 2
AG25: 85 | AH25: X
M26: t5 | N26: p7 | O26: t1 | P26: d7 | Q26: d2wc | R26: r2 | S26: o1wo | T26: t9 | U26: d1wc | V26: r5 | W26: t4 | X26: c3 | Y26: r7 | Z26: t3 | AA26: c1 | AB26: d8 | AC26: r3 | AD26: r1 | AE26: o1wo | AF26: p4 | AG26: 90 | AH26: Y | AI26: p6 | AJ26: p3 | AK26: c7 | AL26: p5 | AM26: p2 | AN26: r8 | AO26: t2 | AP26: d3wc | AQ26: c2 | AR26: d0wc | AS26: t8 | AT26: d4wc | AU26: t6 | AV26: c4 | AW26: t7 | AX26: t0 | AY26: o1wo | AZ26: r4 | BA26: c6 | BB26: c5 | BC26: d6 | BD26: o1wo | BE26: c8 | BF26: d5 | BG26: p1
AG27: 95 | AH27: Z
AG28: a1 | AH28: r6
M29: =MID(B6,5,1) ->  | N29: =MID(D15,7,1) ->  | O29: =MID(B6,1,1) ->  | P29: =LEFT(D16,1) ->  | Q29: =MID(E19*B16,3,1) ->  | R29: =MID(V17,2,1) -> 7 | S29: =MID(E16*B15,3,1) ->  | T29: =MID(B6,9,1) ->  | U29: =MID(B16*E19,2,1) ->  | V29: =MID(V17,5,1) -> 3 | W29: =MID(B6,4,1) ->  | X29: =MID(B19,3,1) -> 2 | Y29: =MID(V17,7,1) -> 2 | Z29: =MID(B6,3,1) ->  | AA29: =MID(B19,1,1) -> 2 | AB29: =RIGHT(D16,1) ->  | AC29: =MID(V17,3,1) -> 3 | AD29: =LEFT(V17,1) -> 4 | AE29: =MID(E16*B15,1,1) ->  | AF29: =MID(D15,4,1) ->  | AG29: =B18 -> 3 | AH29: =MID(V17,6,1) -> 4 | AI29: =MID(D15,6,1) ->  | AJ29: =MID(D15,3,1) ->  | AK29: =LEFT(D19,1) -> 3 | AL29: =MID(D15,5,1) ->  | AM29: =MID(D15,2,1) ->  | AN29: =RIGHT(V17,1) -> 2 | AO29: =MID(B6,2,1) ->  | AP29: =MID(B16*E19,4,1) ->  | AQ29: =MID(B19,2,1) -> 0 | AR29: =MID(B16*E19,1,1) ->  | AS29: =MID(B6,8,1) ->  | AT29: =IF(ISNUMBER(MID(B16*E19,5,1)),MID(B16*E19,5,1),0) -> 0 | AU29: =MID(B6,6,1) ->  | AV29: =RIGHT(B19,1) -> 1 | AW29: =MID(B6,7,1) ->  | AX29: =RIGHT(B6,1) ->  | AY29: =MID(B15*E16,4,1) ->  | AZ29: =MID(V17,4,1) -> 7 | BA29: =RIGHT(C19,1) -> 0 | BB29: =LEFT(C19,1) -> 1 | BC29: =RIGHT(C16,1) ->  | BD29: =MID(B15*E16,2,1) ->  | BE29: =RIGHT(D19,1) -> 1 | BF29: =LEFT(C16,1) ->  | BG29: =LEFT(D15,1) -> 
M30: =RAND() -> 0.9288527578 | N30: =RAND() -> 0.4322051039 | O30: 0.6578384304 | P30: 0.8797372692 | Q30: 0.8544928756 | R30: 0.06381782338 | S30: 0.5931602996 | T30: 0.7419261368 | U30: 0.731241522 | V30: 0.6663320529 | W30: 0.4206746361 | X30: 0.09845871979 | Y30: 0.7912877276 | Z30: 0.3343146399 | AA30: 0.4365584363 | AB30: 0.8527402694 | AC30: 0.6899413168 | AD30: 0.1828138606 | AE30: 0.2356773642 | AF30: 0.3765073367 | AG30: 0.2607361496 | AH30: 0.6671730302 | AI30: 0.1427549605 | AJ30: 0.3862480636 | AK30: 0.9630933466 | AL30: 0.7486669011 | AM30: 0.2673252021 | AN30: 0.09122624455 | AO30: 0.2229569335 | AP30: 0.3365237787 | AQ30: 0.4237754169 | AR30: 0.2126408733 | AS30: 0.1870315284 | AT30: 0.47508061 | AU30: 0.05616705855 | AV30: 0.4169321142 | AW30: 0.6388195599 | AX30: 0.2631094494 | AY30: 0.175907022 | AZ30: 0.06080365724 | BA30: 0.527111673 | BB30: 0.04801156119 | BC30: 0.7800362057 | BD30: 0.5779996032 | BE30: 0.2919885914 | BF30: 0.9407062481 | BG30: 0.7428402354
M31: =IF(M30<0.5,VLOOKUP(M29*10+M30*20,$AG$2:$AH$27,2),M29) ->  | N31: =IF(N30<0.5,VLOOKUP(N29*10+N30*20,$AG$2:$AH$27,2),N29) ->  | R31: U | V31: 3 | X31: G | Y31: 2 | AA31: I | AC31: 3 | AD31: N | AG31: K | AH31: 4 | AK31: 3 | AN31: G | AQ31: C | AT31: C | AV31: F | AZ31: U | BA31: 0 | BB31: D | BE31: E
M32: =CONCATENATE(M31,N31,O31,P31,Q31,R31,S31,T31,U31,V31,W31,X31,Y31,Z31,AA31,AB31,AC31,AD31,AE31,AF31,AG31,AH31,AI31,AJ31,AK31,AL31,AM31,AN31,AO31,AP31,AQ31,AR31,AS31,AT31,AU31,AV31,AW31,AX31,AY31,AZ31,BA31,BB31,BC31,BD31,BE31,BF31,BG31) -> 

Sheet Existing Customer Claim
A1: Script: | BH1: A | BI1: 0
K2: =MID($B$6,COLUMN()-10,1) ->  | L2: =MID($B$6,COLUMN()-10,1) ->  | BH2: B | BI2: 0
A3: "Hello. To whom do I have the pleasure of speaking?" | K3: =IF(ISNUMBER(VALUE(K2)),K2,VLOOKUP(K2,$BH$1:$BI$26,2)) ->  | L3: =IF(ISNUMBER(VALUE(L2)),L2,VLOOKUP(L2,$BH$1:$BI$26,2)) ->  | BH3: C | BI3: 0
A4: Response: | BH4: D | BI4: 1
A5: "May I have your claim number?" | K5: t5 | L5: p7 | M5: t1 | N5: d7 | O5: d2wc | P5: r2 | Q5: o3wo | R5: t9 | S5: d1wc | T5: r5 | U5: t4 | V5: c3 | W5: r7 | X5: t3 | Y5: c1 | Z5: d8 | AA5: r3 | AB5: r1 | AC5: o1wo | AD5: p4 | AE5: a1 | AF5: r6 | AG5: p6 | AH5: p3 | AI5: c7 | AJ5: p5 | AK5: p2 | AL5: r8 | AM5: t2 | AN5: d3wc | AO5: c2 | AP5: d0wc | AQ5: t8 | AR5: d4wc | AS5: t6 | AT5: c4 | AU5: t7 | AV5: t0 | AW5: o4wo | AX5: r4 | AY5: c6 | AZ5: c5 | BA5: d6 | BB5: o2wo | BC5: c8 | BD5: d5 | BE5: p1 | BH5: E | BI5: 1
A6: Reponse: | BH6: F | BI6: 1
A7: =CONCATENATE("I have your name as ",MID(B10,SEARCH(" ",B10)+1,LEN(B10)-SEARCH(" ",B10))," ",LEFT(B10,SEARCH(" ",B10)-1),", and your phone number as ",TEXT(B12,"###-###-####"),". You had a concern with a ",F15," you ordered on ",N15, ", ", P15, " ", L15, " for $",G15,", and your claim is being handled by ",B18,". How can I help you today?") ->  | BH7: G | BI7: 2
BH8: H | BI8: 2
BH9: I | BI9: 2
A10: Name: | B10: =VLOOKUP(B12,'Customer Information'!$A$2:$I$12,2) ->  | BH10: J | BI10: 3
BH11: K | BI11: 3
A12: Phone: | B12: =VALUE(CONCATENATE(M3,AM3,X3,U3,K3,AS3,AU3,AQ3,R3,AV3)) ->  | E12: Press Cntr-Shft-V to view customer data | BH12: L | BI12: 3
A13: Email: | B13: =VLOOKUP(B12,'Customer Information'!$A$2:$I$12,3) ->  | E13: Press Cntr-Shft-P to protect cusomter data | BH13: M | BI13: 4
BH14: N | BI14: 4
A15: Last Order: | B15: =VALUE(CONCATENATE(AC3,BB3,Q3,AW3)/M15) ->  | D15: Product: | E15: =VALUE(CONCATENATE(BE3,AK3,AH3,AD3,AJ3,AG3,N3)) ->  | F15: =VLOOKUP(E15,'Product Information'!$A$14:$C$31,2) ->  | G15: =VLOOKUP(E15,'Product Information'!$A$14:$C$31,3) ->  | J15: =IF(VALUE(AR3)=0,VALUE(CONCATENATE(AP3,S3,O3,AN3))/M19,VALUE(CONCATENATE(AP3,S3,O3,AN3,AR3))/M19) ->  | K15: =CONCATENATE(BD3,BA3) ->  | L15: =CONCATENATE(N3,Z3) ->  | M15: =WEEKDAY(DATE(J15,K15,L15)) ->  | N15: =VLOOKUP(M15,'Create Customer Claim'!$AC$2:$AD$8,2) ->  | P15: =VLOOKUP(VALUE(K15),'Create Customer Claim'!$V$2:$W$13,2) ->  | BH15: O | BI15: 4
A16: Date: | B16: =CONCATENATE(N15,", ",P15," ",L15,", ",J15) ->  | BH16: P | BI16: 5
BH17: Q | BI17: 5
A18: Assigned to: | B18: =VLOOKUP(VALUE(J18),'Create Customer Claim'!$Z$2:$AA$11,2) ->  | J18: =AE3 ->  | BH18: R | BI18: 5
A19: Claim Date: | B19: =CONCATENATE(N19,", ",K20," ",L19,", ",J19) ->  | J19: =CONCATENATE(Y3,AO3,V3,AT3) ->  | K19: =CONCATENATE(AZ3,AY3) ->  | L19: =CONCATENATE(AI3,BC3) ->  | M19: =WEEKDAY(DATE(J19,K19,L19)) ->  | N19: =VLOOKUP(M19,'Create Customer Claim'!$AC$2:$AD$8,2) ->  | BH19: S | BI19: 6
K20: =VLOOKUP(VALUE(K19),'Create Customer Claim'!$V$2:$W$13,2) ->  | BH20: T | BI20: 6
BH21: U | BI21: 7
BH22: V | BI22: 7
BH23: W | BI23: 8
BH24: X | BI24: 8
BH25: Y | BI25: 9
BH26: Z | BI26: 9

Sheet 3056223185 (hidden)
A1: Name: | B1: =VLOOKUP(3056223185,'Customer Information'!$A$2:$I$12,2) -> Rhythm DJ
A2: Phone: | B2: =TEXT(3056223185,"###-###-####") -> 305-622-3185
A3: Email: | B3: =VLOOKUP(3056223185,'Customer Information'!$A$2:$I$12,3) -> Tunes@yahoo.com
A4: Address: | B4: =CONCATENATE(VLOOKUP(3056223185,'Customer Information'!$A$2:$I$12,4),", ",VLOOKUP(3056223185,'Customer Information'!$A$2:$I$12,5),", ",VLOOKUP(3056223185,'Customer Information'!$A$2:$I$12,6)," ",VLOOKUP(3056223185,'Customer Information'!$A$2:$I$12,7)) -> 123 Counting Street, Numbers, OK 97365
A5: Customer Since: | B5: =VLOOKUP(3056223185,'Customer Information'!$A$2:$I$12,8) -> 2007
A6: Good Standing: | B6: =VLOOKUP(3056223185,'Customer Information'!$A$2:$I$12,9) -> No
A7: =CONCATENATE(A8,A9,A10,A11,A12,A13,A14,A15,A16,A17,A18,A19,A20,A21,A22,A23,A24,A25,A26,A27,A28,A29,A30,A31,A32,A33,A34,A35,A36) -> 1016 | B7: Order Number
A8: =IF('Input Calculation'!B2=3056223185,'Input Calculation'!A2,"") ->  | B8: =MID($A$7,ROW()-7,4) -> 1016 | C8: =IFERROR(VLOOKUP(VALUE($B$8),'Input Calculation'!$A$2:$AJ$29,9),"") -> 4989600 | D8: =_xlfn.IFNA(VLOOKUP($C8,'Product Information'!$A$2:$C$31,2),"") -> Hard Hat | E8: =_xlfn.IFNA(VLOOKUP($C8,'Product Information'!$A$2:$C$31,3),"") -> 29.99
A9: =IF('Input Calculation'!B3=3056223185,'Input Calculation'!A3,"") ->  | C9: =IFERROR(VLOOKUP(VALUE($B$8),'Input Calculation'!$A$2:$AJ$29,11),"") -> 3055845 | D9: =_xlfn.IFNA(VLOOKUP($C9,'Product Information'!$A$2:$C$31,2),"") -> Winter Jacket | E9: =_xlfn.IFNA(VLOOKUP($C9,'Product Information'!$A$2:$C$31,3),"") -> 199.99
A10: =IF('Input Calculation'!B4=3056223185,'Input Calculation'!A4,"") ->  | C10: =IFERROR(VLOOKUP(VALUE($B$8),'Input Calculation'!$A$2:$AJ$29,13),"") ->  | D10: =_xlfn.IFNA(VLOOKUP($C10,'Product Information'!$A$2:$C$31,2),"") ->  | E10: =_xlfn.IFNA(VLOOKUP($C10,'Product Information'!$A$2:$C$31,3),"") -> 
A11: =IF('Input Calculation'!B5=3056223185,'Input Calculation'!A5,"") ->  | C11: =IFERROR(VLOOKUP(VALUE($B$8),'Input Calculation'!$A$2:$AJ$29,15),"") ->  | D11: =_xlfn.IFNA(VLOOKUP($C11,'Product Information'!$A$2:$C$31,2),"") ->  | E11: =_xlfn.IFNA(VLOOKUP($C11,'Product Information'!$A$2:$C$31,3),"") -> 
A12: =IF('Input Calculation'!B6=3056223185,'Input Calculation'!A6,"") ->  | C12: =IFERROR(VLOOKUP(VALUE($B$8),'Input Calculation'!$A$2:$AJ$29,17),"") ->  | D12: =_xlfn.IFNA(VLOOKUP($C12,'Product Information'!$A$2:$C$31,2),"") ->  | E12: =_xlfn.IFNA(VLOOKUP($C12,'Product Information'!$A$2:$C$31,3),"") -> 
A13: =IF('Input Calculation'!B7=3056223185,'Input Calculation'!A7,"") ->  | C13: =IFERROR(VLOOKUP(VALUE($B$8),'Input Calculation'!$A$2:$AJ$29,19),"") ->  | D13: =_xlfn.IFNA(VLOOKUP($C13,'Product Information'!$A$2:$C$31,2),"") ->  | E13: =_xlfn.IFNA(VLOOKUP($C13,'Product Information'!$A$2:$C$31,3),"") -> 
A14: =IF('Input Calculation'!B8=3056223185,'Input Calculation'!A8,"") ->  | C14: =IFERROR(VLOOKUP(VALUE($B$8),'Input Calculation'!$A$2:$AJ$29,21),"") ->  | D14: =_xlfn.IFNA(VLOOKUP($C14,'Product Information'!$A$2:$C$31,2),"") ->  | E14: =_xlfn.IFNA(VLOOKUP($C14,'Product Information'!$A$2:$C$31,3),"") -> 
A15: =IF('Input Calculation'!B9=3056223185,'Input Calculation'!A9,"") ->  | C15: =IFERROR(VLOOKUP(VALUE($B$8),'Input Calculation'!$A$2:$AJ$29,23),"") ->  | D15: =_xlfn.IFNA(VLOOKUP($C15,'Product Information'!$A$2:$C$31,2),"") ->  | E15: =_xlfn.IFNA(VLOOKUP($C15,'Product Information'!$A$2:$C$31,3),"") -> 
A16: =IF('Input Calculation'!B10=3056223185,'Input Calculation'!A10,"") ->  | C16: =IFERROR(VLOOKUP(VALUE($B$8),'Input Calculation'!$A$2:$AJ$29,25),"") ->  | D16: =_xlfn.IFNA(VLOOKUP($C16,'Product Information'!$A$2:$C$31,2),"") ->  | E16: =_xlfn.IFNA(VLOOKUP($C16,'Product Information'!$A$2:$C$31,3),"") -> 
A17: =IF('Input Calculation'!B11=3056223185,'Input Calculation'!A11,"") ->  | C17: =IFERROR(VLOOKUP(VALUE($B$8),'Input Calculation'!$A$2:$AJ$29,27),"") ->  | D17: =_xlfn.IFNA(VLOOKUP($C17,'Product Information'!$A$2:$C$31,2),"") ->  | E17: =_xlfn.IFNA(VLOOKUP($C17,'Product Information'!$A$2:$C$31,3),"") -> 
A18: =IF('Input Calculation'!B12=3056223185,'Input Calculation'!A12,"") ->  | D18: Total: | E18: =VLOOKUP(VALUE($B$8),'Input Calculation'!$A$2:$AJ$29,36) -> 221.58 | F18: Notes: | G18: Payment was fraudulent
A19: =IF('Input Calculation'!B13=3056223185,'Input Calculation'!A13,"") -> 
A20: =IF('Input Calculation'!B14=3056223185,'Input Calculation'!A14,"") ->  | B20: =MID($A$7,LEN(B8)+1,4) ->  | C20: =IFERROR(VLOOKUP(VALUE($B$20),'Input Calculation'!$A$2:$AJ$29,9),"") ->  | D20: =_xlfn.IFNA(VLOOKUP($C20,'Product Information'!$A$2:$C$31,2),"") ->  | E20: =_xlfn.IFNA(VLOOKUP($C20,'Product Information'!$A$2:$C$31,3),"") -> 
A21: =IF('Input Calculation'!B15=3056223185,'Input Calculation'!A15,"") ->  | C21: =IFERROR(VLOOKUP(VALUE($B$20),'Input Calculation'!$A$2:$AJ$29,11),"") ->  | D21: =_xlfn.IFNA(VLOOKUP($C21,'Product Information'!$A$2:$C$31,2),"") ->  | E21: =_xlfn.IFNA(VLOOKUP($C21,'Product Information'!$A$2:$C$31,3),"") -> 
A22: =IF('Input Calculation'!B16=3056223185,'Input Calculation'!A16,"") ->  | C22: =IFERROR(VLOOKUP(VALUE($B$20),'Input Calculation'!$A$2:$AJ$29,13),"") ->  | D22: =_xlfn.IFNA(VLOOKUP($C22,'Product Information'!$A$2:$C$31,2),"") ->  | E22: =_xlfn.IFNA(VLOOKUP($C22,'Product Information'!$A$2:$C$31,3),"") -> 
A23: =IF('Input Calculation'!B17=3056223185,'Input Calculation'!A17,"") -> 1016 | C23: =IFERROR(VLOOKUP(VALUE($B$20),'Input Calculation'!$A$2:$AJ$29,15),"") ->  | D23: =_xlfn.IFNA(VLOOKUP($C23,'Product Information'!$A$2:$C$31,2),"") ->  | E23: =_xlfn.IFNA(VLOOKUP($C23,'Product Information'!$A$2:$C$31,3),"") -> 
A24: =IF('Input Calculation'!B18=3056223185,'Input Calculation'!A18,"") ->  | C24: =IFERROR(VLOOKUP(VALUE($B$20),'Input Calculation'!$A$2:$AJ$29,17),"") ->  | D24: =_xlfn.IFNA(VLOOKUP($C24,'Product Information'!$A$2:$C$31,2),"") ->  | E24: =_xlfn.IFNA(VLOOKUP($C24,'Product Information'!$A$2:$C$31,3),"") -> 
A25: =IF('Input Calculation'!B19=3056223185,'Input Calculation'!A19,"") ->  | C25: =IFERROR(VLOOKUP(VALUE($B$20),'Input Calculation'!$A$2:$AJ$29,19),"") ->  | D25: =_xlfn.IFNA(VLOOKUP($C25,'Product Information'!$A$2:$C$31,2),"") ->  | E25: =_xlfn.IFNA(VLOOKUP($C25,'Product Information'!$A$2:$C$31,3),"") -> 
A26: =IF('Input Calculation'!B20=3056223185,'Input Calculation'!A20,"") ->  | C26: =IFERROR(VLOOKUP(VALUE($B$20),'Input Calculation'!$A$2:$AJ$29,21),"") ->  | D26: =_xlfn.IFNA(VLOOKUP($C26,'Product Information'!$A$2:$C$31,2),"") ->  | E26: =_xlfn.IFNA(VLOOKUP($C26,'Product Information'!$A$2:$C$31,3),"") -> 
A27: =IF('Input Calculation'!B21=3056223185,'Input Calculation'!A21,"") ->  | C27: =IFERROR(VLOOKUP(VALUE($B$20),'Input Calculation'!$A$2:$AJ$29,23),"") ->  | D27: =_xlfn.IFNA(VLOOKUP($C27,'Product Information'!$A$2:$C$31,2),"") ->  | E27: =_xlfn.IFNA(VLOOKUP($C27,'Product Information'!$A$2:$C$31,3),"") -> 
A28: =IF('Input Calculation'!B22=3056223185,'Input Calculation'!A22,"") ->  | C28: =IFERROR(VLOOKUP(VALUE($B$20),'Input Calculation'!$A$2:$AJ$29,25),"") ->  | D28: =_xlfn.IFNA(VLOOKUP($C28,'Product Information'!$A$2:$C$31,2),"") ->  | E28: =_xlfn.IFNA(VLOOKUP($C28,'Product Information'!$A$2:$C$31,3),"") -> 
A29: =IF('Input Calculation'!B23=3056223185,'Input Calculation'!A23,"") ->  | C29: =IFERROR(VLOOKUP(VALUE($B$20),'Input Calculation'!$A$2:$AJ$29,27),"") ->  | D29: =_xlfn.IFNA(VLOOKUP($C29,'Product Information'!$A$2:$C$31,2),"") ->  | E29: =_xlfn.IFNA(VLOOKUP($C29,'Product Information'!$A$2:$C$31,3),"") -> 
A30: =IF('Input Calculation'!B24=3056223185,'Input Calculation'!A24,"") ->  | D30: Total: | E30: =IFERROR(VLOOKUP(VALUE($B$20),'Input Calculation'!$A$2:$AJ$29,36),"") ->  | F30: Notes:
A31: =IF('Input Calculation'!B25=3056223185,'Input Calculation'!A25,"") -> 
A32: =IF('Input Calculation'!B26=3056223185,'Input Calculation'!A26,"") ->  | B32: =MID($A$7,LEN(B8)+LEN(B20)+1,4) ->  | C32: =IFERROR(VLOOKUP(VALUE($B$32),'Input Calculation'!$A$2:$AJ$29,9),"") ->  | D32: =_xlfn.IFNA(VLOOKUP($C32,'Product Information'!$A$2:$C$31,2),"") ->  | E32: =_xlfn.IFNA(VLOOKUP($C32,'Product Information'!$A$2:$C$31,3),"") -> 
A33: =IF('Input Calculation'!B27=3056223185,'Input Calculation'!A27,"") ->  | C33: =IFERROR(VLOOKUP(VALUE($B$32),'Input Calculation'!$A$2:$AJ$29,11),"") ->  | D33: =_xlfn.IFNA(VLOOKUP($C33,'Product Information'!$A$2:$C$31,2),"") ->  | E33: =_xlfn.IFNA(VLOOKUP($C33,'Product Information'!$A$2:$C$31,3),"") -> 
A34: =IF('Input Calculation'!B28=3056223185,'Input Calculation'!A28,"") ->  | C34: =IFERROR(VLOOKUP(VALUE($B$32),'Input Calculation'!$A$2:$AJ$29,13),"") ->  | D34: =_xlfn.IFNA(VLOOKUP($C34,'Product Information'!$A$2:$C$31,2),"") ->  | E34: =_xlfn.IFNA(VLOOKUP($C34,'Product Information'!$A$2:$C$31,3),"") -> 
A35: =IF('Input Calculation'!B29=3056223185,'Input Calculation'!A29,"") ->  | C35: =IFERROR(VLOOKUP(VALUE($B$32),'Input Calculation'!$A$2:$AJ$29,15),"") ->  | D35: =_xlfn.IFNA(VLOOKUP($C35,'Product Information'!$A$2:$C$31,2),"") ->  | E35: =_xlfn.IFNA(VLOOKUP($C35,'Product Information'!$A$2:$C$31,3),"") -> 
A36: =IF('Input Calculation'!B30=3056223185,'Input Calculation'!A30,"") ->  | C36: =IFERROR(VLOOKUP(VALUE($B$32),'Input Calculation'!$A$2:$AJ$29,17),"") ->  | D36: =_xlfn.IFNA(VLOOKUP($C36,'Product Information'!$A$2:$C$31,2),"") ->  | E36: =_xlfn.IFNA(VLOOKUP($C36,'Product Information'!$A$2:$C$31,3),"") -> 
C37: =IFERROR(VLOOKUP(VALUE($B$32),'Input Calculation'!$A$2:$AJ$29,19),"") ->  | D37: =_xlfn.IFNA(VLOOKUP($C37,'Product Information'!$A$2:$C$31,2),"") ->  | E37: =_xlfn.IFNA(VLOOKUP($C37,'Product Information'!$A$2:$C$31,3),"") -> 
C38: =IFERROR(VLOOKUP(VALUE($B$32),'Input Calculation'!$A$2:$AJ$29,21),"") ->  | D38: =_xlfn.IFNA(VLOOKUP($C38,'Product Information'!$A$2:$C$31,2),"") ->  | E38: =_xlfn.IFNA(VLOOKUP($C38,'Product Information'!$A$2:$C$31,3),"") -> 
C39: =IFERROR(VLOOKUP(VALUE($B$32),'Input Calculation'!$A$2:$AJ$29,23),"") ->  | D39: =_xlfn.IFNA(VLOOKUP($C39,'Product Information'!$A$2:$C$31,2),"") ->  | E39: =_xlfn.IFNA(VLOOKUP($C39,'Product Information'!$A$2:$C$31,3),"") -> 
C40: =IFERROR(VLOOKUP(VALUE($B$32),'Input Calculation'!$A$2:$AJ$29,25),"") ->  | D40: =_xlfn.IFNA(VLOOKUP($C40,'Product Information'!$A$2:$C$31,2),"") ->  | E40: =_xlfn.IFNA(VLOOKUP($C40,'Product Information'!$A$2:$C$31,3),"") -> 
C41: =IFERROR(VLOOKUP(VALUE($B$32),'Input Calculation'!$A$2:$AJ$29,27),"") ->  | D41: =_xlfn.IFNA(VLOOKUP($C41,'Product Information'!$A$2:$C$31,2),"") ->  | E41: =_xlfn.IFNA(VLOOKUP($C41,'Product Information'!$A$2:$C$31,3),"") -> 
D42: Total: | E42: =IFERROR(VLOOKUP(VALUE($B$32),'Input Calculation'!$A$2:$AJ$29,36),"") ->  | F42: Notes:
B44: =MID($A$7,LEN(B8)+LEN(B20)+LEN(B32)+1,4) ->  | C44: =IFERROR(VLOOKUP(VALUE($B$44),'Input Calculation'!$A$2:$AJ$29,9),"") ->  | D44: =_xlfn.IFNA(VLOOKUP($C44,'Product Information'!$A$2:$C$31,2),"") ->  | E44: =_xlfn.IFNA(VLOOKUP($C44,'Product Information'!$A$2:$C$31,3),"") -> 
C45: =IFERROR(VLOOKUP(VALUE($B$45),'Input Calculation'!$A$2:$AJ$29,11),"") ->  | D45: =_xlfn.IFNA(VLOOKUP($C45,'Product Information'!$A$2:$C$31,2),"") ->  | E45: =_xlfn.IFNA(VLOOKUP($C45,'Product Information'!$A$2:$C$31,3),"") -> 
C46: =IFERROR(VLOOKUP(VALUE($B$46),'Input Calculation'!$A$2:$AJ$29,13),"") ->  | D46: =_xlfn.IFNA(VLOOKUP($C46,'Product Information'!$A$2:$C$31,2),"") ->  | E46: =_xlfn.IFNA(VLOOKUP($C46,'Product Information'!$A$2:$C$31,3),"") -> 
C47: =IFERROR(VLOOKUP(VALUE($B$46),'Input Calculation'!$A$2:$AJ$29,15),"") ->  | D47: =_xlfn.IFNA(VLOOKUP($C47,'Product Information'!$A$2:$C$31,2),"") ->  | E47: =_xlfn.IFNA(VLOOKUP($C47,'Product Information'!$A$2:$C$31,3),"") -> 
C48: =IFERROR(VLOOKUP(VALUE($B$46),'Input Calculation'!$A$2:$AJ$29,17),"") ->  | D48: =_xlfn.IFNA(VLOOKUP($C48,'Product Information'!$A$2:$C$31,2),"") ->  | E48: =_xlfn.IFNA(VLOOKUP($C48,'Product Information'!$A$2:$C$31,3),"") -> 
C49: =IFERROR(VLOOKUP(VALUE($B$46),'Input Calculation'!$A$2:$AJ$29,19),"") ->  | D49: =_xlfn.IFNA(VLOOKUP($C49,'Product Information'!$A$2:$C$31,2),"") ->  | E49: =_xlfn.IFNA(VLOOKUP($C49,'Product Information'!$A$2:$C$31,3),"") -> 
C50: =IFERROR(VLOOKUP(VALUE($B$46),'Input Calculation'!$A$2:$AJ$29,21),"") ->  | D50: =_xlfn.IFNA(VLOOKUP($C50,'Product Information'!$A$2:$C$31,2),"") ->  | E50: =_xlfn.IFNA(VLOOKUP($C50,'Product Information'!$A$2:$C$31,3),"") -> 
C51: =IFERROR(VLOOKUP(VALUE($B$46),'Input Calculation'!$A$2:$AJ$29,23),"") ->  | D51: =_xlfn.IFNA(VLOOKUP($C51,'Product Information'!$A$2:$C$31,2),"") ->  | E51: =_xlfn.IFNA(VLOOKUP($C51,'Product Information'!$A$2:$C$31,3),"") -> 
C52: =IFERROR(VLOOKUP(VALUE($B$46),'Input Calculation'!$A$2:$AJ$29,25),"") ->  | D52: =_xlfn.IFNA(VLOOKUP($C52,'Product Information'!$A$2:$C$31,2),"") ->  | E52: =_xlfn.IFNA(VLOOKUP($C52,'Product Information'!$A$2:$C$31,3),"") -> 
C53: =IFERROR(VLOOKUP(VALUE($B$46),'Input Calculation'!$A$2:$AJ$29,27),"") ->  | D53: =_xlfn.IFNA(VLOOKUP($C53,'Product Information'!$A$2:$C$31,2),"") ->  | E53: =_xlfn.IFNA(VLOOKUP($C53,'Product Information'!$A$2:$C$31,3),"") -> 
D54: Total: | E54: =IFERROR(VLOOKUP(VALUE($B$46),'Input Calculation'!$A$2:$AJ$29,36),"") ->  | F54: Notes:
B56: =MID($A$7,LEN(B8)+LEN(B20)+LEN(B32)+LEN(B46)+1,4) ->  | C56: =IFERROR(VLOOKUP(VALUE($B$56),'Input Calculation'!$A$2:$AJ$29,9),"") ->  | D56: =_xlfn.IFNA(VLOOKUP($C56,'Product Information'!$A$2:$C$31,2),"") ->  | E56: =_xlfn.IFNA(VLOOKUP($C56,'Product Information'!$A$2:$C$31,3),"") -> 
C57: =IFERROR(VLOOKUP(VALUE($B$56),'Input Calculation'!$A$2:$AJ$29,11),"") ->  | D57: =_xlfn.IFNA(VLOOKUP($C57,'Product Information'!$A$2:$C$31,2),"") ->  | E57: =_xlfn.IFNA(VLOOKUP($C57,'Product Information'!$A$2:$C$31,3),"") -> 
C58: =IFERROR(VLOOKUP(VALUE($B$56),'Input Calculation'!$A$2:$AJ$29,13),"") ->  | D58: =_xlfn.IFNA(VLOOKUP($C58,'Product Information'!$A$2:$C$31,2),"") ->  | E58: =_xlfn.IFNA(VLOOKUP($C58,'Product Information'!$A$2:$C$31,3),"") -> 
C59: =IFERROR(VLOOKUP(VALUE($B$56),'Input Calculation'!$A$2:$AJ$29,15),"") ->  | D59: =_xlfn.IFNA(VLOOKUP($C59,'Product Information'!$A$2:$C$31,2),"") ->  | E59: =_xlfn.IFNA(VLOOKUP($C59,'Product Information'!$A$2:$C$31,3),"") -> 
C60: =IFERROR(VLOOKUP(VALUE($B$56),'Input Calculation'!$A$2:$AJ$29,17),"") ->  | D60: =_xlfn.IFNA(VLOOKUP($C60,'Product Information'!$A$2:$C$31,2),"") ->  | E60: =_xlfn.IFNA(VLOOKUP($C60,'Product Information'!$A$2:$C$31,3),"") -> 
C61: =IFERROR(VLOOKUP(VALUE($B$56),'Input Calculation'!$A$2:$AJ$29,19),"") ->  | D61: =_xlfn.IFNA(VLOOKUP($C61,'Product Information'!$A$2:$C$31,2),"") ->  | E61: =_xlfn.IFNA(VLOOKUP($C61,'Product Information'!$A$2:$C$31,3),"") -> 
C62: =IFERROR(VLOOKUP(VALUE($B$56),'Input Calculation'!$A$2:$AJ$29,21),"") ->  | D62: =_xlfn.IFNA(VLOOKUP($C62,'Product Information'!$A$2:$C$31,2),"") ->  | E62: =_xlfn.IFNA(VLOOKUP($C62,'Product Information'!$A$2:$C$31,3),"") -> 
C63: =IFERROR(VLOOKUP(VALUE($B$56),'Input Calculation'!$A$2:$AJ$29,23),"") ->  | D63: =_xlfn.IFNA(VLOOKUP($C63,'Product Information'!$A$2:$C$31,2),"") ->  | E63: =_xlfn.IFNA(VLOOKUP($C63,'Product Information'!$A$2:$C$31,3),"") -> 
C64: =IFERROR(VLOOKUP(VALUE($B$56),'Input Calculation'!$A$2:$AJ$29,25),"") ->  | D64: =_xlfn.IFNA(VLOOKUP($C64,'Product Information'!$A$2:$C$31,2),"") ->  | E64: =_xlfn.IFNA(VLOOKUP($C64,'Product Information'!$A$2:$C$31,3),"") -> 
C65: =IFERROR(VLOOKUP(VALUE($B$56),'Input Calculation'!$A$2:$AJ$29,27),"") ->  | D65: =_xlfn.IFNA(VLOOKUP($C65,'Product Information'!$A$2:$C$31,2),"") ->  | E65: =_xlfn.IFNA(VLOOKUP($C65,'Product Information'!$A$2:$C$31,3),"") -> 
D66: Total: | E66: =IFERROR(VLOOKUP(VALUE($B$56),'Input Calculation'!$A$2:$AJ$29,36),"") ->  | F66: Notes:
B67: =MID($A$7,4*(ROW()-7),4) -> 
B68: =MID($A$7,LEN(B8)+LEN(B20)+LEN(B32)+LEN(B46)+LEN(B56)+1,4) ->  | C68: =IFERROR(VLOOKUP(VALUE($B$68),'Input Calculation'!$A$2:$AJ$29,9),"") ->  | D68: =_xlfn.IFNA(VLOOKUP($C68,'Product Information'!$A$2:$C$31,2),"") ->  | E68: =_xlfn.IFNA(VLOOKUP($C68,'Product Information'!$A$2:$C$31,3),"") -> 
C69: =IFERROR(VLOOKUP(VALUE($B$68),'Input Calculation'!$A$2:$AJ$29,11),"") ->  | D69: =_xlfn.IFNA(VLOOKUP($C69,'Product Information'!$A$2:$C$31,2),"") ->  | E69: =_xlfn.IFNA(VLOOKUP($C69,'Product Information'!$A$2:$C$31,3),"") -> 
C70: =IFERROR(VLOOKUP(VALUE($B$68),'Input Calculation'!$A$2:$AJ$29,13),"") ->  | D70: =_xlfn.IFNA(VLOOKUP($C70,'Product Information'!$A$2:$C$31,2),"") ->  | E70: =_xlfn.IFNA(VLOOKUP($C70,'Product Information'!$A$2:$C$31,3),"") -> 
C71: =IFERROR(VLOOKUP(VALUE($B$68),'Input Calculation'!$A$2:$AJ$29,15),"") ->  | D71: =_xlfn.IFNA(VLOOKUP($C71,'Product Information'!$A$2:$C$31,2),"") ->  | E71: =_xlfn.IFNA(VLOOKUP($C71,'Product Information'!$A$2:$C$31,3),"") -> 
C72: =IFERROR(VLOOKUP(VALUE($B$68),'Input Calculation'!$A$2:$AJ$29,17),"") ->  | D72: =_xlfn.IFNA(VLOOKUP($C72,'Product Information'!$A$2:$C$31,2),"") ->  | E72: =_xlfn.IFNA(VLOOKUP($C72,'Product Information'!$A$2:$C$31,3),"") -> 
C73: =IFERROR(VLOOKUP(VALUE($B$68),'Input Calculation'!$A$2:$AJ$29,19),"") ->  | D73: =_xlfn.IFNA(VLOOKUP($C73,'Product Information'!$A$2:$C$31,2),"") ->  | E73: =_xlfn.IFNA(VLOOKUP($C73,'Product Information'!$A$2:$C$31,3),"") -> 
C74: =IFERROR(VLOOKUP(VALUE($B$68),'Input Calculation'!$A$2:$AJ$29,21),"") ->  | D74: =_xlfn.IFNA(VLOOKUP($C74,'Product Information'!$A$2:$C$31,2),"") ->  | E74: =_xlfn.IFNA(VLOOKUP($C74,'Product Information'!$A$2:$C$31,3),"") -> 
C75: =IFERROR(VLOOKUP(VALUE($B$68),'Input Calculation'!$A$2:$AJ$29,23),"") ->  | D75: =_xlfn.IFNA(VLOOKUP($C75,'Product Information'!$A$2:$C$31,2),"") ->  | E75: =_xlfn.IFNA(VLOOKUP($C75,'Product Information'!$A$2:$C$31,3),"") -> 
C76: =IFERROR(VLOOKUP(VALUE($B$68),'Input Calculation'!$A$2:$AJ$29,25),"") ->  | D76: =_xlfn.IFNA(VLOOKUP($C76,'Product Information'!$A$2:$C$31,2),"") ->  | E76: =_xlfn.IFNA(VLOOKUP($C76,'Product Information'!$A$2:$C$31,3),"") -> 
C77: =IFERROR(VLOOKUP(VALUE($B$68),'Input Calculation'!$A$2:$AJ$29,27),"") ->  | D77: =_xlfn.IFNA(VLOOKUP($C77,'Product Information'!$A$2:$C$31,2),"") ->  | E77: =_xlfn.IFNA(VLOOKUP($C77,'Product Information'!$A$2:$C$31,3),"") -> 
D78: Total: | E78: =IFERROR(VLOOKUP(VALUE($B$68),'Input Calculation'!$A$2:$AJ$29,36),"") ->  | F78: Notes:
B79: =MID($A$7,4*(ROW()-7),4) -> 
B80: =MID($A$7,4*(ROW()-7),4) -> 

Sheet 4438641204 (hidden)
A1: Name: | B1: =VLOOKUP(4438641204,'Customer Information'!$A$2:$I$12,2) -> Calendar Marie
A2: Phone: | B2: =TEXT(4438641204,"###-###-####") -> 443-864-1204
A3: Email: | B3: =VLOOKUP(4438641204,'Customer Information'!$A$2:$I$12,3) -> pies4life@gmail.com
A4: Address: | B4: =CONCATENATE(VLOOKUP(4438641204,'Customer Information'!$A$2:$I$12,4),", ",VLOOKUP(4438641204,'Customer Information'!$A$2:$I$12,5),", ",VLOOKUP(4438641204,'Customer Information'!$A$2:$I$12,6)," ",VLOOKUP(4438641204,'Customer Information'!$A$2:$I$12,7)) -> 3343 Rhubarb Road, Jacksonville, MI 30243
A5: Customer Since: | B5: =VLOOKUP(4438641204,'Customer Information'!$A$2:$I$12,8) -> 2021
A6: Good Standing: | B6: =VLOOKUP(4438641204,'Customer Information'!$A$2:$I$12,9) -> Yes
A7: =CONCATENATE(A8,A9,A10,A11,A12,A13,A14,A15,A16,A17,A18,A19,A20,A21,A22,A23,A24,A25,A26,A27,A28,A29,A30,A31,A32,A33,A34,A35,A36) -> 1011 | B7: Order Number
A8: =IF('Input Calculation'!B2=4438641204,'Input Calculation'!A2,"") ->  | B8: =MID($A$7,ROW()-7,4) -> 1011 | C8: =IFERROR(VLOOKUP(VALUE($B$8),'Input Calculation'!$A$2:$AJ$29,9),"") -> 5216388 | D8: =_xlfn.IFNA(VLOOKUP($C8,'Product Information'!$A$2:$C$31,2),"") -> Logo Hat | E8: =_xlfn.IFNA(VLOOKUP($C8,'Product Information'!$A$2:$C$31,3),"") -> 49.99
A9: =IF('Input Calculation'!B3=4438641204,'Input Calculation'!A3,"") ->  | C9: =IFERROR(VLOOKUP(VALUE($B$8),'Input Calculation'!$A$2:$AJ$29,11),"") -> 7250412 | D9: =_xlfn.IFNA(VLOOKUP($C9,'Product Information'!$A$2:$C$31,2),"") -> Thermal Socks | E9: =_xlfn.IFNA(VLOOKUP($C9,'Product Information'!$A$2:$C$31,3),"") -> 12.99
A10: =IF('Input Calculation'!B4=4438641204,'Input Calculation'!A4,"") ->  | C10: =IFERROR(VLOOKUP(VALUE($B$8),'Input Calculation'!$A$2:$AJ$29,13),"") -> 9242514 | D10: =_xlfn.IFNA(VLOOKUP($C10,'Product Information'!$A$2:$C$31,2),"") -> Fashionista Sunglasses | E10: =_xlfn.IFNA(VLOOKUP($C10,'Product Information'!$A$2:$C$31,3),"") -> 499.99
A11: =IF('Input Calculation'!B5=4438641204,'Input Calculation'!A5,"") ->  | C11: =IFERROR(VLOOKUP(VALUE($B$8),'Input Calculation'!$A$2:$AJ$29,15),"") ->  | D11: =_xlfn.IFNA(VLOOKUP($C11,'Product Information'!$A$2:$C$31,2),"") ->  | E11: =_xlfn.IFNA(VLOOKUP($C11,'Product Information'!$A$2:$C$31,3),"") -> 
A12: =IF('Input Calculation'!B6=4438641204,'Input Calculation'!A6,"") ->  | C12: =IFERROR(VLOOKUP(VALUE($B$8),'Input Calculation'!$A$2:$AJ$29,17),"") ->  | D12: =_xlfn.IFNA(VLOOKUP($C12,'Product Information'!$A$2:$C$31,2),"") ->  | E12: =_xlfn.IFNA(VLOOKUP($C12,'Product Information'!$A$2:$C$31,3),"") -> 
A13: =IF('Input Calculation'!B7=4438641204,'Input Calculation'!A7,"") ->  | C13: =IFERROR(VLOOKUP(VALUE($B$8),'Input Calculation'!$A$2:$AJ$29,19),"") ->  | D13: =_xlfn.IFNA(VLOOKUP($C13,'Product Information'!$A$2:$C$31,2),"") ->  | E13: =_xlfn.IFNA(VLOOKUP($C13,'Product Information'!$A$2:$C$31,3),"") -> 
A14: =IF('Input Calculation'!B8=4438641204,'Input Calculation'!A8,"") ->  | C14: =IFERROR(VLOOKUP(VALUE($B$8),'Input Calculation'!$A$2:$AJ$29,21),"") ->  | D14: =_xlfn.IFNA(VLOOKUP($C14,'Product Information'!$A$2:$C$31,2),"") ->  | E14: =_xlfn.IFNA(VLOOKUP($C14,'Product Information'!$A$2:$C$31,3),"") -> 
A15: =IF('Input Calculation'!B9=4438641204,'Input Calculation'!A9,"") ->  | C15: =IFERROR(VLOOKUP(VALUE($B$8),'Input Calculation'!$A$2:$AJ$29,23),"") ->  | D15: =_xlfn.IFNA(VLOOKUP($C15,'Product Information'!$A$2:$C$31,2),"") ->  | E15: =_xlfn.IFNA(VLOOKUP($C15,'Product Information'!$A$2:$C$31,3),"") -> 
A16: =IF('Input Calculation'!B10=4438641204,'Input Calculation'!A10,"") ->  | C16: =IFERROR(VLOOKUP(VALUE($B$8),'Input Calculation'!$A$2:$AJ$29,25),"") ->  | D16: =_xlfn.IFNA(VLOOKUP($C16,'Product Information'!$A$2:$C$31,2),"") ->  | E16: =_xlfn.IFNA(VLOOKUP($C16,'Product Information'!$A$2:$C$31,3),"") -> 
A17: =IF('Input Calculation'!B11=4438641204,'Input Calculation'!A11,"") ->  | C17: =IFERROR(VLOOKUP(VALUE($B$8),'Input Calculation'!$A$2:$AJ$29,27),"") ->  | D17: =_xlfn.IFNA(VLOOKUP($C17,'Product Information'!$A$2:$C$31,2),"") ->  | E17: =_xlfn.IFNA(VLOOKUP($C17,'Product Information'!$A$2:$C$31,3),"") -> 
A18: =IF('Input Calculation'!B12=4438641204,'Input Calculation'!A12,"") -> 1011 | D18: Total: | E18: =VLOOKUP(VALUE($B$8),'Input Calculation'!$A$2:$AJ$29,36) -> 601.74 | F18: Notes:
A19: =IF('Input Calculation'!B13=4438641204,'Input Calculation'!A13,"") -> 
A20: =IF('Input Calculation'!B14=4438641204,'Input Calculation'!A14,"") ->  | B20: =MID($A$7,LEN(B8)+1,4) ->  | C20: =IFERROR(VLOOKUP(VALUE($B$20),'Input Calculation'!$A$2:$AJ$29,9),"") ->  | D20: =_xlfn.IFNA(VLOOKUP($C20,'Product Information'!$A$2:$C$31,2),"") ->  | E20: =_xlfn.IFNA(VLOOKUP($C20,'Product Information'!$A$2:$C$31,3),"") -> 
A21: =IF('Input Calculation'!B15=4438641204,'Input Calculation'!A15,"") ->  | C21: =IFERROR(VLOOKUP(VALUE($B$20),'Input Calculation'!$A$2:$AJ$29,11),"") ->  | D21: =_xlfn.IFNA(VLOOKUP($C21,'Product Information'!$A$2:$C$31,2),"") ->  | E21: =_xlfn.IFNA(VLOOKUP($C21,'Product Information'!$A$2:$C$31,3),"") -> 
A22: =IF('Input Calculation'!B16=4438641204,'Input Calculation'!A16,"") ->  | C22: =IFERROR(VLOOKUP(VALUE($B$20),'Input Calculation'!$A$2:$AJ$29,13),"") ->  | D22: =_xlfn.IFNA(VLOOKUP($C22,'Product Information'!$A$2:$C$31,2),"") ->  | E22: =_xlfn.IFNA(VLOOKUP($C22,'Product Information'!$A$2:$C$31,3),"") -> 
A23: =IF('Input Calculation'!B17=4438641204,'Input Calculation'!A17,"") ->  | C23: =IFERROR(VLOOKUP(VALUE($B$20),'Input Calculation'!$A$2:$AJ$29,15),"") ->  | D23: =_xlfn.IFNA(VLOOKUP($C23,'Product Information'!$A$2:$C$31,2),"") ->  | E23: =_xlfn.IFNA(VLOOKUP($C23,'Product Information'!$A$2:$C$31,3),"") -> 
A24: =IF('Input Calculation'!B18=4438641204,'Input Calculation'!A18,"") ->  | C24: =IFERROR(VLOOKUP(VALUE($B$20),'Input Calculation'!$A$2:$AJ$29,17),"") ->  | D24: =_xlfn.IFNA(VLOOKUP($C24,'Product Information'!$A$2:$C$31,2),"") ->  | E24: =_xlfn.IFNA(VLOOKUP($C24,'Product Information'!$A$2:$C$31,3),"") -> 
A25: =IF('Input Calculation'!B19=4438641204,'Input Calculation'!A19,"") ->  | C25: =IFERROR(VLOOKUP(VALUE($B$20),'Input Calculation'!$A$2:$AJ$29,19),"") ->  | D25: =_xlfn.IFNA(VLOOKUP($C25,'Product Information'!$A$2:$C$31,2),"") ->  | E25: =_xlfn.IFNA(VLOOKUP($C25,'Product Information'!$A$2:$C$31,3),"") -> 
A26: =IF('Input Calculation'!B20=4438641204,'Input Calculation'!A20,"") ->  | C26: =IFERROR(VLOOKUP(VALUE($B$20),'Input Calculation'!$A$2:$AJ$29,21),"") ->  | D26: =_xlfn.IFNA(VLOOKUP($C26,'Product Information'!$A$2:$C$31,2),"") ->  | E26: =_xlfn.IFNA(VLOOKUP($C26,'Product Information'!$A$2:$C$31,3),"") -> 
A27: =IF('Input Calculation'!B21=4438641204,'Input Calculation'!A21,"") ->  | C27: =IFERROR(VLOOKUP(VALUE($B$20),'Input Calculation'!$A$2:$AJ$29,23),"") ->  | D27: =_xlfn.IFNA(VLOOKUP($C27,'Product Information'!$A$2:$C$31,2),"") ->  | E27: =_xlfn.IFNA(VLOOKUP($C27,'Product Information'!$A$2:$C$31,3),"") -> 
A28: =IF('Input Calculation'!B22=4438641204,'Input Calculation'!A22,"") ->  | C28: =IFERROR(VLOOKUP(VALUE($B$20),'Input Calculation'!$A$2:$AJ$29,25),"") ->  | D28: =_xlfn.IFNA(VLOOKUP($C28,'Product Information'!$A$2:$C$31,2),"") ->  | E28: =_xlfn.IFNA(VLOOKUP($C28,'Product Information'!$A$2:$C$31,3),"") -> 
A29: =IF('Input Calculation'!B23=4438641204,'Input Calculation'!A23,"") ->  | C29: =IFERROR(VLOOKUP(VALUE($B$20),'Input Calculation'!$A$2:$AJ$29,27),"") ->  | D29: =_xlfn.IFNA(VLOOKUP($C29,'Product Information'!$A$2:$C$31,2),"") ->  | E29: =_xlfn.IFNA(VLOOKUP($C29,'Product Information'!$A$2:$C$31,3),"") -> 
A30: =IF('Input Calculation'!B24=4438641204,'Input Calculation'!A24,"") ->  | D30: Total: | E30: =IFERROR(VLOOKUP(VALUE($B$20),'Input Calculation'!$A$2:$AJ$29,36),"") ->  | F30: Notes:
A31: =IF('Input Calculation'!B25=4438641204,'Input Calculation'!A25,"") -> 
A32: =IF('Input Calculation'!B26=4438641204,'Input Calculation'!A26,"") ->  | B32: =MID($A$7,LEN(B8)+LEN(B20)+1,4) ->  | C32: =IFERROR(VLOOKUP(VALUE($B$32),'Input Calculation'!$A$2:$AJ$29,9),"") ->  | D32: =_xlfn.IFNA(VLOOKUP($C32,'Product Information'!$A$2:$C$31,2),"") ->  | E32: =_xlfn.IFNA(VLOOKUP($C32,'Product Information'!$A$2:$C$31,3),"") -> 
A33: =IF('Input Calculation'!B27=4438641204,'Input Calculation'!A27,"") ->  | C33: =IFERROR(VLOOKUP(VALUE($B$32),'Input Calculation'!$A$2:$AJ$29,11),"") ->  | D33: =_xlfn.IFNA(VLOOKUP($C33,'Product Information'!$A$2:$C$31,2),"") ->  | E33: =_xlfn.IFNA(VLOOKUP($C33,'Product Information'!$A$2:$C$31,3),"") -> 
A34: =IF('Input Calculation'!B28=4438641204,'Input Calculation'!A28,"") ->  | C34: =IFERROR(VLOOKUP(VALUE($B$32),'Input Calculation'!$A$2:$AJ$29,13),"") ->  | D34: =_xlfn.IFNA(VLOOKUP($C34,'Product Information'!$A$2:$C$31,2),"") ->  | E34: =_xlfn.IFNA(VLOOKUP($C34,'Product Information'!$A$2:$C$31,3),"") -> 
A35: =IF('Input Calculation'!B29=4438641204,'Input Calculation'!A29,"") ->  | C35: =IFERROR(VLOOKUP(VALUE($B$32),'Input Calculation'!$A$2:$AJ$29,15),"") ->  | D35: =_xlfn.IFNA(VLOOKUP($C35,'Product Information'!$A$2:$C$31,2),"") ->  | E35: =_xlfn.IFNA(VLOOKUP($C35,'Product Information'!$A$2:$C$31,3),"") -> 
A36: =IF('Input Calculation'!B30=4438641204,'Input Calculation'!A30,"") ->  | C36: =IFERROR(VLOOKUP(VALUE($B$32),'Input Calculation'!$A$2:$AJ$29,17),"") ->  | D36: =_xlfn.IFNA(VLOOKUP($C36,'Product Information'!$A$2:$C$31,2),"") ->  | E36: =_xlfn.IFNA(VLOOKUP($C36,'Product Information'!$A$2:$C$31,3),"") -> 
C37: =IFERROR(VLOOKUP(VALUE($B$32),'Input Calculation'!$A$2:$AJ$29,19),"") ->  | D37: =_xlfn.IFNA(VLOOKUP($C37,'Product Information'!$A$2:$C$31,2),"") ->  | E37: =_xlfn.IFNA(VLOOKUP($C37,'Product Information'!$A$2:$C$31,3),"") -> 
C38: =IFERROR(VLOOKUP(VALUE($B$32),'Input Calculation'!$A$2:$AJ$29,21),"") ->  | D38: =_xlfn.IFNA(VLOOKUP($C38,'Product Information'!$A$2:$C$31,2),"") ->  | E38: =_xlfn.IFNA(VLOOKUP($C38,'Product Information'!$A$2:$C$31,3),"") -> 
C39: =IFERROR(VLOOKUP(VALUE($B$32),'Input Calculation'!$A$2:$AJ$29,23),"") ->  | D39: =_xlfn.IFNA(VLOOKUP($C39,'Product Information'!$A$2:$C$31,2),"") ->  | E39: =_xlfn.IFNA(VLOOKUP($C39,'Product Information'!$A$2:$C$31,3),"") -> 
C40: =IFERROR(VLOOKUP(VALUE($B$32),'Input Calculation'!$A$2:$AJ$29,25),"") ->  | D40: =_xlfn.IFNA(VLOOKUP($C40,'Product Information'!$A$2:$C$31,2),"") ->  | E40: =_xlfn.IFNA(VLOOKUP($C40,'Product Information'!$A$2:$C$31,3),"") -> 
C41: =IFERROR(VLOOKUP(VALUE($B$32),'Input Calculation'!$A$2:$AJ$29,27),"") ->  | D41: =_xlfn.IFNA(VLOOKUP($C41,'Product Information'!$A$2:$C$31,2),"") ->  | E41: =_xlfn.IFNA(VLOOKUP($C41,'Product Information'!$A$2:$C$31,3),"") -> 
D42: Total: | E42: =IFERROR(VLOOKUP(VALUE($B$32),'Input Calculation'!$A$2:$AJ$29,36),"") ->  | F42: Notes:
B44: =MID($A$7,LEN(B8)+LEN(B20)+LEN(B32)+1,4) ->  | C44: =IFERROR(VLOOKUP(VALUE($B$44),'Input Calculation'!$A$2:$AJ$29,9),"") ->  | D44: =_xlfn.IFNA(VLOOKUP($C44,'Product Information'!$A$2:$C$31,2),"") ->  | E44: =_xlfn.IFNA(VLOOKUP($C44,'Product Information'!$A$2:$C$31,3),"") -> 
C45: =IFERROR(VLOOKUP(VALUE($B$45),'Input Calculation'!$A$2:$AJ$29,11),"") ->  | D45: =_xlfn.IFNA(VLOOKUP($C45,'Product Information'!$A$2:$C$31,2),"") ->  | E45: =_xlfn.IFNA(VLOOKUP($C45,'Product Information'!$A$2:$C$31,3),"") -> 
C46: =IFERROR(VLOOKUP(VALUE($B$46),'Input Calculation'!$A$2:$AJ$29,13),"") ->  | D46: =_xlfn.IFNA(VLOOKUP($C46,'Product Information'!$A$2:$C$31,2),"") ->  | E46: =_xlfn.IFNA(VLOOKUP($C46,'Product Information'!$A$2:$C$31,3),"") -> 
C47: =IFERROR(VLOOKUP(VALUE($B$46),'Input Calculation'!$A$2:$AJ$29,15),"") ->  | D47: =_xlfn.IFNA(VLOOKUP($C47,'Product Information'!$A$2:$C$31,2),"") ->  | E47: =_xlfn.IFNA(VLOOKUP($C47,'Product Information'!$A$2:$C$31,3),"") -> 
C48: =IFERROR(VLOOKUP(VALUE($B$46),'Input Calculation'!$A$2:$AJ$29,17),"") ->  | D48: =_xlfn.IFNA(VLOOKUP($C48,'Product Information'!$A$2:$C$31,2),"") ->  | E48: =_xlfn.IFNA(VLOOKUP($C48,'Product Information'!$A$2:$C$31,3),"") -> 
C49: =IFERROR(VLOOKUP(VALUE($B$46),'Input Calculation'!$A$2:$AJ$29,19),"") ->  | D49: =_xlfn.IFNA(VLOOKUP($C49,'Product Information'!$A$2:$C$31,2),"") ->  | E49: =_xlfn.IFNA(VLOOKUP($C49,'Product Information'!$A$2:$C$31,3),"") -> 
C50: =IFERROR(VLOOKUP(VALUE($B$46),'Input Calculation'!$A$2:$AJ$29,21),"") ->  | D50: =_xlfn.IFNA(VLOOKUP($C50,'Product Information'!$A$2:$C$31,2),"") ->  | E50: =_xlfn.IFNA(VLOOKUP($C50,'Product Information'!$A$2:$C$31,3),"") -> 
C51: =IFERROR(VLOOKUP(VALUE($B$46),'Input Calculation'!$A$2:$AJ$29,23),"") ->  | D51: =_xlfn.IFNA(VLOOKUP($C51,'Product Information'!$A$2:$C$31,2),"") ->  | E51: =_xlfn.IFNA(VLOOKUP($C51,'Product Information'!$A$2:$C$31,3),"") -> 
C52: =IFERROR(VLOOKUP(VALUE($B$46),'Input Calculation'!$A$2:$AJ$29,25),"") ->  | D52: =_xlfn.IFNA(VLOOKUP($C52,'Product Information'!$A$2:$C$31,2),"") ->  | E52: =_xlfn.IFNA(VLOOKUP($C52,'Product Information'!$A$2:$C$31,3),"") -> 
C53: =IFERROR(VLOOKUP(VALUE($B$46),'Input Calculation'!$A$2:$AJ$29,27),"") ->  | D53: =_xlfn.IFNA(VLOOKUP($C53,'Product Information'!$A$2:$C$31,2),"") ->  | E53: =_xlfn.IFNA(VLOOKUP($C53,'Product Information'!$A$2:$C$31,3),"") -> 
D54: Total: | E54: =IFERROR(VLOOKUP(VALUE($B$46),'Input Calculation'!$A$2:$AJ$29,36),"") ->  | F54: Notes:
B56: =MID($A$7,LEN(B8)+LEN(B20)+LEN(B32)+LEN(B46)+1,4) ->  | C56: =IFERROR(VLOOKUP(VALUE($B$56),'Input Calculation'!$A$2:$AJ$29,9),"") ->  | D56: =_xlfn.IFNA(VLOOKUP($C56,'Product Information'!$A$2:$C$31,2),"") ->  | E56: =_xlfn.IFNA(VLOOKUP($C56,'Product Information'!$A$2:$C$31,3),"") -> 
C57: =IFERROR(VLOOKUP(VALUE($B$56),'Input Calculation'!$A$2:$AJ$29,11),"") ->  | D57: =_xlfn.IFNA(VLOOKUP($C57,'Product Information'!$A$2:$C$31,2),"") ->  | E57: =_xlfn.IFNA(VLOOKUP($C57,'Product Information'!$A$2:$C$31,3),"") -> 
C58: =IFERROR(VLOOKUP(VALUE($B$56),'Input Calculation'!$A$2:$AJ$29,13),"") ->  | D58: =_xlfn.IFNA(VLOOKUP($C58,'Product Information'!$A$2:$C$31,2),"") ->  | E58: =_xlfn.IFNA(VLOOKUP($C58,'Product Information'!$A$2:$C$31,3),"") -> 
C59: =IFERROR(VLOOKUP(VALUE($B$56),'Input Calculation'!$A$2:$AJ$29,15),"") ->  | D59: =_xlfn.IFNA(VLOOKUP($C59,'Product Information'!$A$2:$C$31,2),"") ->  | E59: =_xlfn.IFNA(VLOOKUP($C59,'Product Information'!$A$2:$C$31,3),"") -> 
C60: =IFERROR(VLOOKUP(VALUE($B$56),'Input Calculation'!$A$2:$AJ$29,17),"") ->  | D60: =_xlfn.IFNA(VLOOKUP($C60,'Product Information'!$A$2:$C$31,2),"") ->  | E60: =_xlfn.IFNA(VLOOKUP($C60,'Product Information'!$A$2:$C$31,3),"") -> 
C61: =IFERROR(VLOOKUP(VALUE($B$56),'Input Calculation'!$A$2:$AJ$29,19),"") ->  | D61: =_xlfn.IFNA(VLOOKUP($C61,'Product Information'!$A$2:$C$31,2),"") ->  | E61: =_xlfn.IFNA(VLOOKUP($C61,'Product Information'!$A$2:$C$31,3),"") -> 
C62: =IFERROR(VLOOKUP(VALUE($B$56),'Input Calculation'!$A$2:$AJ$29,21),"") ->  | D62: =_xlfn.IFNA(VLOOKUP($C62,'Product Information'!$A$2:$C$31,2),"") ->  | E62: =_xlfn.IFNA(VLOOKUP($C62,'Product Information'!$A$2:$C$31,3),"") -> 
C63: =IFERROR(VLOOKUP(VALUE($B$56),'Input Calculation'!$A$2:$AJ$29,23),"") ->  | D63: =_xlfn.IFNA(VLOOKUP($C63,'Product Information'!$A$2:$C$31,2),"") ->  | E63: =_xlfn.IFNA(VLOOKUP($C63,'Product Information'!$A$2:$C$31,3),"") -> 
C64: =IFERROR(VLOOKUP(VALUE($B$56),'Input Calculation'!$A$2:$AJ$29,25),"") ->  | D64: =_xlfn.IFNA(VLOOKUP($C64,'Product Information'!$A$2:$C$31,2),"") ->  | E64: =_xlfn.IFNA(VLOOKUP($C64,'Product Information'!$A$2:$C$31,3),"") -> 
C65: =IFERROR(VLOOKUP(VALUE($B$56),'Input Calculation'!$A$2:$AJ$29,27),"") ->  | D65: =_xlfn.IFNA(VLOOKUP($C65,'Product Information'!$A$2:$C$31,2),"") ->  | E65: =_xlfn.IFNA(VLOOKUP($C65,'Product Information'!$A$2:$C$31,3),"") -> 
D66: Total: | E66: =IFERROR(VLOOKUP(VALUE($B$56),'Input Calculation'!$A$2:$AJ$29,36),"") ->  | F66: Notes:
B67: =MID($A$7,4*(ROW()-7),4) -> 
B68: =MID($A$7,LEN(B8)+LEN(B20)+LEN(B32)+LEN(B46)+LEN(B56)+1,4) ->  | C68: =IFERROR(VLOOKUP(VALUE($B$68),'Input Calculation'!$A$2:$AJ$29,9),"") ->  | D68: =_xlfn.IFNA(VLOOKUP($C68,'Product Information'!$A$2:$C$31,2),"") ->  | E68: =_xlfn.IFNA(VLOOKUP($C68,'Product Information'!$A$2:$C$31,3),"") -> 
C69: =IFERROR(VLOOKUP(VALUE($B$68),'Input Calculation'!$A$2:$AJ$29,11),"") ->  | D69: =_xlfn.IFNA(VLOOKUP($C69,'Product Information'!$A$2:$C$31,2),"") ->  | E69: =_xlfn.IFNA(VLOOKUP($C69,'Product Information'!$A$2:$C$31,3),"") -> 
C70: =IFERROR(VLOOKUP(VALUE($B$68),'Input Calculation'!$A$2:$AJ$29,13),"") ->  | D70: =_xlfn.IFNA(VLOOKUP($C70,'Product Information'!$A$2:$C$31,2),"") ->  | E70: =_xlfn.IFNA(VLOOKUP($C70,'Product Information'!$A$2:$C$31,3),"") -> 
C71: =IFERROR(VLOOKUP(VALUE($B$68),'Input Calculation'!$A$2:$AJ$29,15),"") ->  | D71: =_xlfn.IFNA(VLOOKUP($C71,'Product Information'!$A$2:$C$31,2),"") ->  | E71: =_xlfn.IFNA(VLOOKUP($C71,'Product Information'!$A$2:$C$31,3),"") -> 
C72: =IFERROR(VLOOKUP(VALUE($B$68),'Input Calculation'!$A$2:$AJ$29,17),"") ->  | D72: =_xlfn.IFNA(VLOOKUP($C72,'Product Information'!$A$2:$C$31,2),"") ->  | E72: =_xlfn.IFNA(VLOOKUP($C72,'Product Information'!$A$2:$C$31,3),"") -> 
C73: =IFERROR(VLOOKUP(VALUE($B$68),'Input Calculation'!$A$2:$AJ$29,19),"") ->  | D73: =_xlfn.IFNA(VLOOKUP($C73,'Product Information'!$A$2:$C$31,2),"") ->  | E73: =_xlfn.IFNA(VLOOKUP($C73,'Product Information'!$A$2:$C$31,3),"") -> 
C74: =IFERROR(VLOOKUP(VALUE($B$68),'Input Calculation'!$A$2:$AJ$29,21),"") ->  | D74: =_xlfn.IFNA(VLOOKUP($C74,'Product Information'!$A$2:$C$31,2),"") ->  | E74: =_xlfn.IFNA(VLOOKUP($C74,'Product Information'!$A$2:$C$31,3),"") -> 
C75: =IFERROR(VLOOKUP(VALUE($B$68),'Input Calculation'!$A$2:$AJ$29,23),"") ->  | D75: =_xlfn.IFNA(VLOOKUP($C75,'Product Information'!$A$2:$C$31,2),"") ->  | E75: =_xlfn.IFNA(VLOOKUP($C75,'Product Information'!$A$2:$C$31,3),"") -> 
C76: =IFERROR(VLOOKUP(VALUE($B$68),'Input Calculation'!$A$2:$AJ$29,25),"") ->  | D76: =_xlfn.IFNA(VLOOKUP($C76,'Product Information'!$A$2:$C$31,2),"") ->  | E76: =_xlfn.IFNA(VLOOKUP($C76,'Product Information'!$A$2:$C$31,3),"") -> 
C77: =IFERROR(VLOOKUP(VALUE($B$68),'Input Calculation'!$A$2:$AJ$29,27),"") ->  | D77: =_xlfn.IFNA(VLOOKUP($C77,'Product Information'!$A$2:$C$31,2),"") ->  | E77: =_xlfn.IFNA(VLOOKUP($C77,'Product Information'!$A$2:$C$31,3),"") -> 
D78: Total: | E78: =IFERROR(VLOOKUP(VALUE($B$68),'Input Calculation'!$A$2:$AJ$29,36),"") ->  | F78: Notes:
B79: =MID($A$7,4*(ROW()-7),4) -> 
B80: =MID($A$7,4*(ROW()-7),4) -> 

Sheet 5168832323 (hidden)
A1: Name: | B1: =VLOOKUP(5168832323,'Customer Information'!$A$2:$I$12,2) -> Wont William
A2: Phone: | B2: =TEXT(5168832323,"###-###-####") -> 516-883-2323
A3: Email: | B3: =VLOOKUP(5168832323,'Customer Information'!$A$2:$I$12,3) -> NotHere@yahoo.com
A4: Address: | B4: =CONCATENATE(VLOOKUP(5168832323,'Customer Information'!$A$2:$I$12,4),", ",VLOOKUP(5168832323,'Customer Information'!$A$2:$I$12,5),", ",VLOOKUP(5168832323,'Customer Information'!$A$2:$I$12,6)," ",VLOOKUP(5168832323,'Customer Information'!$A$2:$I$12,7)) -> 823 1st St, Kansas City, MO 65923
A5: Customer Since: | B5: =VLOOKUP(5168832323,'Customer Information'!$A$2:$I$12,8) -> 2020
A6: Good Standing: | B6: =VLOOKUP(5168832323,'Customer Information'!$A$2:$I$12,9) -> Yes
A7: =CONCATENATE(A8,A9,A10,A11,A12,A13,A14,A15,A16,A17,A18,A19,A20,A21,A22,A23,A24,A25,A26,A27,A28,A29,A30,A31,A32,A33,A34,A35,A36) -> 100510131027 | B7: Order Number
A8: =IF('Input Calculation'!B2=5168832323,'Input Calculation'!A2,"") ->  | B8: =MID($A$7,ROW()-7,4) -> 1005 | C8: =IFERROR(VLOOKUP(VALUE($B$8),'Input Calculation'!$A$2:$AJ$29,9),"") -> 9242514 | D8: =_xlfn.IFNA(VLOOKUP($C8,'Product Information'!$A$2:$C$31,2),"") -> Fashionista Sunglasses | E8: =_xlfn.IFNA(VLOOKUP($C8,'Product Information'!$A$2:$C$31,3),"") -> 499.99
A9: =IF('Input Calculation'!B3=5168832323,'Input Calculation'!A3,"") ->  | C9: =IFERROR(VLOOKUP(VALUE($B$8),'Input Calculation'!$A$2:$AJ$29,11),"") -> 3055845 | D9: =_xlfn.IFNA(VLOOKUP($C9,'Product Information'!$A$2:$C$31,2),"") -> Winter Jacket | E9: =_xlfn.IFNA(VLOOKUP($C9,'Product Information'!$A$2:$C$31,3),"") -> 199.99
A10: =IF('Input Calculation'!B4=5168832323,'Input Calculation'!A4,"") ->  | C10: =IFERROR(VLOOKUP(VALUE($B$8),'Input Calculation'!$A$2:$AJ$29,13),"") -> 7250412 | D10: =_xlfn.IFNA(VLOOKUP($C10,'Product Information'!$A$2:$C$31,2),"") -> Thermal Socks | E10: =_xlfn.IFNA(VLOOKUP($C10,'Product Information'!$A$2:$C$31,3),"") -> 12.99
A11: =IF('Input Calculation'!B5=5168832323,'Input Calculation'!A5,"") ->  | C11: =IFERROR(VLOOKUP(VALUE($B$8),'Input Calculation'!$A$2:$AJ$29,15),"") ->  | D11: =_xlfn.IFNA(VLOOKUP($C11,'Product Information'!$A$2:$C$31,2),"") ->  | E11: =_xlfn.IFNA(VLOOKUP($C11,'Product Information'!$A$2:$C$31,3),"") -> 
A12: =IF('Input Calculation'!B6=5168832323,'Input Calculation'!A6,"") -> 1005 | C12: =IFERROR(VLOOKUP(VALUE($B$8),'Input Calculation'!$A$2:$AJ$29,17),"") ->  | D12: =_xlfn.IFNA(VLOOKUP($C12,'Product Information'!$A$2:$C$31,2),"") ->  | E12: =_xlfn.IFNA(VLOOKUP($C12,'Product Information'!$A$2:$C$31,3),"") -> 
A13: =IF('Input Calculation'!B7=5168832323,'Input Calculation'!A7,"") ->  | C13: =IFERROR(VLOOKUP(VALUE($B$8),'Input Calculation'!$A$2:$AJ$29,19),"") ->  | D13: =_xlfn.IFNA(VLOOKUP($C13,'Product Information'!$A$2:$C$31,2),"") ->  | E13: =_xlfn.IFNA(VLOOKUP($C13,'Product Information'!$A$2:$C$31,3),"") -> 
A14: =IF('Input Calculation'!B8=5168832323,'Input Calculation'!A8,"") ->  | C14: =IFERROR(VLOOKUP(VALUE($B$8),'Input Calculation'!$A$2:$AJ$29,21),"") ->  | D14: =_xlfn.IFNA(VLOOKUP($C14,'Product Information'!$A$2:$C$31,2),"") ->  | E14: =_xlfn.IFNA(VLOOKUP($C14,'Product Information'!$A$2:$C$31,3),"") -> 
A15: =IF('Input Calculation'!B9=5168832323,'Input Calculation'!A9,"") ->  | C15: =IFERROR(VLOOKUP(VALUE($B$8),'Input Calculation'!$A$2:$AJ$29,23),"") ->  | D15: =_xlfn.IFNA(VLOOKUP($C15,'Product Information'!$A$2:$C$31,2),"") ->  | E15: =_xlfn.IFNA(VLOOKUP($C15,'Product Information'!$A$2:$C$31,3),"") -> 
A16: =IF('Input Calculation'!B10=5168832323,'Input Calculation'!A10,"") ->  | C16: =IFERROR(VLOOKUP(VALUE($B$8),'Input Calculation'!$A$2:$AJ$29,25),"") ->  | D16: =_xlfn.IFNA(VLOOKUP($C16,'Product Information'!$A$2:$C$31,2),"") ->  | E16: =_xlfn.IFNA(VLOOKUP($C16,'Product Information'!$A$2:$C$31,3),"") -> 
A17: =IF('Input Calculation'!B11=5168832323,'Input Calculation'!A11,"") ->  | C17: =IFERROR(VLOOKUP(VALUE($B$8),'Input Calculation'!$A$2:$AJ$29,27),"") ->  | D17: =_xlfn.IFNA(VLOOKUP($C17,'Product Information'!$A$2:$C$31,2),"") ->  | E17: =_xlfn.IFNA(VLOOKUP($C17,'Product Information'!$A$2:$C$31,3),"") -> 
A18: =IF('Input Calculation'!B12=5168832323,'Input Calculation'!A12,"") ->  | D18: Total: | E18: =VLOOKUP(VALUE($B$8),'Input Calculation'!$A$2:$AJ$29,36) -> 694.16 | F18: Notes:
A19: =IF('Input Calculation'!B13=5168832323,'Input Calculation'!A13,"") -> 
A20: =IF('Input Calculation'!B14=5168832323,'Input Calculation'!A14,"") -> 1013 | B20: =MID($A$7,LEN(B8)+1,4) -> 1013 | C20: =IFERROR(VLOOKUP(VALUE($B$20),'Input Calculation'!$A$2:$AJ$29,9),"") -> 8924251 | D20: =_xlfn.IFNA(VLOOKUP($C20,'Product Information'!$A$2:$C$31,2),"") -> Super Sunglasses | E20: =_xlfn.IFNA(VLOOKUP($C20,'Product Information'!$A$2:$C$31,3),"") -> 99.99
A21: =IF('Input Calculation'!B15=5168832323,'Input Calculation'!A15,"") ->  | C21: =IFERROR(VLOOKUP(VALUE($B$20),'Input Calculation'!$A$2:$AJ$29,11),"") -> 4989600 | D21: =_xlfn.IFNA(VLOOKUP($C21,'Product Information'!$A$2:$C$31,2),"") -> Hard Hat | E21: =_xlfn.IFNA(VLOOKUP($C21,'Product Information'!$A$2:$C$31,3),"") -> 29.99
A22: =IF('Input Calculation'!B16=5168832323,'Input Calculation'!A16,"") ->  | C22: =IFERROR(VLOOKUP(VALUE($B$20),'Input Calculation'!$A$2:$AJ$29,13),"") -> 5086187 | D22: =_xlfn.IFNA(VLOOKUP($C22,'Product Information'!$A$2:$C$31,2),"") -> Top Hat | E22: =_xlfn.IFNA(VLOOKUP($C22,'Product Information'!$A$2:$C$31,3),"") -> 39.99
A23: =IF('Input Calculation'!B17=5168832323,'Input Calculation'!A17,"") ->  | C23: =IFERROR(VLOOKUP(VALUE($B$20),'Input Calculation'!$A$2:$AJ$29,15),"") -> 5216388 | D23: =_xlfn.IFNA(VLOOKUP($C23,'Product Information'!$A$2:$C$31,2),"") -> Logo Hat | E23: =_xlfn.IFNA(VLOOKUP($C23,'Product Information'!$A$2:$C$31,3),"") -> 49.99
A24: =IF('Input Calculation'!B18=5168832323,'Input Calculation'!A18,"") ->  | C24: =IFERROR(VLOOKUP(VALUE($B$20),'Input Calculation'!$A$2:$AJ$29,17),"") -> 6671819 | D24: =_xlfn.IFNA(VLOOKUP($C24,'Product Information'!$A$2:$C$31,2),"") -> Socks | E24: =_xlfn.IFNA(VLOOKUP($C24,'Product Information'!$A$2:$C$31,3),"") -> 4.99
A25: =IF('Input Calculation'!B19=5168832323,'Input Calculation'!A19,"") ->  | C25: =IFERROR(VLOOKUP(VALUE($B$20),'Input Calculation'!$A$2:$AJ$29,19),"") -> 6738313 | D25: =_xlfn.IFNA(VLOOKUP($C25,'Product Information'!$A$2:$C$31,2),"") -> Better Socks | E25: =_xlfn.IFNA(VLOOKUP($C25,'Product Information'!$A$2:$C$31,3),"") -> 6.99
A26: =IF('Input Calculation'!B20=5168832323,'Input Calculation'!A20,"") ->  | C26: =IFERROR(VLOOKUP(VALUE($B$20),'Input Calculation'!$A$2:$AJ$29,21),"") -> 6808398 | D26: =_xlfn.IFNA(VLOOKUP($C26,'Product Information'!$A$2:$C$31,2),"") -> Fuzzy Socks | E26: =_xlfn.IFNA(VLOOKUP($C26,'Product Information'!$A$2:$C$31,3),"") -> 8.99
A27: =IF('Input Calculation'!B21=5168832323,'Input Calculation'!A21,"") ->  | C27: =IFERROR(VLOOKUP(VALUE($B$20),'Input Calculation'!$A$2:$AJ$29,23),"") -> 6832283 | D27: =_xlfn.IFNA(VLOOKUP($C27,'Product Information'!$A$2:$C$31,2),"") -> Toe Socks | E27: =_xlfn.IFNA(VLOOKUP($C27,'Product Information'!$A$2:$C$31,3),"") -> 9.99
A28: =IF('Input Calculation'!B22=5168832323,'Input Calculation'!A22,"") ->  | C28: =IFERROR(VLOOKUP(VALUE($B$20),'Input Calculation'!$A$2:$AJ$29,25),"") -> 7250412 | D28: =_xlfn.IFNA(VLOOKUP($C28,'Product Information'!$A$2:$C$31,2),"") -> Thermal Socks | E28: =_xlfn.IFNA(VLOOKUP($C28,'Product Information'!$A$2:$C$31,3),"") -> 12.99
A29: =IF('Input Calculation'!B23=5168832323,'Input Calculation'!A23,"") ->  | C29: =IFERROR(VLOOKUP(VALUE($B$20),'Input Calculation'!$A$2:$AJ$29,27),"") ->  | D29: =_xlfn.IFNA(VLOOKUP($C29,'Product Information'!$A$2:$C$31,2),"") ->  | E29: =_xlfn.IFNA(VLOOKUP($C29,'Product Information'!$A$2:$C$31,3),"") -> 
A30: =IF('Input Calculation'!B24=5168832323,'Input Calculation'!A24,"") ->  | D30: Total: | E30: =IFERROR(VLOOKUP(VALUE($B$20),'Input Calculation'!$A$2:$AJ$29,36),"") -> 256.94 | F30: Notes:
A31: =IF('Input Calculation'!B25=5168832323,'Input Calculation'!A25,"") -> 
A32: =IF('Input Calculation'!B26=5168832323,'Input Calculation'!A26,"") ->  | B32: =MID($A$7,LEN(B8)+LEN(B20)+1,4) -> 1027 | C32: =IFERROR(VLOOKUP(VALUE($B$32),'Input Calculation'!$A$2:$AJ$29,9),"") -> 2056772 | D32: =_xlfn.IFNA(VLOOKUP($C32,'Product Information'!$A$2:$C$31,2),"") -> Great Pants | E32: =_xlfn.IFNA(VLOOKUP($C32,'Product Information'!$A$2:$C$31,3),"") -> 74.99
A33: =IF('Input Calculation'!B27=5168832323,'Input Calculation'!A27,"") ->  | C33: =IFERROR(VLOOKUP(VALUE($B$32),'Input Calculation'!$A$2:$AJ$29,11),"") -> 3055845 | D33: =_xlfn.IFNA(VLOOKUP($C33,'Product Information'!$A$2:$C$31,2),"") -> Winter Jacket | E33: =_xlfn.IFNA(VLOOKUP($C33,'Product Information'!$A$2:$C$31,3),"") -> 199.99
A34: =IF('Input Calculation'!B28=5168832323,'Input Calculation'!A28,"") -> 1027 | C34: =IFERROR(VLOOKUP(VALUE($B$32),'Input Calculation'!$A$2:$AJ$29,13),"") ->  | D34: =_xlfn.IFNA(VLOOKUP($C34,'Product Information'!$A$2:$C$31,2),"") ->  | E34: =_xlfn.IFNA(VLOOKUP($C34,'Product Information'!$A$2:$C$31,3),"") -> 
A35: =IF('Input Calculation'!B29=5168832323,'Input Calculation'!A29,"") ->  | C35: =IFERROR(VLOOKUP(VALUE($B$32),'Input Calculation'!$A$2:$AJ$29,15),"") ->  | D35: =_xlfn.IFNA(VLOOKUP($C35,'Product Information'!$A$2:$C$31,2),"") ->  | E35: =_xlfn.IFNA(VLOOKUP($C35,'Product Information'!$A$2:$C$31,3),"") -> 
A36: =IF('Input Calculation'!B30=5168832323,'Input Calculation'!A30,"") ->  | C36: =IFERROR(VLOOKUP(VALUE($B$32),'Input Calculation'!$A$2:$AJ$29,17),"") ->  | D36: =_xlfn.IFNA(VLOOKUP($C36,'Product Information'!$A$2:$C$31,2),"") ->  | E36: =_xlfn.IFNA(VLOOKUP($C36,'Product Information'!$A$2:$C$31,3),"") -> 
C37: =IFERROR(VLOOKUP(VALUE($B$32),'Input Calculation'!$A$2:$AJ$29,19),"") ->  | D37: =_xlfn.IFNA(VLOOKUP($C37,'Product Information'!$A$2:$C$31,2),"") ->  | E37: =_xlfn.IFNA(VLOOKUP($C37,'Product Information'!$A$2:$C$31,3),"") -> 
C38: =IFERROR(VLOOKUP(VALUE($B$32),'Input Calculation'!$A$2:$AJ$29,21),"") ->  | D38: =_xlfn.IFNA(VLOOKUP($C38,'Product Information'!$A$2:$C$31,2),"") ->  | E38: =_xlfn.IFNA(VLOOKUP($C38,'Product Information'!$A$2:$C$31,3),"") -> 
C39: =IFERROR(VLOOKUP(VALUE($B$32),'Input Calculation'!$A$2:$AJ$29,23),"") ->  | D39: =_xlfn.IFNA(VLOOKUP($C39,'Product Information'!$A$2:$C$31,2),"") ->  | E39: =_xlfn.IFNA(VLOOKUP($C39,'Product Information'!$A$2:$C$31,3),"") -> 
C40: =IFERROR(VLOOKUP(VALUE($B$32),'Input Calculation'!$A$2:$AJ$29,25),"") ->  | D40: =_xlfn.IFNA(VLOOKUP($C40,'Product Information'!$A$2:$C$31,2),"") ->  | E40: =_xlfn.IFNA(VLOOKUP($C40,'Product Information'!$A$2:$C$31,3),"") -> 
C41: =IFERROR(VLOOKUP(VALUE($B$32),'Input Calculation'!$A$2:$AJ$29,27),"") ->  | D41: =_xlfn.IFNA(VLOOKUP($C41,'Product Information'!$A$2:$C$31,2),"") ->  | E41: =_xlfn.IFNA(VLOOKUP($C41,'Product Information'!$A$2:$C$31,3),"") -> 
D42: Total: | E42: =IFERROR(VLOOKUP(VALUE($B$32),'Input Calculation'!$A$2:$AJ$29,36),"") -> 302.47 | F42: Notes:
B44: =MID($A$7,LEN(B8)+LEN(B20)+LEN(B32)+1,4) ->  | C44: =IFERROR(VLOOKUP(VALUE($B$44),'Input Calculation'!$A$2:$AJ$29,9),"") ->  | D44: =_xlfn.IFNA(VLOOKUP($C44,'Product Information'!$A$2:$C$31,2),"") ->  | E44: =_xlfn.IFNA(VLOOKUP($C44,'Product Information'!$A$2:$C$31,3),"") -> 
C45: =IFERROR(VLOOKUP(VALUE($B$44),'Input Calculation'!$A$2:$AJ$29,11),"") ->  | D45: =_xlfn.IFNA(VLOOKUP($C45,'Product Information'!$A$2:$C$31,2),"") ->  | E45: =_xlfn.IFNA(VLOOKUP($C45,'Product Information'!$A$2:$C$31,3),"") -> 
C46: =IFERROR(VLOOKUP(VALUE($B$44),'Input Calculation'!$A$2:$AJ$29,13),"") ->  | D46: =_xlfn.IFNA(VLOOKUP($C46,'Product Information'!$A$2:$C$31,2),"") ->  | E46: =_xlfn.IFNA(VLOOKUP($C46,'Product Information'!$A$2:$C$31,3),"") -> 
C47: =IFERROR(VLOOKUP(VALUE($B$44),'Input Calculation'!$A$2:$AJ$29,15),"") ->  | D47: =_xlfn.IFNA(VLOOKUP($C47,'Product Information'!$A$2:$C$31,2),"") ->  | E47: =_xlfn.IFNA(VLOOKUP($C47,'Product Information'!$A$2:$C$31,3),"") -> 
C48: =IFERROR(VLOOKUP(VALUE($B$44),'Input Calculation'!$A$2:$AJ$29,17),"") ->  | D48: =_xlfn.IFNA(VLOOKUP($C48,'Product Information'!$A$2:$C$31,2),"") ->  | E48: =_xlfn.IFNA(VLOOKUP($C48,'Product Information'!$A$2:$C$31,3),"") -> 
C49: =IFERROR(VLOOKUP(VALUE($B$44),'Input Calculation'!$A$2:$AJ$29,19),"") ->  | D49: =_xlfn.IFNA(VLOOKUP($C49,'Product Information'!$A$2:$C$31,2),"") ->  | E49: =_xlfn.IFNA(VLOOKUP($C49,'Product Information'!$A$2:$C$31,3),"") -> 
C50: =IFERROR(VLOOKUP(VALUE($B$44),'Input Calculation'!$A$2:$AJ$29,21),"") ->  | D50: =_xlfn.IFNA(VLOOKUP($C50,'Product Information'!$A$2:$C$31,2),"") ->  | E50: =_xlfn.IFNA(VLOOKUP($C50,'Product Information'!$A$2:$C$31,3),"") -> 
C51: =IFERROR(VLOOKUP(VALUE($B$44),'Input Calculation'!$A$2:$AJ$29,23),"") ->  | D51: =_xlfn.IFNA(VLOOKUP($C51,'Product Information'!$A$2:$C$31,2),"") ->  | E51: =_xlfn.IFNA(VLOOKUP($C51,'Product Information'!$A$2:$C$31,3),"") -> 
C52: =IFERROR(VLOOKUP(VALUE($B$44),'Input Calculation'!$A$2:$AJ$29,25),"") ->  | D52: =_xlfn.IFNA(VLOOKUP($C52,'Product Information'!$A$2:$C$31,2),"") ->  | E52: =_xlfn.IFNA(VLOOKUP($C52,'Product Information'!$A$2:$C$31,3),"") -> 
C53: =IFERROR(VLOOKUP(VALUE($B$44),'Input Calculation'!$A$2:$AJ$29,27),"") ->  | D53: =_xlfn.IFNA(VLOOKUP($C53,'Product Information'!$A$2:$C$31,2),"") ->  | E53: =_xlfn.IFNA(VLOOKUP($C53,'Product Information'!$A$2:$C$31,3),"") -> 
D54: Total: | E54: =IFERROR(VLOOKUP(VALUE($B$44),'Input Calculation'!$A$2:$AJ$29,36),"") ->  | F54: Notes:
B56: =MID($A$7,LEN(B8)+LEN(B20)+LEN(B32)+LEN(B44)+1,4) ->  | C56: =IFERROR(VLOOKUP(VALUE($B$56),'Input Calculation'!$A$2:$AJ$29,9),"") ->  | D56: =_xlfn.IFNA(VLOOKUP($C56,'Product Information'!$A$2:$C$31,2),"") ->  | E56: =_xlfn.IFNA(VLOOKUP($C56,'Product Information'!$A$2:$C$31,3),"") -> 
C57: =IFERROR(VLOOKUP(VALUE($B$56),'Input Calculation'!$A$2:$AJ$29,11),"") ->  | D57: =_xlfn.IFNA(VLOOKUP($C57,'Product Information'!$A$2:$C$31,2),"") ->  | E57: =_xlfn.IFNA(VLOOKUP($C57,'Product Information'!$A$2:$C$31,3),"") -> 
C58: =IFERROR(VLOOKUP(VALUE($B$56),'Input Calculation'!$A$2:$AJ$29,13),"") ->  | D58: =_xlfn.IFNA(VLOOKUP($C58,'Product Information'!$A$2:$C$31,2),"") ->  | E58: =_xlfn.IFNA(VLOOKUP($C58,'Product Information'!$A$2:$C$31,3),"") -> 
C59: =IFERROR(VLOOKUP(VALUE($B$56),'Input Calculation'!$A$2:$AJ$29,15),"") ->  | D59: =_xlfn.IFNA(VLOOKUP($C59,'Product Information'!$A$2:$C$31,2),"") ->  | E59: =_xlfn.IFNA(VLOOKUP($C59,'Product Information'!$A$2:$C$31,3),"") -> 
C60: =IFERROR(VLOOKUP(VALUE($B$56),'Input Calculation'!$A$2:$AJ$29,17),"") ->  | D60: =_xlfn.IFNA(VLOOKUP($C60,'Product Information'!$A$2:$C$31,2),"") ->  | E60: =_xlfn.IFNA(VLOOKUP($C60,'Product Information'!$A$2:$C$31,3),"") -> 
C61: =IFERROR(VLOOKUP(VALUE($B$56),'Input Calculation'!$A$2:$AJ$29,19),"") ->  | D61: =_xlfn.IFNA(VLOOKUP($C61,'Product Information'!$A$2:$C$31,2),"") ->  | E61: =_xlfn.IFNA(VLOOKUP($C61,'Product Information'!$A$2:$C$31,3),"") -> 
C62: =IFERROR(VLOOKUP(VALUE($B$56),'Input Calculation'!$A$2:$AJ$29,21),"") ->  | D62: =_xlfn.IFNA(VLOOKUP($C62,'Product Information'!$A$2:$C$31,2),"") ->  | E62: =_xlfn.IFNA(VLOOKUP($C62,'Product Information'!$A$2:$C$31,3),"") -> 
C63: =IFERROR(VLOOKUP(VALUE($B$56),'Input Calculation'!$A$2:$AJ$29,23),"") ->  | D63: =_xlfn.IFNA(VLOOKUP($C63,'Product Information'!$A$2:$C$31,2),"") ->  | E63: =_xlfn.IFNA(VLOOKUP($C63,'Product Information'!$A$2:$C$31,3),"") -> 
C64: =IFERROR(VLOOKUP(VALUE($B$56),'Input Calculation'!$A$2:$AJ$29,25),"") ->  | D64: =_xlfn.IFNA(VLOOKUP($C64,'Product Information'!$A$2:$C$31,2),"") ->  | E64: =_xlfn.IFNA(VLOOKUP($C64,'Product Information'!$A$2:$C$31,3),"") -> 
C65: =IFERROR(VLOOKUP(VALUE($B$56),'Input Calculation'!$A$2:$AJ$29,27),"") ->  | D65: =_xlfn.IFNA(VLOOKUP($C65,'Product Information'!$A$2:$C$31,2),"") ->  | E65: =_xlfn.IFNA(VLOOKUP($C65,'Product Information'!$A$2:$C$31,3),"") -> 
D66: Total: | E66: =IFERROR(VLOOKUP(VALUE($B$56),'Input Calculation'!$A$2:$AJ$29,36),"") ->  | F66: Notes:
B67: =MID($A$7,4*(ROW()-7),4) -> 
B68: =MID($A$7,LEN(B8)+LEN(B20)+LEN(B32)+LEN(B46)+LEN(B56)+1,4) ->  | C68: =IFERROR(VLOOKUP(VALUE($B$68),'Input Calculation'!$A$2:$AJ$29,9),"") ->  | D68: =_xlfn.IFNA(VLOOKUP($C68,'Product Information'!$A$2:$C$31,2),"") ->  | E68: =_xlfn.IFNA(VLOOKUP($C68,'Product Information'!$A$2:$C$31,3),"") -> 
C69: =IFERROR(VLOOKUP(VALUE($B$68),'Input Calculation'!$A$2:$AJ$29,11),"") ->  | D69: =_xlfn.IFNA(VLOOKUP($C69,'Product Information'!$A$2:$C$31,2),"") ->  | E69: =_xlfn.IFNA(VLOOKUP($C69,'Product Information'!$A$2:$C$31,3),"") -> 
C70: =IFERROR(VLOOKUP(VALUE($B$68),'Input Calculation'!$A$2:$AJ$29,13),"") ->  | D70: =_xlfn.IFNA(VLOOKUP($C70,'Product Information'!$A$2:$C$31,2),"") ->  | E70: =_xlfn.IFNA(VLOOKUP($C70,'Product Information'!$A$2:$C$31,3),"") -> 
C71: =IFERROR(VLOOKUP(VALUE($B$68),'Input Calculation'!$A$2:$AJ$29,15),"") ->  | D71: =_xlfn.IFNA(VLOOKUP($C71,'Product Information'!$A$2:$C$31,2),"") ->  | E71: =_xlfn.IFNA(VLOOKUP($C71,'Product Information'!$A$2:$C$31,3),"") -> 
C72: =IFERROR(VLOOKUP(VALUE($B$68),'Input Calculation'!$A$2:$AJ$29,17),"") ->  | D72: =_xlfn.IFNA(VLOOKUP($C72,'Product Information'!$A$2:$C$31,2),"") ->  | E72: =_xlfn.IFNA(VLOOKUP($C72,'Product Information'!$A$2:$C$31,3),"") -> 
C73: =IFERROR(VLOOKUP(VALUE($B$68),'Input Calculation'!$A$2:$AJ$29,19),"") ->  | D73: =_xlfn.IFNA(VLOOKUP($C73,'Product Information'!$A$2:$C$31,2),"") ->  | E73: =_xlfn.IFNA(VLOOKUP($C73,'Product Information'!$A$2:$C$31,3),"") -> 
C74: =IFERROR(VLOOKUP(VALUE($B$68),'Input Calculation'!$A$2:$AJ$29,21),"") ->  | D74: =_xlfn.IFNA(VLOOKUP($C74,'Product Information'!$A$2:$C$31,2),"") ->  | E74: =_xlfn.IFNA(VLOOKUP($C74,'Product Information'!$A$2:$C$31,3),"") -> 
C75: =IFERROR(VLOOKUP(VALUE($B$68),'Input Calculation'!$A$2:$AJ$29,23),"") ->  | D75: =_xlfn.IFNA(VLOOKUP($C75,'Product Information'!$A$2:$C$31,2),"") ->  | E75: =_xlfn.IFNA(VLOOKUP($C75,'Product Information'!$A$2:$C$31,3),"") -> 
C76: =IFERROR(VLOOKUP(VALUE($B$68),'Input Calculation'!$A$2:$AJ$29,25),"") ->  | D76: =_xlfn.IFNA(VLOOKUP($C76,'Product Information'!$A$2:$C$31,2),"") ->  | E76: =_xlfn.IFNA(VLOOKUP($C76,'Product Information'!$A$2:$C$31,3),"") -> 
C77: =IFERROR(VLOOKUP(VALUE($B$68),'Input Calculation'!$A$2:$AJ$29,27),"") ->  | D77: =_xlfn.IFNA(VLOOKUP($C77,'Product Information'!$A$2:$C$31,2),"") ->  | E77: =_xlfn.IFNA(VLOOKUP($C77,'Product Information'!$A$2:$C$31,3),"") -> 
D78: Total: | E78: =IFERROR(VLOOKUP(VALUE($B$68),'Input Calculation'!$A$2:$AJ$29,36),"") ->  | F78: Notes:
B79: =MID($A$7,4*(ROW()-7),4) -> 
B80: =MID($A$7,4*(ROW()-7),4) -> 

Sheet 6315790090 (hidden)
A1: Name: | B1: =VLOOKUP(6315790090,'Customer Information'!$A$2:$I$12,2) -> Caputo Matthew
A2: Phone: | B2: =TEXT(6315790090,"###-###-####") -> 631-579-0090
A3: Email: | B3: =VLOOKUP(6315790090,'Customer Information'!$A$2:$I$12,3) -> mattcap62480@gmail.com
A4: Address: | B4: =CONCATENATE(VLOOKUP(6315790090,'Customer Information'!$A$2:$I$12,4),", ",VLOOKUP(6315790090,'Customer Information'!$A$2:$I$12,5),", ",VLOOKUP(6315790090,'Customer Information'!$A$2:$I$12,6)," ",VLOOKUP(6315790090,'Customer Information'!$A$2:$I$12,7)) -> 7123 Montclair Peak Lane, Richmond, TX 77469
A5: Customer Since: | B5: =VLOOKUP(6315790090,'Customer Information'!$A$2:$I$12,8) -> 2007
A6: Good Standing: | B6: =VLOOKUP(6315790090,'Customer Information'!$A$2:$I$12,9) -> Yes
A7: =CONCATENATE(A8,A9,A10,A11,A12,A13,A14,A15,A16,A17,A18,A19,A20,A21,A22,A23,A24,A25,A26,A27,A28,A29,A30,A31,A32,A33,A34,A35,A36) -> 1001101510201023 | B7: Order Number
A8: =IF('Input Calculation'!B2=6315790090,'Input Calculation'!A2,"") -> 1001 | B8: =MID($A$7,ROW()-7,4) -> 1001 | C8: =IFERROR(VLOOKUP(VALUE($B$8),'Input Calculation'!$A$2:$AJ$29,9),"") -> 7250412 | D8: =_xlfn.IFNA(VLOOKUP($C8,'Product Information'!$A$2:$C$31,2),"") -> Thermal Socks | E8: =_xlfn.IFNA(VLOOKUP($C8,'Product Information'!$A$2:$C$31,3),"") -> 12.99
A9: =IF('Input Calculation'!B3=6315790090,'Input Calculation'!A3,"") ->  | C9: =IFERROR(VLOOKUP(VALUE($B$8),'Input Calculation'!$A$2:$AJ$29,11),"") -> 5216388 | D9: =_xlfn.IFNA(VLOOKUP($C9,'Product Information'!$A$2:$C$31,2),"") -> Logo Hat | E9: =_xlfn.IFNA(VLOOKUP($C9,'Product Information'!$A$2:$C$31,3),"") -> 49.99
A10: =IF('Input Calculation'!B4=6315790090,'Input Calculation'!A4,"") ->  | C10: =IFERROR(VLOOKUP(VALUE($B$8),'Input Calculation'!$A$2:$AJ$29,13),"") -> 9242514 | D10: =_xlfn.IFNA(VLOOKUP($C10,'Product Information'!$A$2:$C$31,2),"") -> Fashionista Sunglasses | E10: =_xlfn.IFNA(VLOOKUP($C10,'Product Information'!$A$2:$C$31,3),"") -> 499.99
A11: =IF('Input Calculation'!B5=6315790090,'Input Calculation'!A5,"") ->  | C11: =IFERROR(VLOOKUP(VALUE($B$8),'Input Calculation'!$A$2:$AJ$29,15),"") ->  | D11: =_xlfn.IFNA(VLOOKUP($C11,'Product Information'!$A$2:$C$31,2),"") ->  | E11: =_xlfn.IFNA(VLOOKUP($C11,'Product Information'!$A$2:$C$31,3),"") -> 
A12: =IF('Input Calculation'!B6=6315790090,'Input Calculation'!A6,"") ->  | C12: =IFERROR(VLOOKUP(VALUE($B$8),'Input Calculation'!$A$2:$AJ$29,17),"") ->  | D12: =_xlfn.IFNA(VLOOKUP($C12,'Product Information'!$A$2:$C$31,2),"") ->  | E12: =_xlfn.IFNA(VLOOKUP($C12,'Product Information'!$A$2:$C$31,3),"") -> 
A13: =IF('Input Calculation'!B7=6315790090,'Input Calculation'!A7,"") ->  | C13: =IFERROR(VLOOKUP(VALUE($B$8),'Input Calculation'!$A$2:$AJ$29,19),"") ->  | D13: =_xlfn.IFNA(VLOOKUP($C13,'Product Information'!$A$2:$C$31,2),"") ->  | E13: =_xlfn.IFNA(VLOOKUP($C13,'Product Information'!$A$2:$C$31,3),"") -> 
A14: =IF('Input Calculation'!B8=6315790090,'Input Calculation'!A8,"") ->  | C14: =IFERROR(VLOOKUP(VALUE($B$8),'Input Calculation'!$A$2:$AJ$29,21),"") ->  | D14: =_xlfn.IFNA(VLOOKUP($C14,'Product Information'!$A$2:$C$31,2),"") ->  | E14: =_xlfn.IFNA(VLOOKUP($C14,'Product Information'!$A$2:$C$31,3),"") -> 
A15: =IF('Input Calculation'!B9=6315790090,'Input Calculation'!A9,"") ->  | C15: =IFERROR(VLOOKUP(VALUE($B$8),'Input Calculation'!$A$2:$AJ$29,23),"") ->  | D15: =_xlfn.IFNA(VLOOKUP($C15,'Product Information'!$A$2:$C$31,2),"") ->  | E15: =_xlfn.IFNA(VLOOKUP($C15,'Product Information'!$A$2:$C$31,3),"") -> 
A16: =IF('Input Calculation'!B10=6315790090,'Input Calculation'!A10,"") ->  | C16: =IFERROR(VLOOKUP(VALUE($B$8),'Input Calculation'!$A$2:$AJ$29,25),"") ->  | D16: =_xlfn.IFNA(VLOOKUP($C16,'Product Information'!$A$2:$C$31,2),"") ->  | E16: =_xlfn.IFNA(VLOOKUP($C16,'Product Information'!$A$2:$C$31,3),"") -> 
A17: =IF('Input Calculation'!B11=6315790090,'Input Calculation'!A11,"") ->  | C17: =IFERROR(VLOOKUP(VALUE($B$8),'Input Calculation'!$A$2:$AJ$29,27),"") ->  | D17: =_xlfn.IFNA(VLOOKUP($C17,'Product Information'!$A$2:$C$31,2),"") ->  | E17: =_xlfn.IFNA(VLOOKUP($C17,'Product Information'!$A$2:$C$31,3),"") -> 
A18: =IF('Input Calculation'!B12=6315790090,'Input Calculation'!A12,"") ->  | D18: Total: | E18: =VLOOKUP(VALUE($B$8),'Input Calculation'!$A$2:$AJ$29,36) -> 548.17 | F18: Notes:
A19: =IF('Input Calculation'!B13=6315790090,'Input Calculation'!A13,"") -> 
A20: =IF('Input Calculation'!B14=6315790090,'Input Calculation'!A14,"") ->  | B20: =MID($A$7,LEN(B8)+1,4) -> 1015 | C20: =IFERROR(VLOOKUP(VALUE($B$20),'Input Calculation'!$A$2:$AJ$29,9),"") -> 5216388 | D20: =_xlfn.IFNA(VLOOKUP($C20,'Product Information'!$A$2:$C$31,2),"") -> Logo Hat | E20: =_xlfn.IFNA(VLOOKUP($C20,'Product Information'!$A$2:$C$31,3),"") -> 49.99
A21: =IF('Input Calculation'!B15=6315790090,'Input Calculation'!A15,"") ->  | C21: =IFERROR(VLOOKUP(VALUE($B$20),'Input Calculation'!$A$2:$AJ$29,11),"") ->  | D21: =_xlfn.IFNA(VLOOKUP($C21,'Product Information'!$A$2:$C$31,2),"") ->  | E21: =_xlfn.IFNA(VLOOKUP($C21,'Product Information'!$A$2:$C$31,3),"") -> 
A22: =IF('Input Calculation'!B16=6315790090,'Input Calculation'!A16,"") -> 1015 | C22: =IFERROR(VLOOKUP(VALUE($B$20),'Input Calculation'!$A$2:$AJ$29,13),"") ->  | D22: =_xlfn.IFNA(VLOOKUP($C22,'Product Information'!$A$2:$C$31,2),"") ->  | E22: =_xlfn.IFNA(VLOOKUP($C22,'Product Information'!$A$2:$C$31,3),"") -> 
A23: =IF('Input Calculation'!B17=6315790090,'Input Calculation'!A17,"") ->  | C23: =IFERROR(VLOOKUP(VALUE($B$20),'Input Calculation'!$A$2:$AJ$29,15),"") ->  | D23: =_xlfn.IFNA(VLOOKUP($C23,'Product Information'!$A$2:$C$31,2),"") ->  | E23: =_xlfn.IFNA(VLOOKUP($C23,'Product Information'!$A$2:$C$31,3),"") -> 
A24: =IF('Input Calculation'!B18=6315790090,'Input Calculation'!A18,"") ->  | C24: =IFERROR(VLOOKUP(VALUE($B$20),'Input Calculation'!$A$2:$AJ$29,17),"") ->  | D24: =_xlfn.IFNA(VLOOKUP($C24,'Product Information'!$A$2:$C$31,2),"") ->  | E24: =_xlfn.IFNA(VLOOKUP($C24,'Product Information'!$A$2:$C$31,3),"") -> 
A25: =IF('Input Calculation'!B19=6315790090,'Input Calculation'!A19,"") ->  | C25: =IFERROR(VLOOKUP(VALUE($B$20),'Input Calculation'!$A$2:$AJ$29,19),"") ->  | D25: =_xlfn.IFNA(VLOOKUP($C25,'Product Information'!$A$2:$C$31,2),"") ->  | E25: =_xlfn.IFNA(VLOOKUP($C25,'Product Information'!$A$2:$C$31,3),"") -> 
A26: =IF('Input Calculation'!B20=6315790090,'Input Calculation'!A20,"") ->  | C26: =IFERROR(VLOOKUP(VALUE($B$20),'Input Calculation'!$A$2:$AJ$29,21),"") ->  | D26: =_xlfn.IFNA(VLOOKUP($C26,'Product Information'!$A$2:$C$31,2),"") ->  | E26: =_xlfn.IFNA(VLOOKUP($C26,'Product Information'!$A$2:$C$31,3),"") -> 
A27: =IF('Input Calculation'!B21=6315790090,'Input Calculation'!A21,"") -> 1020 | C27: =IFERROR(VLOOKUP(VALUE($B$20),'Input Calculation'!$A$2:$AJ$29,23),"") ->  | D27: =_xlfn.IFNA(VLOOKUP($C27,'Product Information'!$A$2:$C$31,2),"") ->  | E27: =_xlfn.IFNA(VLOOKUP($C27,'Product Information'!$A$2:$C$31,3),"") -> 
A28: =IF('Input Calculation'!B22=6315790090,'Input Calculation'!A22,"") ->  | C28: =IFERROR(VLOOKUP(VALUE($B$20),'Input Calculation'!$A$2:$AJ$29,25),"") ->  | D28: =_xlfn.IFNA(VLOOKUP($C28,'Product Information'!$A$2:$C$31,2),"") ->  | E28: =_xlfn.IFNA(VLOOKUP($C28,'Product Information'!$A$2:$C$31,3),"") -> 
A29: =IF('Input Calculation'!B23=6315790090,'Input Calculation'!A23,"") ->  | C29: =IFERROR(VLOOKUP(VALUE($B$20),'Input Calculation'!$A$2:$AJ$29,27),"") ->  | D29: =_xlfn.IFNA(VLOOKUP($C29,'Product Information'!$A$2:$C$31,2),"") ->  | E29: =_xlfn.IFNA(VLOOKUP($C29,'Product Information'!$A$2:$C$31,3),"") -> 
A30: =IF('Input Calculation'!B24=6315790090,'Input Calculation'!A24,"") -> 1023 | D30: Total: | E30: =IFERROR(VLOOKUP(VALUE($B$20),'Input Calculation'!$A$2:$AJ$29,36),"") -> 48.68 | F30: Notes:
A31: =IF('Input Calculation'!B25=6315790090,'Input Calculation'!A25,"") -> 
A32: =IF('Input Calculation'!B26=6315790090,'Input Calculation'!A26,"") ->  | B32: =MID($A$7,LEN(B8)+LEN(B20)+1,4) -> 1020 | C32: =IFERROR(VLOOKUP(VALUE($B$32),'Input Calculation'!$A$2:$AJ$29,9),"") -> 8924251 | D32: =_xlfn.IFNA(VLOOKUP($C32,'Product Information'!$A$2:$C$31,2),"") -> Super Sunglasses | E32: =_xlfn.IFNA(VLOOKUP($C32,'Product Information'!$A$2:$C$31,3),"") -> 99.99
A33: =IF('Input Calculation'!B27=6315790090,'Input Calculation'!A27,"") ->  | C33: =IFERROR(VLOOKUP(VALUE($B$32),'Input Calculation'!$A$2:$AJ$29,11),"") -> 5216388 | D33: =_xlfn.IFNA(VLOOKUP($C33,'Product Information'!$A$2:$C$31,2),"") -> Logo Hat | E33: =_xlfn.IFNA(VLOOKUP($C33,'Product Information'!$A$2:$C$31,3),"") -> 49.99
A34: =IF('Input Calculation'!B28=6315790090,'Input Calculation'!A28,"") ->  | C34: =IFERROR(VLOOKUP(VALUE($B$32),'Input Calculation'!$A$2:$AJ$29,13),"") ->  | D34: =_xlfn.IFNA(VLOOKUP($C34,'Product Information'!$A$2:$C$31,2),"") ->  | E34: =_xlfn.IFNA(VLOOKUP($C34,'Product Information'!$A$2:$C$31,3),"") -> 
A35: =IF('Input Calculation'!B29=6315790090,'Input Calculation'!A29,"") ->  | C35: =IFERROR(VLOOKUP(VALUE($B$32),'Input Calculation'!$A$2:$AJ$29,15),"") ->  | D35: =_xlfn.IFNA(VLOOKUP($C35,'Product Information'!$A$2:$C$31,2),"") ->  | E35: =_xlfn.IFNA(VLOOKUP($C35,'Product Information'!$A$2:$C$31,3),"") -> 
A36: =IF('Input Calculation'!B30=6315790090,'Input Calculation'!A30,"") ->  | C36: =IFERROR(VLOOKUP(VALUE($B$32),'Input Calculation'!$A$2:$AJ$29,17),"") ->  | D36: =_xlfn.IFNA(VLOOKUP($C36,'Product Information'!$A$2:$C$31,2),"") ->  | E36: =_xlfn.IFNA(VLOOKUP($C36,'Product Information'!$A$2:$C$31,3),"") -> 
C37: =IFERROR(VLOOKUP(VALUE($B$32),'Input Calculation'!$A$2:$AJ$29,19),"") ->  | D37: =_xlfn.IFNA(VLOOKUP($C37,'Product Information'!$A$2:$C$31,2),"") ->  | E37: =_xlfn.IFNA(VLOOKUP($C37,'Product Information'!$A$2:$C$31,3),"") -> 
C38: =IFERROR(VLOOKUP(VALUE($B$32),'Input Calculation'!$A$2:$AJ$29,21),"") ->  | D38: =_xlfn.IFNA(VLOOKUP($C38,'Product Information'!$A$2:$C$31,2),"") ->  | E38: =_xlfn.IFNA(VLOOKUP($C38,'Product Information'!$A$2:$C$31,3),"") -> 
C39: =IFERROR(VLOOKUP(VALUE($B$32),'Input Calculation'!$A$2:$AJ$29,23),"") ->  | D39: =_xlfn.IFNA(VLOOKUP($C39,'Product Information'!$A$2:$C$31,2),"") ->  | E39: =_xlfn.IFNA(VLOOKUP($C39,'Product Information'!$A$2:$C$31,3),"") -> 
C40: =IFERROR(VLOOKUP(VALUE($B$32),'Input Calculation'!$A$2:$AJ$29,25),"") ->  | D40: =_xlfn.IFNA(VLOOKUP($C40,'Product Information'!$A$2:$C$31,2),"") ->  | E40: =_xlfn.IFNA(VLOOKUP($C40,'Product Information'!$A$2:$C$31,3),"") -> 
C41: =IFERROR(VLOOKUP(VALUE($B$32),'Input Calculation'!$A$2:$AJ$29,27),"") ->  | D41: =_xlfn.IFNA(VLOOKUP($C41,'Product Information'!$A$2:$C$31,2),"") ->  | E41: =_xlfn.IFNA(VLOOKUP($C41,'Product Information'!$A$2:$C$31,3),"") -> 
D42: Total: | E42: =IFERROR(VLOOKUP(VALUE($B$32),'Input Calculation'!$A$2:$AJ$29,36),"") -> 146.04 | F42: Notes:
B44: =MID($A$7,LEN(B8)+LEN(B20)+LEN(B32)+1,4) -> 1023 | C44: =IFERROR(VLOOKUP(VALUE($B$44),'Input Calculation'!$A$2:$AJ$29,9),"") -> 7250412 | D44: =_xlfn.IFNA(VLOOKUP($C44,'Product Information'!$A$2:$C$31,2),"") -> Thermal Socks | E44: =_xlfn.IFNA(VLOOKUP($C44,'Product Information'!$A$2:$C$31,3),"") -> 12.99
C45: =IFERROR(VLOOKUP(VALUE($B$44),'Input Calculation'!$A$2:$AJ$29,11),"") -> 8924251 | D45: =_xlfn.IFNA(VLOOKUP($C45,'Product Information'!$A$2:$C$31,2),"") -> Super Sunglasses | E45: =_xlfn.IFNA(VLOOKUP($C45,'Product Information'!$A$2:$C$31,3),"") -> 99.99
C46: =IFERROR(VLOOKUP(VALUE($B$44),'Input Calculation'!$A$2:$AJ$29,13),"") ->  | D46: =_xlfn.IFNA(VLOOKUP($C46,'Product Information'!$A$2:$C$31,2),"") ->  | E46: =_xlfn.IFNA(VLOOKUP($C46,'Product Information'!$A$2:$C$31,3),"") -> 
C47: =IFERROR(VLOOKUP(VALUE($B$44),'Input Calculation'!$A$2:$AJ$29,15),"") ->  | D47: =_xlfn.IFNA(VLOOKUP($C47,'Product Information'!$A$2:$C$31,2),"") ->  | E47: =_xlfn.IFNA(VLOOKUP($C47,'Product Information'!$A$2:$C$31,3),"") -> 
C48: =IFERROR(VLOOKUP(VALUE($B$44),'Input Calculation'!$A$2:$AJ$29,17),"") ->  | D48: =_xlfn.IFNA(VLOOKUP($C48,'Product Information'!$A$2:$C$31,2),"") ->  | E48: =_xlfn.IFNA(VLOOKUP($C48,'Product Information'!$A$2:$C$31,3),"") -> 
C49: =IFERROR(VLOOKUP(VALUE($B$44),'Input Calculation'!$A$2:$AJ$29,19),"") ->  | D49: =_xlfn.IFNA(VLOOKUP($C49,'Product Information'!$A$2:$C$31,2),"") ->  | E49: =_xlfn.IFNA(VLOOKUP($C49,'Product Information'!$A$2:$C$31,3),"") -> 
C50: =IFERROR(VLOOKUP(VALUE($B$44),'Input Calculation'!$A$2:$AJ$29,21),"") ->  | D50: =_xlfn.IFNA(VLOOKUP($C50,'Product Information'!$A$2:$C$31,2),"") ->  | E50: =_xlfn.IFNA(VLOOKUP($C50,'Product Information'!$A$2:$C$31,3),"") -> 
C51: =IFERROR(VLOOKUP(VALUE($B$44),'Input Calculation'!$A$2:$AJ$29,23),"") ->  | D51: =_xlfn.IFNA(VLOOKUP($C51,'Product Information'!$A$2:$C$31,2),"") ->  | E51: =_xlfn.IFNA(VLOOKUP($C51,'Product Information'!$A$2:$C$31,3),"") -> 
C52: =IFERROR(VLOOKUP(VALUE($B$44),'Input Calculation'!$A$2:$AJ$29,25),"") ->  | D52: =_xlfn.IFNA(VLOOKUP($C52,'Product Information'!$A$2:$C$31,2),"") ->  | E52: =_xlfn.IFNA(VLOOKUP($C52,'Product Information'!$A$2:$C$31,3),"") -> 
C53: =IFERROR(VLOOKUP(VALUE($B$44),'Input Calculation'!$A$2:$AJ$29,27),"") ->  | D53: =_xlfn.IFNA(VLOOKUP($C53,'Product Information'!$A$2:$C$31,2),"") ->  | E53: =_xlfn.IFNA(VLOOKUP($C53,'Product Information'!$A$2:$C$31,3),"") -> 
D54: Total: | E54: =IFERROR(VLOOKUP(VALUE($B$44),'Input Calculation'!$A$2:$AJ$29,36),"") -> 110.01 | F54: Notes:
B56: =MID($A$7,LEN(B8)+LEN(B20)+LEN(B32)+LEN(B44)+1,4) ->  | C56: =IFERROR(VLOOKUP(VALUE($B$56),'Input Calculation'!$A$2:$AJ$29,9),"") ->  | D56: =_xlfn.IFNA(VLOOKUP($C56,'Product Information'!$A$2:$C$31,2),"") ->  | E56: =_xlfn.IFNA(VLOOKUP($C56,'Product Information'!$A$2:$C$31,3),"") -> 
C57: =IFERROR(VLOOKUP(VALUE($B$56),'Input Calculation'!$A$2:$AJ$29,11),"") ->  | D57: =_xlfn.IFNA(VLOOKUP($C57,'Product Information'!$A$2:$C$31,2),"") ->  | E57: =_xlfn.IFNA(VLOOKUP($C57,'Product Information'!$A$2:$C$31,3),"") -> 
C58: =IFERROR(VLOOKUP(VALUE($B$56),'Input Calculation'!$A$2:$AJ$29,13),"") ->  | D58: =_xlfn.IFNA(VLOOKUP($C58,'Product Information'!$A$2:$C$31,2),"") ->  | E58: =_xlfn.IFNA(VLOOKUP($C58,'Product Information'!$A$2:$C$31,3),"") -> 
C59: =IFERROR(VLOOKUP(VALUE($B$56),'Input Calculation'!$A$2:$AJ$29,15),"") ->  | D59: =_xlfn.IFNA(VLOOKUP($C59,'Product Information'!$A$2:$C$31,2),"") ->  | E59: =_xlfn.IFNA(VLOOKUP($C59,'Product Information'!$A$2:$C$31,3),"") -> 
C60: =IFERROR(VLOOKUP(VALUE($B$56),'Input Calculation'!$A$2:$AJ$29,17),"") ->  | D60: =_xlfn.IFNA(VLOOKUP($C60,'Product Information'!$A$2:$C$31,2),"") ->  | E60: =_xlfn.IFNA(VLOOKUP($C60,'Product Information'!$A$2:$C$31,3),"") -> 
C61: =IFERROR(VLOOKUP(VALUE($B$56),'Input Calculation'!$A$2:$AJ$29,19),"") ->  | D61: =_xlfn.IFNA(VLOOKUP($C61,'Product Information'!$A$2:$C$31,2),"") ->  | E61: =_xlfn.IFNA(VLOOKUP($C61,'Product Information'!$A$2:$C$31,3),"") -> 
C62: =IFERROR(VLOOKUP(VALUE($B$56),'Input Calculation'!$A$2:$AJ$29,21),"") ->  | D62: =_xlfn.IFNA(VLOOKUP($C62,'Product Information'!$A$2:$C$31,2),"") ->  | E62: =_xlfn.IFNA(VLOOKUP($C62,'Product Information'!$A$2:$C$31,3),"") -> 
C63: =IFERROR(VLOOKUP(VALUE($B$56),'Input Calculation'!$A$2:$AJ$29,23),"") ->  | D63: =_xlfn.IFNA(VLOOKUP($C63,'Product Information'!$A$2:$C$31,2),"") ->  | E63: =_xlfn.IFNA(VLOOKUP($C63,'Product Information'!$A$2:$C$31,3),"") -> 
C64: =IFERROR(VLOOKUP(VALUE($B$56),'Input Calculation'!$A$2:$AJ$29,25),"") ->  | D64: =_xlfn.IFNA(VLOOKUP($C64,'Product Information'!$A$2:$C$31,2),"") ->  | E64: =_xlfn.IFNA(VLOOKUP($C64,'Product Information'!$A$2:$C$31,3),"") -> 
C65: =IFERROR(VLOOKUP(VALUE($B$56),'Input Calculation'!$A$2:$AJ$29,27),"") ->  | D65: =_xlfn.IFNA(VLOOKUP($C65,'Product Information'!$A$2:$C$31,2),"") ->  | E65: =_xlfn.IFNA(VLOOKUP($C65,'Product Information'!$A$2:$C$31,3),"") -> 
D66: Total: | E66: =IFERROR(VLOOKUP(VALUE($B$56),'Input Calculation'!$A$2:$AJ$29,36),"") ->  | F66: Notes:
B68: =MID($A$7,LEN(B8)+LEN(B20)+LEN(B32)+LEN(B44)+LEN(B56)+1,4) ->  | C68: =IFERROR(VLOOKUP(VALUE($B$68),'Input Calculation'!$A$2:$AJ$29,9),"") ->  | D68: =_xlfn.IFNA(VLOOKUP($C68,'Product Information'!$A$2:$C$31,2),"") ->  | E68: =_xlfn.IFNA(VLOOKUP($C68,'Product Information'!$A$2:$C$31,3),"") -> 
C69: =IFERROR(VLOOKUP(VALUE($B$68),'Input Calculation'!$A$2:$AJ$29,11),"") ->  | D69: =_xlfn.IFNA(VLOOKUP($C69,'Product Information'!$A$2:$C$31,2),"") ->  | E69: =_xlfn.IFNA(VLOOKUP($C69,'Product Information'!$A$2:$C$31,3),"") -> 
C70: =IFERROR(VLOOKUP(VALUE($B$68),'Input Calculation'!$A$2:$AJ$29,13),"") ->  | D70: =_xlfn.IFNA(VLOOKUP($C70,'Product Information'!$A$2:$C$31,2),"") ->  | E70: =_xlfn.IFNA(VLOOKUP($C70,'Product Information'!$A$2:$C$31,3),"") -> 
C71: =IFERROR(VLOOKUP(VALUE($B$68),'Input Calculation'!$A$2:$AJ$29,15),"") ->  | D71: =_xlfn.IFNA(VLOOKUP($C71,'Product Information'!$A$2:$C$31,2),"") ->  | E71: =_xlfn.IFNA(VLOOKUP($C71,'Product Information'!$A$2:$C$31,3),"") -> 
C72: =IFERROR(VLOOKUP(VALUE($B$68),'Input Calculation'!$A$2:$AJ$29,17),"") ->  | D72: =_xlfn.IFNA(VLOOKUP($C72,'Product Information'!$A$2:$C$31,2),"") ->  | E72: =_xlfn.IFNA(VLOOKUP($C72,'Product Information'!$A$2:$C$31,3),"") -> 
C73: =IFERROR(VLOOKUP(VALUE($B$68),'Input Calculation'!$A$2:$AJ$29,19),"") ->  | D73: =_xlfn.IFNA(VLOOKUP($C73,'Product Information'!$A$2:$C$31,2),"") ->  | E73: =_xlfn.IFNA(VLOOKUP($C73,'Product Information'!$A$2:$C$31,3),"") -> 
C74: =IFERROR(VLOOKUP(VALUE($B$68),'Input Calculation'!$A$2:$AJ$29,21),"") ->  | D74: =_xlfn.IFNA(VLOOKUP($C74,'Product Information'!$A$2:$C$31,2),"") ->  | E74: =_xlfn.IFNA(VLOOKUP($C74,'Product Information'!$A$2:$C$31,3),"") -> 
C75: =IFERROR(VLOOKUP(VALUE($B$68),'Input Calculation'!$A$2:$AJ$29,23),"") ->  | D75: =_xlfn.IFNA(VLOOKUP($C75,'Product Information'!$A$2:$C$31,2),"") ->  | E75: =_xlfn.IFNA(VLOOKUP($C75,'Product Information'!$A$2:$C$31,3),"") -> 
C76: =IFERROR(VLOOKUP(VALUE($B$68),'Input Calculation'!$A$2:$AJ$29,25),"") ->  | D76: =_xlfn.IFNA(VLOOKUP($C76,'Product Information'!$A$2:$C$31,2),"") ->  | E76: =_xlfn.IFNA(VLOOKUP($C76,'Product Information'!$A$2:$C$31,3),"") -> 
C77: =IFERROR(VLOOKUP(VALUE($B$68),'Input Calculation'!$A$2:$AJ$29,27),"") ->  | D77: =_xlfn.IFNA(VLOOKUP($C77,'Product Information'!$A$2:$C$31,2),"") ->  | E77: =_xlfn.IFNA(VLOOKUP($C77,'Product Information'!$A$2:$C$31,3),"") -> 
D78: Total: | E78: =IFERROR(VLOOKUP(VALUE($B$68),'Input Calculation'!$A$2:$AJ$29,36),"") ->  | F78: Notes:

Sheet 6530353532 (hidden)
A1: Name: | B1: =VLOOKUP(6530353532,'Customer Information'!$A$2:$I$12,2) -> Pumpkineater Peter
A2: Phone: | B2: =TEXT(6530353532,"###-###-####") -> 653-035-3532
A3: Email: | B3: =VLOOKUP(6530353532,'Customer Information'!$A$2:$I$12,3) -> Orange@mail.com
A4: Address: | B4: =CONCATENATE(VLOOKUP(6530353532,'Customer Information'!$A$2:$I$12,4),", ",VLOOKUP(6530353532,'Customer Information'!$A$2:$I$12,5),", ",VLOOKUP(6530353532,'Customer Information'!$A$2:$I$12,6)," ",VLOOKUP(6530353532,'Customer Information'!$A$2:$I$12,7)) -> 32 Maple Road, Bloomington, VT 8876
A5: Customer Since: | B5: =VLOOKUP(6530353532,'Customer Information'!$A$2:$I$12,8) -> 2008
A6: Good Standing: | B6: =VLOOKUP(6530353532,'Customer Information'!$A$2:$I$12,9) -> Yes
A7: =CONCATENATE(A8,A9,A10,A11,A12,A13,A14,A15,A16,A17,A18,A19,A20,A21,A22,A23,A24,A25,A26,A27,A28,A29,A30,A31,A32,A33,A34,A35,A36) -> 100610101022 | B7: Order Number
A8: =IF('Input Calculation'!B2=6530353532,'Input Calculation'!A2,"") ->  | B8: =MID($A$7,ROW()-7,4) -> 1006 | C8: =IFERROR(VLOOKUP(VALUE($B$8),'Input Calculation'!$A$2:$AJ$29,9),"") -> 8924251 | D8: =_xlfn.IFNA(VLOOKUP($C8,'Product Information'!$A$2:$C$31,2),"") -> Super Sunglasses | E8: =_xlfn.IFNA(VLOOKUP($C8,'Product Information'!$A$2:$C$31,3),"") -> 99.99
A9: =IF('Input Calculation'!B3=6530353532,'Input Calculation'!A3,"") ->  | C9: =IFERROR(VLOOKUP(VALUE($B$8),'Input Calculation'!$A$2:$AJ$29,11),"") -> 7250412 | D9: =_xlfn.IFNA(VLOOKUP($C9,'Product Information'!$A$2:$C$31,2),"") -> Thermal Socks | E9: =_xlfn.IFNA(VLOOKUP($C9,'Product Information'!$A$2:$C$31,3),"") -> 12.99
A10: =IF('Input Calculation'!B4=6530353532,'Input Calculation'!A4,"") ->  | C10: =IFERROR(VLOOKUP(VALUE($B$8),'Input Calculation'!$A$2:$AJ$29,13),"") -> 8924251 | D10: =_xlfn.IFNA(VLOOKUP($C10,'Product Information'!$A$2:$C$31,2),"") -> Super Sunglasses | E10: =_xlfn.IFNA(VLOOKUP($C10,'Product Information'!$A$2:$C$31,3),"") -> 99.99
A11: =IF('Input Calculation'!B5=6530353532,'Input Calculation'!A5,"") ->  | C11: =IFERROR(VLOOKUP(VALUE($B$8),'Input Calculation'!$A$2:$AJ$29,15),"") ->  | D11: =_xlfn.IFNA(VLOOKUP($C11,'Product Information'!$A$2:$C$31,2),"") ->  | E11: =_xlfn.IFNA(VLOOKUP($C11,'Product Information'!$A$2:$C$31,3),"") -> 
A12: =IF('Input Calculation'!B6=6530353532,'Input Calculation'!A6,"") ->  | C12: =IFERROR(VLOOKUP(VALUE($B$8),'Input Calculation'!$A$2:$AJ$29,17),"") ->  | D12: =_xlfn.IFNA(VLOOKUP($C12,'Product Information'!$A$2:$C$31,2),"") ->  | E12: =_xlfn.IFNA(VLOOKUP($C12,'Product Information'!$A$2:$C$31,3),"") -> 
A13: =IF('Input Calculation'!B7=6530353532,'Input Calculation'!A7,"") -> 1006 | C13: =IFERROR(VLOOKUP(VALUE($B$8),'Input Calculation'!$A$2:$AJ$29,19),"") ->  | D13: =_xlfn.IFNA(VLOOKUP($C13,'Product Information'!$A$2:$C$31,2),"") ->  | E13: =_xlfn.IFNA(VLOOKUP($C13,'Product Information'!$A$2:$C$31,3),"") -> 
A14: =IF('Input Calculation'!B8=6530353532,'Input Calculation'!A8,"") ->  | C14: =IFERROR(VLOOKUP(VALUE($B$8),'Input Calculation'!$A$2:$AJ$29,21),"") ->  | D14: =_xlfn.IFNA(VLOOKUP($C14,'Product Information'!$A$2:$C$31,2),"") ->  | E14: =_xlfn.IFNA(VLOOKUP($C14,'Product Information'!$A$2:$C$31,3),"") -> 
A15: =IF('Input Calculation'!B9=6530353532,'Input Calculation'!A9,"") ->  | C15: =IFERROR(VLOOKUP(VALUE($B$8),'Input Calculation'!$A$2:$AJ$29,23),"") ->  | D15: =_xlfn.IFNA(VLOOKUP($C15,'Product Information'!$A$2:$C$31,2),"") ->  | E15: =_xlfn.IFNA(VLOOKUP($C15,'Product Information'!$A$2:$C$31,3),"") -> 
A16: =IF('Input Calculation'!B10=6530353532,'Input Calculation'!A10,"") ->  | C16: =IFERROR(VLOOKUP(VALUE($B$8),'Input Calculation'!$A$2:$AJ$29,25),"") ->  | D16: =_xlfn.IFNA(VLOOKUP($C16,'Product Information'!$A$2:$C$31,2),"") ->  | E16: =_xlfn.IFNA(VLOOKUP($C16,'Product Information'!$A$2:$C$31,3),"") -> 
A17: =IF('Input Calculation'!B11=6530353532,'Input Calculation'!A11,"") -> 1010 | C17: =IFERROR(VLOOKUP(VALUE($B$8),'Input Calculation'!$A$2:$AJ$29,27),"") ->  | D17: =_xlfn.IFNA(VLOOKUP($C17,'Product Information'!$A$2:$C$31,2),"") ->  | E17: =_xlfn.IFNA(VLOOKUP($C17,'Product Information'!$A$2:$C$31,3),"") -> 
A18: =IF('Input Calculation'!B12=6530353532,'Input Calculation'!A12,"") ->  | D18: Total: | E18: =VLOOKUP(VALUE($B$8),'Input Calculation'!$A$2:$AJ$29,36) -> 203.6 | F18: Notes:
A19: =IF('Input Calculation'!B13=6530353532,'Input Calculation'!A13,"") -> 
A20: =IF('Input Calculation'!B14=6530353532,'Input Calculation'!A14,"") ->  | B20: =MID($A$7,LEN(B8)+1,4) -> 1010 | C20: =IFERROR(VLOOKUP(VALUE($B$20),'Input Calculation'!$A$2:$AJ$29,9),"") -> 3055845 | D20: =_xlfn.IFNA(VLOOKUP($C20,'Product Information'!$A$2:$C$31,2),"") -> Winter Jacket | E20: =_xlfn.IFNA(VLOOKUP($C20,'Product Information'!$A$2:$C$31,3),"") -> 199.99
A21: =IF('Input Calculation'!B15=6530353532,'Input Calculation'!A15,"") ->  | C21: =IFERROR(VLOOKUP(VALUE($B$20),'Input Calculation'!$A$2:$AJ$29,11),"") -> 2056772 | D21: =_xlfn.IFNA(VLOOKUP($C21,'Product Information'!$A$2:$C$31,2),"") -> Great Pants | E21: =_xlfn.IFNA(VLOOKUP($C21,'Product Information'!$A$2:$C$31,3),"") -> 74.99
A22: =IF('Input Calculation'!B16=6530353532,'Input Calculation'!A16,"") ->  | C22: =IFERROR(VLOOKUP(VALUE($B$20),'Input Calculation'!$A$2:$AJ$29,13),"") -> 5216388 | D22: =_xlfn.IFNA(VLOOKUP($C22,'Product Information'!$A$2:$C$31,2),"") -> Logo Hat | E22: =_xlfn.IFNA(VLOOKUP($C22,'Product Information'!$A$2:$C$31,3),"") -> 49.99
A23: =IF('Input Calculation'!B17=6530353532,'Input Calculation'!A17,"") ->  | C23: =IFERROR(VLOOKUP(VALUE($B$20),'Input Calculation'!$A$2:$AJ$29,15),"") ->  | D23: =_xlfn.IFNA(VLOOKUP($C23,'Product Information'!$A$2:$C$31,2),"") ->  | E23: =_xlfn.IFNA(VLOOKUP($C23,'Product Information'!$A$2:$C$31,3),"") -> 
A24: =IF('Input Calculation'!B18=6530353532,'Input Calculation'!A18,"") ->  | C24: =IFERROR(VLOOKUP(VALUE($B$20),'Input Calculation'!$A$2:$AJ$29,17),"") ->  | D24: =_xlfn.IFNA(VLOOKUP($C24,'Product Information'!$A$2:$C$31,2),"") ->  | E24: =_xlfn.IFNA(VLOOKUP($C24,'Product Information'!$A$2:$C$31,3),"") -> 
A25: =IF('Input Calculation'!B19=6530353532,'Input Calculation'!A19,"") ->  | C25: =IFERROR(VLOOKUP(VALUE($B$20),'Input Calculation'!$A$2:$AJ$29,19),"") ->  | D25: =_xlfn.IFNA(VLOOKUP($C25,'Product Information'!$A$2:$C$31,2),"") ->  | E25: =_xlfn.IFNA(VLOOKUP($C25,'Product Information'!$A$2:$C$31,3),"") -> 
A26: =IF('Input Calculation'!B20=6530353532,'Input Calculation'!A20,"") ->  | C26: =IFERROR(VLOOKUP(VALUE($B$20),'Input Calculation'!$A$2:$AJ$29,21),"") ->  | D26: =_xlfn.IFNA(VLOOKUP($C26,'Product Information'!$A$2:$C$31,2),"") ->  | E26: =_xlfn.IFNA(VLOOKUP($C26,'Product Information'!$A$2:$C$31,3),"") -> 
A27: =IF('Input Calculation'!B21=6530353532,'Input Calculation'!A21,"") ->  | C27: =IFERROR(VLOOKUP(VALUE($B$20),'Input Calculation'!$A$2:$AJ$29,23),"") ->  | D27: =_xlfn.IFNA(VLOOKUP($C27,'Product Information'!$A$2:$C$31,2),"") ->  | E27: =_xlfn.IFNA(VLOOKUP($C27,'Product Information'!$A$2:$C$31,3),"") -> 
A28: =IF('Input Calculation'!B22=6530353532,'Input Calculation'!A22,"") ->  | C28: =IFERROR(VLOOKUP(VALUE($B$20),'Input Calculation'!$A$2:$AJ$29,25),"") ->  | D28: =_xlfn.IFNA(VLOOKUP($C28,'Product Information'!$A$2:$C$31,2),"") ->  | E28: =_xlfn.IFNA(VLOOKUP($C28,'Product Information'!$A$2:$C$31,3),"") -> 
A29: =IF('Input Calculation'!B23=6530353532,'Input Calculation'!A23,"") -> 1022 | C29: =IFERROR(VLOOKUP(VALUE($B$20),'Input Calculation'!$A$2:$AJ$29,27),"") ->  | D29: =_xlfn.IFNA(VLOOKUP($C29,'Product Information'!$A$2:$C$31,2),"") ->  | E29: =_xlfn.IFNA(VLOOKUP($C29,'Product Information'!$A$2:$C$31,3),"") -> 
A30: =IF('Input Calculation'!B24=6530353532,'Input Calculation'!A24,"") ->  | D30: Total: | E30: =IFERROR(VLOOKUP(VALUE($B$20),'Input Calculation'!$A$2:$AJ$29,36),"") -> 310.67 | F30: Notes:
A31: =IF('Input Calculation'!B25=6530353532,'Input Calculation'!A25,"") -> 
A32: =IF('Input Calculation'!B26=6530353532,'Input Calculation'!A26,"") ->  | B32: =MID($A$7,LEN(B8)+LEN(B20)+1,4) -> 1022 | C32: =IFERROR(VLOOKUP(VALUE($B$32),'Input Calculation'!$A$2:$AJ$29,9),"") -> 8924251 | D32: =_xlfn.IFNA(VLOOKUP($C32,'Product Information'!$A$2:$C$31,2),"") -> Super Sunglasses | E32: =_xlfn.IFNA(VLOOKUP($C32,'Product Information'!$A$2:$C$31,3),"") -> 99.99
A33: =IF('Input Calculation'!B27=6530353532,'Input Calculation'!A27,"") ->  | C33: =IFERROR(VLOOKUP(VALUE($B$32),'Input Calculation'!$A$2:$AJ$29,11),"") ->  | D33: =_xlfn.IFNA(VLOOKUP($C33,'Product Information'!$A$2:$C$31,2),"") ->  | E33: =_xlfn.IFNA(VLOOKUP($C33,'Product Information'!$A$2:$C$31,3),"") -> 
A34: =IF('Input Calculation'!B28=6530353532,'Input Calculation'!A28,"") ->  | C34: =IFERROR(VLOOKUP(VALUE($B$32),'Input Calculation'!$A$2:$AJ$29,13),"") ->  | D34: =_xlfn.IFNA(VLOOKUP($C34,'Product Information'!$A$2:$C$31,2),"") ->  | E34: =_xlfn.IFNA(VLOOKUP($C34,'Product Information'!$A$2:$C$31,3),"") -> 
A35: =IF('Input Calculation'!B29=6530353532,'Input Calculation'!A29,"") ->  | C35: =IFERROR(VLOOKUP(VALUE($B$32),'Input Calculation'!$A$2:$AJ$29,15),"") ->  | D35: =_xlfn.IFNA(VLOOKUP($C35,'Product Information'!$A$2:$C$31,2),"") ->  | E35: =_xlfn.IFNA(VLOOKUP($C35,'Product Information'!$A$2:$C$31,3),"") -> 
A36: =IF('Input Calculation'!B30=6530353532,'Input Calculation'!A30,"") ->  | C36: =IFERROR(VLOOKUP(VALUE($B$32),'Input Calculation'!$A$2:$AJ$29,17),"") ->  | D36: =_xlfn.IFNA(VLOOKUP($C36,'Product Information'!$A$2:$C$31,2),"") ->  | E36: =_xlfn.IFNA(VLOOKUP($C36,'Product Information'!$A$2:$C$31,3),"") -> 
C37: =IFERROR(VLOOKUP(VALUE($B$32),'Input Calculation'!$A$2:$AJ$29,19),"") ->  | D37: =_xlfn.IFNA(VLOOKUP($C37,'Product Information'!$A$2:$C$31,2),"") ->  | E37: =_xlfn.IFNA(VLOOKUP($C37,'Product Information'!$A$2:$C$31,3),"") -> 
C38: =IFERROR(VLOOKUP(VALUE($B$32),'Input Calculation'!$A$2:$AJ$29,21),"") ->  | D38: =_xlfn.IFNA(VLOOKUP($C38,'Product Information'!$A$2:$C$31,2),"") ->  | E38: =_xlfn.IFNA(VLOOKUP($C38,'Product Information'!$A$2:$C$31,3),"") -> 
C39: =IFERROR(VLOOKUP(VALUE($B$32),'Input Calculation'!$A$2:$AJ$29,23),"") ->  | D39: =_xlfn.IFNA(VLOOKUP($C39,'Product Information'!$A$2:$C$31,2),"") ->  | E39: =_xlfn.IFNA(VLOOKUP($C39,'Product Information'!$A$2:$C$31,3),"") -> 
C40: =IFERROR(VLOOKUP(VALUE($B$32),'Input Calculation'!$A$2:$AJ$29,25),"") ->  | D40: =_xlfn.IFNA(VLOOKUP($C40,'Product Information'!$A$2:$C$31,2),"") ->  | E40: =_xlfn.IFNA(VLOOKUP($C40,'Product Information'!$A$2:$C$31,3),"") -> 
C41: =IFERROR(VLOOKUP(VALUE($B$32),'Input Calculation'!$A$2:$AJ$29,27),"") ->  | D41: =_xlfn.IFNA(VLOOKUP($C41,'Product Information'!$A$2:$C$31,2),"") ->  | E41: =_xlfn.IFNA(VLOOKUP($C41,'Product Information'!$A$2:$C$31,3),"") -> 
D42: Total: | E42: =IFERROR(VLOOKUP(VALUE($B$32),'Input Calculation'!$A$2:$AJ$29,36),"") -> 95.59 | F42: Notes:
B44: =MID($A$7,LEN(B8)+LEN(B20)+LEN(B32)+1,4) ->  | C44: =IFERROR(VLOOKUP(VALUE($B$44),'Input Calculation'!$A$2:$AJ$29,9),"") ->  | D44: =_xlfn.IFNA(VLOOKUP($C44,'Product Information'!$A$2:$C$31,2),"") ->  | E44: =_xlfn.IFNA(VLOOKUP($C44,'Product Information'!$A$2:$C$31,3),"") -> 
C45: =IFERROR(VLOOKUP(VALUE($B$44),'Input Calculation'!$A$2:$AJ$29,11),"") ->  | D45: =_xlfn.IFNA(VLOOKUP($C45,'Product Information'!$A$2:$C$31,2),"") ->  | E45: =_xlfn.IFNA(VLOOKUP($C45,'Product Information'!$A$2:$C$31,3),"") -> 
C46: =IFERROR(VLOOKUP(VALUE($B$44),'Input Calculation'!$A$2:$AJ$29,13),"") ->  | D46: =_xlfn.IFNA(VLOOKUP($C46,'Product Information'!$A$2:$C$31,2),"") ->  | E46: =_xlfn.IFNA(VLOOKUP($C46,'Product Information'!$A$2:$C$31,3),"") -> 
C47: =IFERROR(VLOOKUP(VALUE($B$44),'Input Calculation'!$A$2:$AJ$29,15),"") ->  | D47: =_xlfn.IFNA(VLOOKUP($C47,'Product Information'!$A$2:$C$31,2),"") ->  | E47: =_xlfn.IFNA(VLOOKUP($C47,'Product Information'!$A$2:$C$31,3),"") -> 
C48: =IFERROR(VLOOKUP(VALUE($B$44),'Input Calculation'!$A$2:$AJ$29,17),"") ->  | D48: =_xlfn.IFNA(VLOOKUP($C48,'Product Information'!$A$2:$C$31,2),"") ->  | E48: =_xlfn.IFNA(VLOOKUP($C48,'Product Information'!$A$2:$C$31,3),"") -> 
C49: =IFERROR(VLOOKUP(VALUE($B$44),'Input Calculation'!$A$2:$AJ$29,19),"") ->  | D49: =_xlfn.IFNA(VLOOKUP($C49,'Product Information'!$A$2:$C$31,2),"") ->  | E49: =_xlfn.IFNA(VLOOKUP($C49,'Product Information'!$A$2:$C$31,3),"") -> 
C50: =IFERROR(VLOOKUP(VALUE($B$44),'Input Calculation'!$A$2:$AJ$29,21),"") ->  | D50: =_xlfn.IFNA(VLOOKUP($C50,'Product Information'!$A$2:$C$31,2),"") ->  | E50: =_xlfn.IFNA(VLOOKUP($C50,'Product Information'!$A$2:$C$31,3),"") -> 
C51: =IFERROR(VLOOKUP(VALUE($B$44),'Input Calculation'!$A$2:$AJ$29,23),"") ->  | D51: =_xlfn.IFNA(VLOOKUP($C51,'Product Information'!$A$2:$C$31,2),"") ->  | E51: =_xlfn.IFNA(VLOOKUP($C51,'Product Information'!$A$2:$C$31,3),"") -> 
C52: =IFERROR(VLOOKUP(VALUE($B$44),'Input Calculation'!$A$2:$AJ$29,25),"") ->  | D52: =_xlfn.IFNA(VLOOKUP($C52,'Product Information'!$A$2:$C$31,2),"") ->  | E52: =_xlfn.IFNA(VLOOKUP($C52,'Product Information'!$A$2:$C$31,3),"") -> 
C53: =IFERROR(VLOOKUP(VALUE($B$44),'Input Calculation'!$A$2:$AJ$29,27),"") ->  | D53: =_xlfn.IFNA(VLOOKUP($C53,'Product Information'!$A$2:$C$31,2),"") ->  | E53: =_xlfn.IFNA(VLOOKUP($C53,'Product Information'!$A$2:$C$31,3),"") -> 
D54: Total: | E54: =IFERROR(VLOOKUP(VALUE($B$44),'Input Calculation'!$A$2:$AJ$29,36),"") ->  | F54: Notes:
B56: =MID($A$7,LEN(B8)+LEN(B20)+LEN(B32)+LEN(B44)+1,4) ->  | C56: =IFERROR(VLOOKUP(VALUE($B$56),'Input Calculation'!$A$2:$AJ$29,9),"") ->  | D56: =_xlfn.IFNA(VLOOKUP($C56,'Product Information'!$A$2:$C$31,2),"") ->  | E56: =_xlfn.IFNA(VLOOKUP($C56,'Product Information'!$A$2:$C$31,3),"") -> 
C57: =IFERROR(VLOOKUP(VALUE($B$56),'Input Calculation'!$A$2:$AJ$29,11),"") ->  | D57: =_xlfn.IFNA(VLOOKUP($C57,'Product Information'!$A$2:$C$31,2),"") ->  | E57: =_xlfn.IFNA(VLOOKUP($C57,'Product Information'!$A$2:$C$31,3),"") -> 
C58: =IFERROR(VLOOKUP(VALUE($B$56),'Input Calculation'!$A$2:$AJ$29,13),"") ->  | D58: =_xlfn.IFNA(VLOOKUP($C58,'Product Information'!$A$2:$C$31,2),"") ->  | E58: =_xlfn.IFNA(VLOOKUP($C58,'Product Information'!$A$2:$C$31,3),"") -> 
C59: =IFERROR(VLOOKUP(VALUE($B$56),'Input Calculation'!$A$2:$AJ$29,15),"") ->  | D59: =_xlfn.IFNA(VLOOKUP($C59,'Product Information'!$A$2:$C$31,2),"") ->  | E59: =_xlfn.IFNA(VLOOKUP($C59,'Product Information'!$A$2:$C$31,3),"") -> 
C60: =IFERROR(VLOOKUP(VALUE($B$56),'Input Calculation'!$A$2:$AJ$29,17),"") ->  | D60: =_xlfn.IFNA(VLOOKUP($C60,'Product Information'!$A$2:$C$31,2),"") ->  | E60: =_xlfn.IFNA(VLOOKUP($C60,'Product Information'!$A$2:$C$31,3),"") -> 
C61: =IFERROR(VLOOKUP(VALUE($B$56),'Input Calculation'!$A$2:$AJ$29,19),"") ->  | D61: =_xlfn.IFNA(VLOOKUP($C61,'Product Information'!$A$2:$C$31,2),"") ->  | E61: =_xlfn.IFNA(VLOOKUP($C61,'Product Information'!$A$2:$C$31,3),"") -> 
C62: =IFERROR(VLOOKUP(VALUE($B$56),'Input Calculation'!$A$2:$AJ$29,21),"") ->  | D62: =_xlfn.IFNA(VLOOKUP($C62,'Product Information'!$A$2:$C$31,2),"") ->  | E62: =_xlfn.IFNA(VLOOKUP($C62,'Product Information'!$A$2:$C$31,3),"") -> 
C63: =IFERROR(VLOOKUP(VALUE($B$56),'Input Calculation'!$A$2:$AJ$29,23),"") ->  | D63: =_xlfn.IFNA(VLOOKUP($C63,'Product Information'!$A$2:$C$31,2),"") ->  | E63: =_xlfn.IFNA(VLOOKUP($C63,'Product Information'!$A$2:$C$31,3),"") -> 
C64: =IFERROR(VLOOKUP(VALUE($B$56),'Input Calculation'!$A$2:$AJ$29,25),"") ->  | D64: =_xlfn.IFNA(VLOOKUP($C64,'Product Information'!$A$2:$C$31,2),"") ->  | E64: =_xlfn.IFNA(VLOOKUP($C64,'Product Information'!$A$2:$C$31,3),"") -> 
C65: =IFERROR(VLOOKUP(VALUE($B$56),'Input Calculation'!$A$2:$AJ$29,27),"") ->  | D65: =_xlfn.IFNA(VLOOKUP($C65,'Product Information'!$A$2:$C$31,2),"") ->  | E65: =_xlfn.IFNA(VLOOKUP($C65,'Product Information'!$A$2:$C$31,3),"") -> 
D66: Total: | E66: =IFERROR(VLOOKUP(VALUE($B$56),'Input Calculation'!$A$2:$AJ$29,36),"") ->  | F66: Notes:
B68: =MID($A$7,LEN(B8)+LEN(B20)+LEN(B32)+LEN(B44)+LEN(B56)+1,4) ->  | C68: =IFERROR(VLOOKUP(VALUE($B$68),'Input Calculation'!$A$2:$AJ$29,9),"") ->  | D68: =_xlfn.IFNA(VLOOKUP($C68,'Product Information'!$A$2:$C$31,2),"") ->  | E68: =_xlfn.IFNA(VLOOKUP($C68,'Product Information'!$A$2:$C$31,3),"") -> 
C69: =IFERROR(VLOOKUP(VALUE($B$68),'Input Calculation'!$A$2:$AJ$29,11),"") ->  | D69: =_xlfn.IFNA(VLOOKUP($C69,'Product Information'!$A$2:$C$31,2),"") ->  | E69: =_xlfn.IFNA(VLOOKUP($C69,'Product Information'!$A$2:$C$31,3),"") -> 
C70: =IFERROR(VLOOKUP(VALUE($B$68),'Input Calculation'!$A$2:$AJ$29,13),"") ->  | D70: =_xlfn.IFNA(VLOOKUP($C70,'Product Information'!$A$2:$C$31,2),"") ->  | E70: =_xlfn.IFNA(VLOOKUP($C70,'Product Information'!$A$2:$C$31,3),"") -> 
C71: =IFERROR(VLOOKUP(VALUE($B$68),'Input Calculation'!$A$2:$AJ$29,15),"") ->  | D71: =_xlfn.IFNA(VLOOKUP($C71,'Product Information'!$A$2:$C$31,2),"") ->  | E71: =_xlfn.IFNA(VLOOKUP($C71,'Product Information'!$A$2:$C$31,3),"") -> 
C72: =IFERROR(VLOOKUP(VALUE($B$68),'Input Calculation'!$A$2:$AJ$29,17),"") ->  | D72: =_xlfn.IFNA(VLOOKUP($C72,'Product Information'!$A$2:$C$31,2),"") ->  | E72: =_xlfn.IFNA(VLOOKUP($C72,'Product Information'!$A$2:$C$31,3),"") -> 
C73: =IFERROR(VLOOKUP(VALUE($B$68),'Input Calculation'!$A$2:$AJ$29,19),"") ->  | D73: =_xlfn.IFNA(VLOOKUP($C73,'Product Information'!$A$2:$C$31,2),"") ->  | E73: =_xlfn.IFNA(VLOOKUP($C73,'Product Information'!$A$2:$C$31,3),"") -> 
C74: =IFERROR(VLOOKUP(VALUE($B$68),'Input Calculation'!$A$2:$AJ$29,21),"") ->  | D74: =_xlfn.IFNA(VLOOKUP($C74,'Product Information'!$A$2:$C$31,2),"") ->  | E74: =_xlfn.IFNA(VLOOKUP($C74,'Product Information'!$A$2:$C$31,3),"") -> 
C75: =IFERROR(VLOOKUP(VALUE($B$68),'Input Calculation'!$A$2:$AJ$29,23),"") ->  | D75: =_xlfn.IFNA(VLOOKUP($C75,'Product Information'!$A$2:$C$31,2),"") ->  | E75: =_xlfn.IFNA(VLOOKUP($C75,'Product Information'!$A$2:$C$31,3),"") -> 
C76: =IFERROR(VLOOKUP(VALUE($B$68),'Input Calculation'!$A$2:$AJ$29,25),"") ->  | D76: =_xlfn.IFNA(VLOOKUP($C76,'Product Information'!$A$2:$C$31,2),"") ->  | E76: =_xlfn.IFNA(VLOOKUP($C76,'Product Information'!$A$2:$C$31,3),"") -> 
C77: =IFERROR(VLOOKUP(VALUE($B$68),'Input Calculation'!$A$2:$AJ$29,27),"") ->  | D77: =_xlfn.IFNA(VLOOKUP($C77,'Product Information'!$A$2:$C$31,2),"") ->  | E77: =_xlfn.IFNA(VLOOKUP($C77,'Product Information'!$A$2:$C$31,3),"") -> 
D78: Total: | E78: =IFERROR(VLOOKUP(VALUE($B$68),'Input Calculation'!$A$2:$AJ$29,36),"") ->  | F78: Notes:

Sheet 7139892245 (hidden)
A1: Name: | B1: =VLOOKUP(7139892245,'Customer Information'!$A$2:$I$12,2) -> Kaploozie Suzie
A2: Phone: | B2: =TEXT(7139892245,"###-###-####") -> 713-989-2245
A3: Email: | B3: =VLOOKUP(7139892245,'Customer Information'!$A$2:$I$12,3) -> sk2002@hotmail.com
A4: Address: | B4: =CONCATENATE(VLOOKUP(7139892245,'Customer Information'!$A$2:$I$12,4),", ",VLOOKUP(7139892245,'Customer Information'!$A$2:$I$12,5),", ",VLOOKUP(7139892245,'Customer Information'!$A$2:$I$12,6)," ",VLOOKUP(7139892245,'Customer Information'!$A$2:$I$12,7)) -> 3 Pine Road, Albany, NY 12313
A5: Customer Since: | B5: =VLOOKUP(7139892245,'Customer Information'!$A$2:$I$12,8) -> 2003
A6: Good Standing: | B6: =VLOOKUP(7139892245,'Customer Information'!$A$2:$I$12,9) -> Yes
A7: =CONCATENATE(A8,A9,A10,A11,A12,A13,A14,A15,A16,A17,A18,A19,A20,A21,A22,A23,A24,A25,A26,A27,A28,A29,A30,A31,A32,A33,A34,A35,A36) -> 1003100910121025 | B7: Order Number
A8: =IF('Input Calculation'!B2=7139892245,'Input Calculation'!A2,"") ->  | B8: =MID($A$7,ROW()-7,4) -> 1003 | C8: =IFERROR(VLOOKUP(VALUE($B$8),'Input Calculation'!$A$2:$AJ$29,9),"") -> 3055845 | D8: =_xlfn.IFNA(VLOOKUP($C8,'Product Information'!$A$2:$C$31,2),"") -> Winter Jacket | E8: =_xlfn.IFNA(VLOOKUP($C8,'Product Information'!$A$2:$C$31,3),"") -> 199.99
A9: =IF('Input Calculation'!B3=7139892245,'Input Calculation'!A3,"") ->  | C9: =IFERROR(VLOOKUP(VALUE($B$8),'Input Calculation'!$A$2:$AJ$29,11),"") ->  | D9: =_xlfn.IFNA(VLOOKUP($C9,'Product Information'!$A$2:$C$31,2),"") ->  | E9: =_xlfn.IFNA(VLOOKUP($C9,'Product Information'!$A$2:$C$31,3),"") -> 
A10: =IF('Input Calculation'!B4=7139892245,'Input Calculation'!A4,"") -> 1003 | C10: =IFERROR(VLOOKUP(VALUE($B$8),'Input Calculation'!$A$2:$AJ$29,13),"") ->  | D10: =_xlfn.IFNA(VLOOKUP($C10,'Product Information'!$A$2:$C$31,2),"") ->  | E10: =_xlfn.IFNA(VLOOKUP($C10,'Product Information'!$A$2:$C$31,3),"") -> 
A11: =IF('Input Calculation'!B5=7139892245,'Input Calculation'!A5,"") ->  | C11: =IFERROR(VLOOKUP(VALUE($B$8),'Input Calculation'!$A$2:$AJ$29,15),"") ->  | D11: =_xlfn.IFNA(VLOOKUP($C11,'Product Information'!$A$2:$C$31,2),"") ->  | E11: =_xlfn.IFNA(VLOOKUP($C11,'Product Information'!$A$2:$C$31,3),"") -> 
A12: =IF('Input Calculation'!B6=7139892245,'Input Calculation'!A6,"") ->  | C12: =IFERROR(VLOOKUP(VALUE($B$8),'Input Calculation'!$A$2:$AJ$29,17),"") ->  | D12: =_xlfn.IFNA(VLOOKUP($C12,'Product Information'!$A$2:$C$31,2),"") ->  | E12: =_xlfn.IFNA(VLOOKUP($C12,'Product Information'!$A$2:$C$31,3),"") -> 
A13: =IF('Input Calculation'!B7=7139892245,'Input Calculation'!A7,"") ->  | C13: =IFERROR(VLOOKUP(VALUE($B$8),'Input Calculation'!$A$2:$AJ$29,19),"") ->  | D13: =_xlfn.IFNA(VLOOKUP($C13,'Product Information'!$A$2:$C$31,2),"") ->  | E13: =_xlfn.IFNA(VLOOKUP($C13,'Product Information'!$A$2:$C$31,3),"") -> 
A14: =IF('Input Calculation'!B8=7139892245,'Input Calculation'!A8,"") ->  | C14: =IFERROR(VLOOKUP(VALUE($B$8),'Input Calculation'!$A$2:$AJ$29,21),"") ->  | D14: =_xlfn.IFNA(VLOOKUP($C14,'Product Information'!$A$2:$C$31,2),"") ->  | E14: =_xlfn.IFNA(VLOOKUP($C14,'Product Information'!$A$2:$C$31,3),"") -> 
A15: =IF('Input Calculation'!B9=7139892245,'Input Calculation'!A9,"") ->  | C15: =IFERROR(VLOOKUP(VALUE($B$8),'Input Calculation'!$A$2:$AJ$29,23),"") ->  | D15: =_xlfn.IFNA(VLOOKUP($C15,'Product Information'!$A$2:$C$31,2),"") ->  | E15: =_xlfn.IFNA(VLOOKUP($C15,'Product Information'!$A$2:$C$31,3),"") -> 
A16: =IF('Input Calculation'!B10=7139892245,'Input Calculation'!A10,"") -> 1009 | C16: =IFERROR(VLOOKUP(VALUE($B$8),'Input Calculation'!$A$2:$AJ$29,25),"") ->  | D16: =_xlfn.IFNA(VLOOKUP($C16,'Product Information'!$A$2:$C$31,2),"") ->  | E16: =_xlfn.IFNA(VLOOKUP($C16,'Product Information'!$A$2:$C$31,3),"") -> 
A17: =IF('Input Calculation'!B11=7139892245,'Input Calculation'!A11,"") ->  | C17: =IFERROR(VLOOKUP(VALUE($B$8),'Input Calculation'!$A$2:$AJ$29,27),"") ->  | D17: =_xlfn.IFNA(VLOOKUP($C17,'Product Information'!$A$2:$C$31,2),"") ->  | E17: =_xlfn.IFNA(VLOOKUP($C17,'Product Information'!$A$2:$C$31,3),"") -> 
A18: =IF('Input Calculation'!B12=7139892245,'Input Calculation'!A12,"") ->  | D18: Total: | E18: =VLOOKUP(VALUE($B$8),'Input Calculation'!$A$2:$AJ$29,36) -> 173.64 | F18: Notes:
A19: =IF('Input Calculation'!B13=7139892245,'Input Calculation'!A13,"") -> 1012
A20: =IF('Input Calculation'!B14=7139892245,'Input Calculation'!A14,"") ->  | B20: =MID($A$7,LEN(B8)+1,4) -> 1009 | C20: =IFERROR(VLOOKUP(VALUE($B$20),'Input Calculation'!$A$2:$AJ$29,9),"") -> 2056772 | D20: =_xlfn.IFNA(VLOOKUP($C20,'Product Information'!$A$2:$C$31,2),"") -> Great Pants | E20: =_xlfn.IFNA(VLOOKUP($C20,'Product Information'!$A$2:$C$31,3),"") -> 74.99
A21: =IF('Input Calculation'!B15=7139892245,'Input Calculation'!A15,"") ->  | C21: =IFERROR(VLOOKUP(VALUE($B$20),'Input Calculation'!$A$2:$AJ$29,11),"") ->  | D21: =_xlfn.IFNA(VLOOKUP($C21,'Product Information'!$A$2:$C$31,2),"") ->  | E21: =_xlfn.IFNA(VLOOKUP($C21,'Product Information'!$A$2:$C$31,3),"") -> 
A22: =IF('Input Calculation'!B16=7139892245,'Input Calculation'!A16,"") ->  | C22: =IFERROR(VLOOKUP(VALUE($B$20),'Input Calculation'!$A$2:$AJ$29,13),"") ->  | D22: =_xlfn.IFNA(VLOOKUP($C22,'Product Information'!$A$2:$C$31,2),"") ->  | E22: =_xlfn.IFNA(VLOOKUP($C22,'Product Information'!$A$2:$C$31,3),"") -> 
A23: =IF('Input Calculation'!B17=7139892245,'Input Calculation'!A17,"") ->  | C23: =IFERROR(VLOOKUP(VALUE($B$20),'Input Calculation'!$A$2:$AJ$29,15),"") ->  | D23: =_xlfn.IFNA(VLOOKUP($C23,'Product Information'!$A$2:$C$31,2),"") ->  | E23: =_xlfn.IFNA(VLOOKUP($C23,'Product Information'!$A$2:$C$31,3),"") -> 
A24: =IF('Input Calculation'!B18=7139892245,'Input Calculation'!A18,"") ->  | C24: =IFERROR(VLOOKUP(VALUE($B$20),'Input Calculation'!$A$2:$AJ$29,17),"") ->  | D24: =_xlfn.IFNA(VLOOKUP($C24,'Product Information'!$A$2:$C$31,2),"") ->  | E24: =_xlfn.IFNA(VLOOKUP($C24,'Product Information'!$A$2:$C$31,3),"") -> 
A25: =IF('Input Calculation'!B19=7139892245,'Input Calculation'!A19,"") ->  | C25: =IFERROR(VLOOKUP(VALUE($B$20),'Input Calculation'!$A$2:$AJ$29,19),"") ->  | D25: =_xlfn.IFNA(VLOOKUP($C25,'Product Information'!$A$2:$C$31,2),"") ->  | E25: =_xlfn.IFNA(VLOOKUP($C25,'Product Information'!$A$2:$C$31,3),"") -> 
A26: =IF('Input Calculation'!B20=7139892245,'Input Calculation'!A20,"") ->  | C26: =IFERROR(VLOOKUP(VALUE($B$20),'Input Calculation'!$A$2:$AJ$29,21),"") ->  | D26: =_xlfn.IFNA(VLOOKUP($C26,'Product Information'!$A$2:$C$31,2),"") ->  | E26: =_xlfn.IFNA(VLOOKUP($C26,'Product Information'!$A$2:$C$31,3),"") -> 
A27: =IF('Input Calculation'!B21=7139892245,'Input Calculation'!A21,"") ->  | C27: =IFERROR(VLOOKUP(VALUE($B$20),'Input Calculation'!$A$2:$AJ$29,23),"") ->  | D27: =_xlfn.IFNA(VLOOKUP($C27,'Product Information'!$A$2:$C$31,2),"") ->  | E27: =_xlfn.IFNA(VLOOKUP($C27,'Product Information'!$A$2:$C$31,3),"") -> 
A28: =IF('Input Calculation'!B22=7139892245,'Input Calculation'!A22,"") ->  | C28: =IFERROR(VLOOKUP(VALUE($B$20),'Input Calculation'!$A$2:$AJ$29,25),"") ->  | D28: =_xlfn.IFNA(VLOOKUP($C28,'Product Information'!$A$2:$C$31,2),"") ->  | E28: =_xlfn.IFNA(VLOOKUP($C28,'Product Information'!$A$2:$C$31,3),"") -> 
A29: =IF('Input Calculation'!B23=7139892245,'Input Calculation'!A23,"") ->  | C29: =IFERROR(VLOOKUP(VALUE($B$20),'Input Calculation'!$A$2:$AJ$29,27),"") ->  | D29: =_xlfn.IFNA(VLOOKUP($C29,'Product Information'!$A$2:$C$31,2),"") ->  | E29: =_xlfn.IFNA(VLOOKUP($C29,'Product Information'!$A$2:$C$31,3),"") -> 
A30: =IF('Input Calculation'!B24=7139892245,'Input Calculation'!A24,"") ->  | D30: Total: | E30: =IFERROR(VLOOKUP(VALUE($B$20),'Input Calculation'!$A$2:$AJ$29,36),"") -> 65.12 | F30: Notes:
A31: =IF('Input Calculation'!B25=7139892245,'Input Calculation'!A25,"") -> 
A32: =IF('Input Calculation'!B26=7139892245,'Input Calculation'!A26,"") -> 1025 | B32: =MID($A$7,LEN(B8)+LEN(B20)+1,4) -> 1012 | C32: =IFERROR(VLOOKUP(VALUE($B$32),'Input Calculation'!$A$2:$AJ$29,9),"") -> 3055845 | D32: =_xlfn.IFNA(VLOOKUP($C32,'Product Information'!$A$2:$C$31,2),"") -> Winter Jacket | E32: =_xlfn.IFNA(VLOOKUP($C32,'Product Information'!$A$2:$C$31,3),"") -> 199.99
A33: =IF('Input Calculation'!B27=7139892245,'Input Calculation'!A27,"") ->  | C33: =IFERROR(VLOOKUP(VALUE($B$32),'Input Calculation'!$A$2:$AJ$29,11),"") -> 8924251 | D33: =_xlfn.IFNA(VLOOKUP($C33,'Product Information'!$A$2:$C$31,2),"") -> Super Sunglasses | E33: =_xlfn.IFNA(VLOOKUP($C33,'Product Information'!$A$2:$C$31,3),"") -> 99.99
A34: =IF('Input Calculation'!B28=7139892245,'Input Calculation'!A28,"") ->  | C34: =IFERROR(VLOOKUP(VALUE($B$32),'Input Calculation'!$A$2:$AJ$29,13),"") ->  | D34: =_xlfn.IFNA(VLOOKUP($C34,'Product Information'!$A$2:$C$31,2),"") ->  | E34: =_xlfn.IFNA(VLOOKUP($C34,'Product Information'!$A$2:$C$31,3),"") -> 
A35: =IF('Input Calculation'!B29=7139892245,'Input Calculation'!A29,"") ->  | C35: =IFERROR(VLOOKUP(VALUE($B$32),'Input Calculation'!$A$2:$AJ$29,15),"") ->  | D35: =_xlfn.IFNA(VLOOKUP($C35,'Product Information'!$A$2:$C$31,2),"") ->  | E35: =_xlfn.IFNA(VLOOKUP($C35,'Product Information'!$A$2:$C$31,3),"") -> 
A36: =IF('Input Calculation'!B30=7139892245,'Input Calculation'!A30,"") ->  | C36: =IFERROR(VLOOKUP(VALUE($B$32),'Input Calculation'!$A$2:$AJ$29,17),"") ->  | D36: =_xlfn.IFNA(VLOOKUP($C36,'Product Information'!$A$2:$C$31,2),"") ->  | E36: =_xlfn.IFNA(VLOOKUP($C36,'Product Information'!$A$2:$C$31,3),"") -> 
C37: =IFERROR(VLOOKUP(VALUE($B$32),'Input Calculation'!$A$2:$AJ$29,19),"") ->  | D37: =_xlfn.IFNA(VLOOKUP($C37,'Product Information'!$A$2:$C$31,2),"") ->  | E37: =_xlfn.IFNA(VLOOKUP($C37,'Product Information'!$A$2:$C$31,3),"") -> 
C38: =IFERROR(VLOOKUP(VALUE($B$32),'Input Calculation'!$A$2:$AJ$29,21),"") ->  | D38: =_xlfn.IFNA(VLOOKUP($C38,'Product Information'!$A$2:$C$31,2),"") ->  | E38: =_xlfn.IFNA(VLOOKUP($C38,'Product Information'!$A$2:$C$31,3),"") -> 
C39: =IFERROR(VLOOKUP(VALUE($B$32),'Input Calculation'!$A$2:$AJ$29,23),"") ->  | D39: =_xlfn.IFNA(VLOOKUP($C39,'Product Information'!$A$2:$C$31,2),"") ->  | E39: =_xlfn.IFNA(VLOOKUP($C39,'Product Information'!$A$2:$C$31,3),"") -> 
C40: =IFERROR(VLOOKUP(VALUE($B$32),'Input Calculation'!$A$2:$AJ$29,25),"") ->  | D40: =_xlfn.IFNA(VLOOKUP($C40,'Product Information'!$A$2:$C$31,2),"") ->  | E40: =_xlfn.IFNA(VLOOKUP($C40,'Product Information'!$A$2:$C$31,3),"") -> 
C41: =IFERROR(VLOOKUP(VALUE($B$32),'Input Calculation'!$A$2:$AJ$29,27),"") ->  | D41: =_xlfn.IFNA(VLOOKUP($C41,'Product Information'!$A$2:$C$31,2),"") ->  | E41: =_xlfn.IFNA(VLOOKUP($C41,'Product Information'!$A$2:$C$31,3),"") -> 
D42: Total: | E42: =IFERROR(VLOOKUP(VALUE($B$32),'Input Calculation'!$A$2:$AJ$29,36),"") -> 260.44 | F42: Notes:
B44: =MID($A$7,LEN(B8)+LEN(B20)+LEN(B32)+1,4) -> 1025 | C44: =IFERROR(VLOOKUP(VALUE($B$44),'Input Calculation'!$A$2:$AJ$29,9),"") -> 9242514 | D44: =_xlfn.IFNA(VLOOKUP($C44,'Product Information'!$A$2:$C$31,2),"") -> Fashionista Sunglasses | E44: =_xlfn.IFNA(VLOOKUP($C44,'Product Information'!$A$2:$C$31,3),"") -> 499.99
C45: =IFERROR(VLOOKUP(VALUE($B$44),'Input Calculation'!$A$2:$AJ$29,11),"") -> 5216388 | D45: =_xlfn.IFNA(VLOOKUP($C45,'Product Information'!$A$2:$C$31,2),"") -> Logo Hat | E45: =_xlfn.IFNA(VLOOKUP($C45,'Product Information'!$A$2:$C$31,3),"") -> 49.99
C46: =IFERROR(VLOOKUP(VALUE($B$44),'Input Calculation'!$A$2:$AJ$29,13),"") ->  | D46: =_xlfn.IFNA(VLOOKUP($C46,'Product Information'!$A$2:$C$31,2),"") ->  | E46: =_xlfn.IFNA(VLOOKUP($C46,'Product Information'!$A$2:$C$31,3),"") -> 
C47: =IFERROR(VLOOKUP(VALUE($B$44),'Input Calculation'!$A$2:$AJ$29,15),"") ->  | D47: =_xlfn.IFNA(VLOOKUP($C47,'Product Information'!$A$2:$C$31,2),"") ->  | E47: =_xlfn.IFNA(VLOOKUP($C47,'Product Information'!$A$2:$C$31,3),"") -> 
C48: =IFERROR(VLOOKUP(VALUE($B$44),'Input Calculation'!$A$2:$AJ$29,17),"") ->  | D48: =_xlfn.IFNA(VLOOKUP($C48,'Product Information'!$A$2:$C$31,2),"") ->  | E48: =_xlfn.IFNA(VLOOKUP($C48,'Product Information'!$A$2:$C$31,3),"") -> 
C49: =IFERROR(VLOOKUP(VALUE($B$44),'Input Calculation'!$A$2:$AJ$29,19),"") ->  | D49: =_xlfn.IFNA(VLOOKUP($C49,'Product Information'!$A$2:$C$31,2),"") ->  | E49: =_xlfn.IFNA(VLOOKUP($C49,'Product Information'!$A$2:$C$31,3),"") -> 
C50: =IFERROR(VLOOKUP(VALUE($B$44),'Input Calculation'!$A$2:$AJ$29,21),"") ->  | D50: =_xlfn.IFNA(VLOOKUP($C50,'Product Information'!$A$2:$C$31,2),"") ->  | E50: =_xlfn.IFNA(VLOOKUP($C50,'Product Information'!$A$2:$C$31,3),"") -> 
C51: =IFERROR(VLOOKUP(VALUE($B$44),'Input Calculation'!$A$2:$AJ$29,23),"") ->  | D51: =_xlfn.IFNA(VLOOKUP($C51,'Product Information'!$A$2:$C$31,2),"") ->  | E51: =_xlfn.IFNA(VLOOKUP($C51,'Product Information'!$A$2:$C$31,3),"") -> 
C52: =IFERROR(VLOOKUP(VALUE($B$44),'Input Calculation'!$A$2:$AJ$29,25),"") ->  | D52: =_xlfn.IFNA(VLOOKUP($C52,'Product Information'!$A$2:$C$31,2),"") ->  | E52: =_xlfn.IFNA(VLOOKUP($C52,'Product Information'!$A$2:$C$31,3),"") -> 
C53: =IFERROR(VLOOKUP(VALUE($B$44),'Input Calculation'!$A$2:$AJ$29,27),"") ->  | D53: =_xlfn.IFNA(VLOOKUP($C53,'Product Information'!$A$2:$C$31,2),"") ->  | E53: =_xlfn.IFNA(VLOOKUP($C53,'Product Information'!$A$2:$C$31,3),"") -> 
D54: Total: | E54: =IFERROR(VLOOKUP(VALUE($B$44),'Input Calculation'!$A$2:$AJ$29,36),"") -> 537.16 | F54: Notes:
B56: =MID($A$7,LEN(B8)+LEN(B20)+LEN(B32)+LEN(B44)+1,4) ->  | C56: =IFERROR(VLOOKUP(VALUE($B$56),'Input Calculation'!$A$2:$AJ$29,9),"") ->  | D56: =_xlfn.IFNA(VLOOKUP($C56,'Product Information'!$A$2:$C$31,2),"") ->  | E56: =_xlfn.IFNA(VLOOKUP($C56,'Product Information'!$A$2:$C$31,3),"") -> 
C57: =IFERROR(VLOOKUP(VALUE($B$56),'Input Calculation'!$A$2:$AJ$29,11),"") ->  | D57: =_xlfn.IFNA(VLOOKUP($C57,'Product Information'!$A$2:$C$31,2),"") ->  | E57: =_xlfn.IFNA(VLOOKUP($C57,'Product Information'!$A$2:$C$31,3),"") -> 
C58: =IFERROR(VLOOKUP(VALUE($B$56),'Input Calculation'!$A$2:$AJ$29,13),"") ->  | D58: =_xlfn.IFNA(VLOOKUP($C58,'Product Information'!$A$2:$C$31,2),"") ->  | E58: =_xlfn.IFNA(VLOOKUP($C58,'Product Information'!$A$2:$C$31,3),"") -> 
C59: =IFERROR(VLOOKUP(VALUE($B$56),'Input Calculation'!$A$2:$AJ$29,15),"") ->  | D59: =_xlfn.IFNA(VLOOKUP($C59,'Product Information'!$A$2:$C$31,2),"") ->  | E59: =_xlfn.IFNA(VLOOKUP($C59,'Product Information'!$A$2:$C$31,3),"") -> 
C60: =IFERROR(VLOOKUP(VALUE($B$56),'Input Calculation'!$A$2:$AJ$29,17),"") ->  | D60: =_xlfn.IFNA(VLOOKUP($C60,'Product Information'!$A$2:$C$31,2),"") ->  | E60: =_xlfn.IFNA(VLOOKUP($C60,'Product Information'!$A$2:$C$31,3),"") -> 
C61: =IFERROR(VLOOKUP(VALUE($B$56),'Input Calculation'!$A$2:$AJ$29,19),"") ->  | D61: =_xlfn.IFNA(VLOOKUP($C61,'Product Information'!$A$2:$C$31,2),"") ->  | E61: =_xlfn.IFNA(VLOOKUP($C61,'Product Information'!$A$2:$C$31,3),"") -> 
C62: =IFERROR(VLOOKUP(VALUE($B$56),'Input Calculation'!$A$2:$AJ$29,21),"") ->  | D62: =_xlfn.IFNA(VLOOKUP($C62,'Product Information'!$A$2:$C$31,2),"") ->  | E62: =_xlfn.IFNA(VLOOKUP($C62,'Product Information'!$A$2:$C$31,3),"") -> 
C63: =IFERROR(VLOOKUP(VALUE($B$56),'Input Calculation'!$A$2:$AJ$29,23),"") ->  | D63: =_xlfn.IFNA(VLOOKUP($C63,'Product Information'!$A$2:$C$31,2),"") ->  | E63: =_xlfn.IFNA(VLOOKUP($C63,'Product Information'!$A$2:$C$31,3),"") -> 
C64: =IFERROR(VLOOKUP(VALUE($B$56),'Input Calculation'!$A$2:$AJ$29,25),"") ->  | D64: =_xlfn.IFNA(VLOOKUP($C64,'Product Information'!$A$2:$C$31,2),"") ->  | E64: =_xlfn.IFNA(VLOOKUP($C64,'Product Information'!$A$2:$C$31,3),"") -> 
C65: =IFERROR(VLOOKUP(VALUE($B$56),'Input Calculation'!$A$2:$AJ$29,27),"") ->  | D65: =_xlfn.IFNA(VLOOKUP($C65,'Product Information'!$A$2:$C$31,2),"") ->  | E65: =_xlfn.IFNA(VLOOKUP($C65,'Product Information'!$A$2:$C$31,3),"") -> 
D66: Total: | E66: =IFERROR(VLOOKUP(VALUE($B$56),'Input Calculation'!$A$2:$AJ$29,36),"") ->  | F66: Notes:
B68: =MID($A$7,LEN(B8)+LEN(B20)+LEN(B32)+LEN(B44)+LEN(B56)+1,4) ->  | C68: =IFERROR(VLOOKUP(VALUE($B$68),'Input Calculation'!$A$2:$AJ$29,9),"") ->  | D68: =_xlfn.IFNA(VLOOKUP($C68,'Product Information'!$A$2:$C$31,2),"") ->  | E68: =_xlfn.IFNA(VLOOKUP($C68,'Product Information'!$A$2:$C$31,3),"") -> 
C69: =IFERROR(VLOOKUP(VALUE($B$68),'Input Calculation'!$A$2:$AJ$29,11),"") ->  | D69: =_xlfn.IFNA(VLOOKUP($C69,'Product Information'!$A$2:$C$31,2),"") ->  | E69: =_xlfn.IFNA(VLOOKUP($C69,'Product Information'!$A$2:$C$31,3),"") -> 
C70: =IFERROR(VLOOKUP(VALUE($B$68),'Input Calculation'!$A$2:$AJ$29,13),"") ->  | D70: =_xlfn.IFNA(VLOOKUP($C70,'Product Information'!$A$2:$C$31,2),"") ->  | E70: =_xlfn.IFNA(VLOOKUP($C70,'Product Information'!$A$2:$C$31,3),"") -> 
C71: =IFERROR(VLOOKUP(VALUE($B$68),'Input Calculation'!$A$2:$AJ$29,15),"") ->  | D71: =_xlfn.IFNA(VLOOKUP($C71,'Product Information'!$A$2:$C$31,2),"") ->  | E71: =_xlfn.IFNA(VLOOKUP($C71,'Product Information'!$A$2:$C$31,3),"") -> 
C72: =IFERROR(VLOOKUP(VALUE($B$68),'Input Calculation'!$A$2:$AJ$29,17),"") ->  | D72: =_xlfn.IFNA(VLOOKUP($C72,'Product Information'!$A$2:$C$31,2),"") ->  | E72: =_xlfn.IFNA(VLOOKUP($C72,'Product Information'!$A$2:$C$31,3),"") -> 
C73: =IFERROR(VLOOKUP(VALUE($B$68),'Input Calculation'!$A$2:$AJ$29,19),"") ->  | D73: =_xlfn.IFNA(VLOOKUP($C73,'Product Information'!$A$2:$C$31,2),"") ->  | E73: =_xlfn.IFNA(VLOOKUP($C73,'Product Information'!$A$2:$C$31,3),"") -> 
C74: =IFERROR(VLOOKUP(VALUE($B$68),'Input Calculation'!$A$2:$AJ$29,21),"") ->  | D74: =_xlfn.IFNA(VLOOKUP($C74,'Product Information'!$A$2:$C$31,2),"") ->  | E74: =_xlfn.IFNA(VLOOKUP($C74,'Product Information'!$A$2:$C$31,3),"") -> 
C75: =IFERROR(VLOOKUP(VALUE($B$68),'Input Calculation'!$A$2:$AJ$29,23),"") ->  | D75: =_xlfn.IFNA(VLOOKUP($C75,'Product Information'!$A$2:$C$31,2),"") ->  | E75: =_xlfn.IFNA(VLOOKUP($C75,'Product Information'!$A$2:$C$31,3),"") -> 
C76: =IFERROR(VLOOKUP(VALUE($B$68),'Input Calculation'!$A$2:$AJ$29,25),"") ->  | D76: =_xlfn.IFNA(VLOOKUP($C76,'Product Information'!$A$2:$C$31,2),"") ->  | E76: =_xlfn.IFNA(VLOOKUP($C76,'Product Information'!$A$2:$C$31,3),"") -> 
C77: =IFERROR(VLOOKUP(VALUE($B$68),'Input Calculation'!$A$2:$AJ$29,27),"") ->  | D77: =_xlfn.IFNA(VLOOKUP($C77,'Product Information'!$A$2:$C$31,2),"") ->  | E77: =_xlfn.IFNA(VLOOKUP($C77,'Product Information'!$A$2:$C$31,3),"") -> 
D78: Total: | E78: =IFERROR(VLOOKUP(VALUE($B$68),'Input Calculation'!$A$2:$AJ$29,36),"") ->  | F78: Notes:

Sheet 8174368834 (hidden)
A1: Name: | B1: =VLOOKUP(8174368834,'Customer Information'!$A$2:$I$12,2) -> Doe John
A2: Phone: | B2: =TEXT(8174368834,"###-###-####") -> 817-436-8834
A3: Email: | B3: =VLOOKUP(8174368834,'Customer Information'!$A$2:$I$12,3) -> noone@yahoo.com
A4: Address: | B4: =CONCATENATE(VLOOKUP(8174368834,'Customer Information'!$A$2:$I$12,4),", ",VLOOKUP(8174368834,'Customer Information'!$A$2:$I$12,5),", ",VLOOKUP(8174368834,'Customer Information'!$A$2:$I$12,6)," ",VLOOKUP(8174368834,'Customer Information'!$A$2:$I$12,7)) -> 1000 Main Street, Los Angeles, CA 98845
A5: Customer Since: | B5: =VLOOKUP(8174368834,'Customer Information'!$A$2:$I$12,8) -> 2017
A6: Good Standing: | B6: =VLOOKUP(8174368834,'Customer Information'!$A$2:$I$12,9) -> Yes
A7: =CONCATENATE(A8,A9,A10,A11,A12,A13,A14,A15,A16,A17,A18,A19,A20,A21,A22,A23,A24,A25,A26,A27,A28,A29,A30,A31,A32,A33,A34,A35,A36) -> 100210141021 | B7: Order Number
A8: =IF('Input Calculation'!B2=8174368834,'Input Calculation'!A2,"") ->  | B8: =MID($A$7,ROW()-7,4) -> 1002 | C8: =IFERROR(VLOOKUP(VALUE($B$8),'Input Calculation'!$A$2:$AJ$29,9),"") -> 2056772 | D8: =_xlfn.IFNA(VLOOKUP($C8,'Product Information'!$A$2:$C$31,2),"") -> Great Pants | E8: =_xlfn.IFNA(VLOOKUP($C8,'Product Information'!$A$2:$C$31,3),"") -> 74.99
A9: =IF('Input Calculation'!B3=8174368834,'Input Calculation'!A3,"") -> 1002 | C9: =IFERROR(VLOOKUP(VALUE($B$8),'Input Calculation'!$A$2:$AJ$29,11),"") -> 3055845 | D9: =_xlfn.IFNA(VLOOKUP($C9,'Product Information'!$A$2:$C$31,2),"") -> Winter Jacket | E9: =_xlfn.IFNA(VLOOKUP($C9,'Product Information'!$A$2:$C$31,3),"") -> 199.99
A10: =IF('Input Calculation'!B4=8174368834,'Input Calculation'!A4,"") ->  | C10: =IFERROR(VLOOKUP(VALUE($B$8),'Input Calculation'!$A$2:$AJ$29,13),"") ->  | D10: =_xlfn.IFNA(VLOOKUP($C10,'Product Information'!$A$2:$C$31,2),"") ->  | E10: =_xlfn.IFNA(VLOOKUP($C10,'Product Information'!$A$2:$C$31,3),"") -> 
A11: =IF('Input Calculation'!B5=8174368834,'Input Calculation'!A5,"") ->  | C11: =IFERROR(VLOOKUP(VALUE($B$8),'Input Calculation'!$A$2:$AJ$29,15),"") ->  | D11: =_xlfn.IFNA(VLOOKUP($C11,'Product Information'!$A$2:$C$31,2),"") ->  | E11: =_xlfn.IFNA(VLOOKUP($C11,'Product Information'!$A$2:$C$31,3),"") -> 
A12: =IF('Input Calculation'!B6=8174368834,'Input Calculation'!A6,"") ->  | C12: =IFERROR(VLOOKUP(VALUE($B$8),'Input Calculation'!$A$2:$AJ$29,17),"") ->  | D12: =_xlfn.IFNA(VLOOKUP($C12,'Product Information'!$A$2:$C$31,2),"") ->  | E12: =_xlfn.IFNA(VLOOKUP($C12,'Product Information'!$A$2:$C$31,3),"") -> 
A13: =IF('Input Calculation'!B7=8174368834,'Input Calculation'!A7,"") ->  | C13: =IFERROR(VLOOKUP(VALUE($B$8),'Input Calculation'!$A$2:$AJ$29,19),"") ->  | D13: =_xlfn.IFNA(VLOOKUP($C13,'Product Information'!$A$2:$C$31,2),"") ->  | E13: =_xlfn.IFNA(VLOOKUP($C13,'Product Information'!$A$2:$C$31,3),"") -> 
A14: =IF('Input Calculation'!B8=8174368834,'Input Calculation'!A8,"") ->  | C14: =IFERROR(VLOOKUP(VALUE($B$8),'Input Calculation'!$A$2:$AJ$29,21),"") ->  | D14: =_xlfn.IFNA(VLOOKUP($C14,'Product Information'!$A$2:$C$31,2),"") ->  | E14: =_xlfn.IFNA(VLOOKUP($C14,'Product Information'!$A$2:$C$31,3),"") -> 
A15: =IF('Input Calculation'!B9=8174368834,'Input Calculation'!A9,"") ->  | C15: =IFERROR(VLOOKUP(VALUE($B$8),'Input Calculation'!$A$2:$AJ$29,23),"") ->  | D15: =_xlfn.IFNA(VLOOKUP($C15,'Product Information'!$A$2:$C$31,2),"") ->  | E15: =_xlfn.IFNA(VLOOKUP($C15,'Product Information'!$A$2:$C$31,3),"") -> 
A16: =IF('Input Calculation'!B10=8174368834,'Input Calculation'!A10,"") ->  | C16: =IFERROR(VLOOKUP(VALUE($B$8),'Input Calculation'!$A$2:$AJ$29,25),"") ->  | D16: =_xlfn.IFNA(VLOOKUP($C16,'Product Information'!$A$2:$C$31,2),"") ->  | E16: =_xlfn.IFNA(VLOOKUP($C16,'Product Information'!$A$2:$C$31,3),"") -> 
A17: =IF('Input Calculation'!B11=8174368834,'Input Calculation'!A11,"") ->  | C17: =IFERROR(VLOOKUP(VALUE($B$8),'Input Calculation'!$A$2:$AJ$29,27),"") ->  | D17: =_xlfn.IFNA(VLOOKUP($C17,'Product Information'!$A$2:$C$31,2),"") ->  | E17: =_xlfn.IFNA(VLOOKUP($C17,'Product Information'!$A$2:$C$31,3),"") -> 
A18: =IF('Input Calculation'!B12=8174368834,'Input Calculation'!A12,"") ->  | D18: Total: | E18: =VLOOKUP(VALUE($B$8),'Input Calculation'!$A$2:$AJ$29,36) -> 303.79 | F18: Notes:
A19: =IF('Input Calculation'!B13=8174368834,'Input Calculation'!A13,"") -> 
A20: =IF('Input Calculation'!B14=8174368834,'Input Calculation'!A14,"") ->  | B20: =MID($A$7,LEN(B8)+1,4) -> 1014 | C20: =IFERROR(VLOOKUP(VALUE($B$20),'Input Calculation'!$A$2:$AJ$29,9),"") -> 7250412 | D20: =_xlfn.IFNA(VLOOKUP($C20,'Product Information'!$A$2:$C$31,2),"") -> Thermal Socks | E20: =_xlfn.IFNA(VLOOKUP($C20,'Product Information'!$A$2:$C$31,3),"") -> 12.99
A21: =IF('Input Calculation'!B15=8174368834,'Input Calculation'!A15,"") -> 1014 | C21: =IFERROR(VLOOKUP(VALUE($B$20),'Input Calculation'!$A$2:$AJ$29,11),"") ->  | D21: =_xlfn.IFNA(VLOOKUP($C21,'Product Information'!$A$2:$C$31,2),"") ->  | E21: =_xlfn.IFNA(VLOOKUP($C21,'Product Information'!$A$2:$C$31,3),"") -> 
A22: =IF('Input Calculation'!B16=8174368834,'Input Calculation'!A16,"") ->  | C22: =IFERROR(VLOOKUP(VALUE($B$20),'Input Calculation'!$A$2:$AJ$29,13),"") ->  | D22: =_xlfn.IFNA(VLOOKUP($C22,'Product Information'!$A$2:$C$31,2),"") ->  | E22: =_xlfn.IFNA(VLOOKUP($C22,'Product Information'!$A$2:$C$31,3),"") -> 
A23: =IF('Input Calculation'!B17=8174368834,'Input Calculation'!A17,"") ->  | C23: =IFERROR(VLOOKUP(VALUE($B$20),'Input Calculation'!$A$2:$AJ$29,15),"") ->  | D23: =_xlfn.IFNA(VLOOKUP($C23,'Product Information'!$A$2:$C$31,2),"") ->  | E23: =_xlfn.IFNA(VLOOKUP($C23,'Product Information'!$A$2:$C$31,3),"") -> 
A24: =IF('Input Calculation'!B18=8174368834,'Input Calculation'!A18,"") ->  | C24: =IFERROR(VLOOKUP(VALUE($B$20),'Input Calculation'!$A$2:$AJ$29,17),"") ->  | D24: =_xlfn.IFNA(VLOOKUP($C24,'Product Information'!$A$2:$C$31,2),"") ->  | E24: =_xlfn.IFNA(VLOOKUP($C24,'Product Information'!$A$2:$C$31,3),"") -> 
A25: =IF('Input Calculation'!B19=8174368834,'Input Calculation'!A19,"") ->  | C25: =IFERROR(VLOOKUP(VALUE($B$20),'Input Calculation'!$A$2:$AJ$29,19),"") ->  | D25: =_xlfn.IFNA(VLOOKUP($C25,'Product Information'!$A$2:$C$31,2),"") ->  | E25: =_xlfn.IFNA(VLOOKUP($C25,'Product Information'!$A$2:$C$31,3),"") -> 
A26: =IF('Input Calculation'!B20=8174368834,'Input Calculation'!A20,"") ->  | C26: =IFERROR(VLOOKUP(VALUE($B$20),'Input Calculation'!$A$2:$AJ$29,21),"") ->  | D26: =_xlfn.IFNA(VLOOKUP($C26,'Product Information'!$A$2:$C$31,2),"") ->  | E26: =_xlfn.IFNA(VLOOKUP($C26,'Product Information'!$A$2:$C$31,3),"") -> 
A27: =IF('Input Calculation'!B21=8174368834,'Input Calculation'!A21,"") ->  | C27: =IFERROR(VLOOKUP(VALUE($B$20),'Input Calculation'!$A$2:$AJ$29,23),"") ->  | D27: =_xlfn.IFNA(VLOOKUP($C27,'Product Information'!$A$2:$C$31,2),"") ->  | E27: =_xlfn.IFNA(VLOOKUP($C27,'Product Information'!$A$2:$C$31,3),"") -> 
A28: =IF('Input Calculation'!B22=8174368834,'Input Calculation'!A22,"") -> 1021 | C28: =IFERROR(VLOOKUP(VALUE($B$20),'Input Calculation'!$A$2:$AJ$29,25),"") ->  | D28: =_xlfn.IFNA(VLOOKUP($C28,'Product Information'!$A$2:$C$31,2),"") ->  | E28: =_xlfn.IFNA(VLOOKUP($C28,'Product Information'!$A$2:$C$31,3),"") -> 
A29: =IF('Input Calculation'!B23=8174368834,'Input Calculation'!A23,"") ->  | C29: =IFERROR(VLOOKUP(VALUE($B$20),'Input Calculation'!$A$2:$AJ$29,27),"") ->  | D29: =_xlfn.IFNA(VLOOKUP($C29,'Product Information'!$A$2:$C$31,2),"") ->  | E29: =_xlfn.IFNA(VLOOKUP($C29,'Product Information'!$A$2:$C$31,3),"") -> 
A30: =IF('Input Calculation'!B24=8174368834,'Input Calculation'!A24,"") ->  | D30: Total: | E30: =IFERROR(VLOOKUP(VALUE($B$20),'Input Calculation'!$A$2:$AJ$29,36),"") -> 15.409 | F30: Notes:
A31: =IF('Input Calculation'!B25=8174368834,'Input Calculation'!A25,"") -> 
A32: =IF('Input Calculation'!B26=8174368834,'Input Calculation'!A26,"") ->  | B32: =MID($A$7,LEN(B8)+LEN(B20)+1,4) -> 1021 | C32: =IFERROR(VLOOKUP(VALUE($B$32),'Input Calculation'!$A$2:$AJ$29,9),"") -> 5216388 | D32: =_xlfn.IFNA(VLOOKUP($C32,'Product Information'!$A$2:$C$31,2),"") -> Logo Hat | E32: =_xlfn.IFNA(VLOOKUP($C32,'Product Information'!$A$2:$C$31,3),"") -> 49.99
A33: =IF('Input Calculation'!B27=8174368834,'Input Calculation'!A27,"") ->  | C33: =IFERROR(VLOOKUP(VALUE($B$32),'Input Calculation'!$A$2:$AJ$29,11),"") ->  | D33: =_xlfn.IFNA(VLOOKUP($C33,'Product Information'!$A$2:$C$31,2),"") ->  | E33: =_xlfn.IFNA(VLOOKUP($C33,'Product Information'!$A$2:$C$31,3),"") -> 
A34: =IF('Input Calculation'!B28=8174368834,'Input Calculation'!A28,"") ->  | C34: =IFERROR(VLOOKUP(VALUE($B$32),'Input Calculation'!$A$2:$AJ$29,13),"") ->  | D34: =_xlfn.IFNA(VLOOKUP($C34,'Product Information'!$A$2:$C$31,2),"") ->  | E34: =_xlfn.IFNA(VLOOKUP($C34,'Product Information'!$A$2:$C$31,3),"") -> 
A35: =IF('Input Calculation'!B29=8174368834,'Input Calculation'!A29,"") ->  | C35: =IFERROR(VLOOKUP(VALUE($B$32),'Input Calculation'!$A$2:$AJ$29,15),"") ->  | D35: =_xlfn.IFNA(VLOOKUP($C35,'Product Information'!$A$2:$C$31,2),"") ->  | E35: =_xlfn.IFNA(VLOOKUP($C35,'Product Information'!$A$2:$C$31,3),"") -> 
A36: =IF('Input Calculation'!B30=8174368834,'Input Calculation'!A30,"") ->  | C36: =IFERROR(VLOOKUP(VALUE($B$32),'Input Calculation'!$A$2:$AJ$29,17),"") ->  | D36: =_xlfn.IFNA(VLOOKUP($C36,'Product Information'!$A$2:$C$31,2),"") ->  | E36: =_xlfn.IFNA(VLOOKUP($C36,'Product Information'!$A$2:$C$31,3),"") -> 
C37: =IFERROR(VLOOKUP(VALUE($B$32),'Input Calculation'!$A$2:$AJ$29,19),"") ->  | D37: =_xlfn.IFNA(VLOOKUP($C37,'Product Information'!$A$2:$C$31,2),"") ->  | E37: =_xlfn.IFNA(VLOOKUP($C37,'Product Information'!$A$2:$C$31,3),"") -> 
C38: =IFERROR(VLOOKUP(VALUE($B$32),'Input Calculation'!$A$2:$AJ$29,21),"") ->  | D38: =_xlfn.IFNA(VLOOKUP($C38,'Product Information'!$A$2:$C$31,2),"") ->  | E38: =_xlfn.IFNA(VLOOKUP($C38,'Product Information'!$A$2:$C$31,3),"") -> 
C39: =IFERROR(VLOOKUP(VALUE($B$32),'Input Calculation'!$A$2:$AJ$29,23),"") ->  | D39: =_xlfn.IFNA(VLOOKUP($C39,'Product Information'!$A$2:$C$31,2),"") ->  | E39: =_xlfn.IFNA(VLOOKUP($C39,'Product Information'!$A$2:$C$31,3),"") -> 
C40: =IFERROR(VLOOKUP(VALUE($B$32),'Input Calculation'!$A$2:$AJ$29,25),"") ->  | D40: =_xlfn.IFNA(VLOOKUP($C40,'Product Information'!$A$2:$C$31,2),"") ->  | E40: =_xlfn.IFNA(VLOOKUP($C40,'Product Information'!$A$2:$C$31,3),"") -> 
C41: =IFERROR(VLOOKUP(VALUE($B$32),'Input Calculation'!$A$2:$AJ$29,27),"") ->  | D41: =_xlfn.IFNA(VLOOKUP($C41,'Product Information'!$A$2:$C$31,2),"") ->  | E41: =_xlfn.IFNA(VLOOKUP($C41,'Product Information'!$A$2:$C$31,3),"") -> 
D42: Total: | E42: =IFERROR(VLOOKUP(VALUE($B$32),'Input Calculation'!$A$2:$AJ$29,36),"") -> 59.309 | F42: Notes:
B44: =MID($A$7,LEN(B8)+LEN(B20)+LEN(B32)+1,4) ->  | C44: =IFERROR(VLOOKUP(VALUE($B$44),'Input Calculation'!$A$2:$AJ$29,9),"") ->  | D44: =_xlfn.IFNA(VLOOKUP($C44,'Product Information'!$A$2:$C$31,2),"") ->  | E44: =_xlfn.IFNA(VLOOKUP($C44,'Product Information'!$A$2:$C$31,3),"") -> 
C45: =IFERROR(VLOOKUP(VALUE($B$44),'Input Calculation'!$A$2:$AJ$29,11),"") ->  | D45: =_xlfn.IFNA(VLOOKUP($C45,'Product Information'!$A$2:$C$31,2),"") ->  | E45: =_xlfn.IFNA(VLOOKUP($C45,'Product Information'!$A$2:$C$31,3),"") -> 
C46: =IFERROR(VLOOKUP(VALUE($B$44),'Input Calculation'!$A$2:$AJ$29,13),"") ->  | D46: =_xlfn.IFNA(VLOOKUP($C46,'Product Information'!$A$2:$C$31,2),"") ->  | E46: =_xlfn.IFNA(VLOOKUP($C46,'Product Information'!$A$2:$C$31,3),"") -> 
C47: =IFERROR(VLOOKUP(VALUE($B$44),'Input Calculation'!$A$2:$AJ$29,15),"") ->  | D47: =_xlfn.IFNA(VLOOKUP($C47,'Product Information'!$A$2:$C$31,2),"") ->  | E47: =_xlfn.IFNA(VLOOKUP($C47,'Product Information'!$A$2:$C$31,3),"") -> 
C48: =IFERROR(VLOOKUP(VALUE($B$44),'Input Calculation'!$A$2:$AJ$29,17),"") ->  | D48: =_xlfn.IFNA(VLOOKUP($C48,'Product Information'!$A$2:$C$31,2),"") ->  | E48: =_xlfn.IFNA(VLOOKUP($C48,'Product Information'!$A$2:$C$31,3),"") -> 
C49: =IFERROR(VLOOKUP(VALUE($B$44),'Input Calculation'!$A$2:$AJ$29,19),"") ->  | D49: =_xlfn.IFNA(VLOOKUP($C49,'Product Information'!$A$2:$C$31,2),"") ->  | E49: =_xlfn.IFNA(VLOOKUP($C49,'Product Information'!$A$2:$C$31,3),"") -> 
C50: =IFERROR(VLOOKUP(VALUE($B$44),'Input Calculation'!$A$2:$AJ$29,21),"") ->  | D50: =_xlfn.IFNA(VLOOKUP($C50,'Product Information'!$A$2:$C$31,2),"") ->  | E50: =_xlfn.IFNA(VLOOKUP($C50,'Product Information'!$A$2:$C$31,3),"") -> 
C51: =IFERROR(VLOOKUP(VALUE($B$44),'Input Calculation'!$A$2:$AJ$29,23),"") ->  | D51: =_xlfn.IFNA(VLOOKUP($C51,'Product Information'!$A$2:$C$31,2),"") ->  | E51: =_xlfn.IFNA(VLOOKUP($C51,'Product Information'!$A$2:$C$31,3),"") -> 
C52: =IFERROR(VLOOKUP(VALUE($B$44),'Input Calculation'!$A$2:$AJ$29,25),"") ->  | D52: =_xlfn.IFNA(VLOOKUP($C52,'Product Information'!$A$2:$C$31,2),"") ->  | E52: =_xlfn.IFNA(VLOOKUP($C52,'Product Information'!$A$2:$C$31,3),"") -> 
C53: =IFERROR(VLOOKUP(VALUE($B$44),'Input Calculation'!$A$2:$AJ$29,27),"") ->  | D53: =_xlfn.IFNA(VLOOKUP($C53,'Product Information'!$A$2:$C$31,2),"") ->  | E53: =_xlfn.IFNA(VLOOKUP($C53,'Product Information'!$A$2:$C$31,3),"") -> 
D54: Total: | E54: =IFERROR(VLOOKUP(VALUE($B$44),'Input Calculation'!$A$2:$AJ$29,36),"") ->  | F54: Notes:
B56: =MID($A$7,LEN(B8)+LEN(B20)+LEN(B32)+LEN(B44)+1,4) ->  | C56: =IFERROR(VLOOKUP(VALUE($B$56),'Input Calculation'!$A$2:$AJ$29,9),"") ->  | D56: =_xlfn.IFNA(VLOOKUP($C56,'Product Information'!$A$2:$C$31,2),"") ->  | E56: =_xlfn.IFNA(VLOOKUP($C56,'Product Information'!$A$2:$C$31,3),"") -> 
C57: =IFERROR(VLOOKUP(VALUE($B$56),'Input Calculation'!$A$2:$AJ$29,11),"") ->  | D57: =_xlfn.IFNA(VLOOKUP($C57,'Product Information'!$A$2:$C$31,2),"") ->  | E57: =_xlfn.IFNA(VLOOKUP($C57,'Product Information'!$A$2:$C$31,3),"") -> 
C58: =IFERROR(VLOOKUP(VALUE($B$56),'Input Calculation'!$A$2:$AJ$29,13),"") ->  | D58: =_xlfn.IFNA(VLOOKUP($C58,'Product Information'!$A$2:$C$31,2),"") ->  | E58: =_xlfn.IFNA(VLOOKUP($C58,'Product Information'!$A$2:$C$31,3),"") -> 
C59: =IFERROR(VLOOKUP(VALUE($B$56),'Input Calculation'!$A$2:$AJ$29,15),"") ->  | D59: =_xlfn.IFNA(VLOOKUP($C59,'Product Information'!$A$2:$C$31,2),"") ->  | E59: =_xlfn.IFNA(VLOOKUP($C59,'Product Information'!$A$2:$C$31,3),"") -> 
C60: =IFERROR(VLOOKUP(VALUE($B$56),'Input Calculation'!$A$2:$AJ$29,17),"") ->  | D60: =_xlfn.IFNA(VLOOKUP($C60,'Product Information'!$A$2:$C$31,2),"") ->  | E60: =_xlfn.IFNA(VLOOKUP($C60,'Product Information'!$A$2:$C$31,3),"") -> 
C61: =IFERROR(VLOOKUP(VALUE($B$56),'Input Calculation'!$A$2:$AJ$29,19),"") ->  | D61: =_xlfn.IFNA(VLOOKUP($C61,'Product Information'!$A$2:$C$31,2),"") ->  | E61: =_xlfn.IFNA(VLOOKUP($C61,'Product Information'!$A$2:$C$31,3),"") -> 
C62: =IFERROR(VLOOKUP(VALUE($B$56),'Input Calculation'!$A$2:$AJ$29,21),"") ->  | D62: =_xlfn.IFNA(VLOOKUP($C62,'Product Information'!$A$2:$C$31,2),"") ->  | E62: =_xlfn.IFNA(VLOOKUP($C62,'Product Information'!$A$2:$C$31,3),"") -> 
C63: =IFERROR(VLOOKUP(VALUE($B$56),'Input Calculation'!$A$2:$AJ$29,23),"") ->  | D63: =_xlfn.IFNA(VLOOKUP($C63,'Product Information'!$A$2:$C$31,2),"") ->  | E63: =_xlfn.IFNA(VLOOKUP($C63,'Product Information'!$A$2:$C$31,3),"") -> 
C64: =IFERROR(VLOOKUP(VALUE($B$56),'Input Calculation'!$A$2:$AJ$29,25),"") ->  | D64: =_xlfn.IFNA(VLOOKUP($C64,'Product Information'!$A$2:$C$31,2),"") ->  | E64: =_xlfn.IFNA(VLOOKUP($C64,'Product Information'!$A$2:$C$31,3),"") -> 
C65: =IFERROR(VLOOKUP(VALUE($B$56),'Input Calculation'!$A$2:$AJ$29,27),"") ->  | D65: =_xlfn.IFNA(VLOOKUP($C65,'Product Information'!$A$2:$C$31,2),"") ->  | E65: =_xlfn.IFNA(VLOOKUP($C65,'Product Information'!$A$2:$C$31,3),"") -> 
D66: Total: | E66: =IFERROR(VLOOKUP(VALUE($B$56),'Input Calculation'!$A$2:$AJ$29,36),"") ->  | F66: Notes:
B68: =MID($A$7,LEN(B8)+LEN(B20)+LEN(B32)+LEN(B44)+LEN(B56)+1,4) ->  | C68: =IFERROR(VLOOKUP(VALUE($B$68),'Input Calculation'!$A$2:$AJ$29,9),"") ->  | D68: =_xlfn.IFNA(VLOOKUP($C68,'Product Information'!$A$2:$C$31,2),"") ->  | E68: =_xlfn.IFNA(VLOOKUP($C68,'Product Information'!$A$2:$C$31,3),"") -> 
C69: =IFERROR(VLOOKUP(VALUE($B$68),'Input Calculation'!$A$2:$AJ$29,11),"") ->  | D69: =_xlfn.IFNA(VLOOKUP($C69,'Product Information'!$A$2:$C$31,2),"") ->  | E69: =_xlfn.IFNA(VLOOKUP($C69,'Product Information'!$A$2:$C$31,3),"") -> 
C70: =IFERROR(VLOOKUP(VALUE($B$68),'Input Calculation'!$A$2:$AJ$29,13),"") ->  | D70: =_xlfn.IFNA(VLOOKUP($C70,'Product Information'!$A$2:$C$31,2),"") ->  | E70: =_xlfn.IFNA(VLOOKUP($C70,'Product Information'!$A$2:$C$31,3),"") -> 
C71: =IFERROR(VLOOKUP(VALUE($B$68),'Input Calculation'!$A$2:$AJ$29,15),"") ->  | D71: =_xlfn.IFNA(VLOOKUP($C71,'Product Information'!$A$2:$C$31,2),"") ->  | E71: =_xlfn.IFNA(VLOOKUP($C71,'Product Information'!$A$2:$C$31,3),"") -> 
C72: =IFERROR(VLOOKUP(VALUE($B$68),'Input Calculation'!$A$2:$AJ$29,17),"") ->  | D72: =_xlfn.IFNA(VLOOKUP($C72,'Product Information'!$A$2:$C$31,2),"") ->  | E72: =_xlfn.IFNA(VLOOKUP($C72,'Product Information'!$A$2:$C$31,3),"") -> 
C73: =IFERROR(VLOOKUP(VALUE($B$68),'Input Calculation'!$A$2:$AJ$29,19),"") ->  | D73: =_xlfn.IFNA(VLOOKUP($C73,'Product Information'!$A$2:$C$31,2),"") ->  | E73: =_xlfn.IFNA(VLOOKUP($C73,'Product Information'!$A$2:$C$31,3),"") -> 
C74: =IFERROR(VLOOKUP(VALUE($B$68),'Input Calculation'!$A$2:$AJ$29,21),"") ->  | D74: =_xlfn.IFNA(VLOOKUP($C74,'Product Information'!$A$2:$C$31,2),"") ->  | E74: =_xlfn.IFNA(VLOOKUP($C74,'Product Information'!$A$2:$C$31,3),"") -> 
C75: =IFERROR(VLOOKUP(VALUE($B$68),'Input Calculation'!$A$2:$AJ$29,23),"") ->  | D75: =_xlfn.IFNA(VLOOKUP($C75,'Product Information'!$A$2:$C$31,2),"") ->  | E75: =_xlfn.IFNA(VLOOKUP($C75,'Product Information'!$A$2:$C$31,3),"") -> 
C76: =IFERROR(VLOOKUP(VALUE($B$68),'Input Calculation'!$A$2:$AJ$29,25),"") ->  | D76: =_xlfn.IFNA(VLOOKUP($C76,'Product Information'!$A$2:$C$31,2),"") ->  | E76: =_xlfn.IFNA(VLOOKUP($C76,'Product Information'!$A$2:$C$31,3),"") -> 
C77: =IFERROR(VLOOKUP(VALUE($B$68),'Input Calculation'!$A$2:$AJ$29,27),"") ->  | D77: =_xlfn.IFNA(VLOOKUP($C77,'Product Information'!$A$2:$C$31,2),"") ->  | E77: =_xlfn.IFNA(VLOOKUP($C77,'Product Information'!$A$2:$C$31,3),"") -> 
D78: Total: | E78: =IFERROR(VLOOKUP(VALUE($B$68),'Input Calculation'!$A$2:$AJ$29,36),"") ->  | F78: Notes:

Sheet 8785546312 (hidden)
A1: Name: | B1: =VLOOKUP(8785546312,'Customer Information'!$A$2:$I$12,2) -> O'Lantern Jack
A2: Phone: | B2: =TEXT(8785546312,"###-###-####") -> 878-554-6312
A3: Email: | B3: =VLOOKUP(8785546312,'Customer Information'!$A$2:$I$12,3) -> halloween@hotmail.com
A4: Address: | B4: =CONCATENATE(VLOOKUP(8785546312,'Customer Information'!$A$2:$I$12,4),", ",VLOOKUP(8785546312,'Customer Information'!$A$2:$I$12,5),", ",VLOOKUP(8785546312,'Customer Information'!$A$2:$I$12,6)," ",VLOOKUP(8785546312,'Customer Information'!$A$2:$I$12,7)) -> 666 Evil Road, Hell, MO 10232
A5: Customer Since: | B5: =VLOOKUP(8785546312,'Customer Information'!$A$2:$I$12,8) -> 2017
A6: Good Standing: | B6: =VLOOKUP(8785546312,'Customer Information'!$A$2:$I$12,9) -> No
A7: =CONCATENATE(A8,A9,A10,A11,A12,A13,A14,A15,A16,A17,A18,A19,A20,A21,A22,A23,A24,A25,A26,A27,A28,A29,A30,A31,A32,A33,A34,A35,A36) -> 100710181026 | B7: Order Number
A8: =IF('Input Calculation'!B2=8785546312,'Input Calculation'!A2,"") ->  | B8: =MID($A$7,ROW()-7,4) -> 1007 | C8: =IFERROR(VLOOKUP(VALUE($B$8),'Input Calculation'!$A$2:$AJ$29,9),"") -> 3055845 | D8: =_xlfn.IFNA(VLOOKUP($C8,'Product Information'!$A$2:$C$31,2),"") -> Winter Jacket | E8: =_xlfn.IFNA(VLOOKUP($C8,'Product Information'!$A$2:$C$31,3),"") -> 199.99
A9: =IF('Input Calculation'!B3=8785546312,'Input Calculation'!A3,"") ->  | C9: =IFERROR(VLOOKUP(VALUE($B$8),'Input Calculation'!$A$2:$AJ$29,11),"") ->  | D9: =_xlfn.IFNA(VLOOKUP($C9,'Product Information'!$A$2:$C$31,2),"") ->  | E9: =_xlfn.IFNA(VLOOKUP($C9,'Product Information'!$A$2:$C$31,3),"") -> 
A10: =IF('Input Calculation'!B4=8785546312,'Input Calculation'!A4,"") ->  | C10: =IFERROR(VLOOKUP(VALUE($B$8),'Input Calculation'!$A$2:$AJ$29,13),"") ->  | D10: =_xlfn.IFNA(VLOOKUP($C10,'Product Information'!$A$2:$C$31,2),"") ->  | E10: =_xlfn.IFNA(VLOOKUP($C10,'Product Information'!$A$2:$C$31,3),"") -> 
A11: =IF('Input Calculation'!B5=8785546312,'Input Calculation'!A5,"") ->  | C11: =IFERROR(VLOOKUP(VALUE($B$8),'Input Calculation'!$A$2:$AJ$29,15),"") ->  | D11: =_xlfn.IFNA(VLOOKUP($C11,'Product Information'!$A$2:$C$31,2),"") ->  | E11: =_xlfn.IFNA(VLOOKUP($C11,'Product Information'!$A$2:$C$31,3),"") -> 
A12: =IF('Input Calculation'!B6=8785546312,'Input Calculation'!A6,"") ->  | C12: =IFERROR(VLOOKUP(VALUE($B$8),'Input Calculation'!$A$2:$AJ$29,17),"") ->  | D12: =_xlfn.IFNA(VLOOKUP($C12,'Product Information'!$A$2:$C$31,2),"") ->  | E12: =_xlfn.IFNA(VLOOKUP($C12,'Product Information'!$A$2:$C$31,3),"") -> 
A13: =IF('Input Calculation'!B7=8785546312,'Input Calculation'!A7,"") ->  | C13: =IFERROR(VLOOKUP(VALUE($B$8),'Input Calculation'!$A$2:$AJ$29,19),"") ->  | D13: =_xlfn.IFNA(VLOOKUP($C13,'Product Information'!$A$2:$C$31,2),"") ->  | E13: =_xlfn.IFNA(VLOOKUP($C13,'Product Information'!$A$2:$C$31,3),"") -> 
A14: =IF('Input Calculation'!B8=8785546312,'Input Calculation'!A8,"") -> 1007 | C14: =IFERROR(VLOOKUP(VALUE($B$8),'Input Calculation'!$A$2:$AJ$29,21),"") ->  | D14: =_xlfn.IFNA(VLOOKUP($C14,'Product Information'!$A$2:$C$31,2),"") ->  | E14: =_xlfn.IFNA(VLOOKUP($C14,'Product Information'!$A$2:$C$31,3),"") -> 
A15: =IF('Input Calculation'!B9=8785546312,'Input Calculation'!A9,"") ->  | C15: =IFERROR(VLOOKUP(VALUE($B$8),'Input Calculation'!$A$2:$AJ$29,23),"") ->  | D15: =_xlfn.IFNA(VLOOKUP($C15,'Product Information'!$A$2:$C$31,2),"") ->  | E15: =_xlfn.IFNA(VLOOKUP($C15,'Product Information'!$A$2:$C$31,3),"") -> 
A16: =IF('Input Calculation'!B10=8785546312,'Input Calculation'!A10,"") ->  | C16: =IFERROR(VLOOKUP(VALUE($B$8),'Input Calculation'!$A$2:$AJ$29,25),"") ->  | D16: =_xlfn.IFNA(VLOOKUP($C16,'Product Information'!$A$2:$C$31,2),"") ->  | E16: =_xlfn.IFNA(VLOOKUP($C16,'Product Information'!$A$2:$C$31,3),"") -> 
A17: =IF('Input Calculation'!B11=8785546312,'Input Calculation'!A11,"") ->  | C17: =IFERROR(VLOOKUP(VALUE($B$8),'Input Calculation'!$A$2:$AJ$29,27),"") ->  | D17: =_xlfn.IFNA(VLOOKUP($C17,'Product Information'!$A$2:$C$31,2),"") ->  | E17: =_xlfn.IFNA(VLOOKUP($C17,'Product Information'!$A$2:$C$31,3),"") -> 
A18: =IF('Input Calculation'!B12=8785546312,'Input Calculation'!A12,"") ->  | D18: Total: | E18: =VLOOKUP(VALUE($B$8),'Input Calculation'!$A$2:$AJ$29,36) -> 194.72 | F18: Notes: | G18: Tried to place incantation on phone representative
A19: =IF('Input Calculation'!B13=8785546312,'Input Calculation'!A13,"") -> 
A20: =IF('Input Calculation'!B14=8785546312,'Input Calculation'!A14,"") ->  | B20: =MID($A$7,LEN(B8)+1,4) -> 1018 | C20: =IFERROR(VLOOKUP(VALUE($B$20),'Input Calculation'!$A$2:$AJ$29,9),"") -> 3055845 | D20: =_xlfn.IFNA(VLOOKUP($C20,'Product Information'!$A$2:$C$31,2),"") -> Winter Jacket | E20: =_xlfn.IFNA(VLOOKUP($C20,'Product Information'!$A$2:$C$31,3),"") -> 199.99
A21: =IF('Input Calculation'!B15=8785546312,'Input Calculation'!A15,"") ->  | C21: =IFERROR(VLOOKUP(VALUE($B$20),'Input Calculation'!$A$2:$AJ$29,11),"") ->  | D21: =_xlfn.IFNA(VLOOKUP($C21,'Product Information'!$A$2:$C$31,2),"") ->  | E21: =_xlfn.IFNA(VLOOKUP($C21,'Product Information'!$A$2:$C$31,3),"") -> 
A22: =IF('Input Calculation'!B16=8785546312,'Input Calculation'!A16,"") ->  | C22: =IFERROR(VLOOKUP(VALUE($B$20),'Input Calculation'!$A$2:$AJ$29,13),"") ->  | D22: =_xlfn.IFNA(VLOOKUP($C22,'Product Information'!$A$2:$C$31,2),"") ->  | E22: =_xlfn.IFNA(VLOOKUP($C22,'Product Information'!$A$2:$C$31,3),"") -> 
A23: =IF('Input Calculation'!B17=8785546312,'Input Calculation'!A17,"") ->  | C23: =IFERROR(VLOOKUP(VALUE($B$20),'Input Calculation'!$A$2:$AJ$29,15),"") ->  | D23: =_xlfn.IFNA(VLOOKUP($C23,'Product Information'!$A$2:$C$31,2),"") ->  | E23: =_xlfn.IFNA(VLOOKUP($C23,'Product Information'!$A$2:$C$31,3),"") -> 
A24: =IF('Input Calculation'!B18=8785546312,'Input Calculation'!A18,"") ->  | C24: =IFERROR(VLOOKUP(VALUE($B$20),'Input Calculation'!$A$2:$AJ$29,17),"") ->  | D24: =_xlfn.IFNA(VLOOKUP($C24,'Product Information'!$A$2:$C$31,2),"") ->  | E24: =_xlfn.IFNA(VLOOKUP($C24,'Product Information'!$A$2:$C$31,3),"") -> 
A25: =IF('Input Calculation'!B19=8785546312,'Input Calculation'!A19,"") -> 1018 | C25: =IFERROR(VLOOKUP(VALUE($B$20),'Input Calculation'!$A$2:$AJ$29,19),"") ->  | D25: =_xlfn.IFNA(VLOOKUP($C25,'Product Information'!$A$2:$C$31,2),"") ->  | E25: =_xlfn.IFNA(VLOOKUP($C25,'Product Information'!$A$2:$C$31,3),"") -> 
A26: =IF('Input Calculation'!B20=8785546312,'Input Calculation'!A20,"") ->  | C26: =IFERROR(VLOOKUP(VALUE($B$20),'Input Calculation'!$A$2:$AJ$29,21),"") ->  | D26: =_xlfn.IFNA(VLOOKUP($C26,'Product Information'!$A$2:$C$31,2),"") ->  | E26: =_xlfn.IFNA(VLOOKUP($C26,'Product Information'!$A$2:$C$31,3),"") -> 
A27: =IF('Input Calculation'!B21=8785546312,'Input Calculation'!A21,"") ->  | C27: =IFERROR(VLOOKUP(VALUE($B$20),'Input Calculation'!$A$2:$AJ$29,23),"") ->  | D27: =_xlfn.IFNA(VLOOKUP($C27,'Product Information'!$A$2:$C$31,2),"") ->  | E27: =_xlfn.IFNA(VLOOKUP($C27,'Product Information'!$A$2:$C$31,3),"") -> 
A28: =IF('Input Calculation'!B22=8785546312,'Input Calculation'!A22,"") ->  | C28: =IFERROR(VLOOKUP(VALUE($B$20),'Input Calculation'!$A$2:$AJ$29,25),"") ->  | D28: =_xlfn.IFNA(VLOOKUP($C28,'Product Information'!$A$2:$C$31,2),"") ->  | E28: =_xlfn.IFNA(VLOOKUP($C28,'Product Information'!$A$2:$C$31,3),"") -> 
A29: =IF('Input Calculation'!B23=8785546312,'Input Calculation'!A23,"") ->  | C29: =IFERROR(VLOOKUP(VALUE($B$20),'Input Calculation'!$A$2:$AJ$29,27),"") ->  | D29: =_xlfn.IFNA(VLOOKUP($C29,'Product Information'!$A$2:$C$31,2),"") ->  | E29: =_xlfn.IFNA(VLOOKUP($C29,'Product Information'!$A$2:$C$31,3),"") -> 
A30: =IF('Input Calculation'!B24=8785546312,'Input Calculation'!A24,"") ->  | D30: Total: | E30: =IFERROR(VLOOKUP(VALUE($B$20),'Input Calculation'!$A$2:$AJ$29,36),"") -> 194.72 | F30: Notes: | G30: Said he needs more winter jackets
A31: =IF('Input Calculation'!B25=8785546312,'Input Calculation'!A25,"") -> 
A32: =IF('Input Calculation'!B26=8785546312,'Input Calculation'!A26,"") ->  | B32: =MID($A$7,LEN(B8)+LEN(B20)+1,4) -> 1026 | C32: =IFERROR(VLOOKUP(VALUE($B$32),'Input Calculation'!$A$2:$AJ$29,9),"") -> 3055845 | D32: =_xlfn.IFNA(VLOOKUP($C32,'Product Information'!$A$2:$C$31,2),"") -> Winter Jacket | E32: =_xlfn.IFNA(VLOOKUP($C32,'Product Information'!$A$2:$C$31,3),"") -> 199.99
A33: =IF('Input Calculation'!B27=8785546312,'Input Calculation'!A27,"") -> 1026 | C33: =IFERROR(VLOOKUP(VALUE($B$32),'Input Calculation'!$A$2:$AJ$29,11),"") ->  | D33: =_xlfn.IFNA(VLOOKUP($C33,'Product Information'!$A$2:$C$31,2),"") ->  | E33: =_xlfn.IFNA(VLOOKUP($C33,'Product Information'!$A$2:$C$31,3),"") -> 
A34: =IF('Input Calculation'!B28=8785546312,'Input Calculation'!A28,"") ->  | C34: =IFERROR(VLOOKUP(VALUE($B$32),'Input Calculation'!$A$2:$AJ$29,13),"") ->  | D34: =_xlfn.IFNA(VLOOKUP($C34,'Product Information'!$A$2:$C$31,2),"") ->  | E34: =_xlfn.IFNA(VLOOKUP($C34,'Product Information'!$A$2:$C$31,3),"") -> 
A35: =IF('Input Calculation'!B29=8785546312,'Input Calculation'!A29,"") ->  | C35: =IFERROR(VLOOKUP(VALUE($B$32),'Input Calculation'!$A$2:$AJ$29,15),"") ->  | D35: =_xlfn.IFNA(VLOOKUP($C35,'Product Information'!$A$2:$C$31,2),"") ->  | E35: =_xlfn.IFNA(VLOOKUP($C35,'Product Information'!$A$2:$C$31,3),"") -> 
A36: =IF('Input Calculation'!B30=8785546312,'Input Calculation'!A30,"") ->  | C36: =IFERROR(VLOOKUP(VALUE($B$32),'Input Calculation'!$A$2:$AJ$29,17),"") ->  | D36: =_xlfn.IFNA(VLOOKUP($C36,'Product Information'!$A$2:$C$31,2),"") ->  | E36: =_xlfn.IFNA(VLOOKUP($C36,'Product Information'!$A$2:$C$31,3),"") -> 
C37: =IFERROR(VLOOKUP(VALUE($B$32),'Input Calculation'!$A$2:$AJ$29,19),"") ->  | D37: =_xlfn.IFNA(VLOOKUP($C37,'Product Information'!$A$2:$C$31,2),"") ->  | E37: =_xlfn.IFNA(VLOOKUP($C37,'Product Information'!$A$2:$C$31,3),"") -> 
C38: =IFERROR(VLOOKUP(VALUE($B$32),'Input Calculation'!$A$2:$AJ$29,21),"") ->  | D38: =_xlfn.IFNA(VLOOKUP($C38,'Product Information'!$A$2:$C$31,2),"") ->  | E38: =_xlfn.IFNA(VLOOKUP($C38,'Product Information'!$A$2:$C$31,3),"") -> 
C39: =IFERROR(VLOOKUP(VALUE($B$32),'Input Calculation'!$A$2:$AJ$29,23),"") ->  | D39: =_xlfn.IFNA(VLOOKUP($C39,'Product Information'!$A$2:$C$31,2),"") ->  | E39: =_xlfn.IFNA(VLOOKUP($C39,'Product Information'!$A$2:$C$31,3),"") -> 
C40: =IFERROR(VLOOKUP(VALUE($B$32),'Input Calculation'!$A$2:$AJ$29,25),"") ->  | D40: =_xlfn.IFNA(VLOOKUP($C40,'Product Information'!$A$2:$C$31,2),"") ->  | E40: =_xlfn.IFNA(VLOOKUP($C40,'Product Information'!$A$2:$C$31,3),"") -> 
C41: =IFERROR(VLOOKUP(VALUE($B$32),'Input Calculation'!$A$2:$AJ$29,27),"") ->  | D41: =_xlfn.IFNA(VLOOKUP($C41,'Product Information'!$A$2:$C$31,2),"") ->  | E41: =_xlfn.IFNA(VLOOKUP($C41,'Product Information'!$A$2:$C$31,3),"") -> 
D42: Total: | E42: =IFERROR(VLOOKUP(VALUE($B$32),'Input Calculation'!$A$2:$AJ$29,36),"") -> 221.34 | F42: Notes: | G42: He yelled "I am a pumpkin!" repeatedly
B44: =MID($A$7,LEN(B8)+LEN(B20)+LEN(B32)+1,4) ->  | C44: =IFERROR(VLOOKUP(VALUE($B$44),'Input Calculation'!$A$2:$AJ$29,9),"") ->  | D44: =_xlfn.IFNA(VLOOKUP($C44,'Product Information'!$A$2:$C$31,2),"") ->  | E44: =_xlfn.IFNA(VLOOKUP($C44,'Product Information'!$A$2:$C$31,3),"") -> 
C45: =IFERROR(VLOOKUP(VALUE($B$44),'Input Calculation'!$A$2:$AJ$29,11),"") ->  | D45: =_xlfn.IFNA(VLOOKUP($C45,'Product Information'!$A$2:$C$31,2),"") ->  | E45: =_xlfn.IFNA(VLOOKUP($C45,'Product Information'!$A$2:$C$31,3),"") -> 
C46: =IFERROR(VLOOKUP(VALUE($B$44),'Input Calculation'!$A$2:$AJ$29,13),"") ->  | D46: =_xlfn.IFNA(VLOOKUP($C46,'Product Information'!$A$2:$C$31,2),"") ->  | E46: =_xlfn.IFNA(VLOOKUP($C46,'Product Information'!$A$2:$C$31,3),"") -> 
C47: =IFERROR(VLOOKUP(VALUE($B$44),'Input Calculation'!$A$2:$AJ$29,15),"") ->  | D47: =_xlfn.IFNA(VLOOKUP($C47,'Product Information'!$A$2:$C$31,2),"") ->  | E47: =_xlfn.IFNA(VLOOKUP($C47,'Product Information'!$A$2:$C$31,3),"") -> 
C48: =IFERROR(VLOOKUP(VALUE($B$44),'Input Calculation'!$A$2:$AJ$29,17),"") ->  | D48: =_xlfn.IFNA(VLOOKUP($C48,'Product Information'!$A$2:$C$31,2),"") ->  | E48: =_xlfn.IFNA(VLOOKUP($C48,'Product Information'!$A$2:$C$31,3),"") -> 
C49: =IFERROR(VLOOKUP(VALUE($B$44),'Input Calculation'!$A$2:$AJ$29,19),"") ->  | D49: =_xlfn.IFNA(VLOOKUP($C49,'Product Information'!$A$2:$C$31,2),"") ->  | E49: =_xlfn.IFNA(VLOOKUP($C49,'Product Information'!$A$2:$C$31,3),"") -> 
C50: =IFERROR(VLOOKUP(VALUE($B$44),'Input Calculation'!$A$2:$AJ$29,21),"") ->  | D50: =_xlfn.IFNA(VLOOKUP($C50,'Product Information'!$A$2:$C$31,2),"") ->  | E50: =_xlfn.IFNA(VLOOKUP($C50,'Product Information'!$A$2:$C$31,3),"") -> 
C51: =IFERROR(VLOOKUP(VALUE($B$44),'Input Calculation'!$A$2:$AJ$29,23),"") ->  | D51: =_xlfn.IFNA(VLOOKUP($C51,'Product Information'!$A$2:$C$31,2),"") ->  | E51: =_xlfn.IFNA(VLOOKUP($C51,'Product Information'!$A$2:$C$31,3),"") -> 
C52: =IFERROR(VLOOKUP(VALUE($B$44),'Input Calculation'!$A$2:$AJ$29,25),"") ->  | D52: =_xlfn.IFNA(VLOOKUP($C52,'Product Information'!$A$2:$C$31,2),"") ->  | E52: =_xlfn.IFNA(VLOOKUP($C52,'Product Information'!$A$2:$C$31,3),"") -> 
C53: =IFERROR(VLOOKUP(VALUE($B$44),'Input Calculation'!$A$2:$AJ$29,27),"") ->  | D53: =_xlfn.IFNA(VLOOKUP($C53,'Product Information'!$A$2:$C$31,2),"") ->  | E53: =_xlfn.IFNA(VLOOKUP($C53,'Product Information'!$A$2:$C$31,3),"") -> 
D54: Total: | E54: =IFERROR(VLOOKUP(VALUE($B$44),'Input Calculation'!$A$2:$AJ$29,36),"") ->  | F54: Notes:
B56: =MID($A$7,LEN(B8)+LEN(B20)+LEN(B32)+LEN(B44)+1,4) ->  | C56: =IFERROR(VLOOKUP(VALUE($B$56),'Input Calculation'!$A$2:$AJ$29,9),"") ->  | D56: =_xlfn.IFNA(VLOOKUP($C56,'Product Information'!$A$2:$C$31,2),"") ->  | E56: =_xlfn.IFNA(VLOOKUP($C56,'Product Information'!$A$2:$C$31,3),"") -> 
C57: =IFERROR(VLOOKUP(VALUE($B$56),'Input Calculation'!$A$2:$AJ$29,11),"") ->  | D57: =_xlfn.IFNA(VLOOKUP($C57,'Product Information'!$A$2:$C$31,2),"") ->  | E57: =_xlfn.IFNA(VLOOKUP($C57,'Product Information'!$A$2:$C$31,3),"") -> 
C58: =IFERROR(VLOOKUP(VALUE($B$56),'Input Calculation'!$A$2:$AJ$29,13),"") ->  | D58: =_xlfn.IFNA(VLOOKUP($C58,'Product Information'!$A$2:$C$31,2),"") ->  | E58: =_xlfn.IFNA(VLOOKUP($C58,'Product Information'!$A$2:$C$31,3),"") -> 
C59: =IFERROR(VLOOKUP(VALUE($B$56),'Input Calculation'!$A$2:$AJ$29,15),"") ->  | D59: =_xlfn.IFNA(VLOOKUP($C59,'Product Information'!$A$2:$C$31,2),"") ->  | E59: =_xlfn.IFNA(VLOOKUP($C59,'Product Information'!$A$2:$C$31,3),"") -> 
C60: =IFERROR(VLOOKUP(VALUE($B$56),'Input Calculation'!$A$2:$AJ$29,17),"") ->  | D60: =_xlfn.IFNA(VLOOKUP($C60,'Product Information'!$A$2:$C$31,2),"") ->  | E60: =_xlfn.IFNA(VLOOKUP($C60,'Product Information'!$A$2:$C$31,3),"") -> 
C61: =IFERROR(VLOOKUP(VALUE($B$56),'Input Calculation'!$A$2:$AJ$29,19),"") ->  | D61: =_xlfn.IFNA(VLOOKUP($C61,'Product Information'!$A$2:$C$31,2),"") ->  | E61: =_xlfn.IFNA(VLOOKUP($C61,'Product Information'!$A$2:$C$31,3),"") -> 
C62: =IFERROR(VLOOKUP(VALUE($B$56),'Input Calculation'!$A$2:$AJ$29,21),"") ->  | D62: =_xlfn.IFNA(VLOOKUP($C62,'Product Information'!$A$2:$C$31,2),"") ->  | E62: =_xlfn.IFNA(VLOOKUP($C62,'Product Information'!$A$2:$C$31,3),"") -> 
C63: =IFERROR(VLOOKUP(VALUE($B$56),'Input Calculation'!$A$2:$AJ$29,23),"") ->  | D63: =_xlfn.IFNA(VLOOKUP($C63,'Product Information'!$A$2:$C$31,2),"") ->  | E63: =_xlfn.IFNA(VLOOKUP($C63,'Product Information'!$A$2:$C$31,3),"") -> 
C64: =IFERROR(VLOOKUP(VALUE($B$56),'Input Calculation'!$A$2:$AJ$29,25),"") ->  | D64: =_xlfn.IFNA(VLOOKUP($C64,'Product Information'!$A$2:$C$31,2),"") ->  | E64: =_xlfn.IFNA(VLOOKUP($C64,'Product Information'!$A$2:$C$31,3),"") -> 
C65: =IFERROR(VLOOKUP(VALUE($B$56),'Input Calculation'!$A$2:$AJ$29,27),"") ->  | D65: =_xlfn.IFNA(VLOOKUP($C65,'Product Information'!$A$2:$C$31,2),"") ->  | E65: =_xlfn.IFNA(VLOOKUP($C65,'Product Information'!$A$2:$C$31,3),"") -> 
D66: Total: | E66: =IFERROR(VLOOKUP(VALUE($B$56),'Input Calculation'!$A$2:$AJ$29,36),"") ->  | F66: Notes:
B68: =MID($A$7,LEN(B8)+LEN(B20)+LEN(B32)+LEN(B44)+LEN(B56)+1,4) ->  | C68: =IFERROR(VLOOKUP(VALUE($B$68),'Input Calculation'!$A$2:$AJ$29,9),"") ->  | D68: =_xlfn.IFNA(VLOOKUP($C68,'Product Information'!$A$2:$C$31,2),"") ->  | E68: =_xlfn.IFNA(VLOOKUP($C68,'Product Information'!$A$2:$C$31,3),"") -> 
C69: =IFERROR(VLOOKUP(VALUE($B$68),'Input Calculation'!$A$2:$AJ$29,11),"") ->  | D69: =_xlfn.IFNA(VLOOKUP($C69,'Product Information'!$A$2:$C$31,2),"") ->  | E69: =_xlfn.IFNA(VLOOKUP($C69,'Product Information'!$A$2:$C$31,3),"") -> 
C70: =IFERROR(VLOOKUP(VALUE($B$68),'Input Calculation'!$A$2:$AJ$29,13),"") ->  | D70: =_xlfn.IFNA(VLOOKUP($C70,'Product Information'!$A$2:$C$31,2),"") ->  | E70: =_xlfn.IFNA(VLOOKUP($C70,'Product Information'!$A$2:$C$31,3),"") -> 
C71: =IFERROR(VLOOKUP(VALUE($B$68),'Input Calculation'!$A$2:$AJ$29,15),"") ->  | D71: =_xlfn.IFNA(VLOOKUP($C71,'Product Information'!$A$2:$C$31,2),"") ->  | E71: =_xlfn.IFNA(VLOOKUP($C71,'Product Information'!$A$2:$C$31,3),"") -> 
C72: =IFERROR(VLOOKUP(VALUE($B$68),'Input Calculation'!$A$2:$AJ$29,17),"") ->  | D72: =_xlfn.IFNA(VLOOKUP($C72,'Product Information'!$A$2:$C$31,2),"") ->  | E72: =_xlfn.IFNA(VLOOKUP($C72,'Product Information'!$A$2:$C$31,3),"") -> 
C73: =IFERROR(VLOOKUP(VALUE($B$68),'Input Calculation'!$A$2:$AJ$29,19),"") ->  | D73: =_xlfn.IFNA(VLOOKUP($C73,'Product Information'!$A$2:$C$31,2),"") ->  | E73: =_xlfn.IFNA(VLOOKUP($C73,'Product Information'!$A$2:$C$31,3),"") -> 
C74: =IFERROR(VLOOKUP(VALUE($B$68),'Input Calculation'!$A$2:$AJ$29,21),"") ->  | D74: =_xlfn.IFNA(VLOOKUP($C74,'Product Information'!$A$2:$C$31,2),"") ->  | E74: =_xlfn.IFNA(VLOOKUP($C74,'Product Information'!$A$2:$C$31,3),"") -> 
C75: =IFERROR(VLOOKUP(VALUE($B$68),'Input Calculation'!$A$2:$AJ$29,23),"") ->  | D75: =_xlfn.IFNA(VLOOKUP($C75,'Product Information'!$A$2:$C$31,2),"") ->  | E75: =_xlfn.IFNA(VLOOKUP($C75,'Product Information'!$A$2:$C$31,3),"") -> 
C76: =IFERROR(VLOOKUP(VALUE($B$68),'Input Calculation'!$A$2:$AJ$29,25),"") ->  | D76: =_xlfn.IFNA(VLOOKUP($C76,'Product Information'!$A$2:$C$31,2),"") ->  | E76: =_xlfn.IFNA(VLOOKUP($C76,'Product Information'!$A$2:$C$31,3),"") -> 
C77: =IFERROR(VLOOKUP(VALUE($B$68),'Input Calculation'!$A$2:$AJ$29,27),"") ->  | D77: =_xlfn.IFNA(VLOOKUP($C77,'Product Information'!$A$2:$C$31,2),"") ->  | E77: =_xlfn.IFNA(VLOOKUP($C77,'Product Information'!$A$2:$C$31,3),"") -> 
D78: Total: | E78: =IFERROR(VLOOKUP(VALUE($B$68),'Input Calculation'!$A$2:$AJ$29,36),"") ->  | F78: Notes:

Sheet 9153230352 (hidden)
A1: Name: | B1: =VLOOKUP(9153230352,'Customer Information'!$A$2:$I$12,2) -> Liberace Mister
A2: Phone: | B2: =TEXT(9153230352,"###-###-####") -> 915-323-0352
A3: Email: | B3: =VLOOKUP(9153230352,'Customer Information'!$A$2:$I$12,3) -> Piano12@yahoo.com
A4: Address: | B4: =CONCATENATE(VLOOKUP(9153230352,'Customer Information'!$A$2:$I$12,4),", ",VLOOKUP(9153230352,'Customer Information'!$A$2:$I$12,5),", ",VLOOKUP(9153230352,'Customer Information'!$A$2:$I$12,6)," ",VLOOKUP(9153230352,'Customer Information'!$A$2:$I$12,7)) -> 432 Flamingo Drive, Las Vegas, NV 73547
A5: Customer Since: | B5: =VLOOKUP(9153230352,'Customer Information'!$A$2:$I$12,8) -> 1985
A6: Good Standing: | B6: =VLOOKUP(9153230352,'Customer Information'!$A$2:$I$12,9) -> Yes
A7: =CONCATENATE(A8,A9,A10,A11,A12,A13,A14,A15,A16,A17,A18,A19,A20,A21,A22,A23,A24,A25,A26,A27,A28,A29,A30,A31,A32,A33,A34,A35,A36) -> 1024 | B7: Order Number
A8: =IF('Input Calculation'!B2=9153230352,'Input Calculation'!A2,"") ->  | B8: =MID($A$7,ROW()-7,4) -> 1024 | C8: =IFERROR(VLOOKUP(VALUE($B$8),'Input Calculation'!$A$2:$AJ$29,9),"") -> 1252953 | D8: =_xlfn.IFNA(VLOOKUP($C8,'Product Information'!$A$2:$C$31,2),"") -> Great Shirt | E8: =_xlfn.IFNA(VLOOKUP($C8,'Product Information'!$A$2:$C$31,3),"") -> 54.99
A9: =IF('Input Calculation'!B3=9153230352,'Input Calculation'!A3,"") ->  | C9: =IFERROR(VLOOKUP(VALUE($B$8),'Input Calculation'!$A$2:$AJ$29,11),"") -> 1465559 | D9: =_xlfn.IFNA(VLOOKUP($C9,'Product Information'!$A$2:$C$31,2),"") -> Pants | E9: =_xlfn.IFNA(VLOOKUP($C9,'Product Information'!$A$2:$C$31,3),"") -> 24.99
A10: =IF('Input Calculation'!B4=9153230352,'Input Calculation'!A4,"") ->  | C10: =IFERROR(VLOOKUP(VALUE($B$8),'Input Calculation'!$A$2:$AJ$29,13),"") -> 1983220 | D10: =_xlfn.IFNA(VLOOKUP($C10,'Product Information'!$A$2:$C$31,2),"") -> Nicer Pants | E10: =_xlfn.IFNA(VLOOKUP($C10,'Product Information'!$A$2:$C$31,3),"") -> 34.99
A11: =IF('Input Calculation'!B5=9153230352,'Input Calculation'!A5,"") ->  | C11: =IFERROR(VLOOKUP(VALUE($B$8),'Input Calculation'!$A$2:$AJ$29,15),"") -> 2056772 | D11: =_xlfn.IFNA(VLOOKUP($C11,'Product Information'!$A$2:$C$31,2),"") -> Great Pants | E11: =_xlfn.IFNA(VLOOKUP($C11,'Product Information'!$A$2:$C$31,3),"") -> 74.99
A12: =IF('Input Calculation'!B6=9153230352,'Input Calculation'!A6,"") ->  | C12: =IFERROR(VLOOKUP(VALUE($B$8),'Input Calculation'!$A$2:$AJ$29,17),"") -> 2847693 | D12: =_xlfn.IFNA(VLOOKUP($C12,'Product Information'!$A$2:$C$31,2),"") -> Jacket | E12: =_xlfn.IFNA(VLOOKUP($C12,'Product Information'!$A$2:$C$31,3),"") -> 134.99
A13: =IF('Input Calculation'!B7=9153230352,'Input Calculation'!A7,"") ->  | C13: =IFERROR(VLOOKUP(VALUE($B$8),'Input Calculation'!$A$2:$AJ$29,19),"") -> 3055845 | D13: =_xlfn.IFNA(VLOOKUP($C13,'Product Information'!$A$2:$C$31,2),"") -> Winter Jacket | E13: =_xlfn.IFNA(VLOOKUP($C13,'Product Information'!$A$2:$C$31,3),"") -> 199.99
A14: =IF('Input Calculation'!B8=9153230352,'Input Calculation'!A8,"") ->  | C14: =IFERROR(VLOOKUP(VALUE($B$8),'Input Calculation'!$A$2:$AJ$29,21),"") -> 3148653 | D14: =_xlfn.IFNA(VLOOKUP($C14,'Product Information'!$A$2:$C$31,2),"") -> Leather Jacket | E14: =_xlfn.IFNA(VLOOKUP($C14,'Product Information'!$A$2:$C$31,3),"") -> 449.99
A15: =IF('Input Calculation'!B9=9153230352,'Input Calculation'!A9,"") ->  | C15: =IFERROR(VLOOKUP(VALUE($B$8),'Input Calculation'!$A$2:$AJ$29,23),"") -> 3785616 | D15: =_xlfn.IFNA(VLOOKUP($C15,'Product Information'!$A$2:$C$31,2),"") -> Dressy Jacket | E15: =_xlfn.IFNA(VLOOKUP($C15,'Product Information'!$A$2:$C$31,3),"") -> 499.99
A16: =IF('Input Calculation'!B10=9153230352,'Input Calculation'!A10,"") ->  | C16: =IFERROR(VLOOKUP(VALUE($B$8),'Input Calculation'!$A$2:$AJ$29,25),"") -> 3818725 | D16: =_xlfn.IFNA(VLOOKUP($C16,'Product Information'!$A$2:$C$31,2),"") -> Logo Jacket | E16: =_xlfn.IFNA(VLOOKUP($C16,'Product Information'!$A$2:$C$31,3),"") -> 999.99
A17: =IF('Input Calculation'!B11=9153230352,'Input Calculation'!A11,"") ->  | C17: =IFERROR(VLOOKUP(VALUE($B$8),'Input Calculation'!$A$2:$AJ$29,27),"") -> 3832255 | D17: =_xlfn.IFNA(VLOOKUP($C17,'Product Information'!$A$2:$C$31,2),"") -> Hat | E17: =_xlfn.IFNA(VLOOKUP($C17,'Product Information'!$A$2:$C$31,3),"") -> 19.99
A18: =IF('Input Calculation'!B12=9153230352,'Input Calculation'!A12,"") ->  | D18: Total: | E18: =VLOOKUP(VALUE($B$8),'Input Calculation'!$A$2:$AJ$29,36) -> 2432.22 | F18: Notes:
A19: =IF('Input Calculation'!B13=9153230352,'Input Calculation'!A13,"") -> 
A20: =IF('Input Calculation'!B14=9153230352,'Input Calculation'!A14,"") ->  | B20: =MID($A$7,LEN(B8)+1,4) ->  | C20: =IFERROR(VLOOKUP(VALUE($B$20),'Input Calculation'!$A$2:$AJ$29,9),"") ->  | D20: =_xlfn.IFNA(VLOOKUP($C20,'Product Information'!$A$2:$C$31,2),"") ->  | E20: =_xlfn.IFNA(VLOOKUP($C20,'Product Information'!$A$2:$C$31,3),"") -> 
A21: =IF('Input Calculation'!B15=9153230352,'Input Calculation'!A15,"") ->  | C21: =IFERROR(VLOOKUP(VALUE($B$20),'Input Calculation'!$A$2:$AJ$29,11),"") ->  | D21: =_xlfn.IFNA(VLOOKUP($C21,'Product Information'!$A$2:$C$31,2),"") ->  | E21: =_xlfn.IFNA(VLOOKUP($C21,'Product Information'!$A$2:$C$31,3),"") -> 
A22: =IF('Input Calculation'!B16=9153230352,'Input Calculation'!A16,"") ->  | C22: =IFERROR(VLOOKUP(VALUE($B$20),'Input Calculation'!$A$2:$AJ$29,13),"") ->  | D22: =_xlfn.IFNA(VLOOKUP($C22,'Product Information'!$A$2:$C$31,2),"") ->  | E22: =_xlfn.IFNA(VLOOKUP($C22,'Product Information'!$A$2:$C$31,3),"") -> 
A23: =IF('Input Calculation'!B17=9153230352,'Input Calculation'!A17,"") ->  | C23: =IFERROR(VLOOKUP(VALUE($B$20),'Input Calculation'!$A$2:$AJ$29,15),"") ->  | D23: =_xlfn.IFNA(VLOOKUP($C23,'Product Information'!$A$2:$C$31,2),"") ->  | E23: =_xlfn.IFNA(VLOOKUP($C23,'Product Information'!$A$2:$C$31,3),"") -> 
A24: =IF('Input Calculation'!B18=9153230352,'Input Calculation'!A18,"") ->  | C24: =IFERROR(VLOOKUP(VALUE($B$20),'Input Calculation'!$A$2:$AJ$29,17),"") ->  | D24: =_xlfn.IFNA(VLOOKUP($C24,'Product Information'!$A$2:$C$31,2),"") ->  | E24: =_xlfn.IFNA(VLOOKUP($C24,'Product Information'!$A$2:$C$31,3),"") -> 
A25: =IF('Input Calculation'!B19=9153230352,'Input Calculation'!A19,"") ->  | C25: =IFERROR(VLOOKUP(VALUE($B$20),'Input Calculation'!$A$2:$AJ$29,19),"") ->  | D25: =_xlfn.IFNA(VLOOKUP($C25,'Product Information'!$A$2:$C$31,2),"") ->  | E25: =_xlfn.IFNA(VLOOKUP($C25,'Product Information'!$A$2:$C$31,3),"") -> 
A26: =IF('Input Calculation'!B20=9153230352,'Input Calculation'!A20,"") ->  | C26: =IFERROR(VLOOKUP(VALUE($B$20),'Input Calculation'!$A$2:$AJ$29,21),"") ->  | D26: =_xlfn.IFNA(VLOOKUP($C26,'Product Information'!$A$2:$C$31,2),"") ->  | E26: =_xlfn.IFNA(VLOOKUP($C26,'Product Information'!$A$2:$C$31,3),"") -> 
A27: =IF('Input Calculation'!B21=9153230352,'Input Calculation'!A21,"") ->  | C27: =IFERROR(VLOOKUP(VALUE($B$20),'Input Calculation'!$A$2:$AJ$29,23),"") ->  | D27: =_xlfn.IFNA(VLOOKUP($C27,'Product Information'!$A$2:$C$31,2),"") ->  | E27: =_xlfn.IFNA(VLOOKUP($C27,'Product Information'!$A$2:$C$31,3),"") -> 
A28: =IF('Input Calculation'!B22=9153230352,'Input Calculation'!A22,"") ->  | C28: =IFERROR(VLOOKUP(VALUE($B$20),'Input Calculation'!$A$2:$AJ$29,25),"") ->  | D28: =_xlfn.IFNA(VLOOKUP($C28,'Product Information'!$A$2:$C$31,2),"") ->  | E28: =_xlfn.IFNA(VLOOKUP($C28,'Product Information'!$A$2:$C$31,3),"") -> 
A29: =IF('Input Calculation'!B23=9153230352,'Input Calculation'!A23,"") ->  | C29: =IFERROR(VLOOKUP(VALUE($B$20),'Input Calculation'!$A$2:$AJ$29,27),"") ->  | D29: =_xlfn.IFNA(VLOOKUP($C29,'Product Information'!$A$2:$C$31,2),"") ->  | E29: =_xlfn.IFNA(VLOOKUP($C29,'Product Information'!$A$2:$C$31,3),"") -> 
A30: =IF('Input Calculation'!B24=9153230352,'Input Calculation'!A24,"") ->  | D30: Total: | E30: =IFERROR(VLOOKUP(VALUE($B$20),'Input Calculation'!$A$2:$AJ$29,36),"") ->  | F30: Notes:
A31: =IF('Input Calculation'!B25=9153230352,'Input Calculation'!A25,"") -> 1024
A32: =IF('Input Calculation'!B26=9153230352,'Input Calculation'!A26,"") ->  | B32: =MID($A$7,LEN(B8)+LEN(B20)+1,4) ->  | C32: =IFERROR(VLOOKUP(VALUE($B$32),'Input Calculation'!$A$2:$AJ$29,9),"") ->  | D32: =_xlfn.IFNA(VLOOKUP($C32,'Product Information'!$A$2:$C$31,2),"") ->  | E32: =_xlfn.IFNA(VLOOKUP($C32,'Product Information'!$A$2:$C$31,3),"") -> 
A33: =IF('Input Calculation'!B27=9153230352,'Input Calculation'!A27,"") ->  | C33: =IFERROR(VLOOKUP(VALUE($B$32),'Input Calculation'!$A$2:$AJ$29,11),"") ->  | D33: =_xlfn.IFNA(VLOOKUP($C33,'Product Information'!$A$2:$C$31,2),"") ->  | E33: =_xlfn.IFNA(VLOOKUP($C33,'Product Information'!$A$2:$C$31,3),"") -> 
A34: =IF('Input Calculation'!B28=9153230352,'Input Calculation'!A28,"") ->  | C34: =IFERROR(VLOOKUP(VALUE($B$32),'Input Calculation'!$A$2:$AJ$29,13),"") ->  | D34: =_xlfn.IFNA(VLOOKUP($C34,'Product Information'!$A$2:$C$31,2),"") ->  | E34: =_xlfn.IFNA(VLOOKUP($C34,'Product Information'!$A$2:$C$31,3),"") -> 
A35: =IF('Input Calculation'!B29=9153230352,'Input Calculation'!A29,"") ->  | C35: =IFERROR(VLOOKUP(VALUE($B$32),'Input Calculation'!$A$2:$AJ$29,15),"") ->  | D35: =_xlfn.IFNA(VLOOKUP($C35,'Product Information'!$A$2:$C$31,2),"") ->  | E35: =_xlfn.IFNA(VLOOKUP($C35,'Product Information'!$A$2:$C$31,3),"") -> 
A36: =IF('Input Calculation'!B30=9153230352,'Input Calculation'!A30,"") ->  | C36: =IFERROR(VLOOKUP(VALUE($B$32),'Input Calculation'!$A$2:$AJ$29,17),"") ->  | D36: =_xlfn.IFNA(VLOOKUP($C36,'Product Information'!$A$2:$C$31,2),"") ->  | E36: =_xlfn.IFNA(VLOOKUP($C36,'Product Information'!$A$2:$C$31,3),"") -> 
C37: =IFERROR(VLOOKUP(VALUE($B$32),'Input Calculation'!$A$2:$AJ$29,19),"") ->  | D37: =_xlfn.IFNA(VLOOKUP($C37,'Product Information'!$A$2:$C$31,2),"") ->  | E37: =_xlfn.IFNA(VLOOKUP($C37,'Product Information'!$A$2:$C$31,3),"") -> 
C38: =IFERROR(VLOOKUP(VALUE($B$32),'Input Calculation'!$A$2:$AJ$29,21),"") ->  | D38: =_xlfn.IFNA(VLOOKUP($C38,'Product Information'!$A$2:$C$31,2),"") ->  | E38: =_xlfn.IFNA(VLOOKUP($C38,'Product Information'!$A$2:$C$31,3),"") -> 
C39: =IFERROR(VLOOKUP(VALUE($B$32),'Input Calculation'!$A$2:$AJ$29,23),"") ->  | D39: =_xlfn.IFNA(VLOOKUP($C39,'Product Information'!$A$2:$C$31,2),"") ->  | E39: =_xlfn.IFNA(VLOOKUP($C39,'Product Information'!$A$2:$C$31,3),"") -> 
C40: =IFERROR(VLOOKUP(VALUE($B$32),'Input Calculation'!$A$2:$AJ$29,25),"") ->  | D40: =_xlfn.IFNA(VLOOKUP($C40,'Product Information'!$A$2:$C$31,2),"") ->  | E40: =_xlfn.IFNA(VLOOKUP($C40,'Product Information'!$A$2:$C$31,3),"") -> 
C41: =IFERROR(VLOOKUP(VALUE($B$32),'Input Calculation'!$A$2:$AJ$29,27),"") ->  | D41: =_xlfn.IFNA(VLOOKUP($C41,'Product Information'!$A$2:$C$31,2),"") ->  | E41: =_xlfn.IFNA(VLOOKUP($C41,'Product Information'!$A$2:$C$31,3),"") -> 
D42: Total: | E42: =IFERROR(VLOOKUP(VALUE($B$32),'Input Calculation'!$A$2:$AJ$29,36),"") ->  | F42: Notes:
B44: =MID($A$7,LEN(B8)+LEN(B20)+LEN(B32)+1,4) ->  | C44: =IFERROR(VLOOKUP(VALUE($B$44),'Input Calculation'!$A$2:$AJ$29,9),"") ->  | D44: =_xlfn.IFNA(VLOOKUP($C44,'Product Information'!$A$2:$C$31,2),"") ->  | E44: =_xlfn.IFNA(VLOOKUP($C44,'Product Information'!$A$2:$C$31,3),"") -> 
C45: =IFERROR(VLOOKUP(VALUE($B$44),'Input Calculation'!$A$2:$AJ$29,11),"") ->  | D45: =_xlfn.IFNA(VLOOKUP($C45,'Product Information'!$A$2:$C$31,2),"") ->  | E45: =_xlfn.IFNA(VLOOKUP($C45,'Product Information'!$A$2:$C$31,3),"") -> 
C46: =IFERROR(VLOOKUP(VALUE($B$44),'Input Calculation'!$A$2:$AJ$29,13),"") ->  | D46: =_xlfn.IFNA(VLOOKUP($C46,'Product Information'!$A$2:$C$31,2),"") ->  | E46: =_xlfn.IFNA(VLOOKUP($C46,'Product Information'!$A$2:$C$31,3),"") -> 
C47: =IFERROR(VLOOKUP(VALUE($B$44),'Input Calculation'!$A$2:$AJ$29,15),"") ->  | D47: =_xlfn.IFNA(VLOOKUP($C47,'Product Information'!$A$2:$C$31,2),"") ->  | E47: =_xlfn.IFNA(VLOOKUP($C47,'Product Information'!$A$2:$C$31,3),"") -> 
C48: =IFERROR(VLOOKUP(VALUE($B$44),'Input Calculation'!$A$2:$AJ$29,17),"") ->  | D48: =_xlfn.IFNA(VLOOKUP($C48,'Product Information'!$A$2:$C$31,2),"") ->  | E48: =_xlfn.IFNA(VLOOKUP($C48,'Product Information'!$A$2:$C$31,3),"") -> 
C49: =IFERROR(VLOOKUP(VALUE($B$44),'Input Calculation'!$A$2:$AJ$29,19),"") ->  | D49: =_xlfn.IFNA(VLOOKUP($C49,'Product Information'!$A$2:$C$31,2),"") ->  | E49: =_xlfn.IFNA(VLOOKUP($C49,'Product Information'!$A$2:$C$31,3),"") -> 
C50: =IFERROR(VLOOKUP(VALUE($B$44),'Input Calculation'!$A$2:$AJ$29,21),"") ->  | D50: =_xlfn.IFNA(VLOOKUP($C50,'Product Information'!$A$2:$C$31,2),"") ->  | E50: =_xlfn.IFNA(VLOOKUP($C50,'Product Information'!$A$2:$C$31,3),"") -> 
C51: =IFERROR(VLOOKUP(VALUE($B$44),'Input Calculation'!$A$2:$AJ$29,23),"") ->  | D51: =_xlfn.IFNA(VLOOKUP($C51,'Product Information'!$A$2:$C$31,2),"") ->  | E51: =_xlfn.IFNA(VLOOKUP($C51,'Product Information'!$A$2:$C$31,3),"") -> 
C52: =IFERROR(VLOOKUP(VALUE($B$44),'Input Calculation'!$A$2:$AJ$29,25),"") ->  | D52: =_xlfn.IFNA(VLOOKUP($C52,'Product Information'!$A$2:$C$31,2),"") ->  | E52: =_xlfn.IFNA(VLOOKUP($C52,'Product Information'!$A$2:$C$31,3),"") -> 
C53: =IFERROR(VLOOKUP(VALUE($B$44),'Input Calculation'!$A$2:$AJ$29,27),"") ->  | D53: =_xlfn.IFNA(VLOOKUP($C53,'Product Information'!$A$2:$C$31,2),"") ->  | E53: =_xlfn.IFNA(VLOOKUP($C53,'Product Information'!$A$2:$C$31,3),"") -> 
D54: Total: | E54: =IFERROR(VLOOKUP(VALUE($B$44),'Input Calculation'!$A$2:$AJ$29,36),"") ->  | F54: Notes:
B56: =MID($A$7,LEN(B8)+LEN(B20)+LEN(B32)+LEN(B44)+1,4) ->  | C56: =IFERROR(VLOOKUP(VALUE($B$56),'Input Calculation'!$A$2:$AJ$29,9),"") ->  | D56: =_xlfn.IFNA(VLOOKUP($C56,'Product Information'!$A$2:$C$31,2),"") ->  | E56: =_xlfn.IFNA(VLOOKUP($C56,'Product Information'!$A$2:$C$31,3),"") -> 
C57: =IFERROR(VLOOKUP(VALUE($B$56),'Input Calculation'!$A$2:$AJ$29,11),"") ->  | D57: =_xlfn.IFNA(VLOOKUP($C57,'Product Information'!$A$2:$C$31,2),"") ->  | E57: =_xlfn.IFNA(VLOOKUP($C57,'Product Information'!$A$2:$C$31,3),"") -> 
C58: =IFERROR(VLOOKUP(VALUE($B$56),'Input Calculation'!$A$2:$AJ$29,13),"") ->  | D58: =_xlfn.IFNA(VLOOKUP($C58,'Product Information'!$A$2:$C$31,2),"") ->  | E58: =_xlfn.IFNA(VLOOKUP($C58,'Product Information'!$A$2:$C$31,3),"") -> 
C59: =IFERROR(VLOOKUP(VALUE($B$56),'Input Calculation'!$A$2:$AJ$29,15),"") ->  | D59: =_xlfn.IFNA(VLOOKUP($C59,'Product Information'!$A$2:$C$31,2),"") ->  | E59: =_xlfn.IFNA(VLOOKUP($C59,'Product Information'!$A$2:$C$31,3),"") -> 
C60: =IFERROR(VLOOKUP(VALUE($B$56),'Input Calculation'!$A$2:$AJ$29,17),"") ->  | D60: =_xlfn.IFNA(VLOOKUP($C60,'Product Information'!$A$2:$C$31,2),"") ->  | E60: =_xlfn.IFNA(VLOOKUP($C60,'Product Information'!$A$2:$C$31,3),"") -> 
C61: =IFERROR(VLOOKUP(VALUE($B$56),'Input Calculation'!$A$2:$AJ$29,19),"") ->  | D61: =_xlfn.IFNA(VLOOKUP($C61,'Product Information'!$A$2:$C$31,2),"") ->  | E61: =_xlfn.IFNA(VLOOKUP($C61,'Product Information'!$A$2:$C$31,3),"") -> 
C62: =IFERROR(VLOOKUP(VALUE($B$56),'Input Calculation'!$A$2:$AJ$29,21),"") ->  | D62: =_xlfn.IFNA(VLOOKUP($C62,'Product Information'!$A$2:$C$31,2),"") ->  | E62: =_xlfn.IFNA(VLOOKUP($C62,'Product Information'!$A$2:$C$31,3),"") -> 
C63: =IFERROR(VLOOKUP(VALUE($B$56),'Input Calculation'!$A$2:$AJ$29,23),"") ->  | D63: =_xlfn.IFNA(VLOOKUP($C63,'Product Information'!$A$2:$C$31,2),"") ->  | E63: =_xlfn.IFNA(VLOOKUP($C63,'Product Information'!$A$2:$C$31,3),"") -> 
C64: =IFERROR(VLOOKUP(VALUE($B$56),'Input Calculation'!$A$2:$AJ$29,25),"") ->  | D64: =_xlfn.IFNA(VLOOKUP($C64,'Product Information'!$A$2:$C$31,2),"") ->  | E64: =_xlfn.IFNA(VLOOKUP($C64,'Product Information'!$A$2:$C$31,3),"") -> 
C65: =IFERROR(VLOOKUP(VALUE($B$56),'Input Calculation'!$A$2:$AJ$29,27),"") ->  | D65: =_xlfn.IFNA(VLOOKUP($C65,'Product Information'!$A$2:$C$31,2),"") ->  | E65: =_xlfn.IFNA(VLOOKUP($C65,'Product Information'!$A$2:$C$31,3),"") -> 
D66: Total: | E66: =IFERROR(VLOOKUP(VALUE($B$56),'Input Calculation'!$A$2:$AJ$29,36),"") ->  | F66: Notes:
B68: =MID($A$7,LEN(B8)+LEN(B20)+LEN(B32)+LEN(B44)+LEN(B56)+1,4) ->  | C68: =IFERROR(VLOOKUP(VALUE($B$68),'Input Calculation'!$A$2:$AJ$29,9),"") ->  | D68: =_xlfn.IFNA(VLOOKUP($C68,'Product Information'!$A$2:$C$31,2),"") ->  | E68: =_xlfn.IFNA(VLOOKUP($C68,'Product Information'!$A$2:$C$31,3),"") -> 
C69: =IFERROR(VLOOKUP(VALUE($B$68),'Input Calculation'!$A$2:$AJ$29,11),"") ->  | D69: =_xlfn.IFNA(VLOOKUP($C69,'Product Information'!$A$2:$C$31,2),"") ->  | E69: =_xlfn.IFNA(VLOOKUP($C69,'Product Information'!$A$2:$C$31,3),"") -> 
C70: =IFERROR(VLOOKUP(VALUE($B$68),'Input Calculation'!$A$2:$AJ$29,13),"") ->  | D70: =_xlfn.IFNA(VLOOKUP($C70,'Product Information'!$A$2:$C$31,2),"") ->  | E70: =_xlfn.IFNA(VLOOKUP($C70,'Product Information'!$A$2:$C$31,3),"") -> 
C71: =IFERROR(VLOOKUP(VALUE($B$68),'Input Calculation'!$A$2:$AJ$29,15),"") ->  | D71: =_xlfn.IFNA(VLOOKUP($C71,'Product Information'!$A$2:$C$31,2),"") ->  | E71: =_xlfn.IFNA(VLOOKUP($C71,'Product Information'!$A$2:$C$31,3),"") -> 
C72: =IFERROR(VLOOKUP(VALUE($B$68),'Input Calculation'!$A$2:$AJ$29,17),"") ->  | D72: =_xlfn.IFNA(VLOOKUP($C72,'Product Information'!$A$2:$C$31,2),"") ->  | E72: =_xlfn.IFNA(VLOOKUP($C72,'Product Information'!$A$2:$C$31,3),"") -> 
C73: =IFERROR(VLOOKUP(VALUE($B$68),'Input Calculation'!$A$2:$AJ$29,19),"") ->  | D73: =_xlfn.IFNA(VLOOKUP($C73,'Product Information'!$A$2:$C$31,2),"") ->  | E73: =_xlfn.IFNA(VLOOKUP($C73,'Product Information'!$A$2:$C$31,3),"") -> 
C74: =IFERROR(VLOOKUP(VALUE($B$68),'Input Calculation'!$A$2:$AJ$29,21),"") ->  | D74: =_xlfn.IFNA(VLOOKUP($C74,'Product Information'!$A$2:$C$31,2),"") ->  | E74: =_xlfn.IFNA(VLOOKUP($C74,'Product Information'!$A$2:$C$31,3),"") -> 
C75: =IFERROR(VLOOKUP(VALUE($B$68),'Input Calculation'!$A$2:$AJ$29,23),"") ->  | D75: =_xlfn.IFNA(VLOOKUP($C75,'Product Information'!$A$2:$C$31,2),"") ->  | E75: =_xlfn.IFNA(VLOOKUP($C75,'Product Information'!$A$2:$C$31,3),"") -> 
C76: =IFERROR(VLOOKUP(VALUE($B$68),'Input Calculation'!$A$2:$AJ$29,25),"") ->  | D76: =_xlfn.IFNA(VLOOKUP($C76,'Product Information'!$A$2:$C$31,2),"") ->  | E76: =_xlfn.IFNA(VLOOKUP($C76,'Product Information'!$A$2:$C$31,3),"") -> 
C77: =IFERROR(VLOOKUP(VALUE($B$68),'Input Calculation'!$A$2:$AJ$29,27),"") ->  | D77: =_xlfn.IFNA(VLOOKUP($C77,'Product Information'!$A$2:$C$31,2),"") ->  | E77: =_xlfn.IFNA(VLOOKUP($C77,'Product Information'!$A$2:$C$31,3),"") -> 
D78: Total: | E78: =IFERROR(VLOOKUP(VALUE($B$68),'Input Calculation'!$A$2:$AJ$29,36),"") ->  | F78: Notes:

Sheet 9184329830 (hidden)
A1: Name: | B1: =VLOOKUP(9184329830,'Customer Information'!$A$2:$I$12,2) -> Jane Mary
A2: Phone: | B2: =TEXT(9184329830,"###-###-####") -> 918-432-9830
A3: Email: | B3: =VLOOKUP(9184329830,'Customer Information'!$A$2:$I$12,3) -> high@gmail.com
A4: Address: | B4: =CONCATENATE(VLOOKUP(9184329830,'Customer Information'!$A$2:$I$12,4),", ",VLOOKUP(9184329830,'Customer Information'!$A$2:$I$12,5),", ",VLOOKUP(9184329830,'Customer Information'!$A$2:$I$12,6)," ",VLOOKUP(9184329830,'Customer Information'!$A$2:$I$12,7)) -> 420 Weed Way, Denver, CO 88325
A5: Customer Since: | B5: =VLOOKUP(9184329830,'Customer Information'!$A$2:$I$12,8) -> 2001
A6: Good Standing: | B6: =VLOOKUP(9184329830,'Customer Information'!$A$2:$I$12,9) -> No
A7: =CONCATENATE(A8,A9,A10,A11,A12,A13,A14,A15,A16,A17,A18,A19,A20,A21,A22,A23,A24,A25,A26,A27,A28,A29,A30,A31,A32,A33,A34,A35,A36) -> 1004100810171028 | B7: Order Number
A8: =IF('Input Calculation'!B2=9184329830,'Input Calculation'!A2,"") ->  | B8: =MID($A$7,ROW()-7,4) -> 1004 | C8: =IFERROR(VLOOKUP(VALUE($B$8),'Input Calculation'!$A$2:$AJ$29,9),"") -> 8924251 | D8: =_xlfn.IFNA(VLOOKUP($C8,'Product Information'!$A$2:$C$31,2),"") -> Super Sunglasses | E8: =_xlfn.IFNA(VLOOKUP($C8,'Product Information'!$A$2:$C$31,3),"") -> 99.99
A9: =IF('Input Calculation'!B3=9184329830,'Input Calculation'!A3,"") ->  | C9: =IFERROR(VLOOKUP(VALUE($B$8),'Input Calculation'!$A$2:$AJ$29,11),"") -> 7250412 | D9: =_xlfn.IFNA(VLOOKUP($C9,'Product Information'!$A$2:$C$31,2),"") -> Thermal Socks | E9: =_xlfn.IFNA(VLOOKUP($C9,'Product Information'!$A$2:$C$31,3),"") -> 12.99
A10: =IF('Input Calculation'!B4=9184329830,'Input Calculation'!A4,"") ->  | C10: =IFERROR(VLOOKUP(VALUE($B$8),'Input Calculation'!$A$2:$AJ$29,13),"") -> 5216388 | D10: =_xlfn.IFNA(VLOOKUP($C10,'Product Information'!$A$2:$C$31,2),"") -> Logo Hat | E10: =_xlfn.IFNA(VLOOKUP($C10,'Product Information'!$A$2:$C$31,3),"") -> 49.99
A11: =IF('Input Calculation'!B5=9184329830,'Input Calculation'!A5,"") -> 1004 | C11: =IFERROR(VLOOKUP(VALUE($B$8),'Input Calculation'!$A$2:$AJ$29,15),"") ->  | D11: =_xlfn.IFNA(VLOOKUP($C11,'Product Information'!$A$2:$C$31,2),"") ->  | E11: =_xlfn.IFNA(VLOOKUP($C11,'Product Information'!$A$2:$C$31,3),"") -> 
A12: =IF('Input Calculation'!B6=9184329830,'Input Calculation'!A6,"") ->  | C12: =IFERROR(VLOOKUP(VALUE($B$8),'Input Calculation'!$A$2:$AJ$29,17),"") ->  | D12: =_xlfn.IFNA(VLOOKUP($C12,'Product Information'!$A$2:$C$31,2),"") ->  | E12: =_xlfn.IFNA(VLOOKUP($C12,'Product Information'!$A$2:$C$31,3),"") -> 
A13: =IF('Input Calculation'!B7=9184329830,'Input Calculation'!A7,"") ->  | C13: =IFERROR(VLOOKUP(VALUE($B$8),'Input Calculation'!$A$2:$AJ$29,19),"") ->  | D13: =_xlfn.IFNA(VLOOKUP($C13,'Product Information'!$A$2:$C$31,2),"") ->  | E13: =_xlfn.IFNA(VLOOKUP($C13,'Product Information'!$A$2:$C$31,3),"") -> 
A14: =IF('Input Calculation'!B8=9184329830,'Input Calculation'!A8,"") ->  | C14: =IFERROR(VLOOKUP(VALUE($B$8),'Input Calculation'!$A$2:$AJ$29,21),"") ->  | D14: =_xlfn.IFNA(VLOOKUP($C14,'Product Information'!$A$2:$C$31,2),"") ->  | E14: =_xlfn.IFNA(VLOOKUP($C14,'Product Information'!$A$2:$C$31,3),"") -> 
A15: =IF('Input Calculation'!B9=9184329830,'Input Calculation'!A9,"") -> 1008 | C15: =IFERROR(VLOOKUP(VALUE($B$8),'Input Calculation'!$A$2:$AJ$29,23),"") ->  | D15: =_xlfn.IFNA(VLOOKUP($C15,'Product Information'!$A$2:$C$31,2),"") ->  | E15: =_xlfn.IFNA(VLOOKUP($C15,'Product Information'!$A$2:$C$31,3),"") -> 
A16: =IF('Input Calculation'!B10=9184329830,'Input Calculation'!A10,"") ->  | C16: =IFERROR(VLOOKUP(VALUE($B$8),'Input Calculation'!$A$2:$AJ$29,25),"") ->  | D16: =_xlfn.IFNA(VLOOKUP($C16,'Product Information'!$A$2:$C$31,2),"") ->  | E16: =_xlfn.IFNA(VLOOKUP($C16,'Product Information'!$A$2:$C$31,3),"") -> 
A17: =IF('Input Calculation'!B11=9184329830,'Input Calculation'!A11,"") ->  | C17: =IFERROR(VLOOKUP(VALUE($B$8),'Input Calculation'!$A$2:$AJ$29,27),"") ->  | D17: =_xlfn.IFNA(VLOOKUP($C17,'Product Information'!$A$2:$C$31,2),"") ->  | E17: =_xlfn.IFNA(VLOOKUP($C17,'Product Information'!$A$2:$C$31,3),"") -> 
A18: =IF('Input Calculation'!B12=9184329830,'Input Calculation'!A12,"") ->  | D18: Total: | E18: =VLOOKUP(VALUE($B$8),'Input Calculation'!$A$2:$AJ$29,36) -> 157.9 | F18: Notes: | G18: Tried to buy marijuana from sales represetative
A19: =IF('Input Calculation'!B13=9184329830,'Input Calculation'!A13,"") -> 
A20: =IF('Input Calculation'!B14=9184329830,'Input Calculation'!A14,"") ->  | B20: =MID($A$7,LEN(B8)+1,4) -> 1008 | C20: =IFERROR(VLOOKUP(VALUE($B$20),'Input Calculation'!$A$2:$AJ$29,9),"") -> 8924251 | D20: =_xlfn.IFNA(VLOOKUP($C20,'Product Information'!$A$2:$C$31,2),"") -> Super Sunglasses | E20: =_xlfn.IFNA(VLOOKUP($C20,'Product Information'!$A$2:$C$31,3),"") -> 99.99
A21: =IF('Input Calculation'!B15=9184329830,'Input Calculation'!A15,"") ->  | C21: =IFERROR(VLOOKUP(VALUE($B$20),'Input Calculation'!$A$2:$AJ$29,11),"") -> 2056772 | D21: =_xlfn.IFNA(VLOOKUP($C21,'Product Information'!$A$2:$C$31,2),"") -> Great Pants | E21: =_xlfn.IFNA(VLOOKUP($C21,'Product Information'!$A$2:$C$31,3),"") -> 74.99
A22: =IF('Input Calculation'!B16=9184329830,'Input Calculation'!A16,"") ->  | C22: =IFERROR(VLOOKUP(VALUE($B$20),'Input Calculation'!$A$2:$AJ$29,13),"") ->  | D22: =_xlfn.IFNA(VLOOKUP($C22,'Product Information'!$A$2:$C$31,2),"") ->  | E22: =_xlfn.IFNA(VLOOKUP($C22,'Product Information'!$A$2:$C$31,3),"") -> 
A23: =IF('Input Calculation'!B17=9184329830,'Input Calculation'!A17,"") ->  | C23: =IFERROR(VLOOKUP(VALUE($B$20),'Input Calculation'!$A$2:$AJ$29,15),"") ->  | D23: =_xlfn.IFNA(VLOOKUP($C23,'Product Information'!$A$2:$C$31,2),"") ->  | E23: =_xlfn.IFNA(VLOOKUP($C23,'Product Information'!$A$2:$C$31,3),"") -> 
A24: =IF('Input Calculation'!B18=9184329830,'Input Calculation'!A18,"") -> 1017 | C24: =IFERROR(VLOOKUP(VALUE($B$20),'Input Calculation'!$A$2:$AJ$29,17),"") ->  | D24: =_xlfn.IFNA(VLOOKUP($C24,'Product Information'!$A$2:$C$31,2),"") ->  | E24: =_xlfn.IFNA(VLOOKUP($C24,'Product Information'!$A$2:$C$31,3),"") -> 
A25: =IF('Input Calculation'!B19=9184329830,'Input Calculation'!A19,"") ->  | C25: =IFERROR(VLOOKUP(VALUE($B$20),'Input Calculation'!$A$2:$AJ$29,19),"") ->  | D25: =_xlfn.IFNA(VLOOKUP($C25,'Product Information'!$A$2:$C$31,2),"") ->  | E25: =_xlfn.IFNA(VLOOKUP($C25,'Product Information'!$A$2:$C$31,3),"") -> 
A26: =IF('Input Calculation'!B20=9184329830,'Input Calculation'!A20,"") ->  | C26: =IFERROR(VLOOKUP(VALUE($B$20),'Input Calculation'!$A$2:$AJ$29,21),"") ->  | D26: =_xlfn.IFNA(VLOOKUP($C26,'Product Information'!$A$2:$C$31,2),"") ->  | E26: =_xlfn.IFNA(VLOOKUP($C26,'Product Information'!$A$2:$C$31,3),"") -> 
A27: =IF('Input Calculation'!B21=9184329830,'Input Calculation'!A21,"") ->  | C27: =IFERROR(VLOOKUP(VALUE($B$20),'Input Calculation'!$A$2:$AJ$29,23),"") ->  | D27: =_xlfn.IFNA(VLOOKUP($C27,'Product Information'!$A$2:$C$31,2),"") ->  | E27: =_xlfn.IFNA(VLOOKUP($C27,'Product Information'!$A$2:$C$31,3),"") -> 
A28: =IF('Input Calculation'!B22=9184329830,'Input Calculation'!A22,"") ->  | C28: =IFERROR(VLOOKUP(VALUE($B$20),'Input Calculation'!$A$2:$AJ$29,25),"") ->  | D28: =_xlfn.IFNA(VLOOKUP($C28,'Product Information'!$A$2:$C$31,2),"") ->  | E28: =_xlfn.IFNA(VLOOKUP($C28,'Product Information'!$A$2:$C$31,3),"") -> 
A29: =IF('Input Calculation'!B23=9184329830,'Input Calculation'!A23,"") ->  | C29: =IFERROR(VLOOKUP(VALUE($B$20),'Input Calculation'!$A$2:$AJ$29,27),"") ->  | D29: =_xlfn.IFNA(VLOOKUP($C29,'Product Information'!$A$2:$C$31,2),"") ->  | E29: =_xlfn.IFNA(VLOOKUP($C29,'Product Information'!$A$2:$C$31,3),"") -> 
A30: =IF('Input Calculation'!B24=9184329830,'Input Calculation'!A24,"") ->  | D30: Total: | E30: =IFERROR(VLOOKUP(VALUE($B$20),'Input Calculation'!$A$2:$AJ$29,36),"") -> 169.53 | F30: Notes:
A31: =IF('Input Calculation'!B25=9184329830,'Input Calculation'!A25,"") -> 
A32: =IF('Input Calculation'!B26=9184329830,'Input Calculation'!A26,"") ->  | B32: =MID($A$7,LEN(B8)+LEN(B20)+1,4) -> 1017 | C32: =IFERROR(VLOOKUP(VALUE($B$32),'Input Calculation'!$A$2:$AJ$29,9),"") -> 3055845 | D32: =_xlfn.IFNA(VLOOKUP($C32,'Product Information'!$A$2:$C$31,2),"") -> Winter Jacket | E32: =_xlfn.IFNA(VLOOKUP($C32,'Product Information'!$A$2:$C$31,3),"") -> 199.99
A33: =IF('Input Calculation'!B27=9184329830,'Input Calculation'!A27,"") ->  | C33: =IFERROR(VLOOKUP(VALUE($B$32),'Input Calculation'!$A$2:$AJ$29,11),"") ->  | D33: =_xlfn.IFNA(VLOOKUP($C33,'Product Information'!$A$2:$C$31,2),"") ->  | E33: =_xlfn.IFNA(VLOOKUP($C33,'Product Information'!$A$2:$C$31,3),"") -> 
A34: =IF('Input Calculation'!B28=9184329830,'Input Calculation'!A28,"") ->  | C34: =IFERROR(VLOOKUP(VALUE($B$32),'Input Calculation'!$A$2:$AJ$29,13),"") ->  | D34: =_xlfn.IFNA(VLOOKUP($C34,'Product Information'!$A$2:$C$31,2),"") ->  | E34: =_xlfn.IFNA(VLOOKUP($C34,'Product Information'!$A$2:$C$31,3),"") -> 
A35: =IF('Input Calculation'!B29=9184329830,'Input Calculation'!A29,"") -> 1028 | C35: =IFERROR(VLOOKUP(VALUE($B$32),'Input Calculation'!$A$2:$AJ$29,15),"") ->  | D35: =_xlfn.IFNA(VLOOKUP($C35,'Product Information'!$A$2:$C$31,2),"") ->  | E35: =_xlfn.IFNA(VLOOKUP($C35,'Product Information'!$A$2:$C$31,3),"") -> 
A36: =IF('Input Calculation'!B30=9184329830,'Input Calculation'!A30,"") ->  | C36: =IFERROR(VLOOKUP(VALUE($B$32),'Input Calculation'!$A$2:$AJ$29,17),"") ->  | D36: =_xlfn.IFNA(VLOOKUP($C36,'Product Information'!$A$2:$C$31,2),"") ->  | E36: =_xlfn.IFNA(VLOOKUP($C36,'Product Information'!$A$2:$C$31,3),"") -> 
C37: =IFERROR(VLOOKUP(VALUE($B$32),'Input Calculation'!$A$2:$AJ$29,19),"") ->  | D37: =_xlfn.IFNA(VLOOKUP($C37,'Product Information'!$A$2:$C$31,2),"") ->  | E37: =_xlfn.IFNA(VLOOKUP($C37,'Product Information'!$A$2:$C$31,3),"") -> 
C38: =IFERROR(VLOOKUP(VALUE($B$32),'Input Calculation'!$A$2:$AJ$29,21),"") ->  | D38: =_xlfn.IFNA(VLOOKUP($C38,'Product Information'!$A$2:$C$31,2),"") ->  | E38: =_xlfn.IFNA(VLOOKUP($C38,'Product Information'!$A$2:$C$31,3),"") -> 
C39: =IFERROR(VLOOKUP(VALUE($B$32),'Input Calculation'!$A$2:$AJ$29,23),"") ->  | D39: =_xlfn.IFNA(VLOOKUP($C39,'Product Information'!$A$2:$C$31,2),"") ->  | E39: =_xlfn.IFNA(VLOOKUP($C39,'Product Information'!$A$2:$C$31,3),"") -> 
C40: =IFERROR(VLOOKUP(VALUE($B$32),'Input Calculation'!$A$2:$AJ$29,25),"") ->  | D40: =_xlfn.IFNA(VLOOKUP($C40,'Product Information'!$A$2:$C$31,2),"") ->  | E40: =_xlfn.IFNA(VLOOKUP($C40,'Product Information'!$A$2:$C$31,3),"") -> 
C41: =IFERROR(VLOOKUP(VALUE($B$32),'Input Calculation'!$A$2:$AJ$29,27),"") ->  | D41: =_xlfn.IFNA(VLOOKUP($C41,'Product Information'!$A$2:$C$31,2),"") ->  | E41: =_xlfn.IFNA(VLOOKUP($C41,'Product Information'!$A$2:$C$31,3),"") -> 
D42: Total: | E42: =IFERROR(VLOOKUP(VALUE($B$32),'Input Calculation'!$A$2:$AJ$29,36),"") -> 193.77 | F42: Notes:
B44: =MID($A$7,LEN(B8)+LEN(B20)+LEN(B32)+1,4) -> 1028 | C44: =IFERROR(VLOOKUP(VALUE($B$44),'Input Calculation'!$A$2:$AJ$29,9),"") -> 2056772 | D44: =_xlfn.IFNA(VLOOKUP($C44,'Product Information'!$A$2:$C$31,2),"") -> Great Pants | E44: =_xlfn.IFNA(VLOOKUP($C44,'Product Information'!$A$2:$C$31,3),"") -> 74.99
C45: =IFERROR(VLOOKUP(VALUE($B$44),'Input Calculation'!$A$2:$AJ$29,11),"") ->  | D45: =_xlfn.IFNA(VLOOKUP($C45,'Product Information'!$A$2:$C$31,2),"") ->  | E45: =_xlfn.IFNA(VLOOKUP($C45,'Product Information'!$A$2:$C$31,3),"") -> 
C46: =IFERROR(VLOOKUP(VALUE($B$44),'Input Calculation'!$A$2:$AJ$29,13),"") ->  | D46: =_xlfn.IFNA(VLOOKUP($C46,'Product Information'!$A$2:$C$31,2),"") ->  | E46: =_xlfn.IFNA(VLOOKUP($C46,'Product Information'!$A$2:$C$31,3),"") -> 
C47: =IFERROR(VLOOKUP(VALUE($B$44),'Input Calculation'!$A$2:$AJ$29,15),"") ->  | D47: =_xlfn.IFNA(VLOOKUP($C47,'Product Information'!$A$2:$C$31,2),"") ->  | E47: =_xlfn.IFNA(VLOOKUP($C47,'Product Information'!$A$2:$C$31,3),"") -> 
C48: =IFERROR(VLOOKUP(VALUE($B$44),'Input Calculation'!$A$2:$AJ$29,17),"") ->  | D48: =_xlfn.IFNA(VLOOKUP($C48,'Product Information'!$A$2:$C$31,2),"") ->  | E48: =_xlfn.IFNA(VLOOKUP($C48,'Product Information'!$A$2:$C$31,3),"") -> 
C49: =IFERROR(VLOOKUP(VALUE($B$44),'Input Calculation'!$A$2:$AJ$29,19),"") ->  | D49: =_xlfn.IFNA(VLOOKUP($C49,'Product Information'!$A$2:$C$31,2),"") ->  | E49: =_xlfn.IFNA(VLOOKUP($C49,'Product Information'!$A$2:$C$31,3),"") -> 
C50: =IFERROR(VLOOKUP(VALUE($B$44),'Input Calculation'!$A$2:$AJ$29,21),"") ->  | D50: =_xlfn.IFNA(VLOOKUP($C50,'Product Information'!$A$2:$C$31,2),"") ->  | E50: =_xlfn.IFNA(VLOOKUP($C50,'Product Information'!$A$2:$C$31,3),"") -> 
C51: =IFERROR(VLOOKUP(VALUE($B$44),'Input Calculation'!$A$2:$AJ$29,23),"") ->  | D51: =_xlfn.IFNA(VLOOKUP($C51,'Product Information'!$A$2:$C$31,2),"") ->  | E51: =_xlfn.IFNA(VLOOKUP($C51,'Product Information'!$A$2:$C$31,3),"") -> 
C52: =IFERROR(VLOOKUP(VALUE($B$44),'Input Calculation'!$A$2:$AJ$29,25),"") ->  | D52: =_xlfn.IFNA(VLOOKUP($C52,'Product Information'!$A$2:$C$31,2),"") ->  | E52: =_xlfn.IFNA(VLOOKUP($C52,'Product Information'!$A$2:$C$31,3),"") -> 
C53: =IFERROR(VLOOKUP(VALUE($B$44),'Input Calculation'!$A$2:$AJ$29,27),"") ->  | D53: =_xlfn.IFNA(VLOOKUP($C53,'Product Information'!$A$2:$C$31,2),"") ->  | E53: =_xlfn.IFNA(VLOOKUP($C53,'Product Information'!$A$2:$C$31,3),"") -> 
D54: Total: | E54: =IFERROR(VLOOKUP(VALUE($B$44),'Input Calculation'!$A$2:$AJ$29,36),"") -> 72.66 | F54: Notes: | G54: Flirted with sales representative
B56: =MID($A$7,LEN(B8)+LEN(B20)+LEN(B32)+LEN(B44)+1,4) ->  | C56: =IFERROR(VLOOKUP(VALUE($B$56),'Input Calculation'!$A$2:$AJ$29,9),"") ->  | D56: =_xlfn.IFNA(VLOOKUP($C56,'Product Information'!$A$2:$C$31,2),"") ->  | E56: =_xlfn.IFNA(VLOOKUP($C56,'Product Information'!$A$2:$C$31,3),"") -> 
C57: =IFERROR(VLOOKUP(VALUE($B$56),'Input Calculation'!$A$2:$AJ$29,11),"") ->  | D57: =_xlfn.IFNA(VLOOKUP($C57,'Product Information'!$A$2:$C$31,2),"") ->  | E57: =_xlfn.IFNA(VLOOKUP($C57,'Product Information'!$A$2:$C$31,3),"") -> 
C58: =IFERROR(VLOOKUP(VALUE($B$56),'Input Calculation'!$A$2:$AJ$29,13),"") ->  | D58: =_xlfn.IFNA(VLOOKUP($C58,'Product Information'!$A$2:$C$31,2),"") ->  | E58: =_xlfn.IFNA(VLOOKUP($C58,'Product Information'!$A$2:$C$31,3),"") -> 
C59: =IFERROR(VLOOKUP(VALUE($B$56),'Input Calculation'!$A$2:$AJ$29,15),"") ->  | D59: =_xlfn.IFNA(VLOOKUP($C59,'Product Information'!$A$2:$C$31,2),"") ->  | E59: =_xlfn.IFNA(VLOOKUP($C59,'Product Information'!$A$2:$C$31,3),"") -> 
C60: =IFERROR(VLOOKUP(VALUE($B$56),'Input Calculation'!$A$2:$AJ$29,17),"") ->  | D60: =_xlfn.IFNA(VLOOKUP($C60,'Product Information'!$A$2:$C$31,2),"") ->  | E60: =_xlfn.IFNA(VLOOKUP($C60,'Product Information'!$A$2:$C$31,3),"") -> 
C61: =IFERROR(VLOOKUP(VALUE($B$56),'Input Calculation'!$A$2:$AJ$29,19),"") ->  | D61: =_xlfn.IFNA(VLOOKUP($C61,'Product Information'!$A$2:$C$31,2),"") ->  | E61: =_xlfn.IFNA(VLOOKUP($C61,'Product Information'!$A$2:$C$31,3),"") -> 
C62: =IFERROR(VLOOKUP(VALUE($B$56),'Input Calculation'!$A$2:$AJ$29,21),"") ->  | D62: =_xlfn.IFNA(VLOOKUP($C62,'Product Information'!$A$2:$C$31,2),"") ->  | E62: =_xlfn.IFNA(VLOOKUP($C62,'Product Information'!$A$2:$C$31,3),"") -> 
C63: =IFERROR(VLOOKUP(VALUE($B$56),'Input Calculation'!$A$2:$AJ$29,23),"") ->  | D63: =_xlfn.IFNA(VLOOKUP($C63,'Product Information'!$A$2:$C$31,2),"") ->  | E63: =_xlfn.IFNA(VLOOKUP($C63,'Product Information'!$A$2:$C$31,3),"") -> 
C64: =IFERROR(VLOOKUP(VALUE($B$56),'Input Calculation'!$A$2:$AJ$29,25),"") ->  | D64: =_xlfn.IFNA(VLOOKUP($C64,'Product Information'!$A$2:$C$31,2),"") ->  | E64: =_xlfn.IFNA(VLOOKUP($C64,'Product Information'!$A$2:$C$31,3),"") -> 
C65: =IFERROR(VLOOKUP(VALUE($B$56),'Input Calculation'!$A$2:$AJ$29,27),"") ->  | D65: =_xlfn.IFNA(VLOOKUP($C65,'Product Information'!$A$2:$C$31,2),"") ->  | E65: =_xlfn.IFNA(VLOOKUP($C65,'Product Information'!$A$2:$C$31,3),"") -> 
D66: Total: | E66: =IFERROR(VLOOKUP(VALUE($B$56),'Input Calculation'!$A$2:$AJ$29,36),"") ->  | F66: Notes:
B68: =MID($A$7,LEN(B8)+LEN(B20)+LEN(B32)+LEN(B44)+LEN(B56)+1,4) ->  | C68: =IFERROR(VLOOKUP(VALUE($B$68),'Input Calculation'!$A$2:$AJ$29,9),"") ->  | D68: =_xlfn.IFNA(VLOOKUP($C68,'Product Information'!$A$2:$C$31,2),"") ->  | E68: =_xlfn.IFNA(VLOOKUP($C68,'Product Information'!$A$2:$C$31,3),"") -> 
C69: =IFERROR(VLOOKUP(VALUE($B$68),'Input Calculation'!$A$2:$AJ$29,11),"") ->  | D69: =_xlfn.IFNA(VLOOKUP($C69,'Product Information'!$A$2:$C$31,2),"") ->  | E69: =_xlfn.IFNA(VLOOKUP($C69,'Product Information'!$A$2:$C$31,3),"") -> 
